Workbook

Sheet Toel. Wijziging NG4R (aug 2016)
B2: Toelichting bij berekening gewijzigde x-factoren, q-factoren en rekenvolumina NG4R d.d. 25 augustus 2016
B4: Toelichting bij dit bestand
B6: Dit bestand bevat het rekenmodel waarmee ACM de x-factoren voor de RNB's gas voor de periode 2011-2013 berekent. Deze x-factoren heeft ACM gewijzigd vastgesteld in de volgende x-factorbesluiten.
B9: Wijziging x-factorbesluiten 2011-2013 Gas d.d. 25 augustus 2016 | C9: Zaaknummer | D9: Kenmerk
B10: Cogas Infra & Beheer B.V. | C10: 16.0769.52 | D10: ACM/DE/2016/204792
B11: DELTA Netwerkbedrijf B.V. | C11: 16.0771.52 | D11: ACM/DE/2016/204794
B12: Enexis B.V. | C12: 16.0773.52 | D12: ACM/DE/2016/204796
B13: Liander N.V. | C13: 16.0776.52 | D13: ACM/DE/2016/204798
B14: Endinet B.V. | C14: 16.0777.52 | D14: ACM/DE/2016/204800
B15: RENDO Netbeheer B.V. | C15: 16.0779.52 | D15: ACM/DE/2016/204802
B16: Stedin Netbeheer B.V. | C16: 16.0781.52 | D16: ACM/DE/2016/204805
B17: Westland Infra Netbeheer B.V. | C17: 16.0783.52 | D17: ACM/DE/2016/204807
B18: Zebra Gasnetwerk B.V. | C18: 16.0784.52 | D18: ACM/DE/2016/204808
B20: Legenda celkleuren
B22: Data en input
B24: Berekende waarde
B26: Waarde die zonder berekening wordt overgenomen uit een andere cel
B28: Berekende of overgenomen waarde en tevens resultaat
B30: Waarde of berekening die speciale aandacht vraagt (toelichting in opmerking)
B32: Waarde of berekening die (vooralsnog) kennelijk onjuist of onvolledig is

Sheet Aanpassing gegevens (aug 2016)
B2: Toelichting bij berekening Gewijzigde x-factoren, q-factoren en rekenvolumina NG4R
B4: Dit Excel-bestand is onderdeel van het model waarmee de x-factoren voor de regionale netbeheerders gas voor de periode 2011 tot en met 2013 worden berekend.
B5: Dit bestand maakt onderdeel uit van de (gewijzigde) x/q/rv-besluiten voor de vierde periode voor de regionale netbeheerders gas (besluiten van 25 augustus 2016).
B6: Dit bestand zoals dat nu tot stand is gekomen is volledig gebaseerd op de berekening voor de vaststelling van de gewijzigde X- en Q-factoren en rekenvolumina NG4R van besluiten van 11 september 2014,
B7: behoudens de aanpassingen die onderstaand worden toegelicht.
B9: In onderstaande overzichten geldt steeds:
B10: Oorspronkelijke gegevens: gegevens zoals opgenomen in de kapitaalkostensheet die gepubliceerd is bij de gewijzigde X- en Q-factoren en rekenvolumina NG4R van besluiten van 11 september 2014.
B11: Aanpassing: aanpassing van de gegevens op basis van een specifieke bron (wordt steeds genoemd).
B12: Nieuw: nieuwe gegevens zoals deze zijn opgenomen in de verdere bladen.
B14: Het betreft gegevens in duizenden euro's, weergegeven in het prijspeil van het genoemde jaar.
B17: Aanpassing kapitaalkostensheet: voor Stedin is de start-GAW gasaansluitdienst aangepast
B19: Netbeheerder: | E19: Stedin
B20: Bron gegevens: | E20: Gewijzigde berekening start-GAW voor gasaansluitingen van Stedin (bestand: RNB's Gas-2011-2013-rekenmodule-start-GAW GAD wijziging zomer 2016) en effect daarvan in kapitaalkostenberekeningen
E21: De wijziging is tot stand gekomen op basis van een e-mail van Stedin aan ACM van 18 maart 2016.
B23: Aanpassing gegevens | C23: Jaar | D23: Tabblad, cel | E23: Oorspronkelijk | I23: Nieuw
B25: Eindstand GAW 2009 gasaansluitdienst | C25: 2009 | D25: Kosten AD, G51 | E25: 319895.5998 | I25: 271890.6132
B26: Afschrijvingen 2009 gasaansluitdienst | C26: 2009 | D26: Kosten AD, G52 | E26: 11778.82221 | I26: 9932.476572
B29: Aanpassing: Weglaten van afloopverschillen uit eliminatie niet tariefgereguleerde OPEX en CAPEX
B31: Bron gegevens: | E31: Oorspronkelijke productiviteitsdata 2006 t/m 2009 van NRE, Haarlemmermeer en Obragas
E32: In de wijziging van het x-factormodel in september 2014 is bij de eliminatie van niet tariefgereguleerde OPEX en CAPEZ bij enkele netbeheerders foutief de post 'afloopverschillen' meegenomen.
B34: NB: deze aanpassing is een wijziging van de eerdere aanpassing van deze posten in september 2014. De 'oorspronkelijke gegevens' verwijzen in onderstaande kolom (kolom E) dan ook naar de wijziging uit september 2014.
B36: Netbeheerder: | E36: Endinet Haarlemmermeer
B37: Bron gegevens: | E37: Productiviteitsdata 2006-2009
B39: Aanpassing gegevens (OPEX) | C39: Jaar | E39: Oorspronkelijk | G39: Aanpassing | I39: Nieuw
B40: Foutieve eliminatie niet tariefgereguleerde OPEX en CAPEX - TD | C40: 2006 | D40: Kosten TD, H41 | E40: ='Aanpassing gegevens (sep 14)'!I254 -> -93.05604 | G40: 93.05604 | I40: =E40+G40 -> 0
B41: Foutieve eliminatie niet tariefgereguleerde OPEX en CAPEX - TD | C41: 2007 | D41: Kosten TD, H80 | E41: ='Aanpassing gegevens (sep 14)'!I255 -> -47.74273 | G41: 47.74273 | I41: 0
B42: Foutieve eliminatie niet tariefgereguleerde OPEX en CAPEX - TD | C42: 2008 | D42: Kosten TD, H121 | E42: ='Aanpassing gegevens (sep 14)'!I256 -> -12.52049129 | G42: 12.52049129 | I42: =E42+G42 -> 0
B43: Foutieve eliminatie niet tariefgereguleerde OPEX en CAPEX - TD | C43: 2009 | D43: Kosten TD, H162/H208 | E43: ='Aanpassing gegevens (sep 14)'!I257 -> -15.20147864 | G43: 15.20147864 | I43: =E43+G43 -> 3.019806627e-14
B45: Netbeheerder: | E45: Endinet Regio Eindhoven
B46: Bron gegevens: | E46: Productiviteitsdata 2006-2009
B48: Aanpassing gegevens (OPEX) | C48: Jaar | E48: Oorspronkelijk | G48: Aanpassing | I48: Nieuw
B49: Foutieve eliminatie niet tariefgereguleerde OPEX en CAPEX - TD | C49: 2007 | D49: Kosten TD, J80 | E49: ='Aanpassing gegevens (sep 14)'!I275 -> -42.52004627 | G49: 57 | I49: =E49+G49 -> 14.47995373
B50: Foutieve eliminatie niet tariefgereguleerde OPEX en CAPEX - TD | C50: 2008 | D50: Kosten TD, J121 | E50: ='Aanpassing gegevens (sep 14)'!I276 -> 10.60470744 | G50: 22 | I50: =E50+G50 -> 32.60470744
B51: Foutieve eliminatie niet tariefgereguleerde OPEX en CAPEX - TD | C51: 2009 | D51: Kosten TD, J162/J208 | E51: ='Aanpassing gegevens (sep 14)'!I277 -> 19.61542221 | G51: 22 | I51: =E51+G51 -> 41.61542221
B53: Netbeheerder: | E53: Endinet Oost-Brabant
B54: Bron gegevens: | E54: Productiviteitsdata 2006-2009
B56: Aanpassing gegevens (OPEX) | C56: Jaar | E56: Oorspronkelijk | G56: Aanpassing | I56: Nieuw
B57: Foutieve eliminatie niet tariefgereguleerde OPEX en CAPEX - TD | C57: 2006 | D57: Kosten TD, L41 | E57: ='Aanpassing gegevens (sep 14)'!I294 -> -75.84005 | G57: 75.84005 | I57: =E57+G57 -> 0
B58: Foutieve eliminatie niet tariefgereguleerde OPEX en CAPEX - TD | C58: 2007 | D58: Kosten TD, L80 | E58: ='Aanpassing gegevens (sep 14)'!I295 -> -103.63799 | G58: 103.63799 | I58: =E59+G59 -> 0
B59: Foutieve eliminatie niet tariefgereguleerde OPEX en CAPEX - TD | C59: 2008 | D59: Kosten TD, L121 | E59: ='Aanpassing gegevens (sep 14)'!I296 -> -4.125082627 | G59: 4.125082627 | I59: =E60+G60 -> 0
B60: Foutieve eliminatie niet tariefgereguleerde OPEX en CAPEX - TD | C60: 2009 | D60: Kosten TD, L162/L208 | E60: ='Aanpassing gegevens (sep 14)'!I297 -> -57.15084874 | G60: 57.15084874 | I60: =E60+G60 -> 0

Sheet Toel. herstel NG4R (sep. 2014)
B2: Toelichting bij berekening gewijzigde x-factoren, q-factoren en rekenvolumina NG4R d.d. 11 september 2014
B4: Toelichting bij dit bestand
B6: Dit bestand bevat het rekenmodel waarmee ACM de x-factoren berekent. Deze x-factoren heeft ACM vastgesteld in de volgende x-factorbesluiten.
B9: Herstel x-factorbesluiten 2011-2013 Gas | C9: Zaaknummer | D9: Kenmerk
B10: Cogas Infra & Beheer B.V. | C10: 14.0714.52 | D10: ACM/DE/2014/205145
B11: DELTA Netwerkbedrijf B.V. | C11: 14.0716.52 | D11: ACM/DE/2014/205147
B12: Enexis B.V. | C12: 14.0718.52 | D12: ACM/DE/2014/205149
B13: Liander N.V. | C13: 14.0720.52 | D13: ACM/DE/2014/205151
B14: Endinet B.V. | C14: 14.0722.52 | D14: ACM/DE/2014/205153
B15: RENDO Netbeheer B.V. | C15: 14.0724.52 | D15: ACM/DE/2014/205155
B16: Stedin Netbeheer B.V. | C16: 14.0726.52 | D16: ACM/DE/2014/205157
B17: Westland Infra Netbeheer B.V. | C17: 14.0728.52 | D17: ACM/DE/2014/205159
B18: Zebra Gasnetwerk B.V. | C18: 14.0729.52 | D18: ACM/DE/2014/205160
B20: Legenda celkleuren
B22: Data en input
B24: Berekende waarde
B26: Waarde die zonder berekening wordt overgenomen uit een andere cel
B28: Berekende of overgenomen waarde en tevens resultaat
B30: Waarde of berekening die speciale aandacht vraagt (toelichting in opmerking)
B32: Waarde of berekening die (vooralsnog) kennelijk onjuist of onvolledig is

Sheet Aanpassing gegevens (sep 14)
B2: Toelichting bij berekening Gewijzigde x-factoren, q-factoren en rekenvolumina NG4R
B4: Dit Excel-bestand is onderdeel van het model waarmee de x-factoren voor de regionale netbeheerders gas voor de periode 2011 tot en met 2013 worden berekend.
B5: Dit bestand maakt onderdeel uit van de (gewijzigde) x/q/rv-besluiten voor de vierde periode voor de regionale netbeheerders gas (besluiten van 11 september 2014 met kenmerk 14.0747.52).
B6: Dit bestand zoals dat nu tot stand is gekomen is volledig gebaseerd op de berekening voor de vaststelling van de gewijzigde X- en Q-factoren en rekenvolumina NG4R van besluiten van 31 maart 2011 met kenmerk 103636,
B7: behoudens de aanpassingen die onderstaand worden toegelicht.
B9: In onderstaande overzichten geldt steeds:
B10: Oorspronkelijke gegevens: gegevens zoals opgenomen in de kapitaalkostensheet die gepubliceerd is bij de gewijzigde X- en Q-factoren en rekenvolumina NG4R van besluiten van 31 maart 2011 met kenmerk 103636.
B11: Aanpassing: aanpassing van de gegevens op basis van een specifieke bron (wordt steeds genoemd).
B12: Nieuw: nieuwe gegevens zoals deze zijn opgenomen in de verdere bladen.
B14: In alle gevallen betreft het gegevens in duizenden euro's, weergegeven in het prijspeil van het genoemde jaar, of in aantallen volumes.
B18: Aanpassing kapitaalkostensheet: voor Enexis worden investeringen in software voor de meetdienst in 2007-2009 uit de kapitaalkostenberekening gehaald
B20: Netbeheerder: | E20: Enexis
B21: Bron gegevens: | E21: Brief Enexis aan Energiekamer NMa 21 mei 2012 (kenmerken: 103779/203.B495; 12-SRA-uit-18)
E22: en de vernieuwde Kapitaalkostensheet NG4R (eveneens tegelijkertijd met dit bestand gepubliceerd)
B24: Aanpassing gegevens | C24: Jaar | D24: Tabblad, cel | E24: Oorspronkelijk | G24: Aanpassing | I24: Nieuw
B26: CAPEX: Eindstand GAW | C26: 2007 | D26: Kosten TD, O76 | E26: 1063095.314 | G26: -596.706624 | I26: =E26+G26 -> 1062498.607
B27: CAPEX: Afschrijvingen | C27: 2007 | D27: Kosten TD, O77 | E27: 37373.33943 | G27: -66.300736 | I27: =E27+G27 -> 37307.03869
B28: CAPEX: Eindstand GAW | C28: 2008 | D28: Kosten TD, O117 | E28: 1086115.468 | G28: 571.1197523 | I28: 1086686.588
B29: CAPEX: Afschrijvingen | C29: 2008 | D29: Kosten TD, O118 | E29: 39539.89457 | G29: -18.46785919 | I29: 39521.42671
B30: CAPEX: Eindstand GAW | C30: 2009 | D30: Kosten TD, O158 | E30: 1133266.085 | G30: -2614.842697 | I30: 1130651.242
B31: CAPEX: Afschrijvingen | C31: 2009 | D31: Kosten TD, O159 | E31: 42386.63001 | G31: -244.6571984 | I31: 42141.97281
B33: Aanpassing kapitaalkostensheet: Activering leaseauto's Enexis
B35: Netbeheerder: | E35: Enexis
B36: Bron nieuwe gegevens: | E36: OPEX onderzoek, Mail Enexis 17 september 2013 en gaw sheet NG5R
B38: Aanpassing gegevens | C38: Jaar | D38: Tabblad, cel | E38: Oorspronkelijk | I38: Nieuw
B40: CAPEX: Eindstand GAW | C40: 2006 | D40: Kosten TD, O37 | E40: 1047486.341 | G40: 1252.434 | I40: =E40+G40 -> 1048738.775
B41: CAPEX: Afschrijvingen | C41: 2006 | D41: Kosten TD, O38 | E41: 35212.42811 | G41: 0 | I41: 35212.42811
B42: CAPEX: Eindstand GAW | C42: 2007 | D42: Kosten TD, O76 | E42: =I26 -> 1062498.607 | G42: 2638.843168 | I42: 1065137.451
B43: CAPEX: Afschrijvingen | C43: 2007 | D43: Kosten TD, O77 | E43: 37307.03869 | G43: 205.7269076 | I43: 37512.7656
B44: CAPEX: Eindstand GAW | C44: 2008 | D44: Kosten TD, O117 | E44: 1086686.588 | G44: 3807.401959 | I44: 1090493.99
B45: CAPEX: Afschrijvingen | C45: 2008 | D45: Kosten TD, O118 | E45: 39521.42671 | G45: 362.6974847 | I45: 39884.1242
B46: CAPEX: Eindstand GAW | C46: 2009 | D46: Kosten TD, O158 | E46: 1130651.242 | G46: 5244.553001 | I46: 1135895.795
B47: CAPEX: Afschrijvingen | C47: 2009 | D47: Kosten TD, O159 | E47: 42141.97281 | G47: 544.8258206 | I47: 42686.79863
B49: Aanpassing kapitaalkostensheet: afschrijvingstermijn start GAW afgekochte precario RENDO van 12,5 naar 20 jaar o.b.v. CBB uitspraak
B51: Netbeheerder: | E51: RENDO
B52: Bron nieuwe gegevens: | E52: Besluit ACM 26 juni 2013 (kenmerk ACM/RVB/2013/201914_OV)
B54: Aanpassing gegevens | C54: Jaar | D54: Tabblad, cel | E54: Oorspronkelijk | I54: Nieuw
B56: CAPEX: Eindstand GAW | C56: 2006 | D56: Kosten TD, M37 | E56: 170644.844 | G56: -604.4425831 | I56: =E56+G56 -> 170040.4015
B57: CAPEX: Afschrijvingen | C57: 2006 | D57: Kosten TD, M38 | E57: 6996.641409 | G57: 201.480861 | I57: 7198.12227
B58: CAPEX: Eindstand GAW | C58: 2007 | D58: Kosten TD, M76 | E58: 169045.0761 | G58: -817.2063723 | I58: 168227.8698
B59: CAPEX: Afschrijvingen | C59: 2007 | D59: Kosten TD, M77 | E59: 7386.277605 | G59: 204.3015931 | I59: 7590.579198
B60: CAPEX: Eindstand GAW | C60: 2008 | D60: Kosten TD, M117 | E60: 169243.0568 | G60: -1032.744553 | I60: 168210.3122
B61: CAPEX: Afschrijvingen | C61: 2008 | D61: Kosten TD, M118 | E61: 7822.201123 | G61: 206.5489106 | I61: 8028.750034
B62: CAPEX: Eindstand GAW | C62: 2009 | D62: Kosten TD, M158 | E62: 169805.9168 | G62: -1278.950854 | I62: 168526.9659
B63: CAPEX: Afschrijvingen | C63: 2009 | D63: Kosten TD, M159 | E63: 8329.008855 | G63: 213.1584757 | I63: 8542.16733
B65: Eindstand GAW Precario Afkoop | C65: 2006 | D65: ORV, M12 | E65: 17913.47854 | G65: 4478.370047 | I65: =E65+G65 -> 22391.84859
B66: Afschrijvingen Precario Afkoop | C66: 2006 | D66: ORV, M13 | E66: 1492.789879 | G66: 373.1975039 | I66: 1865.987382
B67: Eindstand GAW Precario Afkoop | C67: 2007 | D67: ORV, M26 | E67: 16650.5783 | G67: 4162.644959 | I67: 20813.22326
B68: Afschrijvingen Precario Afkoop | C68: 2007 | D68: ORV, M27 | E68: 1513.688937 | G68: 378.422269 | I68: 1892.111206
B69: Eindstand GAW Precario Afkoop | C69: 2008 | D69: ORV, M40 | E69: 15303.39515 | G69: 3825.849139 | I69: 19129.24429
B70: Afschrijvingen Precario Afkoop | C70: 2008 | D70: ORV, M41 | E70: 1530.339515 | G70: 382.5849139 | I70: 1912.924429
B71: Eindstand GAW Precario Afkoop | C71: 2009 | D71: ORV, M54 | E71: 14213.79342 | G71: 3553.448681 | I71: 17767.2421
B72: Afschrijvingen Precario Afkoop | C72: 2009 | D72: ORV, M55 | E72: 1579.31038 | G72: 394.8276312 | I72: 1974.138011
B74: Aanpassing kapitaalkostensheet: investeringsgegevens Liander o.b.v.foutief geboekte investeringen (onterecht als investeringsbijdragen gepassiveerd)
B76: Netbeheerder: | D76: Liander
B77: Bron nieuwe gegevens: | D77: E-mail Liander aan ACM op 18 september 2013 en 25 juli 2014
B79: Aanpassing gegevens | C79: Jaar | D79: Tabblad, cel | E79: Oorspronkelijk | G79: Aanpassing | I79: Nieuw
B80: CAPEX: Eindstand GAW | C80: 2008 | D80: Kosten TD, K117 | E80: 1746866.878 | G80: 144.2808015 | I80: =E80+G80 -> 1747011.159
B81: CAPEX: Afschrijvingen | C81: 2008 | D81: Kosten TD, K118 | E81: 57427.78226 | G81: 1.646198485 | I81: 57429.42846
B82: CAPEX: Eindstand GAW | C82: 2009 | D82: Kosten TD, K158 | E82: 1775837.025 | G82: 188.5341153 | I82: 1776025.559
B83: CAPEX: Afschrijvingen | C83: 2009 | D83: Kosten TD, K159 | E83: 59910.60681 | G83: 3.870671855 | I83: 59914.47749
B85: Aanpassing: voor RENDO worden operationele kosten voor fysieke meteropname in 2006-2009 uit de OPEX gehaald
B87: Netbeheerder: | E87: RENDO
B88: Bron gegevens: | E88: Brief RENDO aan Energiekamer NMa 4 april 2012 (kenmerken: 103780_7/1.B1522; C&R/IS/APM/12-0878)
E89: en telefoonnotitie (18 juli 2012) over toewijzing aandeel kosten aan controle op zichtbare aspecten van fraude.
E90: Voor 2009: uitvraag CORR2009-2011; toelichting nr 9.
B92: Opgave verkeerd opgegeven kosten | C92: Jaar | G92: Bedrag
B94: Fysieke meteropname | C94: 2006 | G94: 123.038
B95: Fysieke meteropname | C95: 2007 | G95: 125.853
B96: Fysieke meteropname | C96: 2008 | G96: 41.899
B98: Toe te wijzen aan kosten voor controle op zichtbare aspecten van fraude (transportdomein): | G98: 0.15
B99: Kosten 2006 toe te wijzen aan personeelskosten | G99: 0.46
B100: Kosten 2006 toe te wijzen aan uitbesteed werk en andere externe kosten | G100: 0.4
B101: Kosten 2006 toe te wijzen aan overige kosten | G101: 0.14
B104: Aanpassing gegevens | C104: Jaar | D104: Tabblad, cel | E104: Oorspronkelijk | G104: Aanpassing | I104: Nieuw
B106: OPEX: Personeelskosten | C106: 2006 | D106: Kosten TD, M23 | E106: 1268.364 | G106: =-G94*(1-$G$98)*G99 -> -48.107858 | I106: =E106+G106 -> 1220.256142
B107: OPEX: Kosten uitbesteed werk en andere externe kosten | C107: 2006 | D107: Kosten TD, M24 | E107: 975.159 | G107: =-G94*(1-$G$98)*G100 -> -41.83292 | I107: 933.32608
B108: OPEX: Overige kosten | C108: 2006 | D108: Kosten TD, M29 | E108: 947.162 | G108: =-G94*(1-$G$98)*G101 -> -14.641522 | I108: 932.520478
B109: OPEX: Kosten uitbesteed werk en andere externe kosten | C109: 2007 | D109: Kosten TD, M64 | E109: 1534.741654 | G109: =-G95*(1-$G$98) -> -106.97505 | I109: 1427.766604
B110: OPEX: Kosten uitbesteed werk en andere externe kosten | C110: 2008 | D110: Kosten TD, M104 | E110: 866.26851 | G110: =-G96*(1-$G$98) -> -35.61415 | I110: 830.65436
B113: Voor het jaar 2009 is door RENDO in de uitvraag CORR2009-2011 een geheel nieuwe opgave gedaan. In toelichting nr. 9 van dit informatieverzoek zijn enkele fouten met betrekking
B114: tot de gegevens (waaronder fysieke meteropname) geaggregeerd aangepast.
B116: OPEX: Kosten uitbesteed werk en andere externe kosten | C116: 2009 | D116: Kosten TD, M145 | E116: 1009.9538 | G116: -48.854 | I116: =E116+G116 -> 961.0998
B119: Aanpassing: gewijzigde volumegegevens Stedin i.v.m. verbeterde opgave n.a.v. diverse fouten en vragen vanuit ACM
B121: Netbeheerder: | E121: Stedin
B122: Bron gegevens: | E122: Opgave Stedin op 1 augustus 2013 van nieuwe volumegegevens in oude formats PRD voor 2009-2011 (i.c.m. Uitvraag CORR2009-2011)
E123: Naam van modules: PRD 2009 STED NG-PRD(i)-10-01 DEFINITIEF JULI 2013 zonder koppelingen.xls
B125: Aanpassing gegevens (Volumes Transportdienst) | C125: Jaar | E125: Oorspronkelijk | G125: Aanpassing | I125: Nieuw | K125: Bijbehorende rekencapaciteiten
B127: Volume TD - =< 10 m3(n)h, jaarverbruik < 500 Nm3 | C127: 2009 | E127: 219728.4805 | G127: 15849.93219 | I127: =E127+G127 -> 235578.4127 | K127: 1.5
B128: Volume TD - =< 10 m3(n)h, jaarverbruik vanaf 500 Nm3 en < 4.000 Nm3 | C128: 2009 | E128: 1599001.8 | G128: -69114.80042 | I128: =E128+G128 -> 1529886.999 | K128: 3
B129: Volume TD - =< 10 m3(n)h, jaarverbruik vanaf 4.000 Nm3 | C129: 2009 | E129: 9634.538054 | G129: 53264.86823 | I129: 62899.40628 | K129: 6
B130: > 10 en =< 16 m3(n)h | C130: 2009 | E130: 7247.454466 | G130: geen | I130: 7247.454466 | K130: 10
B131: > 16 en =< 25 m3(n)h | C131: 2009 | E131: 16278.45458 | G131: geen | I131: 16278.45458 | K131: 16
B132: > 25 en =< 40 m3(n)h | C132: 2009 | E132: 6818.545429 | G132: geen | I132: 6818.545429 | K132: 25
B133: Volume TD Telemetriegrootverbruik - Standaard - TOVT (vastrecht) | C133: 2009 | E133: 1966 | G133: 145.7272677 | I133: 2111.727268
B134: Volume TD Telemetriegrootverbruik - Standaard - TAVTc (cap.tar.) | C134: 2009 | E134: 323.8087485 | G134: 662621.4636 | I134: 662945.2723
B136: Kleinverbruik | E136: Oorspronkelijk | I136: Nieuw
B137: Vastrecht (TOVT) | C137: 2009 | D137: Volumes, G67 | E137: 1858709.273 | I137: =SUM(I127:I132) -> 1858709.273
B138: Capaciteitsafhankelijk tarief (TAVTc) | C138: 2009 | D138: Volumes, G68 | E138: 5687798.802 | I138: =SUMPRODUCT(I127:I132,K127:K132) -> 5823818.508
B140: Profielgrootverbruik | E140: Oorspronkelijk | I140: Nieuw
B141: Vastrecht (TOVT) | C141: 2009 | D141: Volumes, G75 | E141: 1966 | G141: =I133-E141 -> 145.7272677 | I141: =+E141+G141 -> 2111.727268
B142: Capaciteitsafhankelijk tarief (TAVTc) | C142: 2009 | D142: Volumes, G78 | E142: 636607.9996 | G142: =I134-E142 -> 26337.27277 | I142: =+E142+G142 -> 662945.2723
B145: Aanpassing gegevens (Volumes Periodieke Aansluitvergoeding)
B147: Lage Druk - 0 t/m 10 m3(n)/h | C147: 2009 | D147: Volumes, G132 | E147: 1828365.546 | G147: -17 | I147: =E147+G147 -> 1828348.546
B148: Lage Druk - 10 t/m 16 m3(n)/h | C148: 2009 | D148: Volumes, G133 | E148: 7247.454688 | G148: -1 | I148: =E148+G148 -> 7246.454688
B149: Lage Druk - 16 t/m 25 m3(n)/h | C149: 2009 | D149: Volumes, G134 | E149: 16279.45469 | G149: -4 | I149: 16275.45469
B150: Lage Druk - 25 t/m 40 m3(n)/h | C150: 2009 | D150: Volumes, G135 | E150: 6820.727195 | G150: -4 | I150: 6816.727195
B151: Lage Druk - 40 t/m 65 m3(n)/h | C151: 2009 | D151: Volumes, G136 | E151: 2039.727252 | G151: -65.49582919 | I151: 1974.231423
B152: Lage Druk - 65 t/m 100 m3(n)/h | C152: 2009 | D152: Volumes, G137 | E152: 3278.909052 | G152: -167.271315 | I152: 3111.637737
B153: Lage Druk - 100 t/m 160 m3(n)/h | C153: 2009 | D153: Volumes, G138 | E153: 2086.230306 | G153: -216.2169933 | I153: 1870.013312
B154: Lage Druk - 160 t/m 250 m3(n)/h | C154: 2009 | D154: Volumes, G139 | E154: 709.9985928 | G154: -159.1925096 | I154: 550.8060832
B155: Lage Druk - 250 t/m 400 m3(n)/h | C155: 2009 | D155: Volumes, G140 | E155: 1033.138978 | G155: -536.6189897 | I155: 496.5199883
B156: Lage Druk - 400 t/m 650 m3(n)/h | C156: 2009 | D156: Volumes, G141 | E156: 375.7346351 | G156: -241.2434905 | I156: 134.4911445
B157: Lage Druk - 650 t/m 1000 m3(n)/h | C157: 2009 | D157: Volumes, G142 | E157: 281.8009763 | G157: -241.7724285 | I157: 40.02854777
B158: Lage Druk - 1000 t/m 1600 m3(n)/h | C158: 2009 | D158: Volumes, G143 | E158: 153.4386067 | G158: -138.5209644 | I158: 14.91764232
B159: Lage Druk - 1600 t/m 2500 m3(n)/h | C159: 2009 | D159: Volumes, G144 | E159: 52.87411449 | G159: -48.06737681 | I159: 4.806737681
B160: Lage Druk - vanaf 2500 m3(n)/h | C160: 2009 | D160: Volumes, G145 | E160: 35.81817816 | G160: -34.35621171 | I160: 1.461966456
B161: Hoge Druk - 0 t/m 10 m3(n)/h | C161: 2009 | D161: Volumes, G147 | E161: 0 | G161: 17 | I161: 17
B162: Hoge Druk - 10 t/m 16 m3(n)/h | C162: 2009 | D162: Volumes, G148 | E162: 0 | G162: 1 | I162: 1
B163: Hoge Druk - 16 t/m 25 m3(n)/h | C163: 2009 | D163: Volumes, G149 | E163: 0 | G163: 4 | I163: 4
B164: Hoge Druk - 25 t/m 40 m3(n)/h | C164: 2009 | D164: Volumes, G150 | E164: 0 | G164: 4 | I164: 4
B165: Hoge Druk - 40 t/m 65 m3(n)/h | C165: 2009 | D165: Volumes, G151 | E165: 0 | G165: 65.49582919 | I165: 65.49582919
B166: Hoge Druk - 65 t/m 100 m3(n)/h | C166: 2009 | D166: Volumes, G152 | E166: 0 | G166: 167.271315 | I166: 167.271315
B167: Hoge Druk - 100 t/m 160 m3(n)/h | C167: 2009 | D167: Volumes, G153 | E167: 0 | G167: 216.2169933 | I167: 216.2169933
B168: Hoge Druk - 160 t/m 250 m3(n)/h | C168: 2009 | D168: Volumes, G154 | E168: 0 | G168: 159.1925096 | I168: 159.1925096
B169: Hoge Druk - 250 t/m 400 m3(n)/h | C169: 2009 | D169: Volumes, G155 | E169: 0 | G169: 536.6189897 | I169: 536.6189897
B170: Hoge Druk - 400 t/m 650 m3(n)/h | C170: 2009 | D170: Volumes, G156 | E170: 0 | G170: 241.2434905 | I170: 241.2434905
B171: Hoge Druk - 650 t/m 1000 m3(n)/h | C171: 2009 | D171: Volumes, G157 | E171: 0 | G171: 241.7724285 | I171: 241.7724285
B172: Hoge Druk - 1000 t/m 1600 m3(n)/h | C172: 2009 | D172: Volumes, G158 | E172: 0 | G172: 138.5209644 | I172: 138.5209644
B173: Hoge Druk - 1600 t/m 2500 m3(n)/h | C173: 2009 | D173: Volumes, G159 | E173: 0 | G173: 48.06737681 | I173: 48.06737681
B174: Hoge Druk - vanaf 2500 m3(n)/h | C174: 2009 | D174: Volumes, G160 | E174: 0 | G174: 34.35621171 | I174: 34.35621171
B177: Aanpassing gegevens (Volumes Eenmalige Aansluitvergoeding)
B179: Lage Druk - 0 t/m 10 m3(n)/h | C179: 2009 | D179: Volumes, G87 | E179: 21344.8963 | G179: 3227.26224 | I179: =E179+G179 -> 24572.15854
B180: Lage Druk - 10 t/m 16 m3(n)/h | C180: 2009 | D180: Volumes, G88 | E180: 222.0149631 | G180: 22.66496913 | I180: =E180+G180 -> 244.6799322
B181: Lage Druk - 16 t/m 25 m3(n)/h | C181: 2009 | D181: Volumes, G89 | E181: 170.7953474 | G181: 57.43613194 | I181: 228.2314793
B182: Lage Druk - 25 t/m 40 m3(n)/h | C182: 2009 | D182: Volumes, G90 | E182: 81.01708246 | G182: 16.14815097 | I182: 97.16523342
B183: Lage Druk - 40 t/m 65 m3(n)/h | C183: 2009 | D183: Volumes, G91 | E183: 46.97961794 | G183: -0.3958639666 | I183: 46.58375397
B184: Lage Druk - 65 t/m 100 m3(n)/h | C184: 2009 | D184: Volumes, G92 | E184: 29.08509317 | G184: -0.2933680832 | I184: 28.79172509
B185: Lage Druk - 100 t/m 160 m3(n)/h | C185: 2009 | D185: Volumes, G93 | E185: 25.39045587 | G185: -0.1067951788 | I185: 25.28366069
B186: Lage Druk - 160 t/m 250 m3(n)/h | C186: 2009 | D186: Volumes, G94 | E186: 2 | G186: -2 | I186: 0
B187: Lage Druk - 250 t/m 400 m3(n)/h | C187: 2009 | D187: Volumes, G95 | E187: 2 | G187: -2 | I187: 0
B188: Hoge Druk - 40 t/m 65 m3(n)/h | C188: 2009 | D188: Volumes, G106 | E188: 6.291981111 | G188: 0.0232303115 | I188: 6.315211422
B189: Hoge Druk - 65 t/m 100 m3(n)/h | C189: 2009 | D189: Volumes, G107 | E189: 4.336145769 | G189: -0.05798771023 | I189: 4.278158058
B190: Hoge Druk - 100 t/m 160 m3(n)/h | C190: 2009 | D190: Volumes, G108 | E190: 2.848170115 | G190: 0.02986348762 | I190: 2.878033603
B191: Lage Druk Meerlengte - 0 t/m 10 m3(n)/h | C191: 2009 | D191: Volumes, G121 | E191: 13190.16621 | G191: 928.1046429 | I191: 14118.27086
B192: Lage Druk Meerlengte - 10 t/m 16 m3(n)/h | C192: 2009 | D192: Volumes, G122 | E192: 2032.847223 | G192: 236.9042262 | I192: 2269.751449
B193: Lage Druk Meerlengte - 16 t/m 25 m3(n)/h | C193: 2009 | D193: Volumes, G123 | E193: 3041.381765 | G193: 1623.308995 | I193: 4664.69076
B194: Lage Druk Meerlengte - 25 t/m 40 m3(n)/h | C194: 2009 | D194: Volumes, G124 | E194: 1581.296058 | G194: 262.1926505 | I194: 1843.488708
B196: Aanpassing gegevens (Bedragen Eenmalige Aansluitvergoeding)
B198: LD 0-10 m3/h | C198: 2009 | D198: Vergoedingen AD, G7 | E198: 15424.05731 | G198: -92.75043393 | I198: =E198+G198 -> 15331.30688
B199: LD 10-16 m3/h | C199: 2009 | D199: Vergoedingen AD, G8 | E199: 334.0793035 | G199: -1.950763466 | I199: =E199+G199 -> 332.12854
B200: LD 16-25 m3/h | C200: 2009 | D200: Vergoedingen AD, G9 | E200: 311.5884574 | G200: -1.787047437 | I200: 309.80141
B201: LD 25-40 m3/h | C201: 2009 | D201: Vergoedingen AD, G10 | E201: 223.9966005 | G201: -1.067490525 | I201: 222.92911
B202: LD 40-65 m3/h | C202: 2009 | D202: Vergoedingen AD, G11 | E202: 203.6989752 | G202: -0.865765218 | I202: 202.83321
B203: LD 65-100 m3/h | C203: 2009 | D203: Vergoedingen AD, G12 | E203: 155.6823713 | G203: -0.602841336 | I203: 155.07953
B204: LD 100-160 m3/h | C204: 2009 | D204: Vergoedingen AD, G13 | E204: 151.2215021 | G204: -0.7568720999 | I204: 150.46463
B205: LD 160-250 m3/h | C205: 2009 | D205: Vergoedingen AD, G14 | E205: 18.20518285 | G205: -0.09197785014 | I205: 18.113205
B206: LD 250-400 m3/h | C206: 2009 | D206: Vergoedingen AD, G15 | E206: 18.20518285 | G206: -0.09197785014 | I206: 18.113205
B207: HD 40-65 m3/h | C207: 2009 | D207: Vergoedingen AD, G26 | E207: 54.53345041 | G207: -0.231550411 | I207: 54.3019
B208: HD 65-100 m3/h | C208: 2009 | D208: Vergoedingen AD, G27 | E208: 54.87826085 | G208: -0.2772608489 | I208: 54.601
B209: HD 100-160 m3/h | C209: 2009 | D209: Vergoedingen AD, G28 | E209: 44.978075 | G209: -0.1849950032 | I209: 44.79308
B210: HD 160-250 m3/h | C210: 2009 | D210: Vergoedingen AD, G29 | E210: 114.4796525 | G210: 0.5203475231 | I210: 115
B211: HD 250-400 m3/h | C211: 2009 | D211: Vergoedingen AD, G30 | E211: 143.0995656 | G211: -0.3985655961 | I211: 142.701
B212: HD 400-650 m3/h | C212: 2009 | D212: Vergoedingen AD, G31 | E212: 28.61991312 | G212: 0.3800868808 | I212: 29
B213: HD 650-1000 m3/h | C213: 2009 | D213: Vergoedingen AD, G32 | E213: 37.37805478 | G213: -0.3780547792 | I213: 37
B214: HD 1000-1600 m3/h | C214: 2009 | D214: Vergoedingen AD, G33 | E214: 62.29675797 | G214: 0.5702420347 | I214: 62.867
B215: HD 1600-2500 m3/h | C215: 2009 | D215: Vergoedingen AD, G34 | E215: 0 | I215: 0
B216: HD >2500 m3/h | C216: 2009 | D216: Vergoedingen AD, G35 | E216: 192.9679501 | G216: -0.3679500929 | I216: 192.6
B218: Aanpassing gegevens als gevolg van OPEX en CAPEX die niet tariefgereguleerde kosten bevatten. De opbrengsten die daarbij horen zijn opgenomen onder overige opbrengsten.
B220: Netbeheerder: | E220: Cogas
B221: Bron gegevens: | E221: Productiviteitsdata 2006-2009
B223: Aanpassing gegevens (OPEX) | C223: Jaar | E223: Oorspronkelijk | G223: Aanpassing | I223: Nieuw
B224: Eliminatie niet tariefgereguleerde OPEX en CAPEX - TD | C224: 2006 | D224: Kosten TD, E41 | E224: 0 | G224: 0 | I224: =E224+G224 -> 0
B225: Eliminatie niet tariefgereguleerde OPEX en CAPEX - TD | C225: 2007 | D225: Kosten TD, E80 | E225: 0 | G225: 0 | I225: =E225+G225 -> 0
B226: Eliminatie niet tariefgereguleerde OPEX en CAPEX - TD | C226: 2008 | D226: Kosten TD, E121 | E226: 0 | G226: 0 | I226: =E226+G226 -> 0
B227: Eliminatie niet tariefgereguleerde OPEX en CAPEX - TD | C227: 2009 | D227: Kosten TD, E162 | E227: 0 | G227: 0 | I227: =E227+G227 -> 0
B228: Eliminatie niet tariefgereguleerde OPEX en CAPEX - AD | C228: 2009 | D228: Kosten TD, E208 | E228: 0 | G228: 0 | I228: =E228+G228 -> 0
B230: Netbeheerder: | E230: Delta
B231: Bron gegevens: | E231: Productiviteitsdata 2006-2009
B233: Aanpassing gegevens (OPEX) | C233: Jaar | E233: Oorspronkelijk | G233: Aanpassing | I233: Nieuw
B234: Eliminatie niet tariefgereguleerde OPEX en CAPEX - TD | C234: 2006 | D234: Kosten TD, F41 | E234: 0 | G234: 0 | I234: =E234+G234 -> 0
B235: Eliminatie niet tariefgereguleerde OPEX en CAPEX - TD | C235: 2007 | D235: Kosten TD, F80 | E235: 0 | G235: 0 | I235: =E235+G235 -> 0
B236: Eliminatie niet tariefgereguleerde OPEX en CAPEX - TD | C236: 2008 | D236: Kosten TD, F121 | E236: 0 | G236: 0 | I236: =E236+G236 -> 0
B237: Eliminatie niet tariefgereguleerde OPEX en CAPEX - TD | C237: 2009 | D237: Kosten TD, F162 | E237: 0 | G237: 0 | I237: =E237+G237 -> 0
B238: Eliminatie niet tariefgereguleerde OPEX en CAPEX - AD | C238: 2009 | D238: Kosten TD, F208 | E238: 0 | G238: 0 | I238: =E238+G238 -> 0
B240: Netbeheerder: | E240: Stedin
B241: Bron gegevens: | E241: Productiviteitsdata 2006-2009
B243: Aanpassing gegevens (OPEX) | C243: Jaar | E243: Oorspronkelijk | G243: Aanpassing | I243: Nieuw
B244: Eliminatie niet tariefgereguleerde OPEX en CAPEX - TD | C244: 2006 | D244: Kosten TD, G41 | E244: 0 | G244: 1133 | I244: =E244+G244 -> 1133
B245: Eliminatie niet tariefgereguleerde OPEX en CAPEX - TD | C245: 2007 | D245: Kosten TD, G80 | E245: 0 | G245: 3615.51752 | I245: =E245+G245 -> 3615.51752
B246: Eliminatie niet tariefgereguleerde OPEX en CAPEX - TD | C246: 2008 | D246: Kosten TD, G121 | E246: 0 | G246: 2869.46268 | I246: =E246+G246 -> 2869.46268
B247: Eliminatie niet tariefgereguleerde OPEX en CAPEX - TD | C247: 2009 | D247: Kosten TD, G162 | E247: 0 | G247: 563.88794 | I247: =E247+G247 -> 563.88794
B248: Eliminatie niet tariefgereguleerde OPEX en CAPEX - AD | C248: 2009 | D248: Kosten TD, G208 | E248: 0 | G248: 0 | I248: =E248+G248 -> 0
B250: Netbeheerder: | E250: Endinet Haarlemmermeer
B251: Bron gegevens: | E251: Productiviteitsdata 2006-2009
B253: Aanpassing gegevens (OPEX) | C253: Jaar | E253: Oorspronkelijk | G253: Aanpassing | I253: Nieuw
B254: Eliminatie niet tariefgereguleerde OPEX en CAPEX - TD | C254: 2006 | D254: Kosten TD, H41 | E254: 0 | G254: -93.05604 | I254: =E254+G254 -> -93.05604
B255: Eliminatie niet tariefgereguleerde OPEX en CAPEX - TD | C255: 2007 | D255: Kosten TD, H80 | E255: 0 | G255: -47.74273 | I255: =E255+G255 -> -47.74273
B256: Eliminatie niet tariefgereguleerde OPEX en CAPEX - TD | C256: 2008 | D256: Kosten TD, H121 | E256: 0 | G256: -12.52049129 | I256: =E256+G256 -> -12.52049129
B257: Eliminatie niet tariefgereguleerde OPEX en CAPEX - TD | C257: 2009 | D257: Kosten TD, H162 | E257: 0 | G257: -15.20147864 | I257: =E257+G257 -> -15.20147864
... 106 more rows

Sheet x-factor
B2: x-factor | E2: Cogas Infra & Beheer B.V. | F2: DELTA Netwerkbedrijf B.V. | G2: Stedin B.V. | H2: Intergas Energie B.V. | I2: Liander N.V. (gefuseerd bedrijf) | J2: Endinet B.V. (gefuseerd bedrijf) | K2: N.V. RENDO | L2: Westland Energie Infrastructuur B.V. | M2: Enexis B.V. | N2: Zebra Gasnetwerk B.V. | O2: Totaal | Q2: Endinet Haarlemmermeer B.V. | R2: Endinet Regio Eindhoven B.V. | S2: Liander N.V. | T2: Endinet Oost-Brabant N.V.
B4: Begininkomsten 2010
B6: Begininkomsten 2010 Transportdienst | C6: € | D6: prijspeil 2010 | E6: =SUMPRODUCT('Wegingsfactor TD'!E47:E62,Rekenvolumes!E27:E42) -> 15859727.67 | F6: =SUMPRODUCT('Wegingsfactor TD'!F47:F62,Rekenvolumes!F27:F42) -> 22101116.31 | G6: =SUMPRODUCT('Wegingsfactor TD'!G47:G62,Rekenvolumes!G27:G42) -> 203294537.7 | H6: =SUMPRODUCT('Wegingsfactor TD'!I47:I62,Rekenvolumes!I27:I42) -> 17430029.52 | I6: =S6+Q6 -> 229828602.3 | J6: =T6+R6 -> 42085932.65 | K6: =SUMPRODUCT('Wegingsfactor TD'!M47:M62,Rekenvolumes!M27:M42) -> 12882447.51 | L6: =SUMPRODUCT('Wegingsfactor TD'!N47:N62,Rekenvolumes!N27:N42) -> 13987900.14 | M6: =SUMPRODUCT('Wegingsfactor TD'!O47:O62,Rekenvolumes!O27:O42) -> 201407952.2 | N6: =SUMPRODUCT('Wegingsfactor TD'!P47:P62,Rekenvolumes!P27:P42) -> 9673806.02 | O6: =SUM(E6:N6) -> 768552052.1 | Q6: =SUMPRODUCT('Wegingsfactor TD'!H47:H62,Rekenvolumes!H27:H42) -> 6309924.844 | R6: =SUMPRODUCT('Wegingsfactor TD'!J47:J62,Rekenvolumes!J27:J42) -> 19637621.8 | S6: =SUMPRODUCT('Wegingsfactor TD'!K47:K62,Rekenvolumes!K27:K42) -> 223518677.5 | T6: =SUMPRODUCT('Wegingsfactor TD'!L47:L62,Rekenvolumes!L27:L42) -> 22448310.84
B7: Begininkomsten 2010 Aansluitdienst | C7: € | D7: prijspeil 2010 | E7: =SUMPRODUCT('Wegingsfactor AD'!E7:E83,Rekenvolumes!E45:E121) -> 5114961.471 | F7: =SUMPRODUCT('Wegingsfactor AD'!F7:F83,Rekenvolumes!F45:F121) -> 6090845.792 | G7: =SUMPRODUCT('Wegingsfactor AD'!G7:G83,Rekenvolumes!G45:G121) -> 60957625.53 | H7: =SUMPRODUCT('Wegingsfactor AD'!I7:I83,Rekenvolumes!I45:I121) -> 7204092.494 | I7: =S7+Q7 -> 70272943.47 | J7: =T7+R7 -> 14227320.77 | K7: =SUMPRODUCT('Wegingsfactor AD'!M7:M83,Rekenvolumes!M45:M121) -> 3919018.747 | L7: =SUMPRODUCT('Wegingsfactor AD'!N7:N83,Rekenvolumes!N45:N121) -> 1562354.337 | M7: =SUMPRODUCT('Wegingsfactor AD'!O7:O83,Rekenvolumes!O45:O121) -> 53994295.31 | N7: =SUMPRODUCT('Wegingsfactor AD'!P7:P83,Rekenvolumes!P45:P121) -> 0 | O7: =SUM(E7:N7) -> 223343457.9 | Q7: =SUMPRODUCT('Wegingsfactor AD'!H7:H83,Rekenvolumes!H45:H121) -> 1805002.574 | R7: =SUMPRODUCT('Wegingsfactor AD'!J7:J83,Rekenvolumes!J45:J121) -> 7801027.086 | S7: =SUMPRODUCT('Wegingsfactor AD'!K7:K83,Rekenvolumes!K45:K121) -> 68467940.9 | T7: =SUMPRODUCT('Wegingsfactor AD'!L7:L83,Rekenvolumes!L45:L121) -> 6426293.685
B8: Begininkomsten 2010 Totaal | C8: € | D8: prijspeil 2010 | E8: =SUM(E6:E7) -> 20974689.14 | F8: =SUM(F6:F7) -> 28191962.11 | G8: 264252163.3 | H8: 24634122.02 | I8: =SUM(I6:I7) -> 300101545.8 | J8: =SUM(J6:J7) -> 56313253.42 | K8: 16801466.26 | L8: 15550254.48 | M8: 255402247.5 | N8: 9673806.02 | O8: 991895510 | Q8: =SUM(Q6:Q7) -> 8114927.417 | R8: =SUM(R6:R7) -> 27438648.89 | S8: =SUM(S6:S7) -> 291986618.4 | T8: =SUM(T6:T7) -> 28874604.53
B10: Eindinkomsten 2013
B12: Eindinkomsten 2013 | C12: € | D12: prijspeil 2010 | E12: =Eindinkomsten!E33 -> 20755640.17 | F12: =Eindinkomsten!F33 -> 27941179.64 | G12: =Eindinkomsten!G33 -> 282432842.4 | H12: =Eindinkomsten!I33 -> 23390137.2 | I12: =S12+Q12 -> 318137781.9 | J12: =T12+R12 -> 57598474.77 | K12: =Eindinkomsten!M33 -> 17704458.19 | L12: =Eindinkomsten!N33 -> 17893869.25 | M12: =Eindinkomsten!O33 -> 275716615.8 | N12: =Eindinkomsten!P33 -> 4820968.085 | O12: =Eindinkomsten!Q33 -> 1046391967 | Q12: =Eindinkomsten!H33 -> 8702286.823 | R12: =Eindinkomsten!J33 -> 27166747.2 | S12: =Eindinkomsten!K33 -> 309435495 | T12: =Eindinkomsten!L33 -> 30431727.57
B14: x-factor vierde reguleringsperiode
B16: x-factor onafgerond | E16: =100*(1-(E12/E8)^(1/3)) -> 0.3493352895 | F16: 0.2974012879 | G16: -2.242677737 | H16: 1.712438526 | I16: =100*(1-(I12/I8)^(1/3)) -> -1.964502696 | J16: =100*(1-(J12/J8)^(1/3)) -> -0.7550419468 | K16: -1.760325041 | L16: -4.790582146 | M16: -2.583947787 | N16: 20.71720346 | O16: -1.798838834 | Q16: =100*(1-(Q12/Q8)^(1/3)) -> -2.356694228 | R16: =100*(1-(R12/R8)^(1/3)) -> 0.3314118507 | S16: =100*(1-(S12/S8)^(1/3)) -> -1.953559709 | T16: =100*(1-(T12/T8)^(1/3)) -> -1.766191295
B17: x-factor | E17: =IF(E16>0,ROUNDDOWN(E16,1),ROUNDUP(E16,1)) -> 0.3 | F17: =IF(F16>0,ROUNDDOWN(F16,1),ROUNDUP(F16,1)) -> 0.2 | G17: -2.3 | H17: 1.7 | I17: =IF(I16>0,ROUNDDOWN(I16,1),ROUNDUP(I16,1)) -> -2 | J17: =IF(J16>0,ROUNDDOWN(J16,1),ROUNDUP(J16,1)) -> -0.8 | K17: -1.8 | L17: -4.8 | M17: -2.6 | N17: 20.7 | O17: -1.8 | Q17: =IF(Q16>0,ROUNDDOWN(Q16,1),ROUNDUP(Q16,1)) -> -2.4 | R17: =IF(R16>0,ROUNDDOWN(R16,1),ROUNDUP(R16,1)) -> 0.3 | S17: =IF(S16>0,ROUNDDOWN(S16,1),ROUNDUP(S16,1)) -> -2 | T17: =IF(T16>0,ROUNDDOWN(T16,1),ROUNDUP(T16,1)) -> -1.8

Sheet Eindinkomsten
B2: Eindinkomsten | E2: Cogas Infra & Beheer B.V. | F2: DELTA Netwerkbedrijf B.V. | G2: Stedin B.V. | H2: Endinet Haarlemmermeer B.V. | I2: Intergas Energie B.V. | J2: Endinet Regio Eindhoven B.V. | K2: Liander N.V. | L2: Endinet Oost-Brabant N.V. | M2: N.V. RENDO | N2: Westland Energie Infrastructuur B.V. | O2: Enexis B.V. | P2: Zebra Gasnetwerk B.V. | Q2: Totaal
B4: Efficiënte kosten 2010
B6: PV Transportdienst 2011-2013 | D6: ='Productiviteit TD'!D42 -> 0.0003400322495
B7: PV Aansluitdienst 2011-2013 | D7: 0.034
B8: CPI van 2009 naar 2010 | D8: =CPIv2009n2010 -> 0.003
B10: Kosten Transportdienst 2009 (incl. ORV) | C10: €, prijspeil 2009 | E10: ='Kosten TD'!E210*1000 -> 18620116.39 | F10: ='Kosten TD'!F210*1000 -> 23223009.05 | G10: ='Kosten TD'!G210*1000 -> 249106471.8 | H10: ='Kosten TD'!H210*1000 -> 5308904.332 | I10: ='Kosten TD'!I210*1000 -> 25758142.63 | J10: ='Kosten TD'!J210*1000 -> 21895953.63 | K10: ='Kosten TD'!K210*1000 -> 264277531.9 | L10: ='Kosten TD'!L210*1000 -> 22212528.77 | M10: ='Kosten TD'!M210*1000 -> 23105066.73 | N10: ='Kosten TD'!N210*1000 -> 19176870.69 | O10: ='Kosten TD'!O210*1000 -> 200813016.6 | P10: ='Kosten TD'!P210*1000 -> 5114228.669
B11: ORV lokale heffingen (TD) 2009 | C11: €, prijspeil 2009 | E11: =1000*ORV!E68 -> 819015.2363 | F11: =1000*ORV!F68 -> 272917.1 | G11: =1000*ORV!G68 -> 12940404 | H11: =1000*ORV!H68 -> 0 | I11: =1000*ORV!I68 -> 1438104.475 | J11: =1000*ORV!J68 -> 0 | K11: =1000*ORV!K68 -> 7004694.031 | L11: =1000*ORV!L68 -> 0 | M11: =1000*ORV!M68 -> 3165835.861 | N11: =1000*ORV!N68 -> 2494 | O11: =1000*ORV!O68 -> 611000 | P11: =1000*ORV!P68 -> 0
B12: Kosten Transportdienst 2009 (excl. ORV) | C12: €, prijspeil 2009 | E12: =E10-E11 -> 17801101.16 | F12: =F10-F11 -> 22950091.95 | G12: 236166067.8 | H12: 5308904.332 | I12: 24320038.15 | J12: 21895953.63 | K12: 257272837.9 | L12: 22212528.77 | M12: =M10-M11 -> 19939230.87 | N12: =N10-N11 -> 19174376.69 | O12: =O10-O11 -> 200202016.6 | P12: =P10-P11 -> 5114228.669 | Q12: =SUM(E12:P12) -> 852357376.4
B13: Efficiënte kosten Transportdienst 2010 | C13: €, prijspeil 2010 | D13: =(1-D6+D8)*Q12 -> 854624619.6
B15: Kosten Aansluitdienst 2009 (incl. ORV) | C15: €, prijspeil 2009 | E15: ='Kosten AD'!E60*1000 -> 4266149.621 | F15: ='Kosten AD'!F60*1000 -> 4076242.278 | G15: ='Kosten AD'!G60*1000 -> 60211239.86 | H15: ='Kosten AD'!H60*1000 -> 1029939.635 | I15: ='Kosten AD'!I60*1000 -> 3327028.3 | J15: ='Kosten AD'!J60*1000 -> 4089412.465 | K15: ='Kosten AD'!K60*1000 -> 60994784.43 | L15: ='Kosten AD'!L60*1000 -> 3421455.388 | M15: ='Kosten AD'!M60*1000 -> 2857586.32 | N15: ='Kosten AD'!N60*1000 -> 1546302.069 | O15: ='Kosten AD'!O60*1000 -> 38284733.98 | P15: ='Kosten AD'!P60*1000 -> 5390
B16: ORV lokale heffingen (AD) 2009 | C16: €, prijspeil 2009 | E16: =1000*ORV!E74 -> 6000 | F16: =1000*ORV!F74 -> 0 | G16: =1000*ORV!G74 -> 0 | H16: =1000*ORV!H74 -> 0 | I16: =1000*ORV!I74 -> 0 | J16: =1000*ORV!J74 -> 0 | K16: =1000*ORV!K74 -> 0 | L16: =1000*ORV!L74 -> 0 | M16: =1000*ORV!M74 -> 0 | N16: =1000*ORV!N74 -> 0 | O16: =1000*ORV!O74 -> 0 | P16: =1000*ORV!P74 -> 0
B17: Kosten Aansluitdienst 2009 (excl. ORV) | C17: €, prijspeil 2009 | E17: =E15-E16 -> 4260149.621 | F17: =F15-F16 -> 4076242.278 | G17: 60211239.86 | H17: 1029939.635 | I17: 3327028.3 | J17: 4089412.465 | K17: 60994784.43 | L17: 3421455.388 | M17: 2857586.32 | N17: 1546302.069 | O17: 38284733.98 | P17: 5390 | Q17: =SUM(E17:P17) -> 184104264.3
B18: CAPEX in Totale Kosten Aansluitdienst 2009 | C18: €, prijspeil 2009 | D18: =1000*'Kosten AD'!Q53 -> 57365403.42
B19: Efficiënte kosten Aansluitdienst 2010 | C19: €, prijspeil 2010 | D19: =(1+D8)*(Q17-D18)+D18 -> 184484480.9
B22: Eindinkomsten 2013
B24: Efficiënte kosten Transportdienst 2013 | C24: €, prijspeil 2010 | D24: =D13*(1-D6)^3 -> 853753116.2
B25: Efficiente kosten Aansluitdienst 2013 | C25: €, prijspeil 2010 | D25: =D19*(1-D7)^3 -> 166299605.1
B27: Efficiente kosten (TD + AD) 2013 | C27: €, prijspeil 2010 | D27: =D24+D25 -> 1020052721
B28: Efficiente kosten per SO (TD + AD) 2013 | C28: €, prijspeil 2010 | D28: =D27/SO!Q169 -> 1.104053834
B30: EindInkomsten (TD + AD) 2013 (excl. ORV) | C30: €, prijspeil 2010 | E30: =$D$28*SO!E169 -> 19928149.88 | F30: =$D$28*SO!F169 -> 27667443.79 | G30: =$D$28*SO!G169 -> 269453617.1 | H30: =$D$28*SO!H169 -> 8702286.823 | I30: =$D$28*SO!I169 -> 21947718.41 | J30: =$D$28*SO!J169 -> 27166747.2 | K30: =$D$28*SO!K169 -> 302409786.9 | L30: =$D$28*SO!L169 -> 30431727.57 | M30: =$D$28*SO!M169 -> 14529124.82 | N30: =$D$28*SO!N169 -> 17891367.77 | O30: =$D$28*SO!O169 -> 275103782.8 | P30: =$D$28*SO!P169 -> 4820968.085 | Q30: =SUM(E30:P30) -> 1020052721
B31: Geschatte ORV kosten (TD + AD) 2013 | C31: €, prijspeil 2010 | E31: =(ORV!E81+ORV!E85)*1000 -> 827490.282 | F31: =(ORV!F81+ORV!F85)*1000 -> 273735.8513 | G31: =(ORV!G81+ORV!G85)*1000 -> 12979225.21 | H31: =(ORV!H81+ORV!H85)*1000 -> 0 | I31: =(ORV!I81+ORV!I85)*1000 -> 1442418.788 | J31: =(ORV!J81+ORV!J85)*1000 -> 0 | K31: =(ORV!K81+ORV!K85)*1000 -> 7025708.113 | L31: =(ORV!L81+ORV!L85)*1000 -> 0 | M31: =(ORV!M81+ORV!M85)*1000 -> 3175333.368 | N31: =(ORV!N81+ORV!N85)*1000 -> 2501.482 | O31: =(ORV!O81+ORV!O85)*1000 -> 612833 | P31: =(ORV!P81+ORV!P85)*1000 -> 0 | Q31: =SUM(E31:P31) -> 26339246.1
B33: Eindinkomsten 2013 | C33: €, prijspeil 2010 | E33: =E30+E31 -> 20755640.17 | F33: =F30+F31 -> 27941179.64 | G33: 282432842.4 | H33: 8702286.823 | I33: 23390137.2 | J33: 27166747.2 | K33: 309435495 | L33: 30431727.57 | M33: 17704458.19 | N33: 17893869.25 | O33: 275716615.8 | P33: 4820968.085 | Q33: =SUM(E33:P33) -> 1046391967

Sheet Productiviteit TD
B2: Productiviteitsmeting Transportdienst | E2: Cogas Infra & Beheer B.V. | F2: DELTA Netwerkbedrijf B.V. | G2: Stedin B.V. | H2: Endinet Haarlemmermeer B.V. | I2: Intergas Energie B.V. | J2: Endinet Regio Eindhoven B.V. | K2: Liander N.V. | L2: Endinet Oost-Brabant N.V. | M2: N.V. RENDO | N2: Westland Energie Infrastructuur B.V. | O2: Enexis B.V. | P2: Zebra Gasnetwerk B.V. | Q2: Totaal | T2: Liander N.V. (gefuseerd bedrijf) | U2: Endinet B.V. (gefuseerd bedrijf)
B5: Kostendata
B7: Gestandaardiseerde Economische Kosten 2006 incl ORV | C7: € | D7: prijspeil 2006 | E7: ='Kosten TD'!E43*1000 -> 18460515.08 | F7: ='Kosten TD'!F43*1000 -> 18851551.81 | G7: ='Kosten TD'!G43*1000 -> 228526071.7 | H7: ='Kosten TD'!H43*1000 -> 7772901.322 | I7: ='Kosten TD'!I43*1000 -> 26317558.11 | J7: ='Kosten TD'!J43*1000 -> 21543745.15 | K7: ='Kosten TD'!K43*1000 -> 248146759.3 | L7: ='Kosten TD'!L43*1000 -> 26625195.11 | M7: ='Kosten TD'!M43*1000 -> 22649518.86 | N7: ='Kosten TD'!N43*1000 -> 19323008.08 | O7: ='Kosten TD'!O43*1000 -> 188266232.1 | P7: ='Kosten TD'!P43*1000 -> 0 | Q7: =SUM(E7:P7) -> 826483056.7 | T7: =H7+K7 -> 255919660.6 | U7: =J7+L7 -> 48168940.26
B8: ORV kosten 2006 | C8: € | D8: prijspeil 2006 | E8: =1000*ORV!E16 -> 913176.3791 | F8: =1000*ORV!F16 -> 281741.38 | G8: =1000*ORV!G16 -> 12439633 | H8: =1000*ORV!H16 -> 0 | I8: =1000*ORV!I16 -> 1499316.146 | J8: =1000*ORV!J16 -> 0 | K8: =1000*ORV!K16 -> 6290409 | L8: =1000*ORV!L16 -> 0 | M8: =1000*ORV!M16 -> 3334426.995 | N8: =1000*ORV!N16 -> 0 | O8: =1000*ORV!O16 -> 534000 | P8: =1000*ORV!P16 -> 0 | Q8: =SUM(E8:P8) -> 25292702.9 | T8: =H8+K8 -> 6290409 | U8: =J8+L8 -> 0
B9: Gestandaardiseerde Economische Kosten 2006 excl ORV | C9: € | D9: prijspeil 2006 | E9: =E7-E8 -> 17547338.7 | F9: =F7-F8 -> 18569810.43 | G9: 216086438.7 | H9: 7772901.322 | I9: 24818241.97 | J9: 21543745.15 | K9: 241856350.3 | L9: 26625195.11 | M9: 19315091.87 | N9: =N7-N8 -> 19323008.08 | O9: =O7-O8 -> 187732232.1 | P9: =P7-P8 -> 0 | Q9: 801190353.8 | T9: =H9+K9 -> 249629251.6 | U9: =J9+L9 -> 48168940.26
B11: Gestandaardiseerde Economische Kosten 2007 incl ORV | C11: € | D11: prijspeil 2007 | E11: ='Kosten TD'!E82*1000 -> 17721949.07 | F11: ='Kosten TD'!F82*1000 -> 17704822.16 | G11: ='Kosten TD'!G82*1000 -> 242154033.2 | H11: ='Kosten TD'!H82*1000 -> 7218892.641 | I11: ='Kosten TD'!I82*1000 -> 26031891.77 | J11: ='Kosten TD'!J82*1000 -> 22591094.89 | K11: ='Kosten TD'!K82*1000 -> 248840907.7 | L11: ='Kosten TD'!L82*1000 -> 26816067.91 | M11: ='Kosten TD'!M82*1000 -> 24581664.67 | N11: ='Kosten TD'!N82*1000 -> 19313601.88 | O11: ='Kosten TD'!O82*1000 -> 197165287.5 | P11: ='Kosten TD'!P82*1000 -> 0 | Q11: 850140213.4 | T11: =H11+K11 -> 256059800.3 | U11: =J11+L11 -> 49407162.8
B12: ORV kosten 2007 | C12: € | D12: prijspeil 2007 | E12: =1000*ORV!E30 -> 876640.0351 | F12: =1000*ORV!F30 -> 274637.41 | G12: =1000*ORV!G30 -> 12162401 | H12: =1000*ORV!H30 -> 0 | I12: =1000*ORV!I30 -> 1472987.793 | J12: =1000*ORV!J30 -> 0 | K12: =1000*ORV!K30 -> 7677067.256 | L12: =1000*ORV!L30 -> 0 | M12: =1000*ORV!M30 -> 3264004.568 | N12: =1000*ORV!N30 -> 6981.07 | O12: =1000*ORV!O30 -> 612000 | P12: =1000*ORV!P30 -> 0 | Q12: 26346719.13 | T12: 7677067.256 | U12: 0
B13: Gestandaardiseerde Economische Kosten 2007 excl ORV | C13: € | D13: prijspeil 2007 | E13: =E11-E12 -> 16845309.03 | F13: =F11-F12 -> 17430184.75 | G13: 229991632.2 | H13: 7218892.641 | I13: 24558903.97 | J13: 22591094.89 | K13: 241163840.4 | L13: 26816067.91 | M13: =M11-M12 -> 21317660.1 | N13: =N11-N12 -> 19306620.81 | O13: =O11-O12 -> 196553287.5 | P13: =P11-P12 -> 0 | Q13: 823793494.3 | T13: 248382733.1 | U13: 49407162.8
B15: Gestandaardiseerde Economische Kosten 2008 incl ORV | C15: € | D15: prijspeil 2008 | E15: ='Kosten TD'!E123*1000 -> 18176597.12 | F15: ='Kosten TD'!F123*1000 -> 18667881.71 | G15: ='Kosten TD'!G123*1000 -> 234654381.1 | H15: ='Kosten TD'!H123*1000 -> 5253011.714 | I15: ='Kosten TD'!I123*1000 -> 25553955.66 | J15: ='Kosten TD'!J123*1000 -> 22439067.43 | K15: ='Kosten TD'!K123*1000 -> 264872755.9 | L15: ='Kosten TD'!L123*1000 -> 21421020.72 | M15: ='Kosten TD'!M123*1000 -> 22419673.14 | N15: ='Kosten TD'!N123*1000 -> 19538384.95 | O15: ='Kosten TD'!O123*1000 -> 208965222.8 | P15: ='Kosten TD'!P123*1000 -> 0 | Q15: 861961952.3 | T15: =H15+K15 -> 270125767.6 | U15: =J15+L15 -> 43860088.15
B16: ORV kosten 2008 | C16: € | D16: prijspeil 2008 | E16: =1000*ORV!E44 -> 839951.2452 | F16: =1000*ORV!F44 -> 275418.29 | G16: =1000*ORV!G44 -> 12264064 | H16: =1000*ORV!H44 -> 0 | I16: =1000*ORV!I44 -> 1441351.373 | J16: =1000*ORV!J44 -> 0 | K16: =1000*ORV!K44 -> 7595804 | L16: =1000*ORV!L44 -> 0 | M16: =1000*ORV!M44 -> 3190723.355 | N16: =1000*ORV!N44 -> 3348 | O16: =1000*ORV!O44 -> 617000 | P16: =1000*ORV!P44 -> 0 | Q16: 26227660.26 | T16: 7595804 | U16: 0
B17: Gestandaardiseerde Economische Kosten 2008 excl ORV | C17: € | D17: prijspeil 2008 | E17: =E15-E16 -> 17336645.88 | F17: =F15-F16 -> 18392463.42 | G17: 222390317.1 | H17: 5253011.714 | I17: 24112604.29 | J17: 22439067.43 | K17: 257276951.9 | L17: 21421020.72 | M17: =M15-M16 -> 19228949.79 | N17: =N15-N16 -> 19535036.95 | O17: =O15-O16 -> 208348222.8 | P17: =P15-P16 -> 0 | Q17: 835734292 | T17: 262529963.6 | U17: 43860088.15
B19: Gestandaardiseerde Economische Kosten 2009 incl OVR | C19: € | D19: prijspeil 2009 | E19: =1000*'Kosten TD'!E164 -> 18620116.39 | F19: =1000*'Kosten TD'!F164 -> 21384843.45 | G19: =1000*'Kosten TD'!G164 -> 249106471.8 | H19: =1000*'Kosten TD'!H164 -> 5308904.332 | I19: =1000*'Kosten TD'!I164 -> 25758142.63 | J19: =1000*'Kosten TD'!J164 -> 21895953.63 | K19: =1000*'Kosten TD'!K164 -> 264277531.9 | L19: =1000*'Kosten TD'!L164 -> 22212528.77 | M19: =1000*'Kosten TD'!M164 -> 23105066.73 | N19: =1000*'Kosten TD'!N164 -> 19176870.69 | O19: =1000*'Kosten TD'!O164 -> 200702114.9 | P19: =1000*'Kosten TD'!P164 -> 0 | Q19: 871548545.2 | T19: =H19+K19 -> 269586436.2 | U19: =J19+L19 -> 44108482.41
B20: ORV kosten 2009 | C20: € | D20: prijspeil 2009 | E20: =1000*ORV!E58 -> 819015.2363 | F20: =1000*ORV!F58 -> 272917.1 | G20: =1000*ORV!G58 -> 12940404 | H20: =1000*ORV!H58 -> 0 | I20: =1000*ORV!I58 -> 1438104.475 | J20: =1000*ORV!J58 -> 0 | K20: =1000*ORV!K58 -> 7004694.031 | L20: =1000*ORV!L58 -> 0 | M20: =1000*ORV!M58 -> 3165835.861 | N20: =1000*ORV!N58 -> 2494 | O20: =1000*ORV!O58 -> 611000 | P20: =1000*ORV!P58 -> 0 | Q20: 26254464.7 | T20: 7004694.031 | U20: 0
B21: Gestandaardiseerde Economische Kosten 2009 excl ORV | C21: € | D21: prijspeil 2009 | E21: =E19-E20 -> 17801101.16 | F21: =F19-F20 -> 21111926.35 | G21: 236166067.8 | H21: 5308904.332 | I21: 24320038.15 | J21: 21895953.63 | K21: 257272837.9 | L21: 22212528.77 | M21: =M19-M20 -> 19939230.87 | N21: =N19-N20 -> 19174376.69 | O21: =O19-O20 -> 200091114.9 | P21: =P19-P20 -> 0 | Q21: 845294080.5 | T21: 262581742.2 | U21: 44108482.41
B24: Gestandaardiseerde Economische Kosten 2007 excl. ORV | C24: € | D24: prijspeil 2006 | E24: =E13/(1+_CPI2007) -> 16612730.8 | F24: 17189531.31 | G24: =G13/(1+_CPI2007) -> 226816205.3 | H24: 7119223.512 | I24: 24219826.4 | J24: 22279186.28 | K24: 237834162.2 | L24: 26445826.34 | M24: =M13/(1+_CPI2007) -> 21023333.44 | N24: =N13/(1+_CPI2007) -> 19040059.97 | O24: =O13/(1+_CPI2007) -> 193839534.1 | P24: =P13/(1+_CPI2007) -> 0 | Q24: =SUM(E24:P24) -> 812419619.6 | T24: =H24+K24 -> 244953385.7 | U24: =J24+L24 -> 48725012.62
B25: Gestandaardiseerde Economische Kosten 2008 excl. ORV | C25: € | D25: prijspeil 2007 | E25: =E17/(1+_CPI2008) -> 17148017.68 | F25: 18192347.6 | G25: =G17/(1+_CPI2008) -> 219970640.1 | H25: 5195857.283 | I25: 23850251.52 | J25: 22194923.28 | K25: 254477697.2 | L25: 21187953.24 | M25: =M17/(1+_CPI2008) -> 19019732.73 | N25: =N17/(1+_CPI2008) -> 19322489.56 | O25: =O17/(1+_CPI2008) -> 206081328.2 | P25: =P17/(1+_CPI2008) -> 0 | Q25: =SUM(E25:P25) -> 826641238.4 | T25: 259673554.5 | U25: 43382876.51
B26: Gestandaardiseerde Economische Kosten 2009 excl. ORV | C26: € | D26: prijspeil 2008 | E26: =E21/(1+_CPI2009) -> 17249129.03 | F26: 20457292.98 | G26: =G21/(1+_CPI2009) -> 228843088.9 | H26: 5144287.143 | I26: 23565928.44 | J26: 21217009.33 | K26: 249295385.5 | L26: 21523768.19 | M26: =M21/(1+_CPI2009) -> 19320960.14 | N26: =N21/(1+_CPI2009) -> 18579822.38 | O26: =O21/(1+_CPI2009) -> 193886739.3 | P26: =P21/(1+_CPI2009) -> 0 | Q26: =SUM(E26:P26) -> 819083411.4 | T26: 254439672.7 | U26: 42740777.52
B28: Outputdata
B30: Samengestelde Output 2006 | E30: =SO!E18 -> 14431578.74 | F30: =SO!F18 -> 18817286.99 | G30: =SO!G18 -> 191454536 | H30: =SO!H18 -> 6575050.251 | I30: =SO!I18 -> 16232236.43 | J30: =SO!J18 -> 20203227.81 | K30: =SO!K18 -> 224838508.8 | L30: =SO!L18 -> 22346322.99 | M30: =SO!M18 -> 10654583.36 | N30: =SO!N18 -> 15829273.91 | O30: =SO!O18 -> 204138703.5 | P30: =SO!P18 -> 0 | Q30: =SUM(E30:P30) -> 745521308.8 | T30: =H30+K30 -> 231413559.1 | U30: =J30+L30 -> 42549550.8
B31: Samengestelde Output 2007 | E31: =SO!E34 -> 14505014.47 | F31: =SO!F34 -> 18801547.06 | G31: =SO!G34 -> 191223669.5 | H31: =SO!H34 -> 6656931.069 | I31: =SO!I34 -> 16552254.49 | J31: =SO!J34 -> 20254265.81 | K31: =SO!K34 -> 225612246.4 | L31: =SO!L34 -> 22691912.94 | M31: =SO!M34 -> 10720595.4 | N31: =SO!N34 -> 15234328.42 | O31: =SO!O34 -> 205781526.9 | P31: =SO!P34 -> 0 | Q31: =SUM(E31:P31) -> 748034292.5 | T31: 232269177.5 | U31: 42946178.75
B32: Samengestelde Output 2008 | E32: =SO!E50 -> 14760071.25 | F32: =SO!F50 -> 18940990.1 | G32: =SO!G50 -> 196080021.1 | H32: =SO!H50 -> 6733573.944 | I32: =SO!I50 -> 16642859.52 | J32: =SO!J50 -> 20391135.37 | K32: =SO!K50 -> 227029779.8 | L32: =SO!L50 -> 22963706.98 | M32: =SO!M50 -> 10768878.57 | N32: =SO!N50 -> 15131425.25 | O32: =SO!O50 -> 205491498.7 | P32: =SO!P50 -> 0 | Q32: =SUM(E32:P32) -> 754933940.6 | T32: 233763353.7 | U32: 43354842.35
B33: Samengestelde Output 2009 | E33: =SO!E66 -> 14716513.23 | F33: =SO!F66 -> 19248722.65 | G33: =SO!G66 -> 199261133 | H33: =SO!H66 -> 6614921.49 | I33: =SO!I66 -> 16645310.06 | J33: =SO!J66 -> 20278130.85 | K33: =SO!K66 -> 225900553.5 | L33: =SO!L66 -> 23024818.23 | M33: =SO!M66 -> 10845865.48 | N33: =SO!N66 -> 14474764.55 | O33: =SO!O66 -> 205688781.5 | P33: =SO!P66 -> 0 | Q33: =SUM(E33:P33) -> 756699514.4 | T33: 232515475 | U33: 43302949.08
B35: Productiviteitsverandering
B37: PV 2007 | C37: % | E37: =((E9/E30)-(E24/E31))/(E9/E30) -> 0.0580552157 | F37: =((F9/F30)-(F24/F31))/(F9/F30) -> 0.07355426211 | G37: =((G9/G30)-(G24/G31))/(G9/G30) -> -0.05092223463 | H37: =((H9/H30)-(H24/H31))/(H9/H30) -> 0.09536270101 | I37: 0.04297955368 | J37: =((J9/J30)-(J24/J31))/(J9/J30) -> -0.03153122176 | K37: 0.02000295138 | L37: 0.02186385907 | M37: -0.0817386979 | N37: -0.02383802958 | O37: -0.02428893185 | Q37: -0.01060919257 | T37: =((T9/T30)-(T24/T31))/(T9/T30) -> 0.02234597751 | U37: -0.002202128442
B38: PV 2008 | C38: % | E38: =((E13/E31)-(E25/E32))/(E13/E31) -> -0.0003791976035 | F38: =((F13/F31)-(F25/F32))/(F13/F31) -> -0.03604272169 | G38: =((G13/G31)-(G25/G32))/(G13/G31) -> 0.06725917387 | H38: 0.2884342156 | I38: 0.03414220349 | J38: =((J13/J31)-(J25/J32))/(J13/J31) -> 0.02413112674 | K38: -0.04861816562 | L38: 0.2192301741 | M38: 0.1117948188 | N38: -0.007628149286 | O38: -0.04995541678 | Q38: =((Q13/Q31)-(Q25/Q32))/(Q13/Q31) -> 0.005714133472 | T38: =((T13/T31)-(T25/T32))/(T13/T31) -> -0.03877496397 | U38: 0.1302081273
B39: PV 2009 | C39: % | E39: =((E17/E32)-(E26/E33))/(E17/E32) -> 0.002103219864 | F39: =((F17/F32)-(F26/F33))/(F17/F32) -> -0.0944830148 | G39: =((G17/G32)-(G26/G33))/(G17/G32) -> -0.0125877678 | H39: =((H17/H32)-(H26/H33))/(H17/H32) -> 0.003131731089 | I39: 0.02281567074 | J39: =((J17/J32)-(J26/J33))/(J17/J32) -> 0.04919194885 | K39: 0.02617954897 | L39: -0.002129694224 | M39: 0.002347246648 | N39: 0.005749885761 | O39: 0.07030271909 | Q39: =((Q17/Q32)-(Q26/Q33))/(Q17/Q32) -> 0.02221042304 | T39: =((T17/T32)-(T26/T33))/(T17/T32) -> 0.02561516385 | U39: =((U17/U32)-(U26/U33))/(U17/U32) -> 0.02435223216
B42: Productiviteitsverandering 2006-2009 | C42: % | D42: 0.0003400322495
B44: (linkerdeel formule) | D44: =(1-D42)+(1-D42)^2+(1-D42)^3 -> 2.997960269
B45: (rechterdeel formule) | D45: =(1-Q37)+(1-Q37)*(1-Q38)+(1-Q37)*(1-Q38)*(1-Q39) -> 2.997960268
B46: (verschil) | D46: =D45-D44 -> -7.910627708e-10

Sheet Kosten TD
B2: Gestandaardiseerde Economische Kosten Transportdienst | E2: Cogas Infra & Beheer B.V. | F2: DELTA Netwerkbedrijf B.V. | G2: Stedin B.V. | H2: Endinet Haarlemmermeer B.V. | I2: Intergas Energie B.V. | J2: Endinet Regio Eindhoven B.V. | K2: Liander N.V. | L2: Endinet Oost-Brabant N.V. | M2: N.V. RENDO | N2: Westland Energie Infrastructuur B.V. | O2: Enexis B.V. | P2: Zebra Gasnetwerk B.V. | Q2: Totaal
B5: Kosten TD 2006 excl. EHD (t.b.v. productiviteitsmeting)
B7: OPEX Transportonafhankelijk (TO)
B8: Inkoopkosten gastransportdiensten | C8: € '000 | E8: 0 | F8: 0 | G8: 0 | H8: 0 | I8: 0 | J8: 0 | K8: 0 | L8: 0 | M8: 0 | N8: 0 | O8: 0 | P8: 0 | Q8: =SUM(E8:P8) -> 0
B9: Inkoopkosten overige transportgerelateerd activiteiten | C9: € '000 | E9: 0 | F9: 0 | G9: 0 | H9: 0 | I9: 0 | J9: 0 | K9: 0 | L9: 0 | M9: 0 | N9: 0 | O9: 0 | P9: 0 | Q9: =SUM(E9:P9) -> 0
B10: Personeelskosten | C10: € '000 | E10: 35 | F10: 461.9209988 | G10: 25924.57624 | H10: 85 | I10: 977.7111983 | J10: 661.57925 | K10: 3838.011255 | L10: 82 | M10: 345.346 | N10: 0 | O10: 0 | P10: 0 | Q10: 32411.14494
B11: Kosten uitbesteed werk en andere externe kosten | C11: € '000 | E11: 3930 | F11: 3544.305573 | G11: 6281.378635 | H11: 1687 | I11: 533.619 | J11: 193.65885 | K11: 48691.44864 | L11: 4471 | M11: 322.925 | N11: 0 | O11: 0 | P11: 0 | Q11: =SUM(E11:P11) -> 69655.3357
B12: Bijzondere waardeverminderingen immateriele en materiele vaste activa | C12: € '000 | E12: 0 | F12: 0 | G12: 0 | H12: 0 | I12: 0 | J12: 0 | K12: 0 | L12: 0 | M12: 0 | N12: 0 | O12: 0 | P12: 0 | Q12: 0
B13: Kosten wettelijke reserve inzake O&O-kosten | C13: € '000 | E13: 0 | F13: 0 | G13: 0 | H13: 0 | I13: 0 | J13: 0 | K13: 0 | L13: 0 | M13: 0 | N13: 0 | O13: 0 | P13: 0 | Q13: 0
B14: Precario | C14: € '000 | E14: 0 | F14: 0 | G14: 12426.633 | H14: 0 | I14: 0 | J14: 0 | K14: 3751.909902 | L14: 0 | M14: 0 | N14: 0 | O14: 0 | P14: 0 | Q14: =SUM(E14:P14) -> 16178.5429
B15: Gedoogbelasting | C15: € '000 | E15: 3.44486 | F15: 0 | G15: 13 | H15: 0 | I15: 0 | J15: 0 | K15: 0 | L15: 0 | M15: 0 | N15: 0 | O15: 534 | P15: 0 | Q15: =SUM(E15:P15) -> 550.44486
B16: Overige bedrijfskosten | C16: € '000 | E16: 25 | F16: 151.4997231 | G16: 12994.96009 | H16: 304 | I16: 1431.728351 | J16: 2713.065733 | K16: 1155.188927 | L16: 392 | M16: 320.783 | N16: 734.8936487 | O16: =18707 -> 18707 | P16: 0 | Q16: 38930.11948
B17: Buitengewone lasten / correctie toerekening Liander | C17: € '000 | F17: 0 | G17: 0 | H17: 0 | I17: 0 | J17: 0 | K17: ='Aanpassing gegevens (sep 14)'!G381 -> -7753.857816 | L17: 0 | M17: 0 | N17: 0 | O17: 0 | P17: 0 | Q17: -7753.857816
B18: Totaal bedrijfslasten TO (excl. Afschrijvingen) | C18: € '000 | E18: =SUM(E8:E16) -> 3993.44486 | F18: =SUM(F8:F17) -> 4157.726295 | G18: 57640.54797 | H18: 2076 | I18: 2943.058549 | J18: 3568.303833 | K18: 49682.70091 | L18: 4945 | M18: 989.054 | N18: 734.8936487 | O18: 19241 | P18: 0 | Q18: =SUM(E18:P18) -> 149971.7301
B20: OPEX Transportafhankelijk (TA)
B21: Inkoopkosten gastransportdiensten | C21: € '000 | E21: 0 | F21: 0 | G21: 0 | H21: 0 | I21: 0 | J21: 0 | K21: 0 | L21: 0 | M21: 0 | N21: 0 | O21: 0 | P21: 0 | Q21: =SUM(E21:P21) -> 0
B22: Inkoopkosten overige transportgerelateerd activiteiten | C22: € '000 | E22: 0 | F22: 0 | G22: 0 | H22: 0 | I22: 0 | J22: 0 | K22: 0 | L22: 0 | M22: 0 | N22: 432 | O22: 0 | P22: 0 | Q22: =SUM(E22:P22) -> 432
B23: Personeelskosten | C23: € '000 | E23: 103 | G23: 14570.51237 | H23: 86 | I23: 574.3198647 | J23: 507.8635429 | K23: 2596.754283 | L23: 83 | M23: =1268.364+'Aanpassing gegevens (sep 14)'!G106 -> 1220.256142 | N23: 0 | O23: 0 | P23: 0 | Q23: 19741.7062
B24: Kosten uitbesteed werk en andere externe kosten | C24: € '000 | E24: 4812 | F24: 4397.64021 | G24: 11999.34512 | H24: 1925 | I24: 1536.20942 | J24: 147.5354649 | K24: 32944.07426 | L24: 4196 | M24: =975.159+'Aanpassing gegevens (sep 14)'!G107 -> 933.32608 | N24: 0 | O24: 0 | P24: 0 | Q24: 62891.13056
B25: Bijzondere waardeverminderingen immateriele en materiele vaste activa | C25: € '000 | E25: 0 | F25: 0 | G25: 0 | H25: 0 | I25: 0 | J25: 0 | K25: 0 | L25: 0 | M25: 0 | N25: 0 | O25: 0 | P25: 0 | Q25: 0
B26: Kosten wettelijke reserve inzake O&O-kosten | C26: € '000 | E26: 0 | F26: 0 | G26: 0 | H26: 0 | I26: 0 | J26: 0 | K26: 0 | L26: 0 | M26: 0 | N26: 0 | O26: 0 | P26: 0 | Q26: 0
B27: Precario | C27: € '000 | E27: 0 | F27: 281.74138 | G27: 0 | H27: 0 | I27: 0 | J27: 0 | K27: 2538.499098 | L27: 0 | M27: 80.145 | N27: 0 | O27: 0 | P27: 0 | Q27: =SUM(E27:P27) -> 2900.385478
B28: Gedoogbelasting | C28: € '000 | E28: 0 | F28: 0 | G28: 0 | H28: 0 | I28: 0 | J28: 0 | K28: 0 | L28: 0 | M28: 0 | N28: 0 | O28: 0 | P28: 0 | Q28: =SUM(E28:P28) -> 0
B29: Overige bedrijfskosten | C29: € '000 | E29: 97 | F29: 0 | G29: 4011.410521 | H29: 0 | I29: 146.3552191 | J29: 0 | K29: 781.5875451 | L29: 0 | M29: =947.162+'Aanpassing gegevens (sep 14)'!G108 -> 932.520478 | N29: 4656.667772 | O29: =64012 -> 64012 | P29: 0 | Q29: =SUM(E29:P29) -> 74637.54153
B30: Buitengewone lasten / correctie toerekening Liander | C30: € '000 | E30: 0 | F30: 0 | G30: 0 | H30: 0 | I30: 0 | J30: 0 | K30: ='Aanpassing gegevens (sep 14)'!G382 -> -5246.142184 | L30: 0 | M30: 769.479 | N30: 0 | O30: 0 | P30: 0 | Q30: -4476.663184
B31: Dotatie aan voorziening die bij nader inzien toch meegenomen wordt | C31: € '000 | E31: 0 | F31: 0 | G31: 0 | H31: 800 | I31: 0 | J31: 0 | K31: 0 | L31: 1200 | M31: 0 | N31: 0 | O31: 4791 | P31: 0 | Q31: =SUM(E31:P31) -> 6791
B32: Totaal bedrijfslasten TA (excl. Afschrijvingen) | C32: € '000 | E32: =SUM(E21:E31) -> 5012 | F32: 4679.38159 | G32: 30581.26801 | H32: =SUM(H21:H31) -> 2811 | I32: 2256.884504 | J32: 655.3990078 | K32: =SUM(K21:K31) -> 33614.773 | L32: 5479 | M32: 3935.7267 | N32: =SUM(N21:N31) -> 5088.667772 | O32: =SUM(O21:O31) -> 68803 | P32: =SUM(P21:P31) -> 0 | Q32: =SUM(E32:P32) -> 162917.1006
B34: Totaal OPEX | C34: € '000 | E34: =E18+E32 -> 9005.44486 | F34: =F18+F32 -> 8837.107884 | G34: 88221.81598 | H34: 4887 | I34: 5199.943054 | J34: 4223.702841 | K34: 83297.47391 | L34: 10424 | M34: 4924.7807 | N34: 5823.56142 | O34: 88044 | P34: 0 | Q34: 312888.8306
B36: CAPEX (o.b.v. WACC NG4R t.b.v. productiviteit)
B37: Eindstand GAW | C37: € '000 | E37: 90733.02339 | F37: 106471.5941 | G37: 1471325.609 | H37: 30173.28955 | I37: 224194.0394 | J37: 184033.8583 | K37: 1770234.913 | L37: 171228.6024 | M37: =170644.844041785+'Aanpassing gegevens (sep 14)'!G56 -> 170040.4015 | N37: 131678.1505 | O37: =1047486.34088641+'Aanpassing gegevens (sep 14)'!G40 -> 1048738.775 | P37: 0 | Q37: =SUM(E37:P37) -> 5398852.256
B38: Afschrijvingen | C38: € '000 | E38: 3829.622772 | F38: 3413.205088 | G38: 50215.06798 | H38: 1015.15737 | I38: 7217.584621 | J38: 5924.291194 | K38: 55094.72078 | L38: 5585.021762 | M38: =6996.64140864739+'Aanpassing gegevens (sep 14)'!G57 -> 7198.12227 | N38: 5234.934456 | O38: =35212.4281054858+'Aanpassing gegevens (sep 14)'!G41 -> 35212.42811 | P38: 0 | Q38: =SUM(E38:P38) -> 179940.1564
B39: Totaal CAPEX | C39: € '000 | E39: =E38+WACC2011_2013*E37 -> 9455.070222 | F39: 10014.44393 | G39: 141437.2558 | H39: 2885.901322 | I39: 21117.61506 | J39: 17334.39041 | K39: 164849.2854 | L39: 16201.19511 | M39: 17740.62716 | N39: 13398.97979 | O39: 100234.2321 | P39: 0 | Q39: 514668.9963
B41: Eliminatie niet-tariefgereguleerde OPEX en CAPEX | C41: € '000 | E41: =-'Aanpassing gegevens (sep 14)'!G224 -> 0 | F41: =-'Aanpassing gegevens (sep 14)'!G234 -> 0 | G41: =-'Aanpassing gegevens (sep 14)'!G244 -> -1133 | H41: =-'Aanpassing gegevens (aug 2016)'!I40 -> 0 | I41: =-'Aanpassing gegevens (sep 14)'!G264 -> 0 | J41: =-'Aanpassing gegevens (sep 14)'!G274 -> -14.3481 | K41: =-'Aanpassing gegevens (sep 14)'!G284 -> 0 | L41: =-'Aanpassing gegevens (aug 2016)'!I57 -> 0 | M41: =-'Aanpassing gegevens (sep 14)'!G304 -> -15.889 | N41: =-'Aanpassing gegevens (sep 14)'!G314 -> 100.46687 | O41: =-'Aanpassing gegevens (sep 14)'!G324 -> -12 | Q41: =SUM(E41:P41) -> -1074.77023
B43: Gestandaardiseerde Economische Kosten 2006 (incl. ORV) | C43: € '000 | E43: =E34+E39+E41 -> 18460.51508 | F43: =F34+F39+F41 -> 18851.55181 | G43: =G34+G39+G41 -> 228526.0717 | H43: 7772.901322 | I43: 26317.55811 | J43: 21543.74515 | K43: 248146.7593 | L43: 26625.19511 | M43: 22649.51886 | N43: 19323.00808 | O43: 188266.2321 | P43: 0 | Q43: =SUM(E43:P43) -> 826483.0567
B45: Kosten TD 2007 excl. EHD (t.b.v. productiviteitsmeting)
B47: OPEX Transportonafhankelijk (TO)
B48: Inkoopkosten gastransportdiensten | C48: € '000 | E48: 0 | F48: 0 | G48: 0 | H48: 0 | I48: 0 | J48: 0 | K48: 0 | L48: 0 | M48: 0 | N48: 0 | O48: 0 | P48: 0 | Q48: =SUM(E48:P48) -> 0
B49: Inkoopkosten overige transportgerelateerde activiteiten | C49: € '000 | E49: 0 | F49: 0 | G49: 0 | H49: 0 | I49: 0 | J49: 0 | K49: 0 | L49: 0 | M49: 0 | N49: 0 | O49: 0 | P49: 0 | Q49: 0
B50: Personeelskosten | C50: € '000 | E50: 21.74079705 | F50: 490.4927382 | G50: 28157.44422 | H50: 122 | I50: 1001.664 | J50: 817.77 | K50: 5075.224381 | L50: 984.5 | M50: 449.0210149 | N50: 0 | O50: 0 | P50: 0 | Q50: 37119.85716
B51: Kosten uitbesteed werk en andere externe kosten | C51: € '000 | E51: 3725 | F51: 2363.115228 | G51: 4559.578067 | H51: 1631 | I51: 269.028 | J51: 180.39348 | K51: 44236.44968 | L51: 3326 | M51: 551.3457784 | N51: 0 | O51: 0 | P51: 0 | Q51: 60841.91023
B52: Bijzondere waardeverminderingen immateriële en materiële vaste activa | C52: € '000 | E52: 0 | F52: 0 | G52: 0 | H52: 0 | I52: 0 | J52: 0 | K52: 0 | L52: 0 | M52: 0 | N52: 0 | O52: 0 | P52: 0 | Q52: 0
B53: Kosten wettelijke reserve inzake onderzoek- en ontwikkelingskosten | C53: € '000 | E53: 0 | F53: 0 | G53: 0 | H53: 0 | I53: 0 | J53: 0 | K53: 0 | L53: 0 | M53: 0 | N53: 0 | O53: 0 | P53: 0 | Q53: 0
B54: Precario | C54: € '000 | E54: 0 | F54: 0 | G54: 8265.33653 | H54: 0 | I54: 0 | J54: 0 | K54: 4350.681484 | L54: 0 | M54: 0 | N54: 0 | O54: 0 | P54: 0 | Q54: 12616.01801
B55: Gedoogbelasting | C55: € '000 | E55: 0 | F55: 0 | G55: 3897.06447 | H55: 0 | I55: 0 | J55: 0 | K55: 0 | L55: 0 | M55: 0 | N55: 0 | O55: 0 | P55: 0 | Q55: 3897.06447
B56: Overige bedrijfskosten | C56: € '000 | E56: 26 | F56: 158.1434093 | G56: 15580.47291 | H56: 321.925 | I56: 1368.58 | J56: 3665.617166 | K56: 1063.624375 | L56: 561.6175 | M56: 104.014866 | N56: 742.5594672 | O56: =15087 -> 15087 | P56: 0 | Q56: 38679.55469
B57: Buitengewone lasten / correctie toerekening Liander | C57: € '000 | E57: 0 | F57: 0 | G57: 0 | H57: 0 | I57: 0 | J57: 0 | K57: ='Aanpassing gegevens (sep 14)'!G383 -> -7379.985685 | L57: 0 | M57: 0 | N57: 0 | O57: 0 | P57: 0 | Q57: -7379.985685
B58: Totaal bedrijfslasten TO (excl. Afschrijvingen) | C58: € '000 | E58: =SUM(E48:E57) -> 3772.740797 | F58: =SUM(F48:F57) -> 3011.751376 | G58: 60459.8962 | H58: 2074.925 | I58: 2639.272 | J58: 4663.780646 | K58: 47345.99424 | L58: 4872.1175 | M58: 1104.381659 | N58: 742.5594672 | O58: 15087 | P58: 0 | Q58: =SUM(E58:P58) -> 145774.4189
B60: OPEX Transportafhankelijk (TA)
B61: Inkoopkosten gastransportdiensten | C61: € '000 | E61: 0 | F61: 0 | G61: 0 | H61: 0 | I61: 0 | J61: 0 | K61: 0 | L61: 0 | M61: 0 | N61: 0 | O61: 0 | P61: 0 | Q61: =SUM(E61:P61) -> 0
B62: Inkoopkosten overige transportgerelateerde activiteiten | C62: € '000 | E62: 0 | F62: 0 | G62: 0 | H62: 0 | I62: 0 | J62: 0 | K62: 0 | L62: 0 | M62: 0 | N62: 264 | O62: 0 | P62: 0 | Q62: =SUM(E62:P62) -> 264
B63: Personeelskosten | C63: € '000 | E63: 82.35042041 | F63: 0 | G63: 18376.28593 | H63: 1508 | I63: 532.53 | J63: 459.8505236 | K63: 3880.347075 | L63: 2686.5 | M63: 1423.725169 | N63: 0 | O63: 0 | P63: 0 | Q63: 28949.58912
B64: Kosten uitbesteed werk en andere externe kosten | C64: € '000 | E64: 4322 | F64: 4338.8998 | G64: 12695.03564 | H64: 546 | I64: 1546.138 | J64: 112.1335007 | K64: 33654.73725 | L64: 2764 | M64: =1534.74165404041+'Aanpassing gegevens (sep 14)'!G109 -> 1427.766604 | N64: 0 | O64: 0 | P64: 0 | Q64: 61406.71079
B65: Bijzondere waardeverminderingen immateriële en materiële vaste activa | C65: € '000 | E65: 0 | F65: 0 | G65: 0 | H65: 0 | I65: 0 | J65: 0 | K65: 0 | L65: 0 | M65: 0 | N65: 0 | O65: 0 | P65: 0 | Q65: 0
B66: Kosten wettelijke reserve inzake onderzoek- en ontwikkelingskosten | C66: € '000 | E66: 0 | F66: 0 | G66: 0 | H66: 0 | I66: 0 | J66: 0 | K66: 0 | L66: 0 | M66: 0 | N66: 0 | O66: 0 | P66: 0 | Q66: 0
B67: Precario | C67: € '000 | E67: 0 | F67: 274.63741 | G67: 0 | H67: 0 | I67: 0 | J67: 0 | K67: 3326.385772 | L67: 0 | M67: 81.47352 | N67: 6.98107 | O67: 612 | P67: 0 | Q67: 4301.477772
B68: Gedoogbelasting | C68: € '000 | E68: 0 | F68: 0 | G68: 0 | H68: 0 | I68: 0 | J68: 0 | K68: 0 | L68: 0 | M68: 0 | N68: 0 | O68: 0 | P68: 0 | Q68: 0
B69: Overige bedrijfskosten | C69: € '000 | E69: 97 | F69: 0 | G69: 10582.1807 | H69: 0 | I69: 166.717 | J69: 0 | K69: 813.2116775 | L69: 0 | M69: 102.396507 | N69: 4705.242378 | O69: =78123 -> 78123 | P69: 0 | Q69: 94589.74826
B70: Buitengewone lasten / correctie toerekening Liander | C70: € '000 | E70: 0 | F70: 0 | G70: 0 | H70: 0 | I70: 0 | J70: 0 | K70: ='Aanpassing gegevens (sep 14)'!G384 -> -5620.014315 | L70: 0 | M70: 2431.30809 | N70: 0 | O70: 0 | P70: 0 | Q70: -3188.706225
B71: Totaal bedrijfslasten TA (excl. Afschrijvingen) | C71: € '000 | E71: =SUM(E61:E70) -> 4501.35042 | F71: 4613.53721 | G71: 41653.50227 | H71: 2054 | I71: 2245.385 | J71: 571.9840243 | K71: 36054.66746 | L71: 5450.5 | M71: 5466.66989 | N71: 4976.223448 | O71: 78735 | P71: 0 | Q71: =SUM(E71:P71) -> 186322.8197
B73: Totaal OPEX | C73: € '000 | E73: =E58+E71 -> 8274.091217 | F73: =F58+F71 -> 7625.288586 | G73: 102113.3985 | H73: 4128.925 | I73: 4884.657 | J73: 5235.76467 | K73: 83400.66169 | L73: 10322.6175 | M73: 6571.05155 | N73: 5718.782915 | O73: 93822 | P73: 0 | Q73: =Q58+Q71 -> 332097.2386
B75: CAPEX (o.b.v. WACC NG4R t.b.v. productiviteit)
B76: Eindstand GAW | C76: € '000 | E76: 89438.62246 | F76: 106292.8176 | G76: 1482202.039 | H76: 30990.29602 | I76: 220637.2528 | J76: 182516.7491 | K76: 1760400.078 | L76: 170757.3494 | M76: =169045.076134352+'Aanpassing gegevens (sep 14)'!G58 -> 168227.8698 | N76: 130281.5125 | O76: =1063095.31397325+'Aanpassing gegevens (sep 14)'!G26+'Aanpassing gegevens (sep 14)'!G42 -> 1065137.451 | P76: 0 | Q76: =SUM(E76:P76) -> 5406882.038
B77: Afschrijvingen | C77: € '000 | E77: 3902.663258 | F77: 3489.378885 | G77: 51759.62581 | H77: 1168.569288 | I77: 7467.725091 | J77: 6053.771725 | K77: 56295.44113 | L77: 5906.494751 | M77: =7386.27760462193+'Aanpassing gegevens (sep 14)'!G59 -> 7590.579198 | N77: 5387.830069 | O77: =37373.3394258064+'Aanpassing gegevens (sep 14)'!G27+'Aanpassing gegevens (sep 14)'!G43 -> 37512.7656 | P77: 0 | Q77: =SUM(E77:P77) -> 186534.8448
B78: Totaal CAPEX | C78: € '000 | E78: =E77+WACC2011_2013*E76 -> 9447.857851 | F78: 10079.53357 | G78: 143656.1522 | H78: 3089.967641 | I78: 21147.23477 | J78: 17369.81017 | K78: 165440.246 | L78: 16493.45041 | M78: 18020.70712 | N78: 13465.28385 | O78: 103551.2875 | P78: 0 | Q78: 521761.5311
B80: Eliminatie niet-tariefgereguleerde OPEX en CAPEX | C80: € '000 | E80: =-'Aanpassing gegevens (sep 14)'!G225 -> 0 | F80: =-'Aanpassing gegevens (sep 14)'!G235 -> 0 | G80: =-'Aanpassing gegevens (sep 14)'!G245 -> -3615.51752 | H80: ='Aanpassing gegevens (aug 2016)'!I41 -> 0 | I80: =-'Aanpassing gegevens (sep 14)'!G265 -> 0 | J80: =-'Aanpassing gegevens (aug 2016)'!I49 -> -14.47995373 | K80: =-'Aanpassing gegevens (sep 14)'!G285 -> 0 | L80: =-'Aanpassing gegevens (aug 2016)'!I58 -> 0 | M80: =-'Aanpassing gegevens (sep 14)'!G305 -> -10.094 | N80: =-'Aanpassing gegevens (sep 14)'!G315 -> 129.53512 | O80: =-'Aanpassing gegevens (sep 14)'!G325 -> -208 | Q80: =SUM(E80:P80) -> -3718.556354
B82: Gestandaardiseerde Economische Kosten 2007 (incl. ORV) | C82: € '000 | E82: =E73+E78+E80 -> 17721.94907 | F82: =F73+F78+F80 -> 17704.82216 | G82: 242154.0332 | H82: 7218.892641 | I82: 26031.89177 | J82: 22591.09489 | K82: 248840.9077 | L82: 26816.06791 | M82: 24581.66467 | N82: 19313.60188 | O82: 197165.2875 | P82: 0 | Q82: =SUM(E82:P82) -> 850140.2134
B84: Kosten TD 2008 excl. EHD (t.b.v. productiviteitsmeting)
B86: OPEX Transportonafhankelijk (TO)
B87: Inkoopkosten gastransportdiensten | C87: € '000 | E87: 0 | F87: 0 | G87: 0 | H87: 0 | I87: 0 | J87: 0 | K87: 0 | L87: 0 | M87: 0 | N87: 0 | O87: 0 | P87: 0 | Q87: =SUM(E87:P87) -> 0
B88: Inkoopkosten overige transportgerelateerde activiteiten | C88: € '000 | E88: 0 | F88: 0 | G88: 0 | H88: 0 | I88: 0 | J88: 0 | K88: 0 | L88: 0 | M88: 0 | N88: 0 | O88: 0 | P88: 0 | Q88: =SUM(E88:P88) -> 0
B89: Personeelskosten | C89: € '000 | E89: 9 | F89: 1049.646852 | G89: 37981.43158 | H89: 137 | I89: 985 | J89: 579.611 | K89: 12486.57427 | L89: 466.5 | M89: 341.823 | N89: 0 | O89: 0 | P89: 0 | Q89: =SUM(E89:P89) -> 54036.5867
B90: Kosten uitbesteed werk en andere externe kosten | C90: € '000 | E90: 3605 | F90: 4069.757954 | G90: 0 | H90: 807 | I90: 282 | J90: 200.8929 | K90: 40421.81999 | L90: 1659 | M90: 545.89499 | N90: 0 | O90: 0 | P90: 0 | Q90: =SUM(E90:P90) -> 51591.36584
B91: Bijzondere waardeverminderingen immateriële en materiële vaste activa | C91: € '000 | E91: 0 | F91: 0 | G91: 0 | H91: 0 | I91: 0 | J91: 0 | K91: 0 | L91: 0 | M91: 0 | N91: 0 | O91: 0 | P91: 0 | Q91: 0
B92: Kosten wettelijke reserve inzake onderzoek- en ontwikkelingskosten | C92: € '000 | E92: 0 | F92: 0 | G92: 0 | H92: 0 | I92: 0 | J92: 0 | K92: 0 | L92: 0 | M92: 0 | N92: 0 | O92: 0 | P92: 0 | Q92: 0
B93: Precario | C93: € '000 | E93: 0 | F93: 0 | G93: 12264.064 | H93: 0 | I93: 0 | J93: 0 | K93: 3840.029232 | L93: 0 | M93: 91.78578 | N93: 0 | O93: 0 | P93: 0 | Q93: 16195.87901
B94: Gedoogbelasting | C94: € '000 | E94: 0 | F94: 0 | G94: 0 | H94: 0 | I94: 0 | J94: 0 | K94: 0 | L94: 0 | M94: 0 | N94: 0 | O94: 0 | P94: 0 | Q94: 0
B95: Dotaties voorzieningen | C95: € '000 | E95: 0 | F95: 0 | G95: 152.2160951 | H95: 51.345 | I95: 0 | J95: 160.9182042 | K95: 0 | L95: 182.43 | M95: 70.128 | N95: 0 | O95: 0 | P95: 0 | Q95: 617.0372993
B96: Overige bedrijfskosten | C96: € '000 | E96: 128 | F96: 152.2404172 | G96: 4440.919441 | H96: 111 | I96: 1357 | J96: 3470.552723 | K96: -1051.134725 | L96: 513 | M96: 183.94972 | N96: 777.103 | O96: =14075+'Aanpassing gegevens (sep 14)'!G364 -> 14065.09426 | P96: 0 | Q96: 24147.72484
B97: Buitengewone lasten / correctie toerekening Liander | E97: 0 | F97: 0 | G97: 0 | H97: 0 | I97: 0 | J97: 0 | K97: ='Aanpassing gegevens (sep 14)'!G385 -> -6457.450414 | L97: 0 | M97: 0 | N97: 0 | O97: 0 | P97: 0 | Q97: -6457.450414
B98: Totaal bedrijfslasten TO (excl. Afschrijvingen) | C98: € '000 | E98: =SUM(E87:E97) -> 3742 | F98: =SUM(F87:F97) -> 5271.645224 | G98: =SUM(G87:G97) -> 54838.63111 | H98: 1106.345 | I98: 2624 | J98: 4411.974828 | K98: =SUM(K87:K97) -> 49239.83836 | L98: 2820.93 | M98: 1233.58149 | N98: 777.103 | O98: 14065.09426 | P98: 0 | Q98: =SUM(E98:P98) -> 140131.1433
B100: OPEX Transportafhankelijk (TA)
B101: Inkoopkosten gastransportdiensten | C101: € '000 | E101: 0 | F101: 0 | G101: 0 | H101: 0 | I101: 0 | J101: 0 | K101: 0 | L101: 0 | M101: 0 | N101: 0 | O101: 0 | P101: 0 | Q101: =SUM(E101:O101) -> 0
B102: Inkoopkosten overige transportgerelateerde activiteiten | C102: € '000 | E102: 0 | F102: 0 | G102: 0 | H102: 0 | I102: 0 | J102: 0 | K102: 0 | L102: 0 | M102: 0 | N102: 350 | O102: 0 | P102: 0 | Q102: 350
B103: Personeelskosten | C103: € '000 | E103: 42 | F103: 0 | G103: 9485.022433 | H103: 756 | I103: 566 | J103: 470.744177 | K103: 12212.6051 | L103: 1314.5 | M103: 1345.927 | N103: 0 | O103: 0 | P103: 0 | Q103: 26192.79871
B104: Kosten uitbesteed werk en andere externe kosten | C104: € '000 | E104: 4814 | F104: 3069.140707 | G104: 11765.48455 | H104: 148 | I104: 1193 | J104: 177.1376226 | K104: 39534.92081 | L104: 521 | M104: =866.26851+'Aanpassing gegevens (sep 14)'!G110 -> 830.65436 | N104: 0 | O104: 0 | P104: 0 | Q104: 62053.33805
B105: Bijzondere waardeverminderingen immateriële en materiële vaste activa | C105: € '000 | E105: 0 | F105: 0 | G105: 0 | H105: 0 | I105: 0 | J105: 0 | K105: 0 | L105: 0 | M105: 0 | N105: 0 | O105: 0 | P105: 0 | Q105: 0
B106: Kosten wettelijke reserve inzake onderzoek- en ontwikkelingskosten | C106: € '000 | E106: 0 | F106: 0 | G106: 0 | H106: 0 | I106: 0 | J106: 0 | K106: 0 | L106: 0 | M106: 0 | N106: 0 | O106: 0 | P106: 0 | Q106: 0
B107: Precario | C107: € '000 | E107: 0 | F107: 275.41829 | G107: 0 | H107: 0 | I107: 0 | J107: 0 | K107: 3755.774768 | L107: 0 | M107: 0 | N107: 3.348 | O107: 617 | P107: 0 | Q107: 4651.541058
B108: Gedoogbelasting | C108: € '000 | E108: 0 | F108: 0 | G108: 0 | H108: 0 | I108: 0 | J108: 0 | K108: 0 | L108: 0 | M108: 0 | N108: 0 | O108: 0 | P108: 0 | Q108: 0
B109: Dotaties voorzieningen | C109: € '000 | E109: 0 | F109: 0 | G109: 0 | H109: 0 | I109: 0 | J109: 0 | K109: 0 | L109: 0 | M109: 0 | N109: 0 | O109: 8426 | P109: 0 | Q109: 8426
B110: Overige bedrijfskosten | C110: € '000 | E110: 98 | F110: 0 | G110: 16135.00092 | H110: 0 | I110: 201 | J110: 0 | K110: 928.0461274 | L110: 0 | M110: 560.6749 | N110: 4924.13 | O110: =78402+'Aanpassing gegevens (sep 14)'!G365 -> 78362.37704 | P110: 0 | Q110: 101209.229
B111: Buitengewone lasten / correctie toerekening Liander | C111: € '000 | E111: 0 | F111: 0 | G111: 0 | H111: 0 | I111: 0 | J111: 0 | K111: ='Aanpassing gegevens (sep 14)'!G386 -> -6542.549586 | L111: 0 | M111: 0 | N111: 0 | O111: 0 | P111: 0 | Q111: -6542.549586
B112: Totaal bedrijfslasten TA (excl. Afschrijvingen) | C112: € '000 | E112: =SUM(E101:E111) -> 4954 | F112: 3344.558997 | G112: 37385.50791 | H112: 904 | I112: 1960 | J112: 647.8817996 | K112: 49888.79722 | L112: 1835.5 | M112: 2737.25626 | N112: 5277.478 | O112: 87405.37704 | P112: 0 | Q112: =SUM(Q101:Q110) -> 202882.9068
B114: Totaal OPEX | C114: € '000 | E114: =E98+E112 -> 8696 | F114: =F98+F112 -> 8616.204221 | G114: 92224.13902 | H114: 2010.345 | I114: 4584 | J114: 5059.856627 | K114: 99128.63558 | L114: 4656.43 | M114: =M98+M112 -> 3970.83775 | N114: =N98+N112 -> 6054.581 | O114: =O98+O112 -> 101470.4713 | P114: =P98+P112 -> 0 | Q114: =Q98+Q112 -> 343014.0501
B116: CAPEX (o.b.v. WACC NG4R t.b.v. productiviteit)
B117: Eindstand GAW | C117: € '000 | E117: 88626.70595 | F117: 104746.6536 | G117: 1484488.486 | H117: 30554.78611 | I117: 215908.6428 | J117: 180723.6596 | K117: =1746866.87772268+'Aanpassing gegevens (sep 14)'!G80 -> 1747011.159 | L117: 168341.6148 | M117: =169243.05678892+'Aanpassing gegevens (sep 14)'!G60 -> 168210.3122 | N117: 128040.3236 | O117: =1086115.4678574+'Aanpassing gegevens (sep 14)'!G28+'Aanpassing gegevens (sep 14)'!G44 -> 1090493.99 | P117: 0 | Q117: =SUM(E117:O117) -> 5407146.333
B118: Afschrijvingen | C118: € '000 | E118: 3985.741352 | F118: 3557.384966 | G118: 53261.41866 | H118: 1348.269975 | I118: 7583.619805 | J118: 6206.948613 | K118: =57427.7822632211+'Aanpassing gegevens (sep 14)'!G81 -> 57429.42846 | L118: 6327.410602 | M118: =7822.20112291026+'Aanpassing gegevens (sep 14)'!G61 -> 8028.750034 | N118: 5518.160555 | O118: =39539.8945695496+'Aanpassing gegevens (sep 14)'!G29+'Aanpassing gegevens (sep 14)'!G45 -> 39884.1242 | P118: 0 | Q118: =SUM(E118:O118) -> 193131.2572
B119: Totaal CAPEX | C119: € '000 | E119: =E118+WACC2011_2013*E117 -> 9480.597121 | F119: =F118+WACC2011_2013*F117 -> 10051.67749 | G119: 145299.7048 | H119: 3242.666714 | I119: 20969.95566 | J119: 17411.81551 | K119: 165744.1203 | L119: 16764.59072 | M119: =M118+WACC2011_2013*M117 -> 18457.78939 | N119: =N118+WACC2011_2013*N117 -> 13456.66062 | O119: =O118+WACC2011_2013*O117 -> 107494.7515 | P119: =P118+WACC2011_2013*P117 -> 0 | Q119: =Q118+WACC2011_2013*Q117 -> 528374.3299
B121: Eliminatie niet-tariefgereguleerde OPEX en CAPEX | C121: € '000 | E121: =-'Aanpassing gegevens (sep 14)'!G226 -> 0 | F121: =-'Aanpassing gegevens (sep 14)'!G236 -> 0 | G121: =-'Aanpassing gegevens (sep 14)'!G246 -> -2869.46268 | H121: =-'Aanpassing gegevens (aug 2016)'!I42 -> 0 | I121: =-'Aanpassing gegevens (sep 14)'!G266 -> 0 | J121: =-'Aanpassing gegevens (aug 2016)'!I50 -> -32.60470744 | K121: =-'Aanpassing gegevens (sep 14)'!G286 -> 0 | L121: =-'Aanpassing gegevens (aug 2016)'!I59 -> 0 | M121: =-'Aanpassing gegevens (sep 14)'!G306 -> -8.954 | N121: =-'Aanpassing gegevens (sep 14)'!G316 -> 27.14333 | O121: =-'Aanpassing gegevens (sep 14)'!G326 -> 0 | Q121: =SUM(E121:P121) -> -2883.878057
B123: Gestandaardiseerde Economische Kosten 2008 (incl. ORV) | C123: € '000 | E123: =E114+E119+E121 -> 18176.59712 | F123: =F114+F119+F121 -> 18667.88171 | G123: 234654.3811 | H123: 5253.011714 | I123: 25553.95566 | J123: 22439.06743 | K123: 264872.7559 | L123: 21421.02072 | M123: 22419.67314 | N123: 19538.38495 | O123: 208965.2228 | P123: 0 | Q123: =SUM(E123:P123) -> 861961.9523
B125: Kosten TD 2009 excl. EHD (t.b.v. productiviteitsmeting)
B127: OPEX Transportonafhankelijk (TO)
B128: Inkoopkosten gastransportdiensten | C128: € '000 | E128: 0 | F128: 0 | G128: 0 | H128: 0 | I128: 0 | J128: 0 | K128: 0 | L128: 0 | M128: 0 | N128: 0 | O128: 0 | P128: 0 | Q128: =SUM(E128:P128) -> 0
B129: Inkoopkosten overige transportgerelateerde activiteiten | C129: € '000 | E129: 0 | F129: 0 | G129: 0 | H129: 0 | I129: 0 | J129: 0 | K129: 0 | L129: 0 | M129: 0 | N129: 0 | O129: 0 | P129: 0 | Q129: =SUM(E129:P129) -> 0
B130: Personeelskosten | C130: € '000 | E130: 265 | F130: 1037.125109 | G130: 46410.93726 | H130: 60 | I130: 1095.742107 | J130: 922.53475 | K130: 10970.31396 | L130: 641 | M130: 303.91082 | N130: 0 | O130: 0 | P130: 0 | Q130: =SUM(E130:P130) -> 61706.564
B131: Kosten uitbesteed werk en andere externe kosten | C131: € '000 | E131: 3526 | F131: 4350.992092 | G131: 0 | H131: 718.5 | I131: 183.015204 | J131: 276.12037 | K131: =34090.0269704882+'Aanpassing gegevens (sep 14)'!G392+'Aanpassing gegevens (sep 14)'!G402 -> 33748.01748 | L131: 1782 | M131: 652.38355 | N131: 0 | O131: 0 | P131: 0 | Q131: =SUM(E131:P131) -> 45237.0287
B132: Bijzondere waardeverminderingen immateriële en materiële vaste activa | C132: € '000 | E132: 0 | F132: 0 | G132: 0 | H132: 0 | I132: 0 | J132: 0 | K132: 0 | L132: 0 | M132: 0 | N132: 0 | O132: 0 | P132: 0 | Q132: =SUM(E132:P132) -> 0
B133: Kosten wettelijke reserve inzake onderzoek- en ontwikkelingskosten | C133: € '000 | E133: 0 | F133: 0 | G133: 0 | H133: 0 | I133: 0 | J133: 0 | K133: 0 | L133: 0 | M133: 0 | N133: 0 | O133: 0 | P133: 0 | Q133: 0
B134: Precario | C134: € '000 | E134: 0 | F134: 0 | G134: 12940.404 | H134: 0 | I134: 0 | J134: 0 | K134: 3496.852452 | L134: 0 | M134: 90.12884 | N134: 0 | O134: 0 | P134: 0 | Q134: 16527.38529
B135: Gedoogbelasting | C135: € '000 | E135: 0 | F135: 0 | G135: 0 | H135: 0 | I135: 0 | J135: 0 | K135: 0 | L135: 0 | M135: 0 | N135: 0 | O135: 0 | P135: 0 | Q135: 0
B136: Dotaties voorzieningen | C136: € '000 | E136: 0 | F136: 0 | G136: 51.08008548 | H136: 47.70839085 | I136: 0 | J136: 149.907516 | K136: 0 | L136: 171.0955774 | M136: -92.98186 | N136: 0 | O136: 0 | P136: 0 | Q136: 326.8097097
B137: Overige bedrijfskosten | C137: € '000 | E137: 18 | F137: 155.5423814 | G137: =4386.20333908292+'Aanpassing gegevens (sep 14)'!G345 -> 4168.203339 | H137: 268 | I137: 1148.258603 | J137: 2471.284263 | K137: 871.6557747 | L137: 806 | M137: 307.30409 | N137: 747.9543869 | O137: =21471.8557346+'Aanpassing gegevens (sep 14)'!G355+'Aanpassing gegevens (sep 14)'!G362+'Aanpassing gegevens (sep 14)'!G371 -> 20733.81537 | P137: 0 | Q137: 31696.01821
B138: Buitengewone lasten | C138: € '000 | E138: 0 | F138: 0 | G138: 0 | H138: 0 | I138: 0 | J138: 0 | K138: 0 | L138: 0 | M138: 0 | N138: 0 | O138: 0 | P138: 0 | Q138: =SUM(E138:P138) -> 0
B139: Totaal bedrijfslasten TO (excl. Afschrijvingen) | C139: € '000 | E139: =SUM(E128:E138) -> 3809 | F139: 5543.659583 | G139: 63570.62468 | H139: 1094.208391 | I139: 2427.015914 | J139: 3819.846899 | K139: 49086.83966 | L139: 3400.095577 | M139: 1260.74544 | N139: 747.9543869 | O139: 20733.81537 | P139: =SUM(P128:P138) -> 0 | Q139: =SUM(E139:P139) -> 155493.8059
B141: OPEX Transportafhankelijk (TA)
B142: Inkoopkosten gastransportdiensten | C142: € '000 | E142: 0 | F142: 0 | G142: 0 | H142: 0 | I142: 0 | J142: 0 | K142: 0 | L142: 0 | M142: 0 | N142: 0 | O142: 0 | P142: 0 | Q142: =SUM(E142:O142) -> 0
B143: Inkoopkosten overige transportgerelateerde activiteiten | C143: € '000 | E143: 0 | F143: 0 | G143: 0 | H143: 0 | I143: 0 | J143: 0 | K143: 0 | L143: 0 | M143: 0 | N143: 0 | O143: 0 | P143: 0 | Q143: 0
B144: Personeelskosten | C144: € '000 | E144: 562 | F144: 183.0220781 | G144: 8258.314822 | H144: 587.93689 | I144: 663.3766314 | J144: 211.9590322 | K144: 11004.78901 | L144: 1086.42149 | M144: 1068.16814 | N144: 0 | O144: 0 | P144: 0 | Q144: 23625.98809
B145: Kosten uitbesteed werk en andere externe kosten | C145: € '000 | E145: 4371 | F145: 4438.357191 | G145: 9474.826032 | H145: 303.35911 | I145: 1003.30649 | J145: 128.4870124 | K145: =34197.157504564+'Aanpassing gegevens (sep 14)'!G393+'Aanpassing gegevens (sep 14)'!G403 -> 33854.33717 | L145: 597.86493 | M145: =1009.9538+'Aanpassing gegevens (sep 14)'!G116 -> 961.0998 | N145: 0 | O145: 0 | P145: 0 | Q145: 55132.63774
B146: Bijzondere waardeverminderingen immateriële en materiële vaste activa | C146: € '000 | E146: 0 | F146: 0 | G146: 0 | H146: 0 | I146: 0 | J146: 0 | K146: 0 | L146: 0 | M146: 0 | N146: 0 | O146: 0 | P146: 0 | Q146: 0
B147: Kosten wettelijke reserve inzake onderzoek- en ontwikkelingskosten | C147: € '000 | E147: 0 | F147: 0 | G147: 0 | H147: 0 | I147: 0 | J147: 0 | K147: 0 | L147: 0 | M147: 0 | N147: 0 | O147: 0 | P147: 0 | Q147: 0
B148: Precario | C148: € '000 | E148: 0 | F148: 272.9171 | G148: 0 | H148: 0 | I148: 0 | J148: 0 | K148: 3507.84158 | L148: 0 | M148: 0 | N148: 0 | O148: 611 | P148: 0 | Q148: 4391.75868
B149: Gedoogbelasting | C149: € '000 | E149: 0 | F149: 0 | G149: 0 | H149: 0 | I149: 0 | J149: 0 | K149: 0 | L149: 0 | M149: 0 | N149: 2.494 | O149: 0 | P149: 0 | Q149: 2.494
B150: Dotaties voorzieningen | C150: € '000 | E150: 0 | F150: 0 | G150: 0 | H150: 0 | I150: 0 | J150: 0 | K150: 0 | L150: 0 | M150: 0 | N150: 0 | O150: 6972.141517 | P150: 0 | Q150: 6972.141517
B151: Overige bedrijfskosten | C151: € '000 | E151: 100 | F151: 0 | G151: 18365.32616 | H151: 0 | I151: 304.1015477 | J151: 0 | K151: 874.3950201 | L151: 0 | M151: 887.29811 | N151: 4739.427391 | O151: =63449+'Aanpassing gegevens (sep 14)'!G356+'Aanpassing gegevens (sep 14)'!G363+'Aanpassing gegevens (sep 14)'!G372 -> 60430.24512 | P151: 0 | Q151: 85700.79335
B152: Buitengewone lasten | E152: 0 | F152: 0 | G152: 0 | H152: 0 | I152: 0 | J152: 0 | K152: 0 | L152: 0 | M152: 0 | N152: 0 | O152: 0 | P152: 0
B153: Totaal bedrijfslasten TA (excl. Afschrijvingen) | C153: € '000 | E153: =SUM(E142:E152) -> 5033 | F153: =SUM(F142:F152) -> 4894.296369 | G153: 36098.46701 | H153: 891.296 | I153: 1970.784669 | J153: 340.4460446 | K153: 49241.36278 | L153: 1684.28642 | M153: 2916.56605 | N153: 4741.921391 | O153: 68013.38664 | P153: 0 | Q153: =SUM(Q142:Q151) -> 175825.8134
B155: Totaal OPEX | C155: € '000 | E155: =E139+E153 -> 8842 | F155: =F139+F153 -> 10437.95595 | G155: 99669.0917 | H155: 1985.504391 | I155: 4397.800583 | J155: 4160.292943 | K155: 98328.20245 | L155: 5084.381997 | M155: =M139+M153 -> 4177.31149 | N155: =N139+N153 -> 5489.875778 | O155: =O139+O153 -> 88747.20201 | P155: =P139+P153 -> 0 | Q155: =Q139+Q153 -> 331319.6193
B157: CAPEX (o.b.v. WACC NG4R t.b.v. productiviteit)
B158: Eindstand GAW | C158: € '000 | E158: 90404.7379 | F158: 111115.7154 | G158: 1518095.048 | H158: 30591.14714 | I158: 216658.2255 | J158: 181479.7269 | K158: =1775837.02485534+'Aanpassing gegevens (sep 14)'!G82 -> 1776025.559 | L158: 168532.7885 | M158: =169805.916772753+'Aanpassing gegevens (sep 14)'!G62 -> 168526.9659 | N158: 128730.4798 | O158: =1133266.08482365+'Aanpassing gegevens (sep 14)'!G30+'Aanpassing gegevens (sep 14)'!G46 -> 1135895.795 | P158: 0 | Q158: =SUM(E158:P158) -> 5526056.189
B159: Afschrijvingen | C159: € '000 | E159: 4173.022643 | F159: 4057.713149 | G159: 55879.37504 | H159: 1426.748818 | I159: 7927.532066 | J159: 6525.533044 | K159: =59910.6068135616+'Aanpassing gegevens (sep 14)'!G83 -> 59914.47749 | L159: 6679.113889 | M159: =8329.0088545222+'Aanpassing gegevens (sep 14)'!G63 -> 8542.16733 | N159: 5758.415168 | O159: =42386.6300071729+'Aanpassing gegevens (sep 14)'!G31+'Aanpassing gegevens (sep 14)'!G47 -> 42686.79863 | P159: 0 | Q159: =SUM(E159:P159) -> 203570.8973
B160: Totaal CAPEX | C160: € '000 | E160: =E159+WACC2011_2013*E158 -> 9778.116393 | F160: 10946.8875 | G160: 150001.268 | H160: 3323.399941 | I160: 21360.34205 | J160: 17777.27611 | K160: 170028.0621 | L160: 17128.14678 | M160: =M159+WACC2011_2013*M158 -> 18990.83922 | N160: =N159+WACC2011_2013*N158 -> 13739.70492 | O160: =O159+WACC2011_2013*O158 -> 113112.3379 | P160: =P159+WACC2011_2013*P158 -> 0 | Q160: =Q159+WACC2011_2013*Q158 -> 546186.381
B162: Eliminatie niet-tariefgereguleerde OPEX en CAPEX | C162: € '000 | E162: =-'Aanpassing gegevens (sep 14)'!G227 -> 0 | F162: =-'Aanpassing gegevens (sep 14)'!G237 -> 0 | G162: =-'Aanpassing gegevens (sep 14)'!I247 -> -563.88794 | H162: =-'Aanpassing gegevens (aug 2016)'!I76 -> 0 | I162: =-'Aanpassing gegevens (sep 14)'!G267 -> 0 | J162: =-'Aanpassing gegevens (aug 2016)'!I51 -> -41.61542221 | K162: =-'Aanpassing gegevens (sep 14)'!G287 -> -4078.732695 | L162: =-'Aanpassing gegevens (aug 2016)'!I60 -> 0 | M162: =-'Aanpassing gegevens (sep 14)'!G307 -> -63.08398 | N162: =-'Aanpassing gegevens (sep 14)'!G317 -> -52.71 | O162: =-'Aanpassing gegevens (sep 14)'!G327 -> -1157.425 | Q162: =SUM(E162:P162) -> -5957.455037
B164: Gestandaardiseerde Economische Kosten 2009 (incl. ORV) | C164: € '000 | E164: =E155+E160+E162 -> 18620.11639 | F164: =F155+F160+F162 -> 21384.84345 | G164: 249106.4718 | H164: 5308.904332 | I164: 25758.14263 | J164: 21895.95363 | K164: 264277.5319 | L164: 22212.52877 | M164: 23105.06673 | N164: 19176.87069 | O164: =O155+O160+O162 -> 200702.1149 | P164: 0 | Q164: =SUM(E164:P164) -> 871548.5452
B167: Kosten TD 2009 incl. EHD (t.b.v. eindinkomsten)
B169: Totaal OPEX Transportdienst < 16 bar | C169: € '000 | E169: =E155 -> 8842 | F169: =F155 -> 10437.95595 | G169: =G155 -> 99669.0917 | H169: 1985.504391 | I169: 4397.800583 | J169: 4160.292943 | K169: 98328.20245 | L169: 5084.381997 | M169: 4177.31149 | N169: 5489.875778 | O169: 88747.20201 | P169: 0 | Q169: 331319.6193
B171: Totaal CAPEX Transportdienst < 16 bar | C171: € '000 | E171: =E160 -> 9778.116393 | F171: =F160 -> 10946.8875 | G171: 150001.268 | H171: 3323.399941 | I171: 21360.34205 | J171: 17777.27611 | K171: 170028.0621 | L171: 17128.14678 | M171: 18990.83922 | N171: 13739.70492 | O171: 113112.3379 | P171: 0 | Q171: 546186.381
B173: OPEX TD Transportonafhankelijk (TO) > 16 bar
B174: Inkoopkosten gastransportdiensten | C174: € '000 | E174: 0 | F174: 0 | G174: 0 | H174: 0 | I174: 0 | J174: 0 | K174: 0 | L174: 0 | M174: 0 | N174: 0 | O174: 0 | P174: 0 | Q174: =SUM(E174:P174) -> 0
B175: Inkoopkosten overige transportgerelateerde activiteiten | C175: € '000 | E175: 0 | F175: 0 | G175: 0 | H175: 0 | I175: 0 | J175: 0 | K175: 0 | L175: 0 | M175: 0 | N175: 0 | O175: 0 | P175: 0 | Q175: 0
B176: Personeelskosten | C176: € '000 | E176: 0 | F176: 51.53335321 | G176: 0 | H176: 0 | I176: 0 | J176: 0 | K176: 0 | L176: 0 | M176: 0 | N176: 0 | O176: 0 | P176: 0 | Q176: =SUM(E176:P176) -> 51.53335321
B177: Kosten uitbesteed werk en andere externe kosten | C177: € '000 | E177: 0 | F177: 276.5953647 | G177: 0 | H177: 0 | I177: 0 | J177: 0 | K177: 0 | L177: 0 | M177: 0 | N177: 0 | O177: 0 | P177: 0 | Q177: 276.5953647
B178: Bijzondere waardeverminderingen immateriële en materiële vaste activa | C178: € '000 | E178: 0 | F178: 0 | G178: 0 | H178: 0 | I178: 0 | J178: 0 | K178: 0 | L178: 0 | M178: 0 | N178: 0 | O178: 0 | P178: 0 | Q178: 0
B179: Kosten wettelijke reserve inzake onderzoek- en ontwikkelingskosten | C179: € '000 | E179: 0 | F179: 0 | G179: 0 | H179: 0 | I179: 0 | J179: 0 | K179: 0 | L179: 0 | M179: 0 | N179: 0 | O179: 0 | P179: 0 | Q179: 0
B180: Precario | C180: € '000 | E180: 0 | F180: 0 | G180: 0 | H180: 0 | I180: 0 | J180: 0 | K180: 0 | L180: 0 | M180: 0 | N180: 0 | O180: 0 | P180: 0 | Q180: 0
B181: Gedoogbelasting | C181: € '000 | E181: 0 | F181: 0 | G181: 0 | H181: 0 | I181: 0 | J181: 0 | K181: 0 | L181: 0 | M181: 0 | N181: 0 | O181: 0 | P181: 0 | Q181: 0
B182: Dotaties aan dan wel vrijval van voorzieningen | C182: € '000 | E182: 0 | F182: 0 | G182: 0 | H182: 0 | I182: 0 | J182: 0 | K182: 0 | L182: 0 | M182: 0 | N182: 0 | O182: 0 | P182: 0 | Q182: 0
B183: Overige bedrijfskosten | C183: € '000 | E183: 0 | F183: 11.43167371 | G183: 0 | H183: 0 | I183: 0 | J183: 0 | K183: 0 | L183: 0 | M183: 0 | N183: 0 | O183: 0 | P183: 0 | Q183: 11.43167371
B184: Buitengewone lasten | C184: € '000 | E184: 0 | Q184: 0
B185: totaal bedrijfslasten ex afschrijvingen TO > 16 bar | C185: € '000 | E185: =SUM(E174:E184) -> 0 | F185: 339.5603916 | G185: 0 | H185: 0 | I185: 0 | J185: 0 | K185: 0 | L185: 0 | M185: 0 | N185: 0 | O185: 0 | P185: =SUM(P174:P184) -> 0 | Q185: =SUM(Q176:Q183) -> 339.5603916
B187: OPEX TD Transportafhankelijk (TA) > 16 bar
B188: Inkoopkosten gastransportdiensten | C188: € '000 | E188: 0 | F188: 0 | G188: 0 | H188: 0 | I188: 0 | J188: 0 | K188: 0 | L188: 0 | M188: 0 | N188: 0 | O188: 0 | P188: 0 | Q188: =SUM(E188:P188) -> 0
B189: Inkoopkosten overige transportgerelateerde activiteiten | C189: € '000 | E189: 0 | F189: 0 | G189: 0 | H189: 0 | I189: 0 | J189: 0 | K189: 0 | L189: 0 | M189: 0 | N189: 0 | O189: 0 | P189: 0 | Q189: 0
B190: Personeelskosten | C190: € '000 | E190: 0 | F190: 9.094121155 | G190: 0 | H190: 0 | I190: 0 | J190: 0 | K190: 0 | L190: 0 | M190: 0 | N190: 0 | O190: 0 | P190: 0 | Q190: 9.094121155
B191: Kosten uitbesteed werk en andere externe kosten | C191: € '000 | E191: 0 | F191: 553.6954002 | G191: 0 | H191: 0 | I191: 0 | J191: 0 | K191: 0 | L191: 0 | M191: 0 | N191: 0 | O191: 0 | P191: 0 | Q191: 553.6954002
B192: Bijzondere waardeverminderingen immateriële en materiële vaste activa | C192: € '000 | E192: 0 | F192: 0 | G192: 0 | H192: 0 | I192: 0 | J192: 0 | K192: 0 | L192: 0 | M192: 0 | N192: 0 | O192: 0 | P192: 0 | Q192: 0
B193: Kosten wettelijke reserve inzake onderzoek- en ontwikkelingskosten | C193: € '000 | E193: 0 | F193: 0 | G193: 0 | H193: 0 | I193: 0 | J193: 0 | K193: 0 | L193: 0 | M193: 0 | N193: 0 | O193: 0 | P193: 0 | Q193: 0
B194: Precario | C194: € '000 | E194: 0 | F194: 0 | G194: 0 | H194: 0 | I194: 0 | J194: 0 | K194: 0 | L194: 0 | M194: 0 | N194: 0 | O194: 0 | P194: 0 | Q194: 0
B195: Gedoogbelasting | C195: € '000 | E195: 0 | F195: 0 | G195: 0 | H195: 0 | I195: 0 | J195: 0 | K195: 0 | L195: 0 | M195: 0 | N195: 0 | O195: 0 | P195: 0 | Q195: 0
B196: Dotaties aan dan wel vrijval van voorzieningen | C196: € '000 | E196: 0 | F196: 0 | G196: 0 | H196: 0 | I196: 0 | J196: 0 | K196: 0 | L196: 0 | M196: 0 | N196: 0 | O196: 0 | P196: 0 | Q196: 0
B197: Overige bedrijfskosten | C197: € '000 | E197: 0 | F197: 0 | G197: 0 | H197: 0 | I197: 0 | J197: 0 | K197: 0 | L197: 0 | M197: 0 | N197: 0 | O197: 83 | P197: 1270 | Q197: =SUM(E197:P197) -> 1353
B198: Buitengewone lasten | C198: € '000 | E198: 0 | F198: 0 | G198: 0 | H198: 0 | I198: 0 | J198: 0 | K198: 0 | L198: 0 | M198: 0 | N198: 0 | O198: 0 | P198: 0 | Q198: =SUM(E198:P198) -> 0
B199: totaal bedrijfslasten ex afschrijvingen TA > 16 bar | C199: € '000 | E199: =SUM(E188:E198) -> 0 | F199: =SUM(F188:F198) -> 562.7895214 | G199: 0 | H199: 0 | I199: 0 | J199: 0 | K199: 0 | L199: 0 | M199: 0 | N199: 0 | O199: 83 | P199: 1270 | Q199: =SUM(Q188:Q197) -> 1915.789521
B201: Totaal OPEX > 16 bar | C201: € '000 | E201: =E185+E199 -> 0 | F201: 902.3499129 | G201: 0 | H201: 0 | I201: 0 | J201: 0 | K201: 0 | L201: 0 | M201: 0 | N201: 0 | O201: 83 | P201: 1270 | Q201: =Q185+Q199 -> 2255.349913
B203: CAPEX > 16 bar
B204: Eindstand GAW TD > 16 bar | C204: € '000 | E204: 0 | F204: 10926.5349 | G204: 0 | H204: 0 | I204: 0 | J204: 0 | K204: 0 | L204: 0 | M204: 0 | N204: 0 | O204: 328.8478869 | P204: 43858.52692 | Q204: =SUM(E204:P204) -> 55113.90971
B205: Afschrijvingen TD > 16 bar | C205: € '000 | E205: 0 | F205: 258.3705183 | G205: 0 | H205: 0 | I205: 0 | J205: 0 | K205: 0 | L205: 0 | M205: 0 | N205: 0 | O205: 7.513065744 | P205: 1125 | Q205: =SUM(E205:P205) -> 1390.883584
B206: Totaal CAPEX TD > 16 bar | C206: € '000 | E206: =E205+WACC2011_2013*E204 -> 0 | F206: 935.8156819 | G206: 0 | H206: 0 | I206: 0 | J206: 0 | K206: 0 | L206: 0 | M206: =M205+WACC2011_2013*M204 -> 0 | N206: =N205+WACC2011_2013*N204 -> 0 | O206: =O205+WACC2011_2013*O204 -> 27.90163473 | P206: =P205+WACC2011_2013*P204 -> 3844.228669 | Q206: =SUM(E206:P206) -> 4807.945986
B208: Eliminatie niet-tariefgereguleerde OPEX en CAPEX | C208: € '000 | E208: =-'Aanpassing gegevens (sep 14)'!G227 -> 0 | F208: =-'Aanpassing gegevens (sep 14)'!G237 -> 0 | G208: =-'Aanpassing gegevens (sep 14)'!I247 -> -563.88794 | H208: =-'Aanpassing gegevens (aug 2016)'!I122 -> 0 | I208: =-'Aanpassing gegevens (sep 14)'!G267 -> 0 | J208: =-'Aanpassing gegevens (aug 2016)'!I51 -> -41.61542221 | K208: =-'Aanpassing gegevens (sep 14)'!G287 -> -4078.732695 | L208: =-'Aanpassing gegevens (aug 2016)'!I60 -> 0 | M208: =-'Aanpassing gegevens (sep 14)'!G307 -> -63.08398 | N208: =-'Aanpassing gegevens (sep 14)'!G317 -> -52.71 | O208: =-'Aanpassing gegevens (sep 14)'!G327 -> -1157.425 | P208: =-'Aanpassing gegevens (sep 14)'!G337 -> 0 | Q208: =SUM(E208:P208) -> -5957.455037
B210: Totaal Kosten 2009 (OPEX + CAPEX) Transportdienst (incl. EHD) | C210: € '000 | E210: =E169+E171+E201+E206+E208 -> 18620.11639 | F210: =F169+F171+F201+F206+F208 -> 23223.00905 | G210: 249106.4718 | H210: 5308.904332 | I210: 25758.14263 | J210: 21895.95363 | K210: 264277.5319 | L210: 22212.52877 | M210: 23105.06673 | N210: 19176.87069 | O210: 200813.0166 | P210: 5114.228669 | Q210: =SUM(E210:P210) -> 878611.8411
B213: Sectorkosten TD 2009 incl. EHD (t.b.v. significantietoets ORV)
B215: OPEX TD 2009 (incl. ORV) | C215: € '000 | D215: =Q169+Q201 -> 333574.9692
B216: CAPEX TD 2009 (incl. ORV; o.b.v. WACC 2009 t.b.v. significantietoets ORV) | C216: € '000 | D216: =WACC2009*(Q158+Q204)+Q159+Q205 -> 511926.1363
B217: Totale Sectorkosten TD (incl. ORV) t.b.v. significantietoets ORV | C217: € '000 | D217: =D215+D216 -> 845501.1055

Sheet Kosten AD
B2: Gestandaardiseerde Economische Kosten Aansluitdienst | E2: Cogas Infra & Beheer B.V. | F2: DELTA Netwerkbedrijf B.V. | G2: Stedin B.V. | H2: Endinet Haarlemmermeer B.V. | I2: Intergas Energie B.V. | J2: Endinet Regio Eindhoven B.V. | K2: Liander N.V. | L2: Endinet Oost-Brabant N.V. | M2: N.V. RENDO | N2: Westland Energie Infrastructuur B.V. | O2: Enexis B.V. | P2: Zebra Gasnetwerk B.V. | Q2: Totaal
B5: OPEX AD 2009 incl. EHD (t.b.v. eindinkomsten) vóór toepassing van aansluitpuntpercentage
B7: OPEX AD < 40 m3/h (excl. EHD)
B8: Inkoopkosten gasaansluitdienst | C8: € '000 | E8: 0 | F8: 0 | G8: 0 | H8: 0 | I8: 0 | J8: 0 | K8: 0 | L8: 0 | M8: 0 | N8: 0 | O8: 0 | P8: 0 | Q8: =SUM(E8:P8) -> 0
B9: Personeelskosten | C9: € '000 | E9: 951 | F9: 264.2566277 | G9: 4375.434406 | H9: 124 | I9: 276.2275407 | J9: 342.1345819 | K9: 11055.41818 | L9: 272.2113857 | M9: 591.505494 | N9: 0 | O9: 0 | P9: 0 | Q9: 18252.18821
B10: Kosten uitbesteed werk en andere externe kosten | C10: € '000 | E10: 577 | F10: 735.8757973 | G10: 4172.274598 | H10: 179 | I10: 417.2275751 | J10: 193.777082 | K10: ='Aanpassing gegevens (sep 14)'!I404 -> 20645.25766 | L10: 585 | M10: 192.24512 | N10: 0 | O10: 0 | P10: 0 | Q10: 27697.65783
B11: Bijzondere waardeverminderingen immateriële en materiële vaste activa | C11: € '000 | E11: 0 | F11: 0 | G11: 0 | H11: 0 | I11: 0 | J11: 0 | K11: 0 | L11: 0 | M11: 0 | N11: 0 | O11: 0 | P11: 0 | Q11: 0
B12: Kosten wettelijke reserve inzake onderzoek- en ontwikkelingskosten | C12: € '000 | E12: 0 | F12: 0 | G12: 0 | H12: 0 | I12: 0 | J12: 0 | K12: 0 | L12: 0 | M12: 0 | N12: 0 | O12: 0 | P12: 0 | Q12: 0
B13: Precario | C13: € '000 | E13: 0 | F13: 0 | G13: 0 | H13: 0 | I13: 0 | J13: 0 | K13: 0 | L13: 0 | M13: 0 | N13: 0 | O13: 0 | P13: 0 | Q13: 0
B14: Gedoogbelasting | C14: € '000 | E14: 6 | F14: 0 | G14: 0 | H14: 0 | I14: 0 | J14: 0 | K14: 0 | L14: 0 | M14: 0 | N14: 0 | O14: 0 | P14: 0 | Q14: 6
B15: Dotaties voorzieningen | C15: € '000 | E15: 0 | F15: 0 | G15: 196.4790153 | H15: 10 | I15: 0 | J15: 43.30493983 | K15: 0 | L15: 34 | M15: -4.18537 | N15: 0 | O15: 0 | P15: 0 | Q15: 279.5985852
B16: Overige bedrijfskosten | C16: € '000 | E16: 27 | F16: 33.68810205 | G16: =6348.0035191888+'Aanpassing gegevens (sep 14)'!G346 -> 6307.003519 | H16: 28 | I16: 157.9034274 | J16: 598.8741751 | K16: 347.4254744 | L16: 127 | M16: 68.65048 | N16: 261.0328925 | O16: 9518 | P16: 0 | Q16: 17474.57807
B17: Buitengewone lasten | C17: € '000 | E17: 0 | F17: 0 | G17: 0 | H17: 0 | I17: 0 | J17: 0 | K17: 0 | L17: 0 | M17: 0 | N17: 0 | O17: 0 | P17: 0 | Q17: 0
B18: Eliminatie niet-tariefgereguleerde OPEX en CAPEX | C18: € '000 | E18: =-'Aanpassing gegevens (sep 14)'!I228 -> 0 | F18: =-'Aanpassing gegevens (sep 14)'!I238 -> 0 | G18: =-'Aanpassing gegevens (sep 14)'!I248 -> 0 | H18: =-'Aanpassing gegevens (sep 14)'!I258 -> 0 | I18: =-'Aanpassing gegevens (sep 14)'!I268 -> 0 | J18: =-'Aanpassing gegevens (sep 14)'!I278 -> 0 | K18: =-'Aanpassing gegevens (sep 14)'!I288 -> 0 | L18: =-'Aanpassing gegevens (sep 14)'!I298 -> 0 | M18: =-'Aanpassing gegevens (sep 14)'!I308 -> 0 | N18: =-'Aanpassing gegevens (sep 14)'!I318 -> 0 | O18: =-'Aanpassing gegevens (sep 14)'!I328 -> 0 | P18: =-'Aanpassing gegevens (sep 14)'!I338 -> 0 | Q18: 0
B19: Totaal bedrijfslasten (excl. Afschrijvingen) | C19: € '000 | E19: =SUM(E8:E18) -> 1561 | F19: =SUM(F8:F18) -> 1033.820527 | G19: 15051.19154 | H19: 341 | I19: 851.3585433 | J19: 1178.090779 | K19: 32048.10131 | L19: 1018.211386 | M19: 848.215724 | N19: 261.0328925 | O19: 9518 | P19: 0 | Q19: =SUM(Q8:Q18) -> 63710.0227
B21: OPEX AD > 40 m3/h (excl. EHD)
B22: Inkoopkosten gasaansluitdienst | C22: € '000 | E22: 0 | F22: 0 | G22: 0 | H22: 0 | I22: 0 | J22: 0 | K22: 0 | L22: 0 | M22: 0 | N22: 0 | O22: 0 | P22: 0 | Q22: =SUM(E22:P22) -> 0
B23: Personeelskosten | C23: € '000 | E23: 48 | F23: 17.57582526 | G23: 890.9127655 | H23: 25.18099 | I23: 14.87773399 | J23: 21.69738596 | K23: 2139.224971 | L23: 58.65171433 | M23: 43.7022959 | N23: 0 | O23: 0 | P23: 0 | Q23: 3259.823682
B24: Kosten uitbesteed werk en andere externe kosten | C24: € '000 | E24: 28 | F24: 48.94342496 | G24: 849.5459776 | H24: 36.621 | I24: 22.47205641 | J24: 12.28889555 | K24: 4002.721587 | L24: 125.66718 | M24: 14.20368 | N24: 0 | O24: 0 | P24: 0 | Q24: 5140.463802
B25: Bijzondere waardeverminderingen immateriële en materiële vaste activa | C25: € '000 | E25: 0 | F25: 0 | G25: 0 | H25: 0 | I25: 0 | J25: 0 | K25: 0 | L25: 0 | M25: 0 | N25: 0 | O25: 0 | P25: 0 | Q25: 0
B26: Kosten wettelijke reserve inzake onderzoek- en ontwikkelingskosten | C26: € '000 | E26: 0 | F26: 0 | G26: 0 | H26: 0 | I26: 0 | J26: 0 | K26: 0 | L26: 0 | M26: 0 | N26: 0 | O26: 0 | P26: 0 | Q26: 0
B27: Precario | C27: € '000 | E27: 0 | F27: 0 | G27: 0 | H27: 0 | I27: 0 | J27: 0 | K27: 0 | L27: 0 | M27: 0 | N27: 0 | O27: 0 | P27: 0 | Q27: 0
B28: Gedoogbelasting | C28: € '000 | E28: 0 | F28: 0 | G28: 0 | H28: 0 | I28: 0 | J28: 0 | K28: 0 | L28: 0 | M28: 0 | N28: 0 | O28: 0 | P28: 0 | Q28: 0
B29: Dotaties voorzieningen | C29: € '000 | E29: 0 | F29: 0 | G29: 0 | H29: 2.16773075 | I29: 0 | J29: 2.74629939 | K29: 0 | L29: 7.86730325 | M29: -0.288298 | N29: 0 | O29: 0 | P29: 0 | Q29: 12.49303539
B30: Overige bedrijfskosten | C30: € '000 | E30: 0 | F30: 2.240610577 | G30: =916.999866578092+'Aanpassing gegevens (sep 14)'!G347 -> 908.9998666 | H30: 6.1908 | I30: 8.504746425 | J30: 37.97921873 | K30: 67.22687811 | L30: 27 | M30: 5.07211 | N30: 234.9575014 | O30: 1663 | P30: 0 | Q30: 2961.171732
B31: Buitengewone lasten | C31: € '000 | E31: 0 | F31: 0 | G31: 0 | H31: 0 | I31: 0 | J31: 0 | K31: 0 | L31: 0 | M31: 0 | N31: 0 | O31: 0 | P31: 0 | Q31: 0
B32: Totaal bedrijfslasten (excl. Afschrijvingen) | C32: € '000 | E32: =SUM(E22:E31) -> 76 | F32: =SUM(F22:F31) -> 68.75986079 | G32: 2649.45861 | H32: 70.16052075 | I32: 45.85453683 | J32: 74.71179963 | K32: 6209.173436 | L32: 219.1861976 | M32: 62.6897879 | N32: 234.9575014 | O32: 1663 | P32: 0 | Q32: =SUM(Q22:Q30) -> 11373.95225
B34: OPEX AD EHD
B35: Inkoopkosten gasaansluitdienst | C35: € '000 | E35: 0 | F35: 0 | G35: 0 | H35: 0 | I35: 0 | J35: 0 | K35: 0 | L35: 0 | M35: 0 | N35: 0 | O35: 0 | P35: 0 | Q35: =SUM(E35:P35) -> 0
B36: Personeelskosten | C36: € '000 | E36: 0 | F36: 4.942656708 | G36: 0 | H36: 0 | I36: 0 | J36: 0 | K36: 0 | L36: 0 | M36: 0 | N36: 0 | O36: 0 | P36: 0 | Q36: 4.942656708
B37: Kosten uitbesteed werk en andere externe kosten | C37: € '000 | E37: 0 | F37: 115.5113533 | G37: 0 | H37: 0 | I37: 0 | J37: 0 | K37: 0 | L37: 0 | M37: 0 | N37: 0 | O37: 0 | P37: 0 | Q37: 115.5113533
B38: Bijzondere waardeverminderingen immateriële en materiële vaste activa | C38: € '000 | E38: 0 | F38: 0 | G38: 0 | H38: 0 | I38: 0 | J38: 0 | K38: 0 | L38: 0 | M38: 0 | N38: 0 | O38: 0 | P38: 0 | Q38: 0
B39: Kosten wettelijke reserve inzake onderzoek- en ontwikkelingskosten | C39: € '000 | E39: 0 | F39: 0 | G39: 0 | H39: 0 | I39: 0 | J39: 0 | K39: 0 | L39: 0 | M39: 0 | N39: 0 | O39: 0 | P39: 0 | Q39: 0
B40: Precario | C40: € '000 | E40: 0 | F40: 0 | G40: 0 | H40: 0 | I40: 0 | J40: 0 | K40: 0 | L40: 0 | M40: 0 | N40: 0 | O40: 0 | P40: 0 | Q40: 0
B41: Gedoogbelasting | C41: € '000 | E41: 0 | F41: 0 | G41: 0 | H41: 0 | I41: 0 | J41: 0 | K41: 0 | L41: 0 | M41: 0 | N41: 0 | O41: 0 | P41: 0 | Q41: 0
B42: Dotaties voorzieningen | C42: € '000 | E42: 0 | F42: 0 | G42: 0 | H42: 0 | I42: 0 | J42: 0 | K42: 0 | L42: 0 | M42: 0 | N42: 0 | O42: 0 | P42: 0 | Q42: 0
B43: Overige bedrijfskosten | C43: € '000 | E43: 0 | F43: 0.93196755 | G43: 0 | H43: 0 | I43: 0 | J43: 0 | K43: 0 | L43: 0 | M43: 0 | N43: 0 | O43: 98 | P43: 14 | Q43: 112.9319675
B44: Buitengewone lasten | C44: € '000 | E44: 0 | F44: 0 | G44: 0 | H44: 0 | I44: 0 | J44: 0 | K44: 0 | L44: 0 | M44: 0 | N44: 0 | O44: 0 | P44: 0 | Q44: 0
B45: Totaal bedrijfslasten (excl. Afschrijvingen) | C45: € '000 | E45: =SUM(E35:E44) -> 0 | F45: =SUM(F35:F44) -> 121.3859776 | G45: 0 | H45: 0 | I45: 0 | J45: 0 | K45: 0 | L45: 0 | M45: 0 | N45: 0 | O45: 98 | P45: 14 | Q45: =SUM(Q35:Q43) -> 233.3859776
B48: Totale kosten incl. ontvangen vergoedingen AD 2009 incl. EHD
B50: CAPEX (o.b.v. WACC NG4R t.b.v. eindinkomsten)
B51: Eindstand GAW 2009 gasaansluitdienst | C51: € '000 | E51: 11091.33496 | F51: 14888.66469 | G51: ='Aanpassing gegevens (aug 2016)'!I25 -> 271890.6132 | H51: 2889.43785 | I51: 14981.37992 | J51: 9476.800129 | K51: 91217.38052 | L51: 8099.234681 | M51: 10554.88207 | N51: 2129.659391 | O51: 136396.1344 | P51: 0 | Q51: =SUM(E51:P51) -> 573615.5218
B52: Afschrijvingen 2009 gasaansluitdienst | C52: € '000 | E52: 389.2439318 | F52: 628.1294071 | G52: ='Aanpassing gegevens (aug 2016)'!I26 -> 9932.476572 | H52: 133.6307604 | I52: 524.5482053 | J52: 432.1265797 | K52: 3920.1443 | L52: 386.8432125 | M52: 409.9935896 | N52: 91.71660613 | O52: 4952.387908 | P52: 0 | Q52: =SUM(E52:P52) -> 21801.24107
B53: Totaal CAPEX gasaansluitdienst na toepassing aansluitpuntpercentage | C53: € '000 | E53: =E52+WACC2011_2013*E51 -> 1076.906699 | F53: 1551.226618 | G53: 26789.69459 | H53: 312.7759071 | I53: 1453.39376 | J53: 1019.688188 | K53: 9575.621892 | L53: 888.9957627 | M53: =M52+WACC2011_2013*M51 -> 1064.396278 | N53: =N52+WACC2011_2013*N51 -> 223.7554883 | O53: =O52+WACC2011_2013*O51 -> 13408.94824 | P53: =P52+WACC2011_2013*P51 -> 0 | Q53: =Q52+WACC2011_2013*Q51 -> 57365.40342
B55: Aansluitpuntpercentage ter bepaling OPEX en vergoedingen AD EAV en ML > 40m3/h | D55: 0.385
B57: OPEX Aansluitdienst na toepassing aansluitpuntpercentage (incl EHD) | C57: € '000 | E57: =E19+$D$55*(E32+E45) -> 1590.26 | F57: =F19+$D$55*(F32+F45) -> 1107.026675 | G57: 16071.2331 | H57: 368.0118005 | I57: 869.01254 | J57: 1206.854822 | K57: 34438.63308 | L57: 1102.598072 | M57: 872.3512923 | N57: 351.4915305 | O57: 10195.985 | P57: 5.39 | Q57: =SUM(E57:P57) -> 68178.84792
B58: Ontvangen vergoedingen AD EAV en ML (incl. EHD) na toepassing aansluitpuntpercentage | C58: € '000 | E58: ='Vergoedingen AD'!E137 -> 1598.982922 | F58: ='Vergoedingen AD'!F137 -> 1417.988985 | G58: ='Vergoedingen AD'!G137 -> 17350.31217 | H58: ='Vergoedingen AD'!H137 -> 349.1519271 | I58: ='Vergoedingen AD'!I137 -> 1004.622 | J58: ='Vergoedingen AD'!J137 -> 1862.869455 | K58: ='Vergoedingen AD'!K137 -> 16980.52945 | L58: ='Vergoedingen AD'!L137 -> 1429.861554 | M58: ='Vergoedingen AD'!M137 -> 920.83875 | N58: ='Vergoedingen AD'!N137 -> 971.0550503 | O58: ='Vergoedingen AD'!O137 -> 14679.80075 | P58: ='Vergoedingen AD'!P137 -> 0 | Q58: =SUM(E58:P58) -> 58566.01301
B60: Totaal Kosten 2009 (OPEX incl. vergoedingen + CAPEX) Aansluitdienst (incl. EHD) | C60: € '000 | E60: =E57+E58+E53 -> 4266.149621 | F60: =F57+F58+F53 -> 4076.242278 | G60: 60211.23986 | H60: 1029.939635 | I60: 3327.0283 | J60: 4089.412465 | K60: 60994.78443 | L60: 3421.455388 | M60: 2857.58632 | N60: 1546.302069 | O60: 38284.73398 | P60: 5.39 | Q60: =SUM(E60:P60) -> 184110.2643
B63: Sectorkosten AD 2009 (t.b.v. significantietoets ORV)
B65: OPEX AD 2009 (incl. ORV; incl. ontvangen vergoedingen) | C65: € '000 | D65: =Q19+Q58+$D$55*(Q32+Q45) -> 126744.8609
B66: CAPEX AD 2009 (incl. ORV; o.b.v. WACC 2009 t.b.v. significantietoets ORV) | C66: € '000 | D66: =WACC2009*Q51+Q52 -> 53350.09477
B67: Totale Sectorkosten AD t.b.v. significantietoets ORV | C67: € '000 | D67: =D65+D66 -> 180094.9557

Sheet Vergoedingen AD
B2: Ontvangen vergoedingen en inkomsten Aansluitdienst | E2: Cogas Infra & Beheer B.V. | F2: DELTA Netwerkbedrijf B.V. | G2: Stedin B.V. | H2: Endinet Haarlemmermeer B.V. | I2: Intergas Energie B.V. | J2: Endinet Regio Eindhoven B.V. | K2: Liander N.V. | L2: Endinet Oost-Brabant N.V. | M2: N.V. RENDO | N2: Westland Energie Infrastructuur B.V. | O2: Enexis B.V. | P2: Zebra Gasnetwerk B.V. | Q2: Totaal
B4: Vergoedingen 2009 (EAV en Meerlengte) vóór toepassing aansluitpuntpercentage
B6: Eenmalige aansluitvergoeding
B7: LD 0-10 m3/h | C7: € '000 | E7: 1446.23195 | F7: 1214.09238 | G7: ='Aanpassing gegevens (sep 14)'!I198 -> 15331.30688 | H7: 203.167 | I7: 950.88 | J7: 1697.642727 | K7: 14317.295 | L7: 1102.008 | M7: 803.848 | N7: 704.56445 | O7: 11810.40373 | P7: 0 | Q7: =SUM(E7:P7) -> 49581.44012
B8: LD 10-16 m3/h | C8: € '000 | E8: 0 | F8: 0 | G8: ='Aanpassing gegevens (sep 14)'!I199 -> 332.12854 | H8: 31.24194956 | I8: 0 | J8: 0 | K8: 452.626 | L8: 119.34 | M8: 22.23 | N8: 14.64359 | O8: 245.0900439 | P8: 0 | Q8: 1217.300123
B9: LD 16-25 m3/h | C9: € '000 | E9: 30.76683372 | F9: 49.85477 | G9: ='Aanpassing gegevens (sep 14)'!I200 -> 309.80141 | H9: 21.69473725 | I9: 25.85 | J9: 72.91971083 | K9: 224.83 | L9: 36.25716749 | M9: 22.23 | N9: 5.82538 | O9: 286.313887 | P9: 0 | Q9: 1086.343896
B10: LD 25-40 m3/h | C10: € '000 | E10: 10.6434 | F10: 9.98448 | G10: ='Aanpassing gegevens (sep 14)'!I201 -> 222.92911 | H10: 30.64523889 | I10: 12.8 | J10: 27.49877218 | K10: 770.946 | L10: 45.954 | M10: 12.69 | N10: 18.07787 | O10: 253.4837 | P10: 0 | Q10: 1415.652571
B11: LD 40-65 m3/h | C11: € '000 | E11: 30.53524 | F11: 16.405 | G11: ='Aanpassing gegevens (sep 14)'!I202 -> 202.83321 | H11: 35.43723586 | I11: 7.4 | J11: 44.23381305 | K11: 0 | L11: 50.834 | M11: 4 | N11: 7.54608 | O11: 254.01905 | P11: 0 | Q11: 653.2436289
B12: LD 65-100 m3/h | C12: € '000 | E12: 13.5525 | F12: 7.79 | G12: ='Aanpassing gegevens (sep 14)'!I203 -> 155.07953 | H12: 18.14710663 | I12: 18 | J12: 31.09848 | K12: 487.644 | L12: 36.544 | M12: 4.23 | O12: 191.728 | P12: 0 | Q12: 963.8136166
B13: LD 100-160 m3/h | C13: € '000 | E13: 0 | F13: 11.935 | G13: ='Aanpassing gegevens (sep 14)'!I204 -> 150.46463 | H13: 0 | I13: 13.8 | J13: 12.01936 | K13: 250.422 | L13: 13.64783558 | M13: 0 | N13: 33.04642 | O13: 137.368 | P13: 0 | Q13: 622.7032456
B14: LD 160-250 m3/h | C14: € '000 | E14: 0 | F14: 0 | G14: ='Aanpassing gegevens (sep 14)'!I205 -> 18.113205 | H14: 27.35981706 | J14: 0 | K14: 165.576 | L14: 0 | M14: 0 | N14: 0 | O14: 89.606 | P14: 0 | Q14: 300.6550221
B15: LD 250-400 m3/h | C15: € '000 | E15: 0 | F15: 0 | G15: ='Aanpassing gegevens (sep 14)'!I206 -> 18.113205 | H15: 0 | J15: 66.92238692 | K15: 269.918 | L15: 52.37205035 | M15: 0 | N15: 17.19823 | O15: 8.415 | P15: 0 | Q15: 432.9388723
B16: LD 400-650 m3/h | C16: € '000 | E16: 0 | F16: 0 | G16: 0 | H16: 0 | J16: 0 | K16: 129.215 | L16: 0 | M16: 0 | N16: 0 | O16: 0 | P16: 0 | Q16: 129.215
B17: LD 650-1000 m3/h | C17: € '000 | E17: 0 | F17: 0 | G17: 0 | H17: 0 | J17: 0 | K17: 0 | L17: 0 | M17: 0 | N17: 0 | O17: 0 | P17: 0 | Q17: 0
B18: LD 1000-1600 m3/h | C18: € '000 | E18: 0 | F18: 0 | G18: 0 | H18: 0 | J18: 0 | K18: 0 | L18: 0 | M18: 0 | N18: 0 | O18: 0 | P18: 0 | Q18: 0
B19: LD 1600-2500 m3/h | C19: € '000 | E19: 0 | F19: 0 | G19: 0 | H19: 0 | J19: 0 | K19: 0 | L19: 0 | M19: 0 | N19: 0 | O19: 0 | P19: 0 | Q19: 0
B20: LD >2500 m3/h | C20: € '000 | E20: 0 | F20: 0 | G20: 0 | H20: 0 | J20: 0 | K20: 0 | L20: 0 | M20: 0 | N20: 0 | O20: 0 | P20: 0 | Q20: 0
B22: HD 0-10 m3/h | C22: € '000 | F22: 0 | G22: 0 | H22: 0 | J22: 0 | K22: 0 | L22: 0 | M22: 0 | N22: 0 | O22: 0 | P22: 0 | Q22: 0
B23: HD 10-16 m3/h | C23: € '000 | F23: 0 | G23: 0 | H23: 0 | J23: 0 | K23: 0 | L23: 0 | M23: 0 | N23: 0 | O23: 0 | P23: 0 | Q23: 0
B24: HD 16-25 m3/h | C24: € '000 | F24: 0 | G24: 0 | H24: 0 | J24: 0 | K24: 0 | L24: 0 | M24: 0 | N24: 0 | O24: 0 | P24: 0 | Q24: 0
B25: HD 25-40 m3/h | C25: € '000 | F25: 0 | G25: 0 | H25: 0 | J25: 0 | K25: 0 | L25: 0 | M25: 0 | N25: 0 | O25: 0 | P25: 0 | Q25: 0
B26: HD 40-65 m3/h | C26: € '000 | F26: 0 | G26: ='Aanpassing gegevens (sep 14)'!I207 -> 54.3019 | H26: 0 | J26: 0 | K26: 0 | L26: 0 | M26: 0 | N26: 0 | O26: 164.12798 | P26: 0 | Q26: 218.42988
B27: HD 65-100 m3/h | C27: € '000 | F27: 0 | G27: ='Aanpassing gegevens (sep 14)'!I208 -> 54.601 | H27: 0 | J27: 0 | K27: 12.874 | L27: 0 | M27: 0 | N27: 0 | O27: 224.87445 | P27: 0 | Q27: 292.34945
B28: HD 100-160 m3/h | C28: € '000 | F28: 0 | G28: ='Aanpassing gegevens (sep 14)'!I209 -> 44.79308 | H28: 0 | J28: 0 | K28: 0 | L28: 0 | M28: 0 | O28: 474.03831 | P28: 0 | Q28: 518.83139
B29: HD 160-250 m3/h | C29: € '000 | F29: 28.735 | G29: ='Aanpassing gegevens (sep 14)'!I210 -> 115 | H29: 0 | J29: 0 | K29: 20.697 | L29: 58.875 | M29: 0 | N29: 0 | O29: 625.1418 | P29: 0 | Q29: 848.4488
B30: HD 250-400 m3/h | C30: € '000 | F30: 49.5 | G30: ='Aanpassing gegevens (sep 14)'!I211 -> 142.701 | H30: 0 | J30: 0 | K30: 24.538 | L30: 0 | M30: 0 | N30: 0 | O30: 203.11614 | P30: 0 | Q30: 419.85514
B31: HD 400-650 m3/h | C31: € '000 | F31: 0 | G31: ='Aanpassing gegevens (sep 14)'!I212 -> 29 | H31: 0 | J31: 0 | K31: 206.744 | L31: 21.95 | M31: 0 | N31: 16.66495 | O31: 54.432 | P31: 0 | Q31: 328.79095
B32: HD 650-1000 m3/h | C32: € '000 | F32: 216.5 | G32: ='Aanpassing gegevens (sep 14)'!I213 -> 37 | H32: 0 | J32: 0 | K32: 0 | L32: 0 | M32: 0 | N32: 166.8358 | O32: 0 | P32: 0 | Q32: 420.3358
B33: HD 1000-1600 m3/h | C33: € '000 | F33: 0 | G33: ='Aanpassing gegevens (sep 14)'!I214 -> 62.867 | H33: 0 | J33: 0 | K33: 0 | L33: 0 | M33: 0 | N33: 18.33072 | O33: 0 | P33: 0 | Q33: 81.19772
B34: HD 1600-2500 m3/h | C34: € '000 | F34: 0 | G34: ='Aanpassing gegevens (sep 14)'!I215 -> 0 | H34: 0 | J34: 0 | K34: 0 | L34: 23.695 | M34: 0 | N34: 83.78445 | O34: 0 | P34: 0 | Q34: 107.47945
B35: HD >2500 m3/h | C35: € '000 | F35: 0 | G35: ='Aanpassing gegevens (sep 14)'!I216 -> 192.6 | H35: 0 | J35: 0 | K35: 0 | L35: 0 | M35: 0 | N35: 0 | O35: 374.17531 | P35: 0 | Q35: 566.77531
B37: EHD 0-40 m3/h | C37: € '000 | E37: 0 | F37: 0 | G37: 0 | H37: 0 | I37: 0 | J37: 0 | K37: 0 | L37: 0 | M37: 0 | N37: 0 | O37: 0 | P37: 0 | Q37: 0
B38: EHD >40 m3/h | C38: € '000 | E38: 0 | F38: 0 | G38: 0 | H38: 0 | I38: 0 | J38: 0 | K38: 0 | L38: 0 | M38: 0 | N38: 0 | O38: 0 | P38: 0 | Q38: 0
B40: Meerlengtevergoeding
B41: LD 0-10 m3/h | C41: € '000 | E41: 10.45348065 | F41: 10.80834 | G41: 397.71169 | H41: 15.3725 | J41: 4.67594 | K41: 410.3776 | L41: 16.5765 | M41: 55.5522 | N41: 84.1258 | O41: 701.4222 | P41: 0 | Q41: =SUM(E41:P41) -> 1707.076251
B42: LD 10-16 m3/h | C42: € '000 | E42: 23.91038947 | F42: 0 | G42: 66.57181 | H42: 2.236 | J42: 0 | K42: 85.9278 | L42: 6.278 | M42: 0 | N42: 6.1659 | O42: 72.0254 | P42: 0 | Q42: 263.1152995
B43: LD 16-25 m3/h | C43: € '000 | E43: 52.10163297 | F43: 5.86599 | G43: 136.81538 | H43: 1.806 | J43: 0.7368 | K43: 47.0557 | L43: 1.6985 | M43: 1.12 | N43: 0 | O43: 125.3796 | P43: 0 | Q43: 372.579603
B44: LD 25-40 m3/h | C44: € '000 | E44: 7.901455452 | F44: 0 | G44: 61.22226 | H44: 11.825 | J44: 0 | K44: 35.95295 | L44: 2.451 | M44: 0 | N44: 5.4405 | O44: 107.281 | P44: 0 | Q44: 232.0741655
B45: HD 0-10 m3/h | C45: € '000 | F45: 0 | K45: 0 | P45: 0 | Q45: 0
B46: HD 10-16 m3/h | C46: € '000 | F46: 0 | K46: 0 | P46: 0 | Q46: 0
B47: HD 16-25 m3/h | C47: € '000 | F47: 0 | K47: 0 | P47: 0 | Q47: 0
B48: HD 25-40 m3/h | C48: € '000 | F48: 0 | K48: 31.98162 | P48: 0 | Q48: 31.98162
B49: EHD 0-40 m3/h | C49: € '000 | E49: 0 | F49: 0 | G49: 0 | H49: 0 | I49: 0 | J49: 0 | K49: 0 | L49: 0 | M49: 0 | N49: 0 | O49: 0 | P49: 0 | Q49: 0
B52: Inkomsten uit PAV vóór toepassing aansluitpuntpercentage
B54: LD 0-10 m3/h | C54: € '000 | E54: 3247.815 | F54: 4293.71118 | G54: 40754.26801 | H54: 1280.425792 | I54: 5716.845 | J54: 5536.736858 | K54: 47302.44976 | L54: 4298.098681 | M54: 2721.6134 | N54: 425.8391432 | O54: 34845.92475 | P54: 0 | Q54: =SUM(E54:P54) -> 150423.7276
B55: LD 10-16 m3/h | C55: € '000 | E55: 0.11448 | F55: 0 | G55: 323.09153 | H55: 12.80543376 | I55: 0.51 | J55: 0.1993665856 | K55: 301.1655928 | L55: 108.0087527 | M55: 47.50475 | N55: 3.715841581 | O55: 249.3032714 | P55: 0 | Q55: 1046.419019
B56: LD 16-25 m3/h | C56: € '000 | E56: 131.59476 | F56: 143.18712 | G56: 725.73809 | H56: 25.8862532 | I56: 116.433 | J56: 165.1253745 | K56: 813.4271628 | L56: 116.8905973 | M56: 78.6429 | N56: 3.554425646 | O56: 1411.56967 | P56: 0 | Q56: 3732.049353
B57: LD 25-40 m3/h | C57: € '000 | E57: 54.2592 | F57: 54.84864 | G57: 480.04278 | H57: 23.71448338 | I57: 88.212 | J57: 71.69601842 | K57: 358.78604 | L57: 75.34239174 | M57: 33.7376 | N57: 2.516845293 | O57: 544.1446202 | P57: 0 | Q57: 1787.300619
B58: LD 40-65 m3/h | C58: € '000 | E58: 52.3008 | F58: 31.22064 | G58: 357.54379 | H58: 30.86293127 | I58: 2.828 | J58: 61.52563473 | K58: 508.1154036 | L58: 97.13873253 | M58: 24.942144 | N58: 18.56539 | O58: 513.3423881 | P58: 0 | Q58: 1698.385854
B59: LD 65-100 m3/h | C59: € '000 | E59: 46.2024 | F59: 51.7386 | G59: 615.77912 | H59: 40.69571477 | I59: 167.804 | J59: 65.64514941 | K59: 1256.536162 | L59: 95.41381314 | M59: 35.99685552 | N59: 39.57652 | O59: 627.9757954 | P59: 0 | Q59: 3043.36413
B60: LD 100-160 m3/h | C60: € '000 | E60: 21.89376 | F60: 28.3062 | G60: 574.673 | H60: 26.54303183 | I60: 86.625 | J60: 88.8567141 | K60: 1056.731421 | L60: 81.14894781 | M60: 18.90743044 | N60: 30.42352333 | O60: 460.0820633 | P60: 0 | Q60: 2474.191092
B61: LD 160-250 m3/h | C61: € '000 | E61: 21.54624 | F61: 28.48608 | G61: 320.0318657 | H61: 15.51091194 | I61: 87.832 | J61: 37.0075917 | K61: 984.5985018 | L61: 32.68218725 | M61: 18.331594 | N61: 83.15516 | O61: 262.0047124 | P61: 0 | Q61: 1891.186845
B62: LD 250-400 m3/h | C62: € '000 | E62: 7.6464 | F62: 7.40592 | G62: 465.6873943 | H62: 9.082267283 | I62: 97.708 | J62: 65.19450194 | K62: 919.6378595 | L62: 16.55383486 | M62: 11.792414 | N62: 116.4320467 | O62: 181.265664 | P62: 0 | Q62: 1898.406303
B63: LD 400-650 m3/h | C63: € '000 | E63: 3.36384 | F63: 0 | G63: 216.4006057 | H63: 0 | I63: 60.5 | J63: 16.29496137 | K63: 530.7815369 | L63: 0 | M63: 1.23864 | N63: 0.07411333333 | O63: 32.3233729 | P63: 0 | Q63: 860.9770702
B64: LD 650-1000 m3/h | C64: € '000 | E64: 0 | F64: 0 | G64: 162.3004543 | H64: 0 | I64: 27.836 | J64: 7.671665691 | K64: 449.4894886 | L64: 0 | M64: 0 | N64: 0.55585 | O64: 13.27718783 | P64: 0 | Q64: =SUM(E64:P64) -> 661.1306464
B65: LD 1000-1600 m3/h | C65: € '000 | E65: 0 | F65: 1.09836 | G65: 169.0555881 | H65: 0 | I65: 0 | J65: 6.154328423 | K65: 243.5485816 | L65: 0 | M65: 0 | N65: 53.95450667 | O65: 0 | P65: 0 | Q65: 473.8113648
B66: LD 1600-2500 m3/h | C66: € '000 | E66: 0 | F66: 0 | G66: 58.25564186 | H66: 0 | I66: 0 | J66: 3.503940885 | K66: 132.1324262 | L66: 0 | M66: 0 | N66: 0 | O66: 0 | P66: 0 | Q66: 193.8920089
B67: LD >2500 m3/h | C67: € '000 | E67: 0 | F67: 0 | G67: 62.33545 | H67: 0 | I67: 0 | J67: 0 | K67: 78.01772228 | L67: 0 | M67: 0 | N67: 2.11223 | O67: 0 | P67: 0 | Q67: 142.4654023
B69: HD 0-10 m3/h | C69: € '000 | E69: 0 | F69: 0 | H69: 0 | I69: 0 | J69: 0 | K69: 0 | L69: 0 | M69: 0 | N69: 0 | O69: 0 | P69: 0 | Q69: 0
B70: HD 10-16 m3/h | C70: € '000 | E70: 0 | F70: 0 | H70: 0 | I70: 0 | J70: 0 | K70: 0 | L70: 0 | M70: 0 | N70: 0 | O70: 0 | P70: 0 | Q70: 0
B71: HD 16-25 m3/h | C71: € '000 | E71: 0 | F71: 0 | H71: 0 | I71: 0 | J71: 0 | K71: 0 | L71: 0 | M71: 0.06935 | N71: 0 | O71: 0 | P71: 0 | Q71: 0.06935
B72: HD 25-40 m3/h | C72: € '000 | E72: 0 | F72: 0 | H72: 0 | I72: 0 | J72: 0 | K72: 0 | L72: 0.07044 | M72: 0 | N72: 0 | O72: 0 | P72: 0 | Q72: 0.07044
B73: HD 40-65 m3/h | C73: € '000 | E73: 0 | F73: 0 | H73: 0 | I73: 0 | J73: 0 | K73: 1.39968 | L73: 0 | M73: 0.1566 | N73: 0 | O73: 76.17518319 | P73: 0 | Q73: =SUM(E73:P73) -> 77.73146319
B74: HD 65-100 m3/h | C74: € '000 | E74: 0.7452 | F74: 11.22492 | H74: 0 | I74: 2.938 | J74: 0 | K74: 2.916 | L74: 7.990540017 | M74: 1.912608 | N74: 0 | O74: 285.6798196 | P74: 0 | Q74: =SUM(E74:P74) -> 313.4070876
B75: HD 100-160 m3/h | C75: € '000 | E75: 0.69504 | F75: 7.4472 | H75: 0 | I75: 2.878 | J75: 0.23436 | K75: 3.7422 | L75: 1.3104 | M75: 17.85948 | N75: 0.11117 | O75: 323.2873122 | P75: 0 | Q75: 357.5651622
B76: HD 160-250 m3/h | C76: € '000 | E76: 7.99296 | F76: 42.95976 | H76: 5.3810691 | I76: 12.7913 | J76: 0 | K76: 14.9688 | L76: 26.10087852 | M76: 24.89388 | N76: 0.55585 | O76: 487.183538 | P76: 0 | Q76: =SUM(E76:P76) -> 622.8280356
B77: HD 250-400 m3/h | C77: € '000 | E77: 5.7348 | F77: 52.46064 | H77: 0 | I77: 28.1029 | J77: 0.1911540322 | K77: 27.49788 | L77: 76.39189559 | M77: 38.68201 | N77: 2.89042 | O77: 481.1468573 | P77: 0 | Q77: 713.0985569
B78: HD 400-650 m3/h | C78: € '000 | E78: 3.78432 | F78: 27.0918 | H78: 81.33681813 | I78: 37.1849 | J78: 4.238022321 | K78: 67.2624 | L78: 178.2706169 | M78: 18.49474 | N78: 10.89466 | O78: 323.4570733 | P78: 0 | Q78: =SUM(E78:P78) -> 752.0153506
B79: HD 650-1000 m3/h | C79: € '000 | E79: 1.8504 | F79: 3.90144 | H79: 4.179001135 | I79: 15.6516 | J79: 1.925244643 | K79: 82.28952 | L79: 139.9167044 | M79: 15.1002 | N79: 7.67073 | O79: 228.4970335 | P79: 0 | Q79: 500.9818736
B80: HD 1000-1600 m3/h | C80: € '000 | E80: 0 | F80: 5.49216 | H80: 63.01820711 | I80: 34.055 | J80: 0 | K80: 63.2772 | L80: 216.2106232 | M80: 13.40244 | N80: 7.930126667 | O80: 95.35922614 | P80: 0 | Q80: =SUM(E80:P80) -> 498.7449831
B81: HD 1600-2500 m3/h | C81: € '000 | E81: 0 | F81: 0 | H81: 0 | I81: 0 | J81: 4.433702797 | K81: 42.87492 | L81: 14.76706338 | M81: 18.53028 | N81: 1.55638 | O81: 30.77869962 | P81: 0 | Q81: 112.9410458
B82: HD >2500 m3/h | C82: € '000 | E82: 0 | F82: 0 | H82: 2.922185212 | I82: 0 | J82: 3.53064 | K82: 45.33408 | L82: 0 | M82: 12.20052 | N82: 15.74908333 | O82: 7.044221057 | P82: 0 | Q82: =SUM(E82:P82) -> 86.7807296
B84: EHD 0-40 m3/h | C84: € '000 | E84: 0 | F84: 0 | G84: 0 | H84: 0 | I84: 0 | J84: 0 | K84: 0 | L84: 0 | M84: 0 | N84: 0 | O84: 0 | P84: 0 | Q84: =SUM(E84:P84) -> 0
B85: EHD >40 m3/h | C85: € '000 | E85: 0 | F85: 124.26234 | G85: 0 | H85: 0 | I85: 0 | J85: 0 | K85: 0 | L85: 0 | M85: 0 | N85: 0 | O85: 1031 | P85: 0 | Q85: =SUM(E85:P85) -> 1155.26234
B88: Vergoedingen 2009 (EAV en Meerlengte) na toepassing aansluitpuntpercentage
B90: Aansluitpuntpercentage ter bepaling vergoedingen > 40m3/h | D90: ='Kosten AD'!D55 -> 0.385
B92: Eenmalige aansluitvergoeding
B93: LD 0-10 m3/h | C93: € '000 | E93: =E7 -> 1446.23195 | F93: =F7 -> 1214.09238 | G93: 15331.30688 | H93: 203.167 | I93: 950.88 | J93: 1697.642727 | K93: 14317.295 | L93: 1102.008 | M93: 803.848 | N93: 704.56445 | O93: 11810.40373 | P93: 0 | Q93: =SUM(E93:P93) -> 49581.44012
B94: LD 10-16 m3/h | C94: € '000 | E94: =E8 -> 0 | F94: 0 | G94: 332.12854 | H94: 31.24194956 | I94: 0 | J94: 0 | K94: 452.626 | L94: 119.34 | M94: 22.23 | N94: 14.64359 | O94: 245.0900439 | P94: 0 | Q94: 1217.300123
B95: LD 16-25 m3/h | C95: € '000 | E95: 30.76683372 | F95: 49.85477 | G95: 309.80141 | H95: 21.69473725 | I95: 25.85 | J95: 72.91971083 | K95: 224.83 | L95: 36.25716749 | M95: 22.23 | N95: 5.82538 | O95: 286.313887 | P95: 0 | Q95: 1086.343896
B96: LD 25-40 m3/h | C96: € '000 | E96: 10.6434 | F96: 9.98448 | G96: 222.92911 | H96: 30.64523889 | I96: 12.8 | J96: 27.49877218 | K96: 770.946 | L96: 45.954 | M96: 12.69 | N96: 18.07787 | O96: 253.4837 | P96: 0 | Q96: 1415.652571
B97: LD 40-65 m3/h | C97: € '000 | E97: =E11*$D$90 -> 11.7560674 | F97: =F11*$D$90 -> 6.315925 | G97: 78.09078585 | H97: 13.64333581 | I97: 2.849 | J97: 17.03001802 | K97: 0 | L97: 19.57109 | M97: 1.54 | N97: 2.9052408 | O97: 97.79733425 | P97: 0 | Q97: 251.4987971
B98: LD 65-100 m3/h | C98: € '000 | E98: =E12*$D$90 -> 5.2177125 | F98: 2.99915 | G98: 59.70561905 | H98: 6.986636052 | I98: 6.93 | J98: 11.9729148 | K98: 187.74294 | L98: 14.06944 | M98: 1.62855 | N98: 0 | O98: 73.81528 | P98: 0 | Q98: 371.0682424
B99: LD 100-160 m3/h | C99: € '000 | E99: 0 | F99: 4.594975 | G99: 57.92888255 | H99: 0 | I99: 5.313 | J99: 4.6274536 | K99: 96.41247 | L99: 5.254416697 | M99: 0 | N99: 12.7228717 | O99: 52.88668 | P99: 0 | Q99: 239.7407495
B100: LD 160-250 m3/h | C100: € '000 | E100: 0 | F100: 0 | G100: 6.973583925 | H100: 10.53352957 | I100: 0 | J100: 0 | K100: 63.74676 | L100: 0 | M100: 0 | N100: 0 | O100: 34.49831 | P100: 0 | Q100: 115.7521835
B101: LD 250-400 m3/h | C101: € '000 | E101: 0 | F101: 0 | G101: 6.973583925 | H101: 0 | I101: 0 | J101: 25.76511896 | K101: 103.91843 | L101: 20.16323939 | M101: 0 | N101: 6.62131855 | O101: 3.239775 | P101: 0 | Q101: 166.6814658
B102: LD 400-650 m3/h | C102: € '000 | E102: 0 | F102: 0 | G102: 0 | H102: 0 | I102: 0 | J102: 0 | K102: 49.747775 | L102: 0 | M102: 0 | N102: 0 | O102: 0 | P102: 0 | Q102: 49.747775
B103: LD 650-1000 m3/h | C103: € '000 | E103: 0 | F103: 0 | G103: 0 | H103: 0 | I103: 0 | J103: 0 | K103: 0 | L103: 0 | M103: 0 | N103: 0 | O103: 0 | P103: 0 | Q103: 0
B104: LD 1000-1600 m3/h | C104: € '000 | E104: 0 | F104: 0 | G104: 0 | H104: 0 | I104: 0 | J104: 0 | K104: 0 | L104: 0 | M104: 0 | N104: 0 | O104: 0 | P104: 0 | Q104: 0
B105: LD 1600-2500 m3/h | C105: € '000 | E105: 0 | F105: 0 | G105: 0 | H105: 0 | I105: 0 | J105: 0 | K105: 0 | L105: 0 | M105: 0 | N105: 0 | O105: 0 | P105: 0 | Q105: 0
B106: LD >2500 m3/h | C106: € '000 | E106: 0 | F106: 0 | G106: 0 | H106: 0 | I106: 0 | J106: 0 | K106: 0 | L106: 0 | M106: 0 | N106: 0 | O106: 0 | P106: 0 | Q106: 0
B108: HD 0-10 m3/h | C108: € '000 | E108: =E22 -> 0 | F108: =F22 -> 0 | G108: 0 | H108: 0 | I108: 0 | J108: 0 | K108: 0 | L108: 0 | M108: 0 | N108: 0 | O108: 0 | P108: 0 | Q108: =SUM(E108:P108) -> 0
B109: HD 10-16 m3/h | C109: € '000 | E109: =E23 -> 0 | F109: 0 | G109: 0 | H109: 0 | I109: 0 | J109: 0 | K109: 0 | L109: 0 | M109: 0 | N109: 0 | O109: 0 | P109: 0 | Q109: 0
B110: HD 16-25 m3/h | C110: € '000 | E110: 0 | F110: 0 | G110: 0 | H110: 0 | I110: 0 | J110: 0 | K110: 0 | L110: 0 | M110: 0 | N110: 0 | O110: 0 | P110: 0 | Q110: 0
B111: HD 25-40 m3/h | C111: € '000 | E111: 0 | F111: 0 | G111: 0 | H111: 0 | I111: 0 | J111: 0 | K111: 0 | L111: 0 | M111: 0 | N111: 0 | O111: 0 | P111: 0 | Q111: 0
B112: HD 40-65 m3/h | C112: € '000 | E112: =E26*$D$90 -> 0 | F112: =F26*$D$90 -> 0 | G112: 20.9062315 | H112: 0 | I112: 0 | J112: 0 | K112: 0 | L112: 0 | M112: 0 | N112: 0 | O112: 63.1892723 | P112: 0 | Q112: 84.0955038
B113: HD 65-100 m3/h | C113: € '000 | E113: =E27*$D$90 -> 0 | F113: 0 | G113: 21.021385 | H113: 0 | I113: 0 | J113: 0 | K113: 4.95649 | L113: 0 | M113: 0 | N113: 0 | O113: 86.57666325 | P113: 0 | Q113: 112.5545383
B114: HD 100-160 m3/h | C114: € '000 | E114: 0 | F114: 0 | G114: 17.2453358 | H114: 0 | I114: 0 | J114: 0 | K114: 0 | L114: 0 | M114: 0 | N114: 0 | O114: 182.5047494 | P114: 0 | Q114: 199.7500852
B115: HD 160-250 m3/h | C115: € '000 | E115: 0 | F115: 11.062975 | G115: 44.275 | H115: 0 | I115: 0 | J115: 0 | K115: 7.968345 | L115: 22.666875 | M115: 0 | N115: 0 | O115: 240.679593 | P115: 0 | Q115: 326.652788
B116: HD 250-400 m3/h | C116: € '000 | E116: 0 | F116: 19.0575 | G116: 54.939885 | H116: 0 | I116: 0 | J116: 0 | K116: 9.44713 | L116: 0 | M116: 0 | N116: 0 | O116: 78.1997139 | P116: 0 | Q116: 161.6442289
B117: HD 400-650 m3/h | C117: € '000 | E117: 0 | F117: 0 | G117: 11.165 | H117: 0 | I117: 0 | J117: 0 | K117: 79.59644 | L117: 8.45075 | M117: 0 | N117: 6.41600575 | O117: 20.95632 | P117: 0 | Q117: 126.5845158
B118: HD 650-1000 m3/h | C118: € '000 | E118: 0 | F118: 83.3525 | G118: 14.245 | H118: 0 | I118: 0 | J118: 0 | K118: 0 | L118: 0 | M118: 0 | N118: 64.231783 | O118: 0 | P118: 0 | Q118: 161.829283
B119: HD 1000-1600 m3/h | C119: € '000 | E119: 0 | F119: 0 | G119: 24.203795 | H119: 0 | I119: 0 | J119: 0 | K119: 0 | L119: 0 | M119: 0 | N119: 7.0573272 | O119: 0 | P119: 0 | Q119: 31.2611222
B120: HD 1600-2500 m3/h | C120: € '000 | E120: 0 | F120: 0 | G120: 0 | H120: 0 | I120: 0 | J120: 0 | K120: 0 | L120: 9.122575 | M120: 0 | N120: 32.25701325 | O120: 0 | P120: 0 | Q120: 41.37958825
B121: HD >2500 m3/h | C121: € '000 | E121: 0 | F121: 0 | G121: 74.151 | H121: 0 | I121: 0 | J121: 0 | K121: 0 | L121: 0 | M121: 0 | N121: 0 | O121: 144.0574944 | P121: 0 | Q121: 218.2084944
B123: EHD 0-40 m3/h | C123: € '000 | E123: =E37 -> 0 | F123: =F37 -> 0 | G123: 0 | H123: 0 | I123: 0 | J123: 0 | K123: 0 | L123: 0 | M123: 0 | N123: 0 | O123: 0 | P123: 0 | Q123: =SUM(E123:P123) -> 0
B124: EHD >40 m3/h | C124: € '000 | E124: =E38*$D$90 -> 0 | F124: =F38*$D$90 -> 0 | G124: 0 | H124: 0 | I124: 0 | J124: 0 | K124: 0 | L124: 0 | M124: 0 | N124: 0 | O124: 0 | P124: 0 | Q124: =SUM(E124:P124) -> 0
B126: Meerlengtevergoeding
B127: LD 0-10 m3/h | C127: € '000 | E127: =E41 -> 10.45348065 | F127: =F41 -> 10.80834 | G127: 397.71169 | H127: 15.3725 | I127: 0 | J127: 4.67594 | K127: 410.3776 | L127: 16.5765 | M127: 55.5522 | N127: 84.1258 | O127: 701.4222 | P127: 0 | Q127: =SUM(E127:P127) -> 1707.076251
B128: LD 10-16 m3/h | C128: € '000 | E128: =E42 -> 23.91038947 | F128: 0 | G128: 66.57181 | H128: 2.236 | I128: 0 | J128: 0 | K128: 85.9278 | L128: 6.278 | M128: 0 | N128: 6.1659 | O128: 72.0254 | P128: 0 | Q128: 263.1152995
B129: LD 16-25 m3/h | C129: € '000 | E129: 52.10163297 | F129: 5.86599 | G129: 136.81538 | H129: 1.806 | I129: 0 | J129: 0.7368 | K129: 47.0557 | L129: 1.6985 | M129: 1.12 | N129: 0 | O129: 125.3796 | P129: 0 | Q129: 372.579603
B130: LD 25-40 m3/h | C130: € '000 | E130: 7.901455452 | F130: 0 | G130: 61.22226 | H130: 11.825 | I130: 0 | J130: 0 | K130: 35.95295 | L130: 2.451 | M130: 0 | N130: 5.4405 | O130: 107.281 | P130: 0 | Q130: 232.0741655
B131: HD 0-10 m3/h | C131: € '000 | E131: 0 | F131: 0 | G131: 0 | H131: 0 | I131: 0 | J131: 0 | K131: 0 | L131: 0 | M131: 0 | N131: 0 | O131: 0 | P131: 0 | Q131: 0
B132: HD 10-16 m3/h | C132: € '000 | E132: 0 | F132: 0 | G132: 0 | H132: 0 | I132: 0 | J132: 0 | K132: 0 | L132: 0 | M132: 0 | N132: 0 | O132: 0 | P132: 0 | Q132: 0
B133: HD 16-25 m3/h | C133: € '000 | E133: 0 | F133: 0 | G133: 0 | H133: 0 | I133: 0 | J133: 0 | K133: 0 | L133: 0 | M133: 0 | N133: 0 | O133: 0 | P133: 0 | Q133: 0
B134: HD 25-40 m3/h | C134: € '000 | E134: 0 | F134: 0 | G134: 0 | H134: 0 | I134: 0 | J134: 0 | K134: 31.98162 | L134: 0 | M134: 0 | N134: 0 | O134: 0 | P134: 0 | Q134: 31.98162
B135: EHD 0-40 m3/h | C135: € '000 | E135: 0 | F135: 0 | G135: 0 | H135: 0 | I135: 0 | J135: 0 | K135: 0 | L135: 0 | M135: 0 | N135: 0 | O135: 0 | P135: 0 | Q135: 0
B137: Ontvangen vergoedingen AD EAV en ML (incl. EHD) | C137: € '000 | E137: =SUM(E93:E135) -> 1598.982922 | F137: =SUM(F93:F135) -> 1417.988985 | G137: 17350.31217 | H137: 349.1519271 | I137: 1004.622 | J137: 1862.869455 | K137: 16980.52945 | L137: 1429.861554 | M137: 920.83875 | N137: 971.0550503 | O137: 14679.80075 | P137: 0 | Q137: 58566.01301
B140: Inkomsten uit PAV na toepassing aansluitpuntpercentage
B142: LD 0-10 m3/h | C142: € '000 | E142: =E54 -> 3247.815 | F142: =F54 -> 4293.71118 | G142: 40754.26801 | H142: 1280.425792 | I142: 5716.845 | J142: 5536.736858 | K142: 47302.44976 | L142: 4298.098681 | M142: 2721.6134 | N142: 425.8391432 | O142: 34845.92475 | P142: 0 | Q142: =SUM(E142:P142) -> 150423.7276
B143: LD 10-16 m3/h | C143: € '000 | E143: =E55 -> 0.11448 | F143: 0 | G143: 323.09153 | H143: 12.80543376 | I143: 0.51 | J143: 0.1993665856 | K143: 301.1655928 | L143: 108.0087527 | M143: 47.50475 | N143: 3.715841581 | O143: 249.3032714 | P143: 0 | Q143: 1046.419019
B144: LD 16-25 m3/h | C144: € '000 | E144: 131.59476 | F144: 143.18712 | G144: 725.73809 | H144: 25.8862532 | I144: 116.433 | J144: 165.1253745 | K144: 813.4271628 | L144: 116.8905973 | M144: 78.6429 | N144: 3.554425646 | O144: 1411.56967 | P144: 0 | Q144: 3732.049353
B145: LD 25-40 m3/h | C145: € '000 | E145: 54.2592 | F145: 54.84864 | G145: 480.04278 | H145: 23.71448338 | I145: 88.212 | J145: 71.69601842 | K145: 358.78604 | L145: 75.34239174 | M145: 33.7376 | N145: 2.516845293 | O145: 544.1446202 | P145: 0 | Q145: 1787.300619
B146: LD 40-65 m3/h | C146: € '000 | E146: =E58*$D$90 -> 20.135808 | F146: =F58*$D$90 -> 12.0199464 | G146: 137.6543592 | H146: 11.88222854 | I146: 1.08878 | J146: 23.68736937 | K146: 195.6244304 | L146: 37.39841202 | M146: 9.60272544 | N146: 7.14767515 | O146: 197.6368194 | P146: 0 | Q146: 653.8785539
B147: LD 65-100 m3/h | C147: € '000 | E147: =E59*$D$90 -> 17.787924 | F147: 19.919361 | G147: 237.0749612 | H147: 15.66785019 | I147: 64.60454 | J147: 25.27338252 | K147: 483.7664223 | L147: 36.73431806 | M147: 13.85878938 | N147: 15.2369602 | O147: 241.7706812 | P147: 0 | Q147: 1171.69519
B148: LD 100-160 m3/h | C148: € '000 | E148: 8.4290976 | F148: 10.897887 | G148: 221.249105 | H148: 10.21906725 | I148: 33.350625 | J148: 34.20983493 | K148: 406.8415971 | L148: 31.24234491 | M148: 7.279360721 | N148: 11.71305648 | O148: 177.1315944 | P148: 0 | Q148: 952.5635704
B149: LD 160-250 m3/h | C149: € '000 | E149: 8.2953024 | F149: 10.9671408 | G149: 123.2122683 | H149: 5.971701096 | I149: 33.81532 | J149: 14.24792281 | K149: 379.0704232 | L149: 12.58264209 | M149: 7.05766369 | N149: 32.0147366 | O149: 100.8718143 | P149: 0 | Q149: 728.1069353
B150: LD 250-400 m3/h | C150: € '000 | E150: 2.943864 | F150: 2.8512792 | G150: 179.2896468 | H150: 3.496672904 | I150: 37.61758 | J150: 25.09988325 | K150: 354.0605759 | L150: 6.373226422 | M150: 4.54007939 | N150: 44.82633797 | O150: 69.78728066 | P150: 0 | Q150: 730.8864265
B151: LD 400-650 m3/h | C151: € '000 | E151: 1.2950784 | F151: 0 | G151: 83.3142332 | H151: 0 | I151: 23.2925 | J151: 6.273560129 | K151: 204.3508917 | L151: 0 | M151: 0.4768764 | N151: 0.02853363333 | O151: 12.44449856 | P151: 0 | Q151: 331.476172
B152: LD 650-1000 m3/h | C152: € '000 | E152: 0 | F152: 0 | G152: 62.4856749 | H152: 0 | I152: 10.71686 | J152: 2.953591291 | K152: 173.0534531 | L152: 0 | M152: 0 | N152: 0.21400225 | O152: 5.111717313 | P152: 0 | Q152: 254.5352989
B153: LD 1000-1600 m3/h | C153: € '000 | E153: 0 | F153: 0.4228686 | G153: 65.08640143 | H153: 0 | I153: 0 | J153: 2.369416443 | K153: 93.7662039 | L153: 0 | M153: 0 | N153: 20.77248507 | O153: 0 | P153: 0 | Q153: 182.4173754
B154: LD 1600-2500 m3/h | C154: € '000 | E154: 0 | F154: 0 | G154: 22.42842212 | H154: 0 | I154: 0 | J154: 1.349017241 | K154: 50.87098408 | L154: 0 | M154: 0 | N154: 0 | O154: 0 | P154: 0 | Q154: 74.64842343
B155: LD >2500 m3/h | C155: € '000 | E155: 0 | F155: 0 | G155: 23.99914825 | H155: 0 | I155: 0 | J155: 0 | K155: 30.03682308 | L155: 0 | M155: 0 | N155: 0.81320855 | O155: 0 | P155: 0 | Q155: 54.84917988
B157: HD 0-10 m3/h | C157: € '000 | E157: =E69 -> 0 | F157: =F69 -> 0 | G157: 0 | H157: 0 | I157: 0 | J157: 0 | K157: 0 | L157: 0 | M157: 0 | N157: 0 | O157: 0 | P157: 0 | Q157: =SUM(E157:P157) -> 0
B158: HD 10-16 m3/h | C158: € '000 | E158: =E70 -> 0 | F158: 0 | G158: 0 | H158: 0 | I158: 0 | J158: 0 | K158: 0 | L158: 0 | M158: 0 | N158: 0 | O158: 0 | P158: 0 | Q158: =SUM(E158:P158) -> 0
B159: HD 16-25 m3/h | C159: € '000 | E159: 0 | F159: 0 | G159: 0 | H159: 0 | I159: 0 | J159: 0 | K159: 0 | L159: 0 | M159: 0.06935 | N159: 0 | O159: 0 | P159: 0 | Q159: =SUM(E159:P159) -> 0.06935
B160: HD 25-40 m3/h | C160: € '000 | E160: 0 | F160: 0 | G160: 0 | H160: 0 | I160: 0 | J160: 0 | K160: 0 | L160: 0.07044 | M160: 0 | N160: 0 | O160: 0 | P160: 0 | Q160: =SUM(E160:P160) -> 0.07044
B161: HD 40-65 m3/h | C161: € '000 | E161: =E73*$D$90 -> 0 | F161: =F73*$D$90 -> 0 | G161: 0 | H161: 0 | I161: 0 | J161: 0 | K161: 0.5388768 | L161: 0 | M161: 0.060291 | N161: 0 | O161: 29.32744553 | P161: 0 | Q161: =SUM(E161:P161) -> 29.92661333
B162: HD 65-100 m3/h | C162: € '000 | E162: =E74*$D$90 -> 0.286902 | F162: 4.3215942 | G162: 0 | H162: 0 | I162: 1.13113 | J162: 0 | K162: 1.12266 | L162: 3.076357906 | M162: 0.73635408 | N162: 0 | O162: 109.9867305 | P162: 0 | Q162: =SUM(E162:P162) -> 120.6617287
B163: HD 100-160 m3/h | C163: € '000 | E163: 0.2675904 | F163: 2.867172 | G163: 0 | H163: 0 | I163: 1.10803 | J163: 0.0902286 | K163: 1.440747 | L163: 0.504504 | M163: 6.8758998 | N163: 0.04280045 | O163: 124.4656152 | P163: 0 | Q163: 137.6625874
B164: HD 160-250 m3/h | C164: € '000 | E164: 3.0772896 | F164: 16.5395076 | G164: 0 | H164: 2.071711603 | I164: 4.9246505 | J164: 0 | K164: 5.762988 | L164: 10.04883823 | M164: 9.5841438 | N164: 0.21400225 | O164: 187.5656621 | P164: 0 | Q164: 239.7887937
B165: HD 250-400 m3/h | C165: € '000 | E165: 2.207898 | F165: 20.1973464 | G165: 0 | H165: 0 | I165: 10.8196165 | J165: 0.07359430238 | K165: 10.5866838 | L165: 29.4108798 | M165: 14.89257385 | N165: 1.1128117 | O165: 185.2415401 | P165: 0 | Q165: 274.5429444
B166: HD 400-650 m3/h | C166: € '000 | E166: 1.4569632 | F166: 10.430343 | G166: 0 | H166: 31.31467498 | I166: 14.3161865 | J166: 1.631638594 | K166: 25.896024 | L166: 68.63418749 | M166: 7.1204749 | N166: 4.1944441 | O166: 124.5309732 | P166: 0 | Q166: 289.52591
B167: HD 650-1000 m3/h | C167: € '000 | E167: 0.712404 | F167: 1.5020544 | G167: 0 | H167: 1.608915437 | I167: 6.025866 | J167: 0.7412191874 | K167: 31.6814652 | L167: 53.86793119 | M167: 5.813577 | N167: 2.95323105 | O167: 87.97135788 | P167: 0 | Q167: 192.8780213
B168: HD 1000-1600 m3/h | C168: € '000 | E168: 0 | F168: 2.1144816 | G168: 0 | H168: 24.26200974 | I168: 13.111175 | J168: 0 | K168: 24.361722 | L168: 83.24108994 | M168: 5.1599394 | N168: 3.053098767 | O168: 36.71330206 | P168: 0 | Q168: 192.0168185
B169: HD 1600-2500 m3/h | C169: € '000 | E169: 0 | F169: 0 | G169: 0 | H169: 0 | I169: 0 | J169: 1.706975577 | K169: 16.5068442 | L169: 5.685319401 | M169: 7.1341578 | N169: 0.5992063 | O169: 11.84979935 | P169: 0 | Q169: 43.48230263
B170: HD >2500 m3/h | C170: € '000 | E170: 0 | F170: 0 | G170: 0 | H170: 1.125041306 | I170: 0 | J170: 1.3592964 | K170: 17.4536208 | L170: 0 | M170: 4.6972002 | N170: 6.063397083 | O170: 2.712025107 | P170: 0 | Q170: 33.4105809
B172: EHD 0-40 m3/h | C172: € '000 | E172: =E84 -> 0 | F172: =F84 -> 0 | G172: 0 | H172: 0 | I172: 0 | J172: 0 | K172: 0 | L172: 0 | M172: 0 | N172: 0 | O172: 0 | P172: 0 | Q172: =SUM(E172:P172) -> 0
B173: EHD >40 m3/h | C173: € '000 | E173: 0 | F173: =F85*$D$90 -> 47.8410009 | G173: 0 | H173: 0 | I173: 0 | J173: 0 | K173: 0 | L173: 0 | M173: 0 | N173: 0 | O173: 396.935 | P173: 0 | Q173: =SUM(E173:P173) -> 444.7760009

Sheet SO
B2: Samengestelde Output | E2: Cogas Infra & Beheer B.V. | F2: DELTA Netwerkbedrijf B.V. | G2: Stedin B.V. | H2: Endinet Haarlemmermeer B.V. | I2: Intergas Energie B.V. | J2: Endinet Regio Eindhoven B.V. | K2: Liander N.V. | L2: Endinet Oost-Brabant N.V. | M2: N.V. RENDO | N2: Westland Energie Infrastructuur B.V. | O2: Enexis B.V. | P2: Zebra Gasnetwerk B.V. | Q2: Totaal
B4: 2006
B6: Kleinverbruik
B7: Vastrecht (TOVT) | E7: ='Wegingsfactor TD'!$D81*Volumes!E7 -> 2334492 | F7: ='Wegingsfactor TD'!$D81*Volumes!F7 -> 3231267 | G7: ='Wegingsfactor TD'!$D81*Volumes!G7 -> 31425146.09 | H7: ='Wegingsfactor TD'!$D81*Volumes!H7 -> 1010469.758 | I7: ='Wegingsfactor TD'!$D81*Volumes!I7 -> 2550260.7 | J7: ='Wegingsfactor TD'!$D81*Volumes!J7 -> 3260382.782 | K7: ='Wegingsfactor TD'!$D81*Volumes!K7 -> 37424131.2 | L7: ='Wegingsfactor TD'!$D81*Volumes!L7 -> 3445278.24 | M7: ='Wegingsfactor TD'!$D81*Volumes!M7 -> 1749366 | N7: ='Wegingsfactor TD'!$D81*Volumes!N7 -> 841322.3038 | O7: ='Wegingsfactor TD'!$D81*Volumes!O7 -> 32418584.95 | P7: ='Wegingsfactor TD'!$D81*Volumes!P7 -> 0 | Q7: =SUM(E7:O7) -> 119690701
B8: Capaciteitsafhankelijk tarief (TAVTc) | E8: ='Wegingsfactor TD'!$D82*Volumes!E8 -> 10516596.5 | F8: ='Wegingsfactor TD'!$D82*Volumes!F8 -> 13425182.87 | G8: ='Wegingsfactor TD'!$D82*Volumes!G8 -> 126573850 | H8: ='Wegingsfactor TD'!$D82*Volumes!H8 -> 4203783.422 | I8: ='Wegingsfactor TD'!$D82*Volumes!I8 -> 11262153.35 | J8: ='Wegingsfactor TD'!$D82*Volumes!J8 -> 14210077.71 | K8: ='Wegingsfactor TD'!$D82*Volumes!K8 -> 154133354.4 | L8: ='Wegingsfactor TD'!$D82*Volumes!L8 -> 15263124.78 | M8: ='Wegingsfactor TD'!$D82*Volumes!M8 -> 7638966.037 | N8: ='Wegingsfactor TD'!$D82*Volumes!N8 -> 3523756.932 | O8: ='Wegingsfactor TD'!$D82*Volumes!O8 -> 141325978.1 | P8: ='Wegingsfactor TD'!$D82*Volumes!P8 -> 0 | Q8: =SUM(E8:O8) -> 502076824
B10: Profielgrootverbruik
B11: Vastrecht (TOVT) | E11: ='Wegingsfactor TD'!$D85*Volumes!E11 -> 9306 | F11: ='Wegingsfactor TD'!$D85*Volumes!F11 -> 12072 | G11: ='Wegingsfactor TD'!$D85*Volumes!G11 -> 160684.4835 | H11: ='Wegingsfactor TD'!$D85*Volumes!H11 -> 6921.38448 | I11: ='Wegingsfactor TD'!$D85*Volumes!I11 -> 11260.8 | J11: ='Wegingsfactor TD'!$D85*Volumes!J11 -> 15254.31224 | K11: ='Wegingsfactor TD'!$D85*Volumes!K11 -> 176526 | L11: ='Wegingsfactor TD'!$D85*Volumes!L11 -> 18908.63424 | M11: ='Wegingsfactor TD'!$D85*Volumes!M11 -> 7074 | N11: ='Wegingsfactor TD'!$D85*Volumes!N11 -> 15887.87418 | O11: ='Wegingsfactor TD'!$D85*Volumes!O11 -> 143926.696 | P11: ='Wegingsfactor TD'!$D85*Volumes!P11 -> 0 | Q11: =SUM(E11:O11) -> 577822.1847
B12: Capaciteitsafhankelijk tarief (TAVTc) | E12: ='Wegingsfactor TD'!$D86*Volumes!E12 -> 793074.7486 | F12: ='Wegingsfactor TD'!$D86*Volumes!F12 -> 1037567.436 | G12: ='Wegingsfactor TD'!$D86*Volumes!G12 -> 18213895.61 | H12: ='Wegingsfactor TD'!$D86*Volumes!H12 -> 623043.5518 | I12: ='Wegingsfactor TD'!$D86*Volumes!I12 -> 1234175.155 | J12: ='Wegingsfactor TD'!$D86*Volumes!J12 -> 1437090.873 | K12: ='Wegingsfactor TD'!$D86*Volumes!K12 -> 16798394.5 | L12: ='Wegingsfactor TD'!$D86*Volumes!L12 -> 1574727.913 | M12: ='Wegingsfactor TD'!$D86*Volumes!M12 -> 606102.5353 | N12: ='Wegingsfactor TD'!$D86*Volumes!N12 -> 3372769.384 | O12: ='Wegingsfactor TD'!$D86*Volumes!O12 -> 13216932.46 | P12: ='Wegingsfactor TD'!$D86*Volumes!P12 -> 0 | Q12: =SUM(E12:O12) -> 58907774.17
B14: Telemetriegrootverbruik (< 16 bar)
B15: Vastrecht (TOVT) | E15: ='Wegingsfactor TD'!$D89*Volumes!E15 -> 70401.4831 | F15: ='Wegingsfactor TD'!$D89*Volumes!F15 -> 100953.0701 | G15: ='Wegingsfactor TD'!$D89*Volumes!G15 -> 1386776.384 | H15: ='Wegingsfactor TD'!$D89*Volumes!H15 -> 72618.00677 | I15: ='Wegingsfactor TD'!$D89*Volumes!I15 -> 116228.8636 | J15: ='Wegingsfactor TD'!$D89*Volumes!J15 -> 114345.5744 | K15: ='Wegingsfactor TD'!$D89*Volumes!K15 -> 1746266.724 | L15: ='Wegingsfactor TD'!$D89*Volumes!L15 -> 221285.6639 | M15: ='Wegingsfactor TD'!$D89*Volumes!M15 -> 53578.1853 | N15: ='Wegingsfactor TD'!$D89*Volumes!N15 -> 898979.402 | O15: ='Wegingsfactor TD'!$D89*Volumes!O15 -> 2472132.582 | P15: ='Wegingsfactor TD'!$D89*Volumes!P15 -> 0 | Q15: =SUM(E15:O15) -> 7253565.939
B16: Capaciteitsafhankelijk tarief (TAVTc) gestandaardiseerd | E16: ='Wegingsfactor TD'!$D90*Volumes!E18 -> 707708.0111 | F16: ='Wegingsfactor TD'!$D90*Volumes!F18 -> 1010244.622 | G16: ='Wegingsfactor TD'!$D90*Volumes!G18 -> 13694183.43 | H16: ='Wegingsfactor TD'!$D90*Volumes!H18 -> 658214.1269 | I16: ='Wegingsfactor TD'!$D90*Volumes!I18 -> 1058157.566 | J16: ='Wegingsfactor TD'!$D90*Volumes!J18 -> 1166076.563 | K16: ='Wegingsfactor TD'!$D90*Volumes!K18 -> 14559836.02 | L16: ='Wegingsfactor TD'!$D90*Volumes!L18 -> 1822997.755 | M16: ='Wegingsfactor TD'!$D90*Volumes!M18 -> 599496.6073 | N16: ='Wegingsfactor TD'!$D90*Volumes!N18 -> 7176558.018 | O16: ='Wegingsfactor TD'!$D90*Volumes!O18 -> 14561148.72 | P16: ='Wegingsfactor TD'!$D90*Volumes!P18 -> 0 | Q16: =SUM(E16:O16) -> 57014621.44
B18: Samengestelde Output 2006 | E18: =SUM(E7:E16) -> 14431578.74 | F18: =SUM(F7:F16) -> 18817286.99 | G18: 191454536 | H18: 6575050.251 | I18: 16232236.43 | J18: 20203227.81 | K18: 224838508.8 | L18: 22346322.99 | M18: 10654583.36 | N18: 15829273.91 | O18: 204138703.5 | P18: =SUM(P7:P16) -> 0 | Q18: =SUM(E18:O18) -> 745521308.8
B20: 2007
B22: Kleinverbruik
B23: Vastrecht (TOVT) | E23: ='Wegingsfactor TD'!$D81*Volumes!E27 -> 2343834 | F23: ='Wegingsfactor TD'!$D81*Volumes!F27 -> 3251397 | G23: ='Wegingsfactor TD'!$D81*Volumes!G27 -> 31799835.03 | H23: ='Wegingsfactor TD'!$D81*Volumes!H27 -> 1044722.33 | I23: ='Wegingsfactor TD'!$D81*Volumes!I27 -> 2581380 | J23: ='Wegingsfactor TD'!$D81*Volumes!J27 -> 3267061.296 | K23: ='Wegingsfactor TD'!$D81*Volumes!K27 -> 37709409.2 | L23: ='Wegingsfactor TD'!$D81*Volumes!L27 -> 3507204.328 | M23: ='Wegingsfactor TD'!$D81*Volumes!M27 -> 1765579.716 | N23: ='Wegingsfactor TD'!$D81*Volumes!N27 -> 854331.2188 | O23: ='Wegingsfactor TD'!$D81*Volumes!O27 -> 32931558.77 | P23: ='Wegingsfactor TD'!$D81*Volumes!P27 -> 0 | Q23: =SUM(E23:O23) -> 121056312.9
B24: Capaciteitsafhankelijk tarief (TAVTc) | E24: ='Wegingsfactor TD'!$D82*Volumes!E28 -> 10518378.67 | F24: ='Wegingsfactor TD'!$D82*Volumes!F28 -> 13397644.7 | G24: ='Wegingsfactor TD'!$D82*Volumes!G28 -> 128997227.1 | H24: ='Wegingsfactor TD'!$D82*Volumes!H28 -> 4348720.33 | I24: ='Wegingsfactor TD'!$D82*Volumes!I28 -> 11378555.28 | J24: ='Wegingsfactor TD'!$D82*Volumes!J28 -> 14239185.39 | K24: ='Wegingsfactor TD'!$D82*Volumes!K28 -> 154843643.9 | L24: ='Wegingsfactor TD'!$D82*Volumes!L28 -> 15546578.83 | M24: ='Wegingsfactor TD'!$D82*Volumes!M28 -> 7707716.077 | N24: ='Wegingsfactor TD'!$D82*Volumes!N28 -> 3555160.147 | O24: ='Wegingsfactor TD'!$D82*Volumes!O28 -> 143489995.1 | P24: ='Wegingsfactor TD'!$D82*Volumes!P28 -> 0 | Q24: =SUM(E24:O24) -> 508022805.6
B26: Profielgrootverbruik
B27: Vastrecht (TOVT) | E27: ='Wegingsfactor TD'!$D85*Volumes!E31 -> 9612 | F27: ='Wegingsfactor TD'!$D85*Volumes!F31 -> 12067.5 | G27: ='Wegingsfactor TD'!$D85*Volumes!G31 -> 144814.8862 | H27: ='Wegingsfactor TD'!$D85*Volumes!H31 -> 6965.023798 | I27: ='Wegingsfactor TD'!$D85*Volumes!I31 -> 11484 | J27: ='Wegingsfactor TD'!$D85*Volumes!J31 -> 15285.55892 | K27: ='Wegingsfactor TD'!$D85*Volumes!K31 -> 179019.2627 | L27: ='Wegingsfactor TD'!$D85*Volumes!L31 -> 18812.0064 | M27: ='Wegingsfactor TD'!$D85*Volumes!M31 -> 7122.498718 | N27: ='Wegingsfactor TD'!$D85*Volumes!N31 -> 13714.56544 | O27: ='Wegingsfactor TD'!$D85*Volumes!O31 -> 139517.3359 | P27: ='Wegingsfactor TD'!$D85*Volumes!P31 -> 0 | Q27: =SUM(E27:O27) -> 558414.638
B28: Capaciteitsafhankelijk tarief (TAVTc) | E28: ='Wegingsfactor TD'!$D86*Volumes!E32 -> 854115.344 | F28: ='Wegingsfactor TD'!$D86*Volumes!F32 -> 1127288.052 | G28: ='Wegingsfactor TD'!$D86*Volumes!G32 -> 15558154.32 | H28: ='Wegingsfactor TD'!$D86*Volumes!H32 -> 621940.5228 | I28: ='Wegingsfactor TD'!$D86*Volumes!I32 -> 1346743.526 | J28: ='Wegingsfactor TD'!$D86*Volumes!J32 -> 1440034.586 | K28: ='Wegingsfactor TD'!$D86*Volumes!K32 -> 17304341.59 | L28: ='Wegingsfactor TD'!$D86*Volumes!L32 -> 1558599.791 | M28: ='Wegingsfactor TD'!$D86*Volumes!M32 -> 601549.7616 | N28: ='Wegingsfactor TD'!$D86*Volumes!N32 -> 2911406.895 | O28: ='Wegingsfactor TD'!$D86*Volumes!O32 -> 12392657.13 | P28: ='Wegingsfactor TD'!$D86*Volumes!P32 -> 0 | Q28: =SUM(E28:O28) -> 55716831.51
B30: Telemetriegrootverbruik (< 16 bar)
B31: Vastrecht (TOVT) | E31: ='Wegingsfactor TD'!$D89*Volumes!E35 -> 69737.31816 | F31: ='Wegingsfactor TD'!$D89*Volumes!F35 -> 88998.10127 | G31: ='Wegingsfactor TD'!$D89*Volumes!G35 -> 1356761.154 | H31: ='Wegingsfactor TD'!$D89*Volumes!H35 -> 68960.50995 | I31: ='Wegingsfactor TD'!$D89*Volumes!I35 -> 117557.1935 | J31: ='Wegingsfactor TD'!$D89*Volumes!J35 -> 117343.5586 | K31: ='Wegingsfactor TD'!$D89*Volumes!K35 -> 1630576.005 | L31: ='Wegingsfactor TD'!$D89*Volumes!L35 -> 215847.4799 | M31: ='Wegingsfactor TD'!$D89*Volumes!M35 -> 53133.19479 | N31: ='Wegingsfactor TD'!$D89*Volumes!N35 -> 803088.3376 | O31: ='Wegingsfactor TD'!$D89*Volumes!O35 -> 2530943.833 | P31: ='Wegingsfactor TD'!$D89*Volumes!P35 -> 0 | Q31: =SUM(E31:O31) -> 7052946.686
B32: Capaciteitsafhankelijk tarief (TAVTc) gestandaardiseerd | E32: ='Wegingsfactor TD'!$D90*Volumes!E38 -> 709337.1347 | F32: ='Wegingsfactor TD'!$D90*Volumes!F38 -> 924151.7048 | G32: ='Wegingsfactor TD'!$D90*Volumes!G38 -> 13366877.07 | H32: ='Wegingsfactor TD'!$D90*Volumes!H38 -> 565622.352 | I32: ='Wegingsfactor TD'!$D90*Volumes!I38 -> 1116534.496 | J32: ='Wegingsfactor TD'!$D90*Volumes!J38 -> 1175355.419 | K32: ='Wegingsfactor TD'!$D90*Volumes!K38 -> 13945256.45 | L32: ='Wegingsfactor TD'!$D90*Volumes!L38 -> 1844870.505 | M32: ='Wegingsfactor TD'!$D90*Volumes!M38 -> 585494.1505 | N32: ='Wegingsfactor TD'!$D90*Volumes!N38 -> 7096627.257 | O32: ='Wegingsfactor TD'!$D90*Volumes!O38 -> 14296854.74 | P32: ='Wegingsfactor TD'!$D90*Volumes!P38 -> 0 | Q32: =SUM(E32:O32) -> 55626981.28
B34: Samengestelde Output 2007 | E34: =SUM(E23:E32) -> 14505014.47 | F34: =SUM(F23:F32) -> 18801547.06 | G34: 191223669.5 | H34: 6656931.069 | I34: 16552254.49 | J34: 20254265.81 | K34: 225612246.4 | L34: 22691912.94 | M34: 10720595.4 | N34: 15234328.42 | O34: 205781526.9 | P34: =SUM(P23:P32) -> 0 | Q34: =SUM(E34:O34) -> 748034292.5
B36: 2008
B38: Kleinverbruik
B39: Vastrecht (TOVT) | E39: ='Wegingsfactor TD'!$D81*Volumes!E47 -> 2396466 | F39: ='Wegingsfactor TD'!$D81*Volumes!F47 -> 3276157.5 | G39: ='Wegingsfactor TD'!$D81*Volumes!G47 -> 32872354.87 | H39: ='Wegingsfactor TD'!$D81*Volumes!H47 -> 1052794.725 | I39: ='Wegingsfactor TD'!$D81*Volumes!I47 -> 2605968 | J39: ='Wegingsfactor TD'!$D81*Volumes!J47 -> 3303800.268 | K39: ='Wegingsfactor TD'!$D81*Volumes!K47 -> 38019789.79 | L39: ='Wegingsfactor TD'!$D81*Volumes!L47 -> 3519531.524 | M39: ='Wegingsfactor TD'!$D81*Volumes!M47 -> 1781963.64 | N39: ='Wegingsfactor TD'!$D81*Volumes!N47 -> 872347.8438 | O39: ='Wegingsfactor TD'!$D81*Volumes!O47 -> 33096555.96 | P39: ='Wegingsfactor TD'!$D81*Volumes!P47 -> 0 | Q39: =SUM(E39:O39) -> 122797730.1
B40: Capaciteitsafhankelijk tarief (TAVTc) | E40: ='Wegingsfactor TD'!$D82*Volumes!E48 -> 10647080.48 | F40: ='Wegingsfactor TD'!$D82*Volumes!F48 -> 13514152.6 | G40: ='Wegingsfactor TD'!$D82*Volumes!G48 -> 132346537.9 | H40: ='Wegingsfactor TD'!$D82*Volumes!H48 -> 4425839.474 | I40: ='Wegingsfactor TD'!$D82*Volumes!I48 -> 11429541.26 | J40: ='Wegingsfactor TD'!$D82*Volumes!J48 -> 14550252.15 | K40: ='Wegingsfactor TD'!$D82*Volumes!K48 -> 156118139.1 | L40: ='Wegingsfactor TD'!$D82*Volumes!L48 -> 15740654.75 | M40: ='Wegingsfactor TD'!$D82*Volumes!M48 -> 7745773.471 | N40: ='Wegingsfactor TD'!$D82*Volumes!N48 -> 3660788.784 | O40: ='Wegingsfactor TD'!$D82*Volumes!O48 -> 141383678.8 | P40: ='Wegingsfactor TD'!$D82*Volumes!P48 -> 0 | Q40: =SUM(E40:O40) -> 511562438.8
B42: Profielgrootverbruik
B43: Vastrecht (TOVT) | E43: ='Wegingsfactor TD'!$D85*Volumes!E51 -> 10332 | F43: ='Wegingsfactor TD'!$D85*Volumes!F51 -> 12295.5 | G43: ='Wegingsfactor TD'!$D85*Volumes!G51 -> 156778.4324 | H43: ='Wegingsfactor TD'!$D85*Volumes!H51 -> 6944.246085 | I43: ='Wegingsfactor TD'!$D85*Volumes!I51 -> 11214 | J43: ='Wegingsfactor TD'!$D85*Volumes!J51 -> 14007.9923 | K43: ='Wegingsfactor TD'!$D85*Volumes!K51 -> 180492.7438 | L43: ='Wegingsfactor TD'!$D85*Volumes!L51 -> 18611.93599 | M43: ='Wegingsfactor TD'!$D85*Volumes!M51 -> 7147.44 | N43: ='Wegingsfactor TD'!$D85*Volumes!N51 -> 13821.81625 | O43: ='Wegingsfactor TD'!$D85*Volumes!O51 -> 157926.9481 | P43: ='Wegingsfactor TD'!$D85*Volumes!P51 -> 0 | Q43: =SUM(E43:O43) -> 589573.0549
B44: Capaciteitsafhankelijk tarief (TAVTc) | E44: ='Wegingsfactor TD'!$D86*Volumes!E52 -> 963965.7661 | F44: ='Wegingsfactor TD'!$D86*Volumes!F52 -> 1165018.463 | G44: ='Wegingsfactor TD'!$D86*Volumes!G52 -> 16326856.81 | H44: ='Wegingsfactor TD'!$D86*Volumes!H52 -> 640446.1477 | I44: ='Wegingsfactor TD'!$D86*Volumes!I52 -> 1298613.186 | J44: ='Wegingsfactor TD'!$D86*Volumes!J52 -> 1247649.752 | K44: ='Wegingsfactor TD'!$D86*Volumes!K52 -> 17446771.07 | L44: ='Wegingsfactor TD'!$D86*Volumes!L52 -> 1561758.965 | M44: ='Wegingsfactor TD'!$D86*Volumes!M52 -> 597297.5143 | N44: ='Wegingsfactor TD'!$D86*Volumes!N52 -> 2419918.474 | O44: ='Wegingsfactor TD'!$D86*Volumes!O52 -> 15472111.29 | P44: ='Wegingsfactor TD'!$D86*Volumes!P52 -> 0 | Q44: =SUM(E44:O44) -> 59140407.44
B46: Telemetriegrootverbruik (< 16 bar)
B47: Vastrecht (TOVT) | E47: ='Wegingsfactor TD'!$D89*Volumes!E55 -> 70401.4831 | F47: ='Wegingsfactor TD'!$D89*Volumes!F55 -> 78371.46231 | G47: ='Wegingsfactor TD'!$D89*Volumes!G55 -> 1290715.77 | H47: ='Wegingsfactor TD'!$D89*Volumes!H55 -> 64004.90465 | I47: ='Wegingsfactor TD'!$D89*Volumes!I55 -> 117557.1935 | J47: ='Wegingsfactor TD'!$D89*Volumes!J55 -> 114223.8234 | K47: ='Wegingsfactor TD'!$D89*Volumes!K55 -> 1569975.423 | L47: ='Wegingsfactor TD'!$D89*Volumes!L55 -> 197570.3625 | M47: ='Wegingsfactor TD'!$D89*Volumes!M55 -> 48311.35736 | N47: ='Wegingsfactor TD'!$D89*Volumes!N55 -> 732994.4502 | O47: ='Wegingsfactor TD'!$D89*Volumes!O55 -> 1316374.901 | P47: ='Wegingsfactor TD'!$D89*Volumes!P55 -> 0 | Q47: =SUM(E47:O47) -> 5600501.131
B48: Capaciteitsafhankelijk tarief (TAVTc) gestandaardiseerd | E48: ='Wegingsfactor TD'!$D90*Volumes!E58 -> 671825.5189 | F48: ='Wegingsfactor TD'!$D90*Volumes!F58 -> 894994.5692 | G48: ='Wegingsfactor TD'!$D90*Volumes!G58 -> 13086777.28 | H48: ='Wegingsfactor TD'!$D90*Volumes!H58 -> 543544.4465 | I48: ='Wegingsfactor TD'!$D90*Volumes!I58 -> 1179965.886 | J48: ='Wegingsfactor TD'!$D90*Volumes!J58 -> 1161201.382 | K48: ='Wegingsfactor TD'!$D90*Volumes!K58 -> 13694611.6 | L48: ='Wegingsfactor TD'!$D90*Volumes!L58 -> 1925579.443 | M48: ='Wegingsfactor TD'!$D90*Volumes!M58 -> 588385.1487 | N48: ='Wegingsfactor TD'!$D90*Volumes!N58 -> 7431553.882 | O48: ='Wegingsfactor TD'!$D90*Volumes!O58 -> 14064850.83 | P48: ='Wegingsfactor TD'!$D90*Volumes!P58 -> 0 | Q48: =SUM(E48:O48) -> 55243289.99
B50: Samengestelde Output 2008 | E50: =SUM(E39:E48) -> 14760071.25 | F50: =SUM(F39:F48) -> 18940990.1 | G50: 196080021.1 | H50: 6733573.944 | I50: 16642859.52 | J50: 20391135.37 | K50: 227029779.8 | L50: 22963706.98 | M50: 10768878.57 | N50: 15131425.25 | O50: 205491498.7 | P50: =SUM(P39:P48) -> 0 | Q50: =SUM(E50:O50) -> 754933940.6
B52: 2009
B54: Kleinverbruik
B55: Vastrecht (TOVT) | E55: ='Wegingsfactor TD'!$D81*Volumes!E67 -> 2430720 | F55: ='Wegingsfactor TD'!$D81*Volumes!F67 -> 3314916 | G55: ='Wegingsfactor TD'!$D81*Volumes!G67 -> 33456766.91 | H55: ='Wegingsfactor TD'!$D81*Volumes!H67 -> 1049893.209 | I55: ='Wegingsfactor TD'!$D81*Volumes!I67 -> 2632318.5 | J55: ='Wegingsfactor TD'!$D81*Volumes!J67 -> 3331839.393 | K55: ='Wegingsfactor TD'!$D81*Volumes!K67 -> 38140330.5 | L55: ='Wegingsfactor TD'!$D81*Volumes!L67 -> 3551668.683 | M55: ='Wegingsfactor TD'!$D81*Volumes!M67 -> 1799280 | N55: ='Wegingsfactor TD'!$D81*Volumes!N67 -> 881041.8656 | O55: ='Wegingsfactor TD'!$D81*Volumes!O67 -> 33359572.5 | P55: ='Wegingsfactor TD'!$D81*Volumes!P67 -> 0 | Q55: =SUM(E55:O55) -> 123948347.6
B56: Capaciteitsafhankelijk tarief (TAVTc) | E56: ='Wegingsfactor TD'!$D82*Volumes!E68 -> 10712359.04 | F56: ='Wegingsfactor TD'!$D82*Volumes!F68 -> 13836158.14 | G56: ='Wegingsfactor TD'!$D82*Volumes!G68 -> 133393133.8 | H56: ='Wegingsfactor TD'!$D82*Volumes!H68 -> 4400747.231 | I56: ='Wegingsfactor TD'!$D82*Volumes!I68 -> 11466419.82 | J56: ='Wegingsfactor TD'!$D82*Volumes!J68 -> 14405478.27 | K56: ='Wegingsfactor TD'!$D82*Volumes!K68 -> 156141485.6 | L56: ='Wegingsfactor TD'!$D82*Volumes!L68 -> 15768726.01 | M56: ='Wegingsfactor TD'!$D82*Volumes!M68 -> 7798645.203 | N56: ='Wegingsfactor TD'!$D82*Volumes!N68 -> 3702802.071 | O56: ='Wegingsfactor TD'!$D82*Volumes!O68 -> 142283381.2 | P56: ='Wegingsfactor TD'!$D82*Volumes!P68 -> 0 | Q56: =SUM(E56:O56) -> 513909336.3
B58: Profielgrootverbruik
B59: Vastrecht (TOVT) | E59: ='Wegingsfactor TD'!$D85*Volumes!E71 -> 9630 | F59: ='Wegingsfactor TD'!$D85*Volumes!F71 -> 10476 | G59: ='Wegingsfactor TD'!$D85*Volumes!G71 -> 149552.7619 | H59: ='Wegingsfactor TD'!$D85*Volumes!H71 -> 6367.923184 | I59: ='Wegingsfactor TD'!$D85*Volumes!I71 -> 10362 | J59: ='Wegingsfactor TD'!$D85*Volumes!J71 -> 13310.90381 | K59: ='Wegingsfactor TD'!$D85*Volumes!K71 -> 174620.9841 | L59: ='Wegingsfactor TD'!$D85*Volumes!L71 -> 17731.72333 | M59: ='Wegingsfactor TD'!$D85*Volumes!M71 -> 6660 | N59: ='Wegingsfactor TD'!$D85*Volumes!N71 -> 14314.43879 | O59: ='Wegingsfactor TD'!$D85*Volumes!O71 -> 145405.8945 | P59: ='Wegingsfactor TD'!$D85*Volumes!P71 -> 0 | Q59: =SUM(E59:O59) -> 558432.6296
B60: Capaciteitsafhankelijk tarief (TAVTc) | E60: ='Wegingsfactor TD'!$D86*Volumes!E72 -> 845508.5068 | F60: ='Wegingsfactor TD'!$D86*Volumes!F72 -> 943467.9038 | G60: ='Wegingsfactor TD'!$D86*Volumes!G72 -> 17012736.57 | H60: ='Wegingsfactor TD'!$D86*Volumes!H72 -> 539280.7891 | I60: ='Wegingsfactor TD'!$D86*Volumes!I72 -> 1176749.054 | J60: ='Wegingsfactor TD'!$D86*Volumes!J72 -> 1130069.012 | K60: ='Wegingsfactor TD'!$D86*Volumes!K72 -> 16493867.5 | L60: ='Wegingsfactor TD'!$D86*Volumes!L72 -> 1464855.447 | M60: ='Wegingsfactor TD'!$D86*Volumes!M72 -> 555140.9992 | N60: ='Wegingsfactor TD'!$D86*Volumes!N72 -> 2129139.038 | O60: ='Wegingsfactor TD'!$D86*Volumes!O72 -> 14234078.77 | P60: ='Wegingsfactor TD'!$D86*Volumes!P72 -> 0 | Q60: =SUM(E60:O60) -> 56524893.59
B62: Telemetriegrootverbruik (< 16 bar)
B63: Vastrecht (TOVT) | E63: ='Wegingsfactor TD'!$D89*Volumes!E75 -> 66416.49349 | F63: ='Wegingsfactor TD'!$D89*Volumes!F75 -> 116228.8636 | G63: ='Wegingsfactor TD'!$D89*Volumes!G75 -> 1402535.203 | H63: ='Wegingsfactor TD'!$D89*Volumes!H75 -> 65984.2987 | I63: ='Wegingsfactor TD'!$D89*Volumes!I75 -> 134714.7876 | J63: ='Wegingsfactor TD'!$D89*Volumes!J75 -> 134318.3088 | K63: ='Wegingsfactor TD'!$D89*Volumes!K75 -> 1592667.514 | L63: ='Wegingsfactor TD'!$D89*Volumes!L75 -> 198920.1645 | M63: ='Wegingsfactor TD'!$D89*Volumes!M75 -> 60312.81773 | N63: ='Wegingsfactor TD'!$D89*Volumes!N75 -> 671121.4427 | O63: ='Wegingsfactor TD'!$D89*Volumes!O75 -> 1383200.532 | P63: ='Wegingsfactor TD'!$D89*Volumes!P75 -> 0 | Q63: =SUM(E63:O63) -> 5826420.426
B64: Capaciteitsafhankelijk tarief (TAVTc) gestandaardiseerd | E64: ='Wegingsfactor TD'!$D90*Volumes!E78 -> 651879.1977 | F64: ='Wegingsfactor TD'!$D90*Volumes!F78 -> 1027475.738 | G64: ='Wegingsfactor TD'!$D90*Volumes!G78 -> 13846407.75 | H64: ='Wegingsfactor TD'!$D90*Volumes!H78 -> 552648.0394 | I64: ='Wegingsfactor TD'!$D90*Volumes!I78 -> 1224745.9 | J64: ='Wegingsfactor TD'!$D90*Volumes!J78 -> 1263114.958 | K64: ='Wegingsfactor TD'!$D90*Volumes!K78 -> 13357581.43 | L64: ='Wegingsfactor TD'!$D90*Volumes!L78 -> 2022916.202 | M64: ='Wegingsfactor TD'!$D90*Volumes!M78 -> 625826.4614 | N64: ='Wegingsfactor TD'!$D90*Volumes!N78 -> 7076345.692 | O64: ='Wegingsfactor TD'!$D90*Volumes!O78 -> 14283142.57 | P64: ='Wegingsfactor TD'!$D90*Volumes!P78 -> 0 | Q64: =SUM(E64:O64) -> 55932083.94
B66: Samengestelde Output 2009 | E66: =SUM(E55:E64) -> 14716513.23 | F66: =SUM(F55:F64) -> 19248722.65 | G66: 199261133 | H66: 6614921.49 | I66: 16645310.06 | J66: 20278130.85 | K66: 225900553.5 | L66: 23024818.23 | M66: 10845865.48 | N66: 14474764.55 | O66: 205688781.5 | P66: =SUM(P55:P64) -> 0 | Q66: 756699514.4
B68: 2010
B70: Kleinverbruik
B71: Vastrecht (TOVT) | E71: ='Wegingsfactor TD'!$D81*Rekenvolumes!E27 -> 2430720 | F71: ='Wegingsfactor TD'!$D81*Rekenvolumes!F27 -> 3314916 | G71: ='Wegingsfactor TD'!$D81*Rekenvolumes!G27 -> 33456766.91 | H71: ='Wegingsfactor TD'!$D81*Rekenvolumes!H27 -> 1049893.209 | I71: ='Wegingsfactor TD'!$D81*Rekenvolumes!I27 -> 2632318.5 | J71: ='Wegingsfactor TD'!$D81*Rekenvolumes!J27 -> 3331839.393 | K71: ='Wegingsfactor TD'!$D81*Rekenvolumes!K27 -> 38140330.5 | L71: ='Wegingsfactor TD'!$D81*Rekenvolumes!L27 -> 3551668.683 | M71: ='Wegingsfactor TD'!$D81*Rekenvolumes!M27 -> 1799280 | N71: ='Wegingsfactor TD'!$D81*Rekenvolumes!N27 -> 881041.8656 | O71: ='Wegingsfactor TD'!$D81*Rekenvolumes!O27 -> 33359572.5 | P71: ='Wegingsfactor TD'!$D81*Rekenvolumes!P27 -> 0 | Q71: =SUM(E71:O71) -> 123948347.6
B72: Capaciteitsafhankelijk tarief (TAVTc) | E72: ='Wegingsfactor TD'!$D82*Rekenvolumes!E28 -> 10712359.04 | F72: ='Wegingsfactor TD'!$D82*Rekenvolumes!F28 -> 13836158.14 | G72: ='Wegingsfactor TD'!$D82*Rekenvolumes!G28 -> 133393133.8 | H72: ='Wegingsfactor TD'!$D82*Rekenvolumes!H28 -> 4400747.231 | I72: ='Wegingsfactor TD'!$D82*Rekenvolumes!I28 -> 11466419.82 | J72: ='Wegingsfactor TD'!$D82*Rekenvolumes!J28 -> 14405478.27 | K72: ='Wegingsfactor TD'!$D82*Rekenvolumes!K28 -> 156141485.6 | L72: ='Wegingsfactor TD'!$D82*Rekenvolumes!L28 -> 15768726.01 | M72: ='Wegingsfactor TD'!$D82*Rekenvolumes!M28 -> 7798645.203 | N72: ='Wegingsfactor TD'!$D82*Rekenvolumes!N28 -> 3702802.071 | O72: ='Wegingsfactor TD'!$D82*Rekenvolumes!O28 -> 142283381.2 | P72: ='Wegingsfactor TD'!$D82*Rekenvolumes!P28 -> 0 | Q72: =SUM(E72:O72) -> 513909336.3
B74: Profielgrootverbruik
B75: Vastrecht (TOVT) | E75: ='Wegingsfactor TD'!$D85*Rekenvolumes!E31 -> 9630 | F75: ='Wegingsfactor TD'!$D85*Rekenvolumes!F31 -> 10476 | G75: ='Wegingsfactor TD'!$D85*Rekenvolumes!G31 -> 149552.7619 | H75: ='Wegingsfactor TD'!$D85*Rekenvolumes!H31 -> 6367.923184 | I75: ='Wegingsfactor TD'!$D85*Rekenvolumes!I31 -> 10362 | J75: ='Wegingsfactor TD'!$D85*Rekenvolumes!J31 -> 13310.90381 | K75: ='Wegingsfactor TD'!$D85*Rekenvolumes!K31 -> 174620.9841 | L75: ='Wegingsfactor TD'!$D85*Rekenvolumes!L31 -> 17731.72333 | M75: ='Wegingsfactor TD'!$D85*Rekenvolumes!M31 -> 6660 | N75: ='Wegingsfactor TD'!$D85*Rekenvolumes!N31 -> 14314.43879 | O75: ='Wegingsfactor TD'!$D85*Rekenvolumes!O31 -> 145405.8945 | P75: ='Wegingsfactor TD'!$D85*Rekenvolumes!P31 -> 0 | Q75: =SUM(E75:O75) -> 558432.6296
B76: Capaciteitsafhankelijk tarief (TAVTc) | E76: ='Wegingsfactor TD'!$D86*Rekenvolumes!E32 -> 845508.5068 | F76: ='Wegingsfactor TD'!$D86*Rekenvolumes!F32 -> 943467.9038 | G76: ='Wegingsfactor TD'!$D86*Rekenvolumes!G32 -> 17012736.57 | H76: ='Wegingsfactor TD'!$D86*Rekenvolumes!H32 -> 539280.7891 | I76: ='Wegingsfactor TD'!$D86*Rekenvolumes!I32 -> 1176749.054 | J76: ='Wegingsfactor TD'!$D86*Rekenvolumes!J32 -> 1130069.012 | K76: ='Wegingsfactor TD'!$D86*Rekenvolumes!K32 -> 16493867.5 | L76: ='Wegingsfactor TD'!$D86*Rekenvolumes!L32 -> 1464855.447 | M76: ='Wegingsfactor TD'!$D86*Rekenvolumes!M32 -> 555140.9992 | N76: ='Wegingsfactor TD'!$D86*Rekenvolumes!N32 -> 2129139.038 | O76: ='Wegingsfactor TD'!$D86*Rekenvolumes!O32 -> 14234078.77 | P76: ='Wegingsfactor TD'!$D86*Rekenvolumes!P32 -> 0 | Q76: =SUM(E76:O76) -> 56524893.59
B78: Telemetriegrootverbruik (< 16 bar)
B79: Vastrecht (TOVT) | E79: ='Wegingsfactor TD'!$D89*Rekenvolumes!E35 -> 66416.49349 | F79: ='Wegingsfactor TD'!$D89*Rekenvolumes!F35 -> 116228.8636 | G79: ='Wegingsfactor TD'!$D89*Rekenvolumes!G35 -> 1402535.203 | H79: ='Wegingsfactor TD'!$D89*Rekenvolumes!H35 -> 65984.2987 | I79: ='Wegingsfactor TD'!$D89*Rekenvolumes!I35 -> 134714.7876 | J79: ='Wegingsfactor TD'!$D89*Rekenvolumes!J35 -> 134318.3088 | K79: ='Wegingsfactor TD'!$D89*Rekenvolumes!K35 -> 1592667.514 | L79: ='Wegingsfactor TD'!$D89*Rekenvolumes!L35 -> 198920.1645 | M79: ='Wegingsfactor TD'!$D89*Rekenvolumes!M35 -> 60312.81773 | N79: ='Wegingsfactor TD'!$D89*Rekenvolumes!N35 -> 671121.4427 | O79: ='Wegingsfactor TD'!$D89*Rekenvolumes!O35 -> 1383200.532 | P79: ='Wegingsfactor TD'!$D89*Rekenvolumes!P35 -> 0 | Q79: =SUM(E79:O79) -> 5826420.426
B80: Capaciteitsafhankelijk tarief (TAVTc) gestandaardiseerd | E80: ='Wegingsfactor TD'!$D90*Rekenvolumes!E38 -> 651879.1977 | F80: ='Wegingsfactor TD'!$D90*Rekenvolumes!F38 -> 1027475.738 | G80: ='Wegingsfactor TD'!$D90*Rekenvolumes!G38 -> 13846407.75 | H80: ='Wegingsfactor TD'!$D90*Rekenvolumes!H38 -> 552648.0394 | I80: ='Wegingsfactor TD'!$D90*Rekenvolumes!I38 -> 1224745.9 | J80: ='Wegingsfactor TD'!$D90*Rekenvolumes!J38 -> 1263114.958 | K80: ='Wegingsfactor TD'!$D90*Rekenvolumes!K38 -> 13357581.43 | L80: ='Wegingsfactor TD'!$D90*Rekenvolumes!L38 -> 2022916.202 | M80: ='Wegingsfactor TD'!$D90*Rekenvolumes!M38 -> 625826.4614 | N80: ='Wegingsfactor TD'!$D90*Rekenvolumes!N38 -> 7076345.692 | O80: ='Wegingsfactor TD'!$D90*Rekenvolumes!O38 -> 14283142.57 | P80: ='Wegingsfactor TD'!$D90*Rekenvolumes!P38 -> 0 | Q80: =SUM(E80:O80) -> 55932083.94
B82: Extra hoge druk (>= 16 bar)
B83: Vastrecht (TOVT) | E83: ='Wegingsfactor TD'!$D89*Rekenvolumes!E41 -> 0 | F83: ='Wegingsfactor TD'!$D89*Rekenvolumes!F41 -> 8634.144153 | G83: ='Wegingsfactor TD'!$D89*Rekenvolumes!G41 -> 0 | H83: ='Wegingsfactor TD'!$D89*Rekenvolumes!H41 -> 0 | I83: ='Wegingsfactor TD'!$D89*Rekenvolumes!I41 -> 0 | J83: ='Wegingsfactor TD'!$D89*Rekenvolumes!J41 -> 0 | K83: ='Wegingsfactor TD'!$D89*Rekenvolumes!K41 -> 0 | L83: ='Wegingsfactor TD'!$D89*Rekenvolumes!L41 -> 0 | M83: ='Wegingsfactor TD'!$D89*Rekenvolumes!M41 -> 0 | N83: ='Wegingsfactor TD'!$D89*Rekenvolumes!N41 -> 0 | O83: ='Wegingsfactor TD'!D93*Rekenvolumes!O41 -> 439.811115 | P83: ='Wegingsfactor TD'!D97*Rekenvolumes!$P$41 -> 882.27191 | Q83: =SUM(E83:P83) -> 9956.227178
B84: Capaciteitsafhankelijk tarief (TAVTc) | E84: ='Wegingsfactor TD'!$D90*Rekenvolumes!E42 -> 0 | F84: ='Wegingsfactor TD'!$D90*Rekenvolumes!F42 -> 1483462.169 | G84: ='Wegingsfactor TD'!$D90*Rekenvolumes!G42 -> 0 | H84: ='Wegingsfactor TD'!$D90*Rekenvolumes!H42 -> 0 | I84: ='Wegingsfactor TD'!$D90*Rekenvolumes!I42 -> 0 | J84: ='Wegingsfactor TD'!$D90*Rekenvolumes!J42 -> 0 | K84: ='Wegingsfactor TD'!$D90*Rekenvolumes!K42 -> 0 | L84: ='Wegingsfactor TD'!$D90*Rekenvolumes!L42 -> 0 | M84: ='Wegingsfactor TD'!$D90*Rekenvolumes!M42 -> 0 | N84: ='Wegingsfactor TD'!$D90*Rekenvolumes!N42 -> 0 | O84: ='Wegingsfactor TD'!D94*Rekenvolumes!O42 -> 309496.7106 | P84: ='Wegingsfactor TD'!D98*Rekenvolumes!P42 -> 4365723.718 | Q84: =SUM(E84:P84) -> 6158682.597
B86: Subtotaal SO 2010 Transportdienst | E86: =SUM(E71:E84) -> 14716513.23 | F86: =SUM(F71:F84) -> 20740818.96 | G86: 199261133 | H86: 6614921.49 | I86: 16645310.06 | J86: 20278130.85 | K86: 225900553.5 | L86: 23024818.23 | M86: =SUM(M71:M84) -> 10845865.48 | N86: =SUM(N71:N84) -> 14474764.55 | O86: =SUM(O71:O84) -> 205998718 | P86: =SUM(P71:P84) -> 4366605.99 | Q86: =SUM(Q71:Q84) -> 762868153.3
B88: EAV
B89: LD 0-10 m3/h | E89: ='Wegingsfactor AD'!$D98*Rekenvolumes!E45 -> 906872.3019 | F89: ='Wegingsfactor AD'!$D98*Rekenvolumes!F45 -> 827338.6127 | G89: ='Wegingsfactor AD'!$D98*Rekenvolumes!G45 -> 11563990.65 | H89: ='Wegingsfactor AD'!$D98*Rekenvolumes!H45 -> 152008.1751 | I89: ='Wegingsfactor AD'!$D98*Rekenvolumes!I45 -> 665918.1667 | J89: ='Wegingsfactor AD'!$D98*Rekenvolumes!J45 -> 1077705.019 | K89: ='Wegingsfactor AD'!$D98*Rekenvolumes!K45 -> 10101719.75 | L89: ='Wegingsfactor AD'!$D98*Rekenvolumes!L45 -> 824514.9314 | M89: ='Wegingsfactor AD'!$D98*Rekenvolumes!M45 -> 531322.6927 | N89: ='Wegingsfactor AD'!$D98*Rekenvolumes!N45 -> 408492.5574 | O89: ='Wegingsfactor AD'!$D98*Rekenvolumes!O45 -> 8799356.257 | P89: ='Wegingsfactor AD'!$D98*Rekenvolumes!P45 -> 0 | Q89: =SUM(E89:P89) -> 35859239.11
B90: LD 10-16 m3/h | E90: ='Wegingsfactor AD'!$D99*Rekenvolumes!E46 -> 0 | F90: ='Wegingsfactor AD'!$D99*Rekenvolumes!F46 -> 0 | G90: ='Wegingsfactor AD'!$D99*Rekenvolumes!G46 -> 249865.3717 | H90: ='Wegingsfactor AD'!$D99*Rekenvolumes!H46 -> 15317.89118 | I90: ='Wegingsfactor AD'!$D99*Rekenvolumes!I46 -> 0 | J90: ='Wegingsfactor AD'!$D99*Rekenvolumes!J46 -> 0 | K90: ='Wegingsfactor AD'!$D99*Rekenvolumes!K46 -> 301251.8598 | L90: ='Wegingsfactor AD'!$D99*Rekenvolumes!L46 -> 86801.38334 | M90: ='Wegingsfactor AD'!$D99*Rekenvolumes!M46 -> 12254.31294 | N90: ='Wegingsfactor AD'!$D99*Rekenvolumes!N46 -> 7148.349217 | O90: ='Wegingsfactor AD'!$D99*Rekenvolumes!O46 -> 207759.9508 | P90: ='Wegingsfactor AD'!$D99*Rekenvolumes!P46 -> 0 | Q90: =SUM(E90:P90) -> 880399.1191
B91: LD 16-25 m3/h | E91: ='Wegingsfactor AD'!$D100*Rekenvolumes!E47 -> 23076.10189 | F91: ='Wegingsfactor AD'!$D100*Rekenvolumes!F47 -> 41152.31411 | G91: ='Wegingsfactor AD'!$D100*Rekenvolumes!G47 -> 229079.3543 | H91: ='Wegingsfactor AD'!$D100*Rekenvolumes!H47 -> 12044.57974 | I91: ='Wegingsfactor AD'!$D100*Rekenvolumes!I47 -> 22081.72952 | J91: ='Wegingsfactor AD'!$D100*Rekenvolumes!J47 -> 35130.02424 | K91: ='Wegingsfactor AD'!$D100*Rekenvolumes!K47 -> 153568.3917 | L91: ='Wegingsfactor AD'!$D100*Rekenvolumes!L47 -> 23085.4445 | M91: ='Wegingsfactor AD'!$D100*Rekenvolumes!M47 -> 12044.57974 | N91: ='Wegingsfactor AD'!$D100*Rekenvolumes!N47 -> 2007.429956 | O91: ='Wegingsfactor AD'!$D100*Rekenvolumes!O47 -> 232416.4977 | P91: ='Wegingsfactor AD'!$D100*Rekenvolumes!P47 -> 0 | Q91: 785686.4473
B92: LD 25-40 m3/h | E92: ='Wegingsfactor AD'!$D101*Rekenvolumes!E48 -> 12075.78648 | F92: ='Wegingsfactor AD'!$D101*Rekenvolumes!F48 -> 16101.04865 | G92: ='Wegingsfactor AD'!$D101*Rekenvolumes!G48 -> 195557.7688 | H92: ='Wegingsfactor AD'!$D101*Rekenvolumes!H48 -> 20126.31081 | I92: ='Wegingsfactor AD'!$D101*Rekenvolumes!I48 -> 16101.04865 | J92: ='Wegingsfactor AD'!$D101*Rekenvolumes!J48 -> 18113.67973 | K92: ='Wegingsfactor AD'!$D101*Rekenvolumes!K48 -> 374349.381 | L92: ='Wegingsfactor AD'!$D101*Rekenvolumes!L48 -> 54341.03918 | M92: ='Wegingsfactor AD'!$D101*Rekenvolumes!M48 -> 6037.893242 | N92: ='Wegingsfactor AD'!$D101*Rekenvolumes!N48 -> 12075.78648 | O92: ='Wegingsfactor AD'!$D101*Rekenvolumes!O48 -> 298975.6337 | P92: ='Wegingsfactor AD'!$D101*Rekenvolumes!P48 -> 0 | Q92: 1023855.377
B93: LD 40-65 m3/h | E93: ='Wegingsfactor AD'!$D102*Rekenvolumes!E49 -> 8643.381732 | F93: ='Wegingsfactor AD'!$D102*Rekenvolumes!F49 -> 1233.677006 | G93: ='Wegingsfactor AD'!$D102*Rekenvolumes!G49 -> 57469.30614 | H93: ='Wegingsfactor AD'!$D102*Rekenvolumes!H49 -> 7402.062038 | I93: ='Wegingsfactor AD'!$D102*Rekenvolumes!I49 -> 2467.354013 | J93: ='Wegingsfactor AD'!$D102*Rekenvolumes!J49 -> 3701.031019 | K93: ='Wegingsfactor AD'!$D102*Rekenvolumes!K49 -> 0 | L93: ='Wegingsfactor AD'!$D102*Rekenvolumes!L49 -> 17271.47809 | M93: ='Wegingsfactor AD'!$D102*Rekenvolumes!M49 -> 1233.677006 | N93: ='Wegingsfactor AD'!$D102*Rekenvolumes!N49 -> 2467.354013 | O93: ='Wegingsfactor AD'!$D102*Rekenvolumes!O49 -> 80004.45778 | P93: ='Wegingsfactor AD'!$D102*Rekenvolumes!P49 -> 0 | Q93: 181893.7788
B94: LD 65-100 m3/h | E94: ='Wegingsfactor AD'!$D103*Rekenvolumes!E50 -> 4055.896014 | F94: ='Wegingsfactor AD'!$D103*Rekenvolumes!F50 -> 1351.965338 | G94: ='Wegingsfactor AD'!$D103*Rekenvolumes!G50 -> 38925.41435 | H94: ='Wegingsfactor AD'!$D103*Rekenvolumes!H50 -> 4055.896014 | I94: ='Wegingsfactor AD'!$D103*Rekenvolumes!I50 -> 6759.826691 | J94: ='Wegingsfactor AD'!$D103*Rekenvolumes!J50 -> 9463.757367 | K94: ='Wegingsfactor AD'!$D103*Rekenvolumes!K50 -> 136548.4992 | L94: ='Wegingsfactor AD'!$D103*Rekenvolumes!L50 -> 5407.861353 | M94: ='Wegingsfactor AD'!$D103*Rekenvolumes!M50 -> 1351.965338 | N94: ='Wegingsfactor AD'!$D103*Rekenvolumes!N50 -> 0 | O94: ='Wegingsfactor AD'!$D103*Rekenvolumes!O50 -> 60450.00241 | P94: ='Wegingsfactor AD'!$D103*Rekenvolumes!P50 -> 0 | Q94: 268371.084
B95: LD 100-160 m3/h | E95: ='Wegingsfactor AD'!$D104*Rekenvolumes!E51 -> 0 | F95: ='Wegingsfactor AD'!$D104*Rekenvolumes!F51 -> 2145.076139 | G95: ='Wegingsfactor AD'!$D104*Rekenvolumes!G51 -> 54235.37725 | H95: ='Wegingsfactor AD'!$D104*Rekenvolumes!H51 -> 0 | I95: ='Wegingsfactor AD'!$D104*Rekenvolumes!I51 -> 6435.228417 | J95: ='Wegingsfactor AD'!$D104*Rekenvolumes!J51 -> 4290.152278 | K95: ='Wegingsfactor AD'!$D104*Rekenvolumes!K51 -> 49336.7512 | L95: ='Wegingsfactor AD'!$D104*Rekenvolumes!L51 -> 4290.152278 | M95: ='Wegingsfactor AD'!$D104*Rekenvolumes!M51 -> 0 | N95: ='Wegingsfactor AD'!$D104*Rekenvolumes!N51 -> 6435.228417 | O95: ='Wegingsfactor AD'!$D104*Rekenvolumes!O51 -> 46221.9324 | P95: ='Wegingsfactor AD'!$D104*Rekenvolumes!P51 -> 0 | Q95: 173389.8984
B96: LD 160-250 m3/h | E96: ='Wegingsfactor AD'!$D105*Rekenvolumes!E52 -> 0 | F96: ='Wegingsfactor AD'!$D105*Rekenvolumes!F52 -> 0 | G96: ='Wegingsfactor AD'!$D105*Rekenvolumes!G52 -> 0 | H96: ='Wegingsfactor AD'!$D105*Rekenvolumes!H52 -> 10849.95262 | I96: ='Wegingsfactor AD'!$D105*Rekenvolumes!I52 -> 0 | J96: ='Wegingsfactor AD'!$D105*Rekenvolumes!J52 -> 0 | K96: ='Wegingsfactor AD'!$D105*Rekenvolumes!K52 -> 28933.20699 | L96: ='Wegingsfactor AD'!$D105*Rekenvolumes!L52 -> 0 | M96: ='Wegingsfactor AD'!$D105*Rekenvolumes!M52 -> 0 | N96: ='Wegingsfactor AD'!$D105*Rekenvolumes!N52 -> 0 | O96: ='Wegingsfactor AD'!$D105*Rekenvolumes!O52 -> 38889.78339 | P96: ='Wegingsfactor AD'!$D105*Rekenvolumes!P52 -> 0 | Q96: 78672.943
B97: LD 250-400 m3/h | E97: ='Wegingsfactor AD'!$D106*Rekenvolumes!E53 -> 0 | F97: ='Wegingsfactor AD'!$D106*Rekenvolumes!F53 -> 0 | G97: ='Wegingsfactor AD'!$D106*Rekenvolumes!G53 -> 0 | H97: ='Wegingsfactor AD'!$D106*Rekenvolumes!H53 -> 0 | I97: ='Wegingsfactor AD'!$D106*Rekenvolumes!I53 -> 0 | J97: ='Wegingsfactor AD'!$D106*Rekenvolumes!J53 -> 9625.582866 | K97: ='Wegingsfactor AD'!$D106*Rekenvolumes!K53 -> 52940.70576 | L97: ='Wegingsfactor AD'!$D106*Rekenvolumes!L53 -> 9625.582866 | M97: ='Wegingsfactor AD'!$D106*Rekenvolumes!M53 -> 0 | N97: ='Wegingsfactor AD'!$D106*Rekenvolumes!N53 -> 4812.791433 | O97: ='Wegingsfactor AD'!$D106*Rekenvolumes!O53 -> 38502.33146 | P97: ='Wegingsfactor AD'!$D106*Rekenvolumes!P53 -> 0 | Q97: 115506.9944
B98: LD 400-650 m3/h | E98: ='Wegingsfactor AD'!$D107*Rekenvolumes!E54 -> 0 | F98: ='Wegingsfactor AD'!$D107*Rekenvolumes!F54 -> 0 | G98: ='Wegingsfactor AD'!$D107*Rekenvolumes!G54 -> 0 | H98: ='Wegingsfactor AD'!$D107*Rekenvolumes!H54 -> 0 | I98: ='Wegingsfactor AD'!$D107*Rekenvolumes!I54 -> 0 | J98: ='Wegingsfactor AD'!$D107*Rekenvolumes!J54 -> 0 | K98: ='Wegingsfactor AD'!$D107*Rekenvolumes!K54 -> 35979.53902 | L98: ='Wegingsfactor AD'!$D107*Rekenvolumes!L54 -> 0 | M98: ='Wegingsfactor AD'!$D107*Rekenvolumes!M54 -> 0 | N98: ='Wegingsfactor AD'!$D107*Rekenvolumes!N54 -> 0 | O98: ='Wegingsfactor AD'!$D107*Rekenvolumes!O54 -> 0 | P98: ='Wegingsfactor AD'!$D107*Rekenvolumes!P54 -> 0 | Q98: 35979.53902
B99: LD 650-1000 m3/h | E99: ='Wegingsfactor AD'!$D108*Rekenvolumes!E55 -> 0 | F99: ='Wegingsfactor AD'!$D108*Rekenvolumes!F55 -> 0 | G99: ='Wegingsfactor AD'!$D108*Rekenvolumes!G55 -> 0 | H99: ='Wegingsfactor AD'!$D108*Rekenvolumes!H55 -> 0 | I99: ='Wegingsfactor AD'!$D108*Rekenvolumes!I55 -> 0 | J99: ='Wegingsfactor AD'!$D108*Rekenvolumes!J55 -> 0 | K99: ='Wegingsfactor AD'!$D108*Rekenvolumes!K55 -> 0 | L99: ='Wegingsfactor AD'!$D108*Rekenvolumes!L55 -> 0 | M99: ='Wegingsfactor AD'!$D108*Rekenvolumes!M55 -> 0 | N99: ='Wegingsfactor AD'!$D108*Rekenvolumes!N55 -> 0 | O99: ='Wegingsfactor AD'!$D108*Rekenvolumes!O55 -> 0 | P99: ='Wegingsfactor AD'!$D108*Rekenvolumes!P55 -> 0 | Q99: 0
B100: LD 1000-1600 m3/h | E100: ='Wegingsfactor AD'!$D109*Rekenvolumes!E56 -> 0 | F100: ='Wegingsfactor AD'!$D109*Rekenvolumes!F56 -> 0 | G100: ='Wegingsfactor AD'!$D109*Rekenvolumes!G56 -> 0 | H100: ='Wegingsfactor AD'!$D109*Rekenvolumes!H56 -> 0 | I100: ='Wegingsfactor AD'!$D109*Rekenvolumes!I56 -> 0 | J100: ='Wegingsfactor AD'!$D109*Rekenvolumes!J56 -> 0 | K100: ='Wegingsfactor AD'!$D109*Rekenvolumes!K56 -> 0 | L100: ='Wegingsfactor AD'!$D109*Rekenvolumes!L56 -> 0 | M100: ='Wegingsfactor AD'!$D109*Rekenvolumes!M56 -> 0 | N100: ='Wegingsfactor AD'!$D109*Rekenvolumes!N56 -> 0 | O100: ='Wegingsfactor AD'!$D109*Rekenvolumes!O56 -> 0 | P100: ='Wegingsfactor AD'!$D109*Rekenvolumes!P56 -> 0 | Q100: 0
B101: LD 1600-2500 m3/h | E101: ='Wegingsfactor AD'!$D110*Rekenvolumes!E57 -> 0 | F101: ='Wegingsfactor AD'!$D110*Rekenvolumes!F57 -> 0 | G101: ='Wegingsfactor AD'!$D110*Rekenvolumes!G57 -> 0 | H101: ='Wegingsfactor AD'!$D110*Rekenvolumes!H57 -> 0 | I101: ='Wegingsfactor AD'!$D110*Rekenvolumes!I57 -> 0 | J101: ='Wegingsfactor AD'!$D110*Rekenvolumes!J57 -> 0 | K101: ='Wegingsfactor AD'!$D110*Rekenvolumes!K57 -> 0 | L101: ='Wegingsfactor AD'!$D110*Rekenvolumes!L57 -> 0 | M101: ='Wegingsfactor AD'!$D110*Rekenvolumes!M57 -> 0 | N101: ='Wegingsfactor AD'!$D110*Rekenvolumes!N57 -> 0 | O101: ='Wegingsfactor AD'!$D110*Rekenvolumes!O57 -> 0 | P101: ='Wegingsfactor AD'!$D110*Rekenvolumes!P57 -> 0 | Q101: 0
B102: LD >2500 m3/h | E102: ='Wegingsfactor AD'!$D111*Rekenvolumes!E58 -> 0 | F102: ='Wegingsfactor AD'!$D111*Rekenvolumes!F58 -> 0 | G102: ='Wegingsfactor AD'!$D111*Rekenvolumes!G58 -> 0 | H102: ='Wegingsfactor AD'!$D111*Rekenvolumes!H58 -> 0 | I102: ='Wegingsfactor AD'!$D111*Rekenvolumes!I58 -> 0 | J102: ='Wegingsfactor AD'!$D111*Rekenvolumes!J58 -> 0 | K102: ='Wegingsfactor AD'!$D111*Rekenvolumes!K58 -> 0 | L102: ='Wegingsfactor AD'!$D111*Rekenvolumes!L58 -> 0 | M102: ='Wegingsfactor AD'!$D111*Rekenvolumes!M58 -> 0 | N102: ='Wegingsfactor AD'!$D111*Rekenvolumes!N58 -> 0 | O102: ='Wegingsfactor AD'!$D111*Rekenvolumes!O58 -> 0 | P102: ='Wegingsfactor AD'!$D111*Rekenvolumes!P58 -> 0 | Q102: 0
B104: HD 0-10 m3/h | E104: ='Wegingsfactor AD'!$D113*Rekenvolumes!E60 -> 0 | F104: ='Wegingsfactor AD'!$D113*Rekenvolumes!F60 -> 0 | G104: ='Wegingsfactor AD'!$D113*Rekenvolumes!G60 -> 0 | H104: ='Wegingsfactor AD'!$D113*Rekenvolumes!H60 -> 0 | I104: ='Wegingsfactor AD'!$D113*Rekenvolumes!I60 -> 0 | J104: ='Wegingsfactor AD'!$D113*Rekenvolumes!J60 -> 0 | K104: ='Wegingsfactor AD'!$D113*Rekenvolumes!K60 -> 0 | L104: ='Wegingsfactor AD'!$D113*Rekenvolumes!L60 -> 0 | M104: ='Wegingsfactor AD'!$D113*Rekenvolumes!M60 -> 0 | N104: ='Wegingsfactor AD'!$D113*Rekenvolumes!N60 -> 0 | O104: ='Wegingsfactor AD'!$D113*Rekenvolumes!O60 -> 0 | P104: ='Wegingsfactor AD'!$D113*Rekenvolumes!P60 -> 0 | Q104: =SUM(E104:P104) -> 0
B105: HD 10-16 m3/h | E105: ='Wegingsfactor AD'!$D114*Rekenvolumes!E61 -> 0 | F105: ='Wegingsfactor AD'!$D114*Rekenvolumes!F61 -> 0 | G105: ='Wegingsfactor AD'!$D114*Rekenvolumes!G61 -> 0 | H105: ='Wegingsfactor AD'!$D114*Rekenvolumes!H61 -> 0 | I105: ='Wegingsfactor AD'!$D114*Rekenvolumes!I61 -> 0 | J105: ='Wegingsfactor AD'!$D114*Rekenvolumes!J61 -> 0 | K105: ='Wegingsfactor AD'!$D114*Rekenvolumes!K61 -> 0 | L105: ='Wegingsfactor AD'!$D114*Rekenvolumes!L61 -> 0 | M105: ='Wegingsfactor AD'!$D114*Rekenvolumes!M61 -> 0 | N105: ='Wegingsfactor AD'!$D114*Rekenvolumes!N61 -> 0 | O105: ='Wegingsfactor AD'!$D114*Rekenvolumes!O61 -> 0 | P105: ='Wegingsfactor AD'!$D114*Rekenvolumes!P61 -> 0 | Q105: =SUM(E105:P105) -> 0
B106: HD 16-25 m3/h | E106: ='Wegingsfactor AD'!$D115*Rekenvolumes!E62 -> 0 | F106: ='Wegingsfactor AD'!$D115*Rekenvolumes!F62 -> 0 | G106: ='Wegingsfactor AD'!$D115*Rekenvolumes!G62 -> 0 | H106: ='Wegingsfactor AD'!$D115*Rekenvolumes!H62 -> 0 | I106: ='Wegingsfactor AD'!$D115*Rekenvolumes!I62 -> 0 | J106: ='Wegingsfactor AD'!$D115*Rekenvolumes!J62 -> 0 | K106: ='Wegingsfactor AD'!$D115*Rekenvolumes!K62 -> 0 | L106: ='Wegingsfactor AD'!$D115*Rekenvolumes!L62 -> 0 | M106: ='Wegingsfactor AD'!$D115*Rekenvolumes!M62 -> 0 | N106: ='Wegingsfactor AD'!$D115*Rekenvolumes!N62 -> 0 | O106: ='Wegingsfactor AD'!$D115*Rekenvolumes!O62 -> 0 | P106: ='Wegingsfactor AD'!$D115*Rekenvolumes!P62 -> 0 | Q106: 0
B107: HD 25-40 m3/h | E107: ='Wegingsfactor AD'!$D116*Rekenvolumes!E63 -> 0 | F107: ='Wegingsfactor AD'!$D116*Rekenvolumes!F63 -> 0 | G107: ='Wegingsfactor AD'!$D116*Rekenvolumes!G63 -> 0 | H107: ='Wegingsfactor AD'!$D116*Rekenvolumes!H63 -> 0 | I107: ='Wegingsfactor AD'!$D116*Rekenvolumes!I63 -> 0 | J107: ='Wegingsfactor AD'!$D116*Rekenvolumes!J63 -> 0 | K107: ='Wegingsfactor AD'!$D116*Rekenvolumes!K63 -> 0 | L107: ='Wegingsfactor AD'!$D116*Rekenvolumes!L63 -> 0 | M107: ='Wegingsfactor AD'!$D116*Rekenvolumes!M63 -> 0 | N107: ='Wegingsfactor AD'!$D116*Rekenvolumes!N63 -> 0 | O107: ='Wegingsfactor AD'!$D116*Rekenvolumes!O63 -> 0 | P107: ='Wegingsfactor AD'!$D116*Rekenvolumes!P63 -> 0 | Q107: 0
B108: HD 40-65 m3/h | E108: ='Wegingsfactor AD'!$D117*Rekenvolumes!E64 -> 0 | F108: ='Wegingsfactor AD'!$D117*Rekenvolumes!F64 -> 0 | G108: ='Wegingsfactor AD'!$D117*Rekenvolumes!G64 -> 18906.94053 | H108: ='Wegingsfactor AD'!$D117*Rekenvolumes!H64 -> 0 | I108: ='Wegingsfactor AD'!$D117*Rekenvolumes!I64 -> 0 | J108: ='Wegingsfactor AD'!$D117*Rekenvolumes!J64 -> 0 | K108: ='Wegingsfactor AD'!$D117*Rekenvolumes!K64 -> 0 | L108: ='Wegingsfactor AD'!$D117*Rekenvolumes!L64 -> 0 | M108: ='Wegingsfactor AD'!$D117*Rekenvolumes!M64 -> 0 | N108: ='Wegingsfactor AD'!$D117*Rekenvolumes!N64 -> 0 | O108: ='Wegingsfactor AD'!$D117*Rekenvolumes!O64 -> 41914.22102 | P108: ='Wegingsfactor AD'!$D117*Rekenvolumes!P64 -> 0 | Q108: 60821.16155
B109: HD 65-100 m3/h | E109: ='Wegingsfactor AD'!$D118*Rekenvolumes!E65 -> 0 | F109: ='Wegingsfactor AD'!$D118*Rekenvolumes!F65 -> 0 | G109: ='Wegingsfactor AD'!$D118*Rekenvolumes!G65 -> 14344.52049 | H109: ='Wegingsfactor AD'!$D118*Rekenvolumes!H65 -> 0 | I109: ='Wegingsfactor AD'!$D118*Rekenvolumes!I65 -> 0 | J109: ='Wegingsfactor AD'!$D118*Rekenvolumes!J65 -> 0 | K109: ='Wegingsfactor AD'!$D118*Rekenvolumes!K65 -> 3352.966462 | L109: ='Wegingsfactor AD'!$D118*Rekenvolumes!L65 -> 0 | M109: ='Wegingsfactor AD'!$D118*Rekenvolumes!M65 -> 0 | N109: ='Wegingsfactor AD'!$D118*Rekenvolumes!N65 -> 0 | O109: ='Wegingsfactor AD'!$D118*Rekenvolumes!O65 -> 63706.36278 | P109: ='Wegingsfactor AD'!$D118*Rekenvolumes!P65 -> 0 | Q109: 81403.84973
B110: HD 100-160 m3/h | E110: ='Wegingsfactor AD'!$D119*Rekenvolumes!E66 -> 0 | F110: ='Wegingsfactor AD'!$D119*Rekenvolumes!F66 -> 0 | G110: ='Wegingsfactor AD'!$D119*Rekenvolumes!G66 -> 13465.27202 | H110: ='Wegingsfactor AD'!$D119*Rekenvolumes!H66 -> 0 | I110: ='Wegingsfactor AD'!$D119*Rekenvolumes!I66 -> 0 | J110: ='Wegingsfactor AD'!$D119*Rekenvolumes!J66 -> 0 | K110: ='Wegingsfactor AD'!$D119*Rekenvolumes!K66 -> 0 | L110: ='Wegingsfactor AD'!$D119*Rekenvolumes!L66 -> 0 | M110: ='Wegingsfactor AD'!$D119*Rekenvolumes!M66 -> 0 | N110: ='Wegingsfactor AD'!$D119*Rekenvolumes!N66 -> 0 | O110: ='Wegingsfactor AD'!$D119*Rekenvolumes!O66 -> 131001.8118 | P110: ='Wegingsfactor AD'!$D119*Rekenvolumes!P66 -> 0 | Q110: 144467.0838
B111: HD 160-250 m3/h | E111: ='Wegingsfactor AD'!$D120*Rekenvolumes!E67 -> 0 | F111: ='Wegingsfactor AD'!$D120*Rekenvolumes!F67 -> 8437.431717 | G111: ='Wegingsfactor AD'!$D120*Rekenvolumes!G67 -> 33749.72687 | H111: ='Wegingsfactor AD'!$D120*Rekenvolumes!H67 -> 0 | I111: ='Wegingsfactor AD'!$D120*Rekenvolumes!I67 -> 0 | J111: ='Wegingsfactor AD'!$D120*Rekenvolumes!J67 -> 0 | K111: ='Wegingsfactor AD'!$D120*Rekenvolumes!K67 -> 8437.431717 | L111: ='Wegingsfactor AD'!$D120*Rekenvolumes!L67 -> 25312.29515 | M111: ='Wegingsfactor AD'!$D120*Rekenvolumes!M67 -> 0 | N111: ='Wegingsfactor AD'!$D120*Rekenvolumes!N67 -> 0 | O111: ='Wegingsfactor AD'!$D120*Rekenvolumes!O67 -> 160311.2026 | P111: ='Wegingsfactor AD'!$D120*Rekenvolumes!P67 -> 0 | Q111: 236248.0881
B112: HD 250-400 m3/h | E112: ='Wegingsfactor AD'!$D121*Rekenvolumes!E68 -> 0 | F112: ='Wegingsfactor AD'!$D121*Rekenvolumes!F68 -> 7793.829091 | G112: ='Wegingsfactor AD'!$D121*Rekenvolumes!G68 -> 38969.14546 | H112: ='Wegingsfactor AD'!$D121*Rekenvolumes!H68 -> 0 | I112: ='Wegingsfactor AD'!$D121*Rekenvolumes!I68 -> 0 | J112: ='Wegingsfactor AD'!$D121*Rekenvolumes!J68 -> 0 | K112: ='Wegingsfactor AD'!$D121*Rekenvolumes!K68 -> 7793.829091 | L112: ='Wegingsfactor AD'!$D121*Rekenvolumes!L68 -> 0 | M112: ='Wegingsfactor AD'!$D121*Rekenvolumes!M68 -> 0 | N112: ='Wegingsfactor AD'!$D121*Rekenvolumes!N68 -> 0 | O112: ='Wegingsfactor AD'!$D121*Rekenvolumes!O68 -> 62350.63273 | P112: ='Wegingsfactor AD'!$D121*Rekenvolumes!P68 -> 0 | Q112: 116907.4364
B113: HD 400-650 m3/h | E113: ='Wegingsfactor AD'!$D122*Rekenvolumes!E69 -> 0 | F113: ='Wegingsfactor AD'!$D122*Rekenvolumes!F69 -> 0 | G113: ='Wegingsfactor AD'!$D122*Rekenvolumes!G69 -> 6103.391925 | H113: ='Wegingsfactor AD'!$D122*Rekenvolumes!H69 -> 0 | I113: ='Wegingsfactor AD'!$D122*Rekenvolumes!I69 -> 0 | J113: ='Wegingsfactor AD'!$D122*Rekenvolumes!J69 -> 0 | K113: ='Wegingsfactor AD'!$D122*Rekenvolumes!K69 -> 48827.1354 | L113: ='Wegingsfactor AD'!$D122*Rekenvolumes!L69 -> 6103.391925 | M113: ='Wegingsfactor AD'!$D122*Rekenvolumes!M69 -> 0 | N113: ='Wegingsfactor AD'!$D122*Rekenvolumes!N69 -> 6103.391925 | O113: ='Wegingsfactor AD'!$D122*Rekenvolumes!O69 -> 24413.5677 | P113: ='Wegingsfactor AD'!$D122*Rekenvolumes!P69 -> 0 | Q113: 91550.87887
B114: HD 650-1000 m3/h | E114: ='Wegingsfactor AD'!$D123*Rekenvolumes!E70 -> 0 | F114: ='Wegingsfactor AD'!$D123*Rekenvolumes!F70 -> 6884.780867 | G114: ='Wegingsfactor AD'!$D123*Rekenvolumes!G70 -> 20654.3426 | H114: ='Wegingsfactor AD'!$D123*Rekenvolumes!H70 -> 0 | I114: ='Wegingsfactor AD'!$D123*Rekenvolumes!I70 -> 0 | J114: ='Wegingsfactor AD'!$D123*Rekenvolumes!J70 -> 0 | K114: ='Wegingsfactor AD'!$D123*Rekenvolumes!K70 -> 0 | L114: ='Wegingsfactor AD'!$D123*Rekenvolumes!L70 -> 0 | M114: ='Wegingsfactor AD'!$D123*Rekenvolumes!M70 -> 0 | N114: ='Wegingsfactor AD'!$D123*Rekenvolumes!N70 -> 34423.90434 | O114: ='Wegingsfactor AD'!$D123*Rekenvolumes!O70 -> 55078.24694 | P114: ='Wegingsfactor AD'!$D123*Rekenvolumes!P70 -> 0 | Q114: 117041.2747
B115: HD 1000-1600 m3/h | E115: ='Wegingsfactor AD'!$D124*Rekenvolumes!E71 -> 0 | F115: ='Wegingsfactor AD'!$D124*Rekenvolumes!F71 -> 0 | G115: ='Wegingsfactor AD'!$D124*Rekenvolumes!G71 -> 18841.05647 | H115: ='Wegingsfactor AD'!$D124*Rekenvolumes!H71 -> 0 | I115: ='Wegingsfactor AD'!$D124*Rekenvolumes!I71 -> 0 | J115: ='Wegingsfactor AD'!$D124*Rekenvolumes!J71 -> 0 | K115: ='Wegingsfactor AD'!$D124*Rekenvolumes!K71 -> 0 | L115: ='Wegingsfactor AD'!$D124*Rekenvolumes!L71 -> 0 | M115: ='Wegingsfactor AD'!$D124*Rekenvolumes!M71 -> 0 | N115: ='Wegingsfactor AD'!$D124*Rekenvolumes!N71 -> 3768.211295 | O115: ='Wegingsfactor AD'!$D124*Rekenvolumes!O71 -> 0 | P115: ='Wegingsfactor AD'!$D124*Rekenvolumes!P71 -> 0 | Q115: 22609.26777
B116: HD 1600-2500 m3/h | E116: ='Wegingsfactor AD'!$D125*Rekenvolumes!E72 -> 0 | F116: ='Wegingsfactor AD'!$D125*Rekenvolumes!F72 -> 0 | G116: ='Wegingsfactor AD'!$D125*Rekenvolumes!G72 -> 0 | H116: ='Wegingsfactor AD'!$D125*Rekenvolumes!H72 -> 0 | I116: ='Wegingsfactor AD'!$D125*Rekenvolumes!I72 -> 0 | J116: ='Wegingsfactor AD'!$D125*Rekenvolumes!J72 -> 0 | K116: ='Wegingsfactor AD'!$D125*Rekenvolumes!K72 -> 0 | L116: ='Wegingsfactor AD'!$D125*Rekenvolumes!L72 -> 9975.779552 | M116: ='Wegingsfactor AD'!$D125*Rekenvolumes!M72 -> 0 | N116: ='Wegingsfactor AD'!$D125*Rekenvolumes!N72 -> 19951.5591 | O116: ='Wegingsfactor AD'!$D125*Rekenvolumes!O72 -> 0 | P116: ='Wegingsfactor AD'!$D125*Rekenvolumes!P72 -> 0 | Q116: 29927.33866
B117: HD >2500 m3/h | E117: ='Wegingsfactor AD'!$D126*Rekenvolumes!E73 -> 0 | F117: ='Wegingsfactor AD'!$D126*Rekenvolumes!F73 -> 0 | G117: ='Wegingsfactor AD'!$D126*Rekenvolumes!G73 -> 7173.496737 | H117: ='Wegingsfactor AD'!$D126*Rekenvolumes!H73 -> 0 | I117: ='Wegingsfactor AD'!$D126*Rekenvolumes!I73 -> 0 | J117: ='Wegingsfactor AD'!$D126*Rekenvolumes!J73 -> 0 | K117: ='Wegingsfactor AD'!$D126*Rekenvolumes!K73 -> 0 | L117: ='Wegingsfactor AD'!$D126*Rekenvolumes!L73 -> 0 | M117: ='Wegingsfactor AD'!$D126*Rekenvolumes!M73 -> 0 | N117: ='Wegingsfactor AD'!$D126*Rekenvolumes!N73 -> 0 | O117: ='Wegingsfactor AD'!$D126*Rekenvolumes!O73 -> 150643.4315 | P117: ='Wegingsfactor AD'!$D126*Rekenvolumes!P73 -> 0 | Q117: 157816.9282
B119: EHD 0-40 m3/h | E119: ='Wegingsfactor AD'!$D128*Rekenvolumes!E75 -> 0 | F119: ='Wegingsfactor AD'!$D128*Rekenvolumes!F75 -> 0 | G119: ='Wegingsfactor AD'!$D128*Rekenvolumes!G75 -> 0 | H119: ='Wegingsfactor AD'!$D128*Rekenvolumes!H75 -> 0 | I119: ='Wegingsfactor AD'!$D128*Rekenvolumes!I75 -> 0 | J119: ='Wegingsfactor AD'!$D128*Rekenvolumes!J75 -> 0 | K119: ='Wegingsfactor AD'!$D128*Rekenvolumes!K75 -> 0 | L119: ='Wegingsfactor AD'!$D128*Rekenvolumes!L75 -> 0 | M119: ='Wegingsfactor AD'!$D128*Rekenvolumes!M75 -> 0 | N119: ='Wegingsfactor AD'!$D128*Rekenvolumes!N75 -> 0 | O119: ='Wegingsfactor AD'!$D128*Rekenvolumes!O75 -> 0 | P119: ='Wegingsfactor AD'!$D128*Rekenvolumes!P75 -> 0 | Q119: 0
B120: EHD >40 m3/h | E120: ='Wegingsfactor AD'!$D129*Rekenvolumes!E76 -> 0 | F120: ='Wegingsfactor AD'!$D129*Rekenvolumes!F76 -> 0 | G120: ='Wegingsfactor AD'!$D129*Rekenvolumes!G76 -> 0 | H120: ='Wegingsfactor AD'!$D129*Rekenvolumes!H76 -> 0 | I120: ='Wegingsfactor AD'!$D129*Rekenvolumes!I76 -> 0 | J120: ='Wegingsfactor AD'!$D129*Rekenvolumes!J76 -> 0 | K120: ='Wegingsfactor AD'!$D129*Rekenvolumes!K76 -> 0 | L120: ='Wegingsfactor AD'!$D129*Rekenvolumes!L76 -> 0 | M120: ='Wegingsfactor AD'!$D129*Rekenvolumes!M76 -> 0 | N120: ='Wegingsfactor AD'!$D129*Rekenvolumes!N76 -> 0 | O120: ='Wegingsfactor AD'!$D129*Rekenvolumes!O76 -> 0 | P120: ='Wegingsfactor AD'!$D129*Rekenvolumes!P76 -> 0 | Q120: 0
B122: Meerlengtevergoeding
B123: LD 0-10 m3/h | E123: ='Wegingsfactor AD'!$D132*Rekenvolumes!E79 -> 9707.218228 | F123: ='Wegingsfactor AD'!$D132*Rekenvolumes!F79 -> 17802.9421 | G123: ='Wegingsfactor AD'!$D132*Rekenvolumes!G79 -> 251850.4596 | H123: ='Wegingsfactor AD'!$D132*Rekenvolumes!H79 -> 12754.61283 | I123: ='Wegingsfactor AD'!$D132*Rekenvolumes!I79 -> 0 | J123: ='Wegingsfactor AD'!$D132*Rekenvolumes!J79 -> 4031.527971 | K123: ='Wegingsfactor AD'!$D132*Rekenvolumes!K79 -> 293409.6109 | L123: ='Wegingsfactor AD'!$D132*Rekenvolumes!L79 -> 13753.57551 | M123: ='Wegingsfactor AD'!$D132*Rekenvolumes!M79 -> 44739.25731 | N123: ='Wegingsfactor AD'!$D132*Rekenvolumes!N79 -> 30468.36184 | O123: ='Wegingsfactor AD'!$D132*Rekenvolumes!O79 -> 556106.8277 | P123: ='Wegingsfactor AD'!$D132*Rekenvolumes!P79 -> 0 | Q123: =SUM(E123:P123) -> 1234624.394
B124: LD 10-16 m3/h | E124: ='Wegingsfactor AD'!$D133*Rekenvolumes!E80 -> 22674.01782 | F124: ='Wegingsfactor AD'!$D133*Rekenvolumes!F80 -> 0 | G124: ='Wegingsfactor AD'!$D133*Rekenvolumes!G80 -> 42789.4314 | H124: ='Wegingsfactor AD'!$D133*Rekenvolumes!H80 -> 1960.611532 | I124: ='Wegingsfactor AD'!$D133*Rekenvolumes!I80 -> 0 | J124: ='Wegingsfactor AD'!$D133*Rekenvolumes!J80 -> 0 | K124: ='Wegingsfactor AD'!$D133*Rekenvolumes!K80 -> 64926.40496 | L124: ='Wegingsfactor AD'!$D133*Rekenvolumes!L80 -> 5504.793917 | M124: ='Wegingsfactor AD'!$D133*Rekenvolumes!M80 -> 0 | N124: ='Wegingsfactor AD'!$D133*Rekenvolumes!N80 -> 2884.361196 | O124: ='Wegingsfactor AD'!$D133*Rekenvolumes!O80 -> 49555.6674 | P124: ='Wegingsfactor AD'!$D133*Rekenvolumes!P80 -> 0 | Q124: 190295.2882
B125: LD 16-25 m3/h | E125: ='Wegingsfactor AD'!$D134*Rekenvolumes!E81 -> 36650.9002 | F125: ='Wegingsfactor AD'!$D134*Rekenvolumes!F81 -> 9946.946555 | G125: ='Wegingsfactor AD'!$D134*Rekenvolumes!G81 -> 91517.6128 | H125: ='Wegingsfactor AD'!$D134*Rekenvolumes!H81 -> 1648.014814 | I125: ='Wegingsfactor AD'!$D134*Rekenvolumes!I81 -> 0 | J125: ='Wegingsfactor AD'!$D134*Rekenvolumes!J81 -> 588.5767192 | K125: ='Wegingsfactor AD'!$D134*Rekenvolumes!K81 -> 37001.85642 | L125: ='Wegingsfactor AD'!$D134*Rekenvolumes!L81 -> 1549.918694 | M125: ='Wegingsfactor AD'!$D134*Rekenvolumes!M81 -> 784.768959 | N125: ='Wegingsfactor AD'!$D134*Rekenvolumes!N81 -> 0 | O125: ='Wegingsfactor AD'!$D134*Rekenvolumes!O81 -> 89775.56402 | P125: ='Wegingsfactor AD'!$D134*Rekenvolumes!P81 -> 0 | Q125: 269464.1592
B126: LD 25-40 m3/h | E126: ='Wegingsfactor AD'!$D135*Rekenvolumes!E82 -> 5047.559841 | F126: ='Wegingsfactor AD'!$D135*Rekenvolumes!F82 -> 0 | G126: ='Wegingsfactor AD'!$D135*Rekenvolumes!G82 -> 37519.81028 | H126: ='Wegingsfactor AD'!$D135*Rekenvolumes!H82 -> 11193.93656 | I126: ='Wegingsfactor AD'!$D135*Rekenvolumes!I82 -> 0 | J126: ='Wegingsfactor AD'!$D135*Rekenvolumes!J82 -> 0 | K126: ='Wegingsfactor AD'!$D135*Rekenvolumes!K82 -> 29328.1138 | L126: ='Wegingsfactor AD'!$D135*Rekenvolumes!L82 -> 2320.19776 | M126: ='Wegingsfactor AD'!$D135*Rekenvolumes!M82 -> 0 | N126: ='Wegingsfactor AD'!$D135*Rekenvolumes!N82 -> 2747.602611 | O126: ='Wegingsfactor AD'!$D135*Rekenvolumes!O82 -> 79687.90368 | P126: ='Wegingsfactor AD'!$D135*Rekenvolumes!P82 -> 0 | Q126: 167845.1245
B127: HD 0-10 m3/h | E127: ='Wegingsfactor AD'!$D136*Rekenvolumes!E83 -> 0 | F127: ='Wegingsfactor AD'!$D136*Rekenvolumes!F83 -> 0 | G127: ='Wegingsfactor AD'!$D136*Rekenvolumes!G83 -> 0 | H127: ='Wegingsfactor AD'!$D136*Rekenvolumes!H83 -> 0 | I127: ='Wegingsfactor AD'!$D136*Rekenvolumes!I83 -> 0 | J127: ='Wegingsfactor AD'!$D136*Rekenvolumes!J83 -> 0 | K127: ='Wegingsfactor AD'!$D136*Rekenvolumes!K83 -> 0 | L127: ='Wegingsfactor AD'!$D136*Rekenvolumes!L83 -> 0 | M127: ='Wegingsfactor AD'!$D136*Rekenvolumes!M83 -> 0 | N127: ='Wegingsfactor AD'!$D136*Rekenvolumes!N83 -> 0 | O127: ='Wegingsfactor AD'!$D136*Rekenvolumes!O83 -> 0 | P127: ='Wegingsfactor AD'!$D136*Rekenvolumes!P83 -> 0 | Q127: 0
B128: HD 10-16 m3/h | E128: ='Wegingsfactor AD'!$D137*Rekenvolumes!E84 -> 0 | F128: ='Wegingsfactor AD'!$D137*Rekenvolumes!F84 -> 0 | G128: ='Wegingsfactor AD'!$D137*Rekenvolumes!G84 -> 0 | H128: ='Wegingsfactor AD'!$D137*Rekenvolumes!H84 -> 0 | I128: ='Wegingsfactor AD'!$D137*Rekenvolumes!I84 -> 0 | J128: ='Wegingsfactor AD'!$D137*Rekenvolumes!J84 -> 0 | K128: ='Wegingsfactor AD'!$D137*Rekenvolumes!K84 -> 0 | L128: ='Wegingsfactor AD'!$D137*Rekenvolumes!L84 -> 0 | M128: ='Wegingsfactor AD'!$D137*Rekenvolumes!M84 -> 0 | N128: ='Wegingsfactor AD'!$D137*Rekenvolumes!N84 -> 0 | O128: ='Wegingsfactor AD'!$D137*Rekenvolumes!O84 -> 0 | P128: ='Wegingsfactor AD'!$D137*Rekenvolumes!P84 -> 0 | Q128: 0
B129: HD 16-25 m3/h | E129: ='Wegingsfactor AD'!$D138*Rekenvolumes!E85 -> 0 | F129: ='Wegingsfactor AD'!$D138*Rekenvolumes!F85 -> 0 | G129: ='Wegingsfactor AD'!$D138*Rekenvolumes!G85 -> 0 | H129: ='Wegingsfactor AD'!$D138*Rekenvolumes!H85 -> 0 | I129: ='Wegingsfactor AD'!$D138*Rekenvolumes!I85 -> 0 | J129: ='Wegingsfactor AD'!$D138*Rekenvolumes!J85 -> 0 | K129: ='Wegingsfactor AD'!$D138*Rekenvolumes!K85 -> 0 | L129: ='Wegingsfactor AD'!$D138*Rekenvolumes!L85 -> 0 | M129: ='Wegingsfactor AD'!$D138*Rekenvolumes!M85 -> 0 | N129: ='Wegingsfactor AD'!$D138*Rekenvolumes!N85 -> 0 | O129: ='Wegingsfactor AD'!$D138*Rekenvolumes!O85 -> 0 | P129: ='Wegingsfactor AD'!$D138*Rekenvolumes!P85 -> 0 | Q129: 0
B130: HD 25-40 m3/h | E130: ='Wegingsfactor AD'!$D139*Rekenvolumes!E86 -> 0 | F130: ='Wegingsfactor AD'!$D139*Rekenvolumes!F86 -> 0 | G130: ='Wegingsfactor AD'!$D139*Rekenvolumes!G86 -> 0 | H130: ='Wegingsfactor AD'!$D139*Rekenvolumes!H86 -> 0 | I130: ='Wegingsfactor AD'!$D139*Rekenvolumes!I86 -> 0 | J130: ='Wegingsfactor AD'!$D139*Rekenvolumes!J86 -> 0 | K130: ='Wegingsfactor AD'!$D139*Rekenvolumes!K86 -> 23130.35999 | L130: ='Wegingsfactor AD'!$D139*Rekenvolumes!L86 -> 0 | M130: ='Wegingsfactor AD'!$D139*Rekenvolumes!M86 -> 0 | N130: ='Wegingsfactor AD'!$D139*Rekenvolumes!N86 -> 0 | O130: ='Wegingsfactor AD'!$D139*Rekenvolumes!O86 -> 0 | P130: ='Wegingsfactor AD'!$D139*Rekenvolumes!P86 -> 0 | Q130: 23130.35999
B131: EHD 0-40 m3/h | E131: ='Wegingsfactor AD'!$D140*Rekenvolumes!E87 -> 0 | F131: ='Wegingsfactor AD'!$D140*Rekenvolumes!F87 -> 0 | G131: ='Wegingsfactor AD'!$D140*Rekenvolumes!G87 -> 0 | H131: ='Wegingsfactor AD'!$D140*Rekenvolumes!H87 -> 0 | I131: ='Wegingsfactor AD'!$D140*Rekenvolumes!I87 -> 0 | J131: ='Wegingsfactor AD'!$D140*Rekenvolumes!J87 -> 0 | K131: ='Wegingsfactor AD'!$D140*Rekenvolumes!K87 -> 0 | L131: ='Wegingsfactor AD'!$D140*Rekenvolumes!L87 -> 0 | M131: ='Wegingsfactor AD'!$D140*Rekenvolumes!M87 -> 0 | N131: ='Wegingsfactor AD'!$D140*Rekenvolumes!N87 -> 0 | O131: ='Wegingsfactor AD'!$D140*Rekenvolumes!O87 -> 0 | P131: ='Wegingsfactor AD'!$D140*Rekenvolumes!P87 -> 0 | Q131: =SUM(E131:P131) -> 0
B133: PAV
B134: LD 0-10 m3/h | E134: ='Wegingsfactor AD'!$D143*Rekenvolumes!E90 -> 2124845.653 | F134: ='Wegingsfactor AD'!$D143*Rekenvolumes!F90 -> 2908423.225 | G134: ='Wegingsfactor AD'!$D143*Rekenvolumes!G90 -> 29425930.38 | H134: ='Wegingsfactor AD'!$D143*Rekenvolumes!H90 -> 918118.5565 | I134: ='Wegingsfactor AD'!$D143*Rekenvolumes!I90 -> 2314677.536 | J134: ='Wegingsfactor AD'!$D143*Rekenvolumes!J90 -> 2900281.029 | K134: ='Wegingsfactor AD'!$D143*Rekenvolumes!K90 -> 33566943.33 | L134: ='Wegingsfactor AD'!$D143*Rekenvolumes!L90 -> 3080894.825 | M134: ='Wegingsfactor AD'!$D143*Rekenvolumes!M90 -> 1572796.187 | N134: ='Wegingsfactor AD'!$D143*Rekenvolumes!N90 -> 770063.9368 | O134: ='Wegingsfactor AD'!$D143*Rekenvolumes!O90 -> 29209355.76 | P134: ='Wegingsfactor AD'!$D143*Rekenvolumes!P90 -> 0 | Q134: =SUM(E134:P134) -> 108792330.4
B135: LD 10-16 m3/h | E135: ='Wegingsfactor AD'!$D144*Rekenvolumes!E91 -> 64.23811401 | F135: ='Wegingsfactor AD'!$D144*Rekenvolumes!F91 -> 0 | G135: ='Wegingsfactor AD'!$D144*Rekenvolumes!G91 -> 232749.2912 | H135: ='Wegingsfactor AD'!$D144*Rekenvolumes!H91 -> 8925.747765 | I135: ='Wegingsfactor AD'!$D144*Rekenvolumes!I91 -> 321.1905701 | J135: ='Wegingsfactor AD'!$D144*Rekenvolumes!J91 -> 127.966961 | K135: ='Wegingsfactor AD'!$D144*Rekenvolumes!K91 -> 257538.7338 | L135: ='Wegingsfactor AD'!$D144*Rekenvolumes!L91 -> 75285.14076 | M135: ='Wegingsfactor AD'!$D144*Rekenvolumes!M91 -> 22001.55405 | N135: ='Wegingsfactor AD'!$D144*Rekenvolumes!N91 -> 13410.0368 | O135: ='Wegingsfactor AD'!$D144*Rekenvolumes!O91 -> 146387.3124 | P135: ='Wegingsfactor AD'!$D144*Rekenvolumes!P91 -> 0 | Q135: =SUM(E135:P135) -> 756811.2125
B136: LD 16-25 m3/h | E136: ='Wegingsfactor AD'!$D145*Rekenvolumes!E92 -> 79934.98691 | F136: ='Wegingsfactor AD'!$D145*Rekenvolumes!F92 -> 97389.25548 | G136: ='Wegingsfactor AD'!$D145*Rekenvolumes!G92 -> 565888.7593 | H136: ='Wegingsfactor AD'!$D145*Rekenvolumes!H92 -> 19532.35735 | I136: ='Wegingsfactor AD'!$D145*Rekenvolumes!I92 -> 79378.67557 | J136: ='Wegingsfactor AD'!$D145*Rekenvolumes!J92 -> 114734.612 | K136: ='Wegingsfactor AD'!$D145*Rekenvolumes!K92 -> 703542.8514 | L136: ='Wegingsfactor AD'!$D145*Rekenvolumes!L92 -> 88199.28094 | M136: ='Wegingsfactor AD'!$D145*Rekenvolumes!M92 -> 39428.56684 | N136: ='Wegingsfactor AD'!$D145*Rekenvolumes!N92 -> 13886.0065 | O136: ='Wegingsfactor AD'!$D145*Rekenvolumes!O92 -> 897248.8879 | P136: ='Wegingsfactor AD'!$D145*Rekenvolumes!P92 -> 0 | Q136: 2699164.24
B137: LD 25-40 m3/h | E137: ='Wegingsfactor AD'!$D146*Rekenvolumes!E93 -> 37328.3281 | F137: ='Wegingsfactor AD'!$D146*Rekenvolumes!F93 -> 33660.30141 | G137: ='Wegingsfactor AD'!$D146*Rekenvolumes!G93 -> 353412.5407 | H137: ='Wegingsfactor AD'!$D146*Rekenvolumes!H93 -> 17454.21667 | I137: ='Wegingsfactor AD'!$D146*Rekenvolumes!I93 -> 30381.11148 | J137: ='Wegingsfactor AD'!$D146*Rekenvolumes!J93 -> 47581.57853 | K137: ='Wegingsfactor AD'!$D146*Rekenvolumes!K93 -> 260084.2619 | L137: ='Wegingsfactor AD'!$D146*Rekenvolumes!L93 -> 55453.13424 | M137: ='Wegingsfactor AD'!$D146*Rekenvolumes!M93 -> 21567.47846 | N137: ='Wegingsfactor AD'!$D146*Rekenvolumes!N93 -> 14661.30257 | O137: ='Wegingsfactor AD'!$D146*Rekenvolumes!O93 -> 421061.5447 | P137: ='Wegingsfactor AD'!$D146*Rekenvolumes!P93 -> 0 | Q137: 1292645.799
B138: LD 40-65 m3/h | E138: ='Wegingsfactor AD'!$D147*Rekenvolumes!E94 -> 12445.66 | F138: ='Wegingsfactor AD'!$D147*Rekenvolumes!F94 -> 10267.6695 | G138: ='Wegingsfactor AD'!$D147*Rekenvolumes!G94 -> 102377.5544 | H138: ='Wegingsfactor AD'!$D147*Rekenvolumes!H94 -> 7799.843831 | I138: ='Wegingsfactor AD'!$D147*Rekenvolumes!I94 -> 103.7138334 | J138: ='Wegingsfactor AD'!$D147*Rekenvolumes!J94 -> 16690.88367 | K138: ='Wegingsfactor AD'!$D147*Rekenvolumes!K94 -> 150601.8413 | L138: ='Wegingsfactor AD'!$D147*Rekenvolumes!L94 -> 24549.41616 | M138: ='Wegingsfactor AD'!$D147*Rekenvolumes!M94 -> 7925.811146 | N138: ='Wegingsfactor AD'!$D147*Rekenvolumes!N94 -> 4330.052543 | O138: ='Wegingsfactor AD'!$D147*Rekenvolumes!O94 -> 135818.1299 | P138: ='Wegingsfactor AD'!$D147*Rekenvolumes!P94 -> 0 | Q138: 472910.5762
B139: LD 65-100 m3/h | E139: ='Wegingsfactor AD'!$D148*Rekenvolumes!E95 -> 12914.30071 | F139: ='Wegingsfactor AD'!$D148*Rekenvolumes!F95 -> 18399.40693 | G139: ='Wegingsfactor AD'!$D148*Rekenvolumes!G95 -> 216046.3734 | H139: ='Wegingsfactor AD'!$D148*Rekenvolumes!H95 -> 9197.830882 | I139: ='Wegingsfactor AD'!$D148*Rekenvolumes!I95 -> 26800.64557 | J139: ='Wegingsfactor AD'!$D148*Rekenvolumes!J95 -> 17017.0845 | K139: ='Wegingsfactor AD'!$D148*Rekenvolumes!K95 -> 299188.8626 | L139: ='Wegingsfactor AD'!$D148*Rekenvolumes!L95 -> 21564.92697 | M139: ='Wegingsfactor AD'!$D148*Rekenvolumes!M95 -> 10182.50952 | N139: ='Wegingsfactor AD'!$D148*Rekenvolumes!N95 -> 12358.84692 | O139: ='Wegingsfactor AD'!$D148*Rekenvolumes!O95 -> 203745.0574 | P139: ='Wegingsfactor AD'!$D148*Rekenvolumes!P95 -> 0 | Q139: 847415.8454
B140: LD 100-160 m3/h | E140: ='Wegingsfactor AD'!$D149*Rekenvolumes!E96 -> 7000.596386 | F140: ='Wegingsfactor AD'!$D149*Rekenvolumes!F96 -> 10556.45487 | G140: ='Wegingsfactor AD'!$D149*Rekenvolumes!G96 -> 207796.9593 | H140: ='Wegingsfactor AD'!$D149*Rekenvolumes!H96 -> 6753.026779 | I140: ='Wegingsfactor AD'!$D149*Rekenvolumes!I96 -> 13890.0722 | J140: ='Wegingsfactor AD'!$D149*Rekenvolumes!J96 -> 22580.06173 | K140: ='Wegingsfactor AD'!$D149*Rekenvolumes!K96 -> 219649.4685 | L140: ='Wegingsfactor AD'!$D149*Rekenvolumes!L96 -> 20645.75822 | M140: ='Wegingsfactor AD'!$D149*Rekenvolumes!M96 -> 4588.72425 | N140: ='Wegingsfactor AD'!$D149*Rekenvolumes!N96 -> 15204.99903 | O140: ='Wegingsfactor AD'!$D149*Rekenvolumes!O96 -> 160265.1555 | P140: ='Wegingsfactor AD'!$D149*Rekenvolumes!P96 -> 0 | Q140: 688931.2767
B141: LD 160-250 m3/h | E141: ='Wegingsfactor AD'!$D150*Rekenvolumes!E97 -> 10112.89748 | F141: ='Wegingsfactor AD'!$D150*Rekenvolumes!F97 -> 10276.00873 | G141: ='Wegingsfactor AD'!$D150*Rekenvolumes!G97 -> 89842.66856 | H141: ='Wegingsfactor AD'!$D150*Rekenvolumes!H97 -> 4869.349097 | I141: ='Wegingsfactor AD'!$D150*Rekenvolumes!I97 -> 13375.12247 | J141: ='Wegingsfactor AD'!$D150*Rekenvolumes!J97 -> 9262.190097 | K141: ='Wegingsfactor AD'!$D150*Rekenvolumes!K97 -> 214578.4459 | L141: ='Wegingsfactor AD'!$D150*Rekenvolumes!L97 -> 10259.93698 | M141: ='Wegingsfactor AD'!$D150*Rekenvolumes!M97 -> 2931.109157 | N141: ='Wegingsfactor AD'!$D150*Rekenvolumes!N97 -> 61003.60738 | O141: ='Wegingsfactor AD'!$D150*Rekenvolumes!O97 -> 100084.1126 | P141: ='Wegingsfactor AD'!$D150*Rekenvolumes!P97 -> 0 | Q141: 526595.4484
B142: LD 250-400 m3/h | E142: ='Wegingsfactor AD'!$D151*Rekenvolumes!E98 -> 4442.001321 | F142: ='Wegingsfactor AD'!$D151*Rekenvolumes!F98 -> 2665.200792 | G142: ='Wegingsfactor AD'!$D151*Rekenvolumes!G98 -> 110277.1222 | H142: ='Wegingsfactor AD'!$D151*Rekenvolumes!H98 -> 2432.67975 | I142: ='Wegingsfactor AD'!$D151*Rekenvolumes!I98 -> 11549.20343 | J142: ='Wegingsfactor AD'!$D151*Rekenvolumes!J98 -> 15041.93583 | K142: ='Wegingsfactor AD'!$D151*Rekenvolumes!K98 -> 170841.8058 | L142: ='Wegingsfactor AD'!$D151*Rekenvolumes!L98 -> 4433.934568 | M142: ='Wegingsfactor AD'!$D151*Rekenvolumes!M98 -> 1938.933576 | N142: ='Wegingsfactor AD'!$D151*Rekenvolumes!N98 -> 116306.4012 | O142: ='Wegingsfactor AD'!$D151*Rekenvolumes!O98 -> 88676.46686 | P142: ='Wegingsfactor AD'!$D151*Rekenvolumes!P98 -> 0 | Q142: 528605.6853
B143: LD 400-650 m3/h | E143: ='Wegingsfactor AD'!$D152*Rekenvolumes!E99 -> 3501.151979 | F143: ='Wegingsfactor AD'!$D152*Rekenvolumes!F99 -> 0 | G143: ='Wegingsfactor AD'!$D152*Rekenvolumes!G99 -> 58859.2421 | H143: ='Wegingsfactor AD'!$D152*Rekenvolumes!H99 -> 0 | I143: ='Wegingsfactor AD'!$D152*Rekenvolumes!I99 -> 8752.879947 | J143: ='Wegingsfactor AD'!$D152*Rekenvolumes!J99 -> 7408.296976 | K143: ='Wegingsfactor AD'!$D152*Rekenvolumes!K99 -> 138141.579 | L143: ='Wegingsfactor AD'!$D152*Rekenvolumes!L99 -> 0 | M143: ='Wegingsfactor AD'!$D152*Rekenvolumes!M99 -> 437.6439973 | N143: ='Wegingsfactor AD'!$D152*Rekenvolumes!N99 -> 145.8813324 | O143: ='Wegingsfactor AD'!$D152*Rekenvolumes!O99 -> 22489.87301 | P143: ='Wegingsfactor AD'!$D152*Rekenvolumes!P99 -> 0 | Q143: 239736.5483
B144: LD 650-1000 m3/h | E144: ='Wegingsfactor AD'!$D153*Rekenvolumes!E100 -> 0 | F144: ='Wegingsfactor AD'!$D153*Rekenvolumes!F100 -> 0 | G144: ='Wegingsfactor AD'!$D153*Rekenvolumes!G100 -> 28606.39012 | H144: ='Wegingsfactor AD'!$D153*Rekenvolumes!H100 -> 0 | I144: ='Wegingsfactor AD'!$D153*Rekenvolumes!I100 -> 2858.598847 | J144: ='Wegingsfactor AD'!$D153*Rekenvolumes!J100 -> 5695.435845 | K144: ='Wegingsfactor AD'!$D153*Rekenvolumes!K100 -> 132723.2938 | L144: ='Wegingsfactor AD'!$D153*Rekenvolumes!L100 -> 0 | M144: ='Wegingsfactor AD'!$D153*Rekenvolumes!M100 -> 0 | N144: ='Wegingsfactor AD'!$D153*Rekenvolumes!N100 -> 1786.624279 | O144: ='Wegingsfactor AD'!$D153*Rekenvolumes!O100 -> 12419.55295 | P144: ='Wegingsfactor AD'!$D153*Rekenvolumes!P100 -> 0 | Q144: 184089.8958
B145: LD 1000-1600 m3/h | E145: ='Wegingsfactor AD'!$D154*Rekenvolumes!E101 -> 0 | F145: ='Wegingsfactor AD'!$D154*Rekenvolumes!F101 -> 384.1996827 | G145: ='Wegingsfactor AD'!$D154*Rekenvolumes!G101 -> 5731.353447 | H145: ='Wegingsfactor AD'!$D154*Rekenvolumes!H101 -> 0 | I145: ='Wegingsfactor AD'!$D154*Rekenvolumes!I101 -> 0 | J145: ='Wegingsfactor AD'!$D154*Rekenvolumes!J101 -> 1529.587409 | K145: ='Wegingsfactor AD'!$D154*Rekenvolumes!K101 -> 31053.79256 | L145: ='Wegingsfactor AD'!$D154*Rekenvolumes!L101 -> 0 | M145: ='Wegingsfactor AD'!$D154*Rekenvolumes!M101 -> 0 | N145: ='Wegingsfactor AD'!$D154*Rekenvolumes!N101 -> 93232.45633 | O145: ='Wegingsfactor AD'!$D154*Rekenvolumes!O101 -> 0 | P145: ='Wegingsfactor AD'!$D154*Rekenvolumes!P101 -> 0 | Q145: 131931.3894
B146: LD 1600-2500 m3/h | E146: ='Wegingsfactor AD'!$D155*Rekenvolumes!E102 -> 0 | F146: ='Wegingsfactor AD'!$D155*Rekenvolumes!F102 -> 0 | G146: ='Wegingsfactor AD'!$D155*Rekenvolumes!G102 -> 6377.476347 | H146: ='Wegingsfactor AD'!$D155*Rekenvolumes!H102 -> 0 | I146: ='Wegingsfactor AD'!$D155*Rekenvolumes!I102 -> 0 | J146: ='Wegingsfactor AD'!$D155*Rekenvolumes!J102 -> 2633.490546 | K146: ='Wegingsfactor AD'!$D155*Rekenvolumes!K102 -> 44977.69618 | L146: ='Wegingsfactor AD'!$D155*Rekenvolumes!L102 -> 0 | M146: ='Wegingsfactor AD'!$D155*Rekenvolumes!M102 -> 0 | N146: ='Wegingsfactor AD'!$D155*Rekenvolumes!N102 -> 0 | O146: ='Wegingsfactor AD'!$D155*Rekenvolumes!O102 -> 0 | P146: ='Wegingsfactor AD'!$D155*Rekenvolumes!P102 -> 0 | Q146: 53988.66308
B147: LD >2500 m3/h | E147: ='Wegingsfactor AD'!$D156*Rekenvolumes!E103 -> 0 | F147: ='Wegingsfactor AD'!$D156*Rekenvolumes!F103 -> 0 | G147: ='Wegingsfactor AD'!$D156*Rekenvolumes!G103 -> 2345.162069 | H147: ='Wegingsfactor AD'!$D156*Rekenvolumes!H103 -> 0 | I147: ='Wegingsfactor AD'!$D156*Rekenvolumes!I103 -> 0 | J147: ='Wegingsfactor AD'!$D156*Rekenvolumes!J103 -> 0 | K147: ='Wegingsfactor AD'!$D156*Rekenvolumes!K103 -> 22084.82186 | L147: ='Wegingsfactor AD'!$D156*Rekenvolumes!L103 -> 0 | M147: ='Wegingsfactor AD'!$D156*Rekenvolumes!M103 -> 0 | N147: ='Wegingsfactor AD'!$D156*Rekenvolumes!N103 -> 15239.09086 | O147: ='Wegingsfactor AD'!$D156*Rekenvolumes!O103 -> 0 | P147: ='Wegingsfactor AD'!$D156*Rekenvolumes!P103 -> 0 | Q147: 39669.0748
B149: HD 0-10 m3/h | E149: ='Wegingsfactor AD'!$D158*Rekenvolumes!E105 -> 0 | F149: ='Wegingsfactor AD'!$D158*Rekenvolumes!F105 -> 0 | G149: ='Wegingsfactor AD'!$D158*Rekenvolumes!G105 -> 0 | H149: ='Wegingsfactor AD'!$D158*Rekenvolumes!H105 -> 0 | I149: ='Wegingsfactor AD'!$D158*Rekenvolumes!I105 -> 0 | J149: ='Wegingsfactor AD'!$D158*Rekenvolumes!J105 -> 0 | K149: ='Wegingsfactor AD'!$D158*Rekenvolumes!K105 -> 0 | L149: ='Wegingsfactor AD'!$D158*Rekenvolumes!L105 -> 0 | M149: ='Wegingsfactor AD'!$D158*Rekenvolumes!M105 -> 0 | N149: ='Wegingsfactor AD'!$D158*Rekenvolumes!N105 -> 0 | O149: ='Wegingsfactor AD'!$D158*Rekenvolumes!O105 -> 0 | P149: ='Wegingsfactor AD'!$D158*Rekenvolumes!P105 -> 0 | Q149: =SUM(E149:P149) -> 0
B150: HD 10-16 m3/h | E150: ='Wegingsfactor AD'!$D159*Rekenvolumes!E106 -> 0 | F150: ='Wegingsfactor AD'!$D159*Rekenvolumes!F106 -> 0 | G150: ='Wegingsfactor AD'!$D159*Rekenvolumes!G106 -> 0 | H150: ='Wegingsfactor AD'!$D159*Rekenvolumes!H106 -> 0 | I150: ='Wegingsfactor AD'!$D159*Rekenvolumes!I106 -> 0 | J150: ='Wegingsfactor AD'!$D159*Rekenvolumes!J106 -> 0 | K150: ='Wegingsfactor AD'!$D159*Rekenvolumes!K106 -> 0 | L150: ='Wegingsfactor AD'!$D159*Rekenvolumes!L106 -> 0 | M150: ='Wegingsfactor AD'!$D159*Rekenvolumes!M106 -> 0 | N150: ='Wegingsfactor AD'!$D159*Rekenvolumes!N106 -> 0 | O150: ='Wegingsfactor AD'!$D159*Rekenvolumes!O106 -> 0 | P150: ='Wegingsfactor AD'!$D159*Rekenvolumes!P106 -> 0 | Q150: =SUM(E150:P150) -> 0
B151: HD 16-25 m3/h | E151: ='Wegingsfactor AD'!$D160*Rekenvolumes!E107 -> 0 | F151: ='Wegingsfactor AD'!$D160*Rekenvolumes!F107 -> 0 | G151: ='Wegingsfactor AD'!$D160*Rekenvolumes!G107 -> 40.12530861 | H151: ='Wegingsfactor AD'!$D160*Rekenvolumes!H107 -> 0 | I151: ='Wegingsfactor AD'!$D160*Rekenvolumes!I107 -> 0 | J151: ='Wegingsfactor AD'!$D160*Rekenvolumes!J107 -> 0 | K151: ='Wegingsfactor AD'!$D160*Rekenvolumes!K107 -> 0 | L151: ='Wegingsfactor AD'!$D160*Rekenvolumes!L107 -> 0 | M151: ='Wegingsfactor AD'!$D160*Rekenvolumes!M107 -> 10.03132715 | N151: ='Wegingsfactor AD'!$D160*Rekenvolumes!N107 -> 0 | O151: ='Wegingsfactor AD'!$D160*Rekenvolumes!O107 -> 0 | P151: ='Wegingsfactor AD'!$D160*Rekenvolumes!P107 -> 0 | Q151: 50.15663576
B152: HD 25-40 m3/h | E152: ='Wegingsfactor AD'!$D161*Rekenvolumes!E108 -> 0 | F152: ='Wegingsfactor AD'!$D161*Rekenvolumes!F108 -> 0 | G152: ='Wegingsfactor AD'!$D161*Rekenvolumes!G108 -> 40.75597316 | H152: ='Wegingsfactor AD'!$D161*Rekenvolumes!H108 -> 0 | I152: ='Wegingsfactor AD'!$D161*Rekenvolumes!I108 -> 0 | J152: ='Wegingsfactor AD'!$D161*Rekenvolumes!J108 -> 0 | K152: ='Wegingsfactor AD'!$D161*Rekenvolumes!K108 -> 0 | L152: ='Wegingsfactor AD'!$D161*Rekenvolumes!L108 -> 10.18899329 | M152: ='Wegingsfactor AD'!$D161*Rekenvolumes!M108 -> 0 | N152: ='Wegingsfactor AD'!$D161*Rekenvolumes!N108 -> 0 | O152: ='Wegingsfactor AD'!$D161*Rekenvolumes!O108 -> 0 | P152: ='Wegingsfactor AD'!$D161*Rekenvolumes!P108 -> 0 | Q152: 50.94496645
B153: HD 40-65 m3/h | E153: ='Wegingsfactor AD'!$D162*Rekenvolumes!E109 -> 0 | F153: ='Wegingsfactor AD'!$D162*Rekenvolumes!F109 -> 0 | G153: ='Wegingsfactor AD'!$D162*Rekenvolumes!G109 -> 8866.558686 | H153: ='Wegingsfactor AD'!$D162*Rekenvolumes!H109 -> 0 | I153: ='Wegingsfactor AD'!$D162*Rekenvolumes!I109 -> 0 | J153: ='Wegingsfactor AD'!$D162*Rekenvolumes!J109 -> 0 | K153: ='Wegingsfactor AD'!$D162*Rekenvolumes!K109 -> 1083.007428 | L153: ='Wegingsfactor AD'!$D162*Rekenvolumes!L109 -> 0 | M153: ='Wegingsfactor AD'!$D162*Rekenvolumes!M109 -> 135.3759284 | N153: ='Wegingsfactor AD'!$D162*Rekenvolumes!N109 -> 0 | O153: ='Wegingsfactor AD'!$D162*Rekenvolumes!O109 -> 11559.15665 | P153: ='Wegingsfactor AD'!$D162*Rekenvolumes!P109 -> 0 | Q153: 21644.09869
B154: HD 65-100 m3/h | E154: ='Wegingsfactor AD'!$D163*Rekenvolumes!E110 -> 523.2097234 | F154: ='Wegingsfactor AD'!$D163*Rekenvolumes!F110 -> 4011.274546 | G154: ='Wegingsfactor AD'!$D163*Rekenvolumes!G110 -> 29172.65948 | H154: ='Wegingsfactor AD'!$D163*Rekenvolumes!H110 -> 0 | I154: ='Wegingsfactor AD'!$D163*Rekenvolumes!I110 -> 348.8064822 | J154: ='Wegingsfactor AD'!$D163*Rekenvolumes!J110 -> 0 | K154: ='Wegingsfactor AD'!$D163*Rekenvolumes!K110 -> 1744.032411 | L154: ='Wegingsfactor AD'!$D163*Rekenvolumes!L110 -> 174.4032411 | M154: ='Wegingsfactor AD'!$D163*Rekenvolumes!M110 -> 1597.533689 | N154: ='Wegingsfactor AD'!$D163*Rekenvolumes!N110 -> 0 | O154: ='Wegingsfactor AD'!$D163*Rekenvolumes!O110 -> 49695.36778 | P154: ='Wegingsfactor AD'!$D163*Rekenvolumes!P110 -> 0 | Q154: 87267.28736
B155: HD 100-160 m3/h | E155: ='Wegingsfactor AD'!$D164*Rekenvolumes!E111 -> 327.985858 | F155: ='Wegingsfactor AD'!$D164*Rekenvolumes!F111 -> 1639.92929 | G155: ='Wegingsfactor AD'!$D164*Rekenvolumes!G111 -> 35458.05803 | H155: ='Wegingsfactor AD'!$D164*Rekenvolumes!H111 -> 0 | I155: ='Wegingsfactor AD'!$D164*Rekenvolumes!I111 -> 327.985858 | J155: ='Wegingsfactor AD'!$D164*Rekenvolumes!J111 -> 491.978787 | K155: ='Wegingsfactor AD'!$D164*Rekenvolumes!K111 -> 1147.950503 | L155: ='Wegingsfactor AD'!$D164*Rekenvolumes!L111 -> 491.978787 | M155: ='Wegingsfactor AD'!$D164*Rekenvolumes!M111 -> 2295.901006 | N155: ='Wegingsfactor AD'!$D164*Rekenvolumes!N111 -> 81.9964645 | O155: ='Wegingsfactor AD'!$D164*Rekenvolumes!O111 -> 57299.20955 | P155: ='Wegingsfactor AD'!$D164*Rekenvolumes!P111 -> 0 | Q155: 99562.97413
B156: HD 160-250 m3/h | E156: ='Wegingsfactor AD'!$D165*Rekenvolumes!E112 -> 5180.092255 | F156: ='Wegingsfactor AD'!$D165*Rekenvolumes!F112 -> 8558.413291 | G156: ='Wegingsfactor AD'!$D165*Rekenvolumes!G112 -> 35853.56026 | H156: ='Wegingsfactor AD'!$D165*Rekenvolumes!H112 -> 450.4428048 | I156: ='Wegingsfactor AD'!$D165*Rekenvolumes!I112 -> 1576.549817 | J156: ='Wegingsfactor AD'!$D165*Rekenvolumes!J112 -> 0 | K156: ='Wegingsfactor AD'!$D165*Rekenvolumes!K112 -> 4504.428048 | L156: ='Wegingsfactor AD'!$D165*Rekenvolumes!L112 -> 2923.717426 | M156: ='Wegingsfactor AD'!$D165*Rekenvolumes!M112 -> 4729.64945 | N156: ='Wegingsfactor AD'!$D165*Rekenvolumes!N112 -> 563.053506 | O156: ='Wegingsfactor AD'!$D165*Rekenvolumes!O112 -> 109084.7389 | P156: ='Wegingsfactor AD'!$D165*Rekenvolumes!P112 -> 0 | Q156: 173424.6458
B157: HD 250-400 m3/h | E157: ='Wegingsfactor AD'!$D166*Rekenvolumes!E113 -> 2629.20721 | F157: ='Wegingsfactor AD'!$D166*Rekenvolumes!F113 -> 5959.536343 | G157: ='Wegingsfactor AD'!$D166*Rekenvolumes!G113 -> 94058.83445 | H157: ='Wegingsfactor AD'!$D166*Rekenvolumes!H113 -> 0 | I157: ='Wegingsfactor AD'!$D166*Rekenvolumes!I113 -> 2278.646249 | J157: ='Wegingsfactor AD'!$D166*Rekenvolumes!J113 -> 175.2804807 | K157: ='Wegingsfactor AD'!$D166*Rekenvolumes!K113 -> 4031.451055 | L157: ='Wegingsfactor AD'!$D166*Rekenvolumes!L113 -> 5774.344971 | M157: ='Wegingsfactor AD'!$D166*Rekenvolumes!M113 -> 3377.654862 | N157: ='Wegingsfactor AD'!$D166*Rekenvolumes!N113 -> 2278.646249 | O157: ='Wegingsfactor AD'!$D166*Rekenvolumes!O113 -> 77996.6067 | P157: ='Wegingsfactor AD'!$D166*Rekenvolumes!P113 -> 0 | Q157: 198560.2086
B158: HD 400-650 m3/h | E158: ='Wegingsfactor AD'!$D167*Rekenvolumes!E114 -> 2405.860648 | F158: ='Wegingsfactor AD'!$D167*Rekenvolumes!F114 -> 4009.767746 | G158: ='Wegingsfactor AD'!$D167*Rekenvolumes!G114 -> 64488.69115 | H158: ='Wegingsfactor AD'!$D167*Rekenvolumes!H114 -> 11182.14883 | I158: ='Wegingsfactor AD'!$D167*Rekenvolumes!I114 -> 4277.085596 | J158: ='Wegingsfactor AD'!$D167*Rekenvolumes!J114 -> 2138.542798 | K158: ='Wegingsfactor AD'!$D167*Rekenvolumes!K114 -> 10692.71399 | L158: ='Wegingsfactor AD'!$D167*Rekenvolumes!L114 -> 18407.32124 | M158: ='Wegingsfactor AD'!$D167*Rekenvolumes!M114 -> 2361.307673 | N158: ='Wegingsfactor AD'!$D167*Rekenvolumes!N114 -> 13098.57464 | O158: ='Wegingsfactor AD'!$D167*Rekenvolumes!O114 -> 76334.46168 | P158: ='Wegingsfactor AD'!$D167*Rekenvolumes!P114 -> 0 | Q158: 209396.476
B159: HD 650-1000 m3/h | E159: ='Wegingsfactor AD'!$D168*Rekenvolumes!E115 -> 1007.667315 | F159: ='Wegingsfactor AD'!$D168*Rekenvolumes!F115 -> 503.8336577 | G159: ='Wegingsfactor AD'!$D168*Rekenvolumes!G115 -> 60906.54349 | H159: ='Wegingsfactor AD'!$D168*Rekenvolumes!H115 -> 501.8882121 | I159: ='Wegingsfactor AD'!$D168*Rekenvolumes!I115 -> 1259.584144 | J159: ='Wegingsfactor AD'!$D168*Rekenvolumes!J115 -> 503.8336577 | K159: ='Wegingsfactor AD'!$D168*Rekenvolumes!K115 -> 8565.17218 | L159: ='Wegingsfactor AD'!$D168*Rekenvolumes!L115 -> 14092.25864 | M159: ='Wegingsfactor AD'!$D168*Rekenvolumes!M115 -> 1274.699154 | N159: ='Wegingsfactor AD'!$D168*Rekenvolumes!N115 -> 8691.130595 | O159: ='Wegingsfactor AD'!$D168*Rekenvolumes!O115 -> 42190.32714 | P159: ='Wegingsfactor AD'!$D168*Rekenvolumes!P115 -> 0 | Q159: 139496.9382
B160: HD 1000-1600 m3/h | E160: ='Wegingsfactor AD'!$D169*Rekenvolumes!E116 -> 0 | F160: ='Wegingsfactor AD'!$D169*Rekenvolumes!F116 -> 791.8093294 | G160: ='Wegingsfactor AD'!$D169*Rekenvolumes!G116 -> 54841.09598 | H160: ='Wegingsfactor AD'!$D169*Rekenvolumes!H116 -> 10229.91587 | I160: ='Wegingsfactor AD'!$D169*Rekenvolumes!I116 -> 1979.523324 | J160: ='Wegingsfactor AD'!$D169*Rekenvolumes!J116 -> 0 | K160: ='Wegingsfactor AD'!$D169*Rekenvolumes!K116 -> 8313.997959 | L160: ='Wegingsfactor AD'!$D169*Rekenvolumes!L116 -> 24122.2053 | M160: ='Wegingsfactor AD'!$D169*Rekenvolumes!M116 -> 2375.427988 | N160: ='Wegingsfactor AD'!$D169*Rekenvolumes!N116 -> 14120.59971 | O160: ='Wegingsfactor AD'!$D169*Rekenvolumes!O116 -> 22099.50712 | P160: ='Wegingsfactor AD'!$D169*Rekenvolumes!P116 -> 0 | Q160: 138874.0826
B161: HD 1600-2500 m3/h | E161: ='Wegingsfactor AD'!$D170*Rekenvolumes!E117 -> 0 | F161: ='Wegingsfactor AD'!$D170*Rekenvolumes!F117 -> 0 | G161: ='Wegingsfactor AD'!$D170*Rekenvolumes!G117 -> 15563.78682 | H161: ='Wegingsfactor AD'!$D170*Rekenvolumes!H117 -> 0 | I161: ='Wegingsfactor AD'!$D170*Rekenvolumes!I117 -> 0 | J161: ='Wegingsfactor AD'!$D170*Rekenvolumes!J117 -> 1295.164234 | K161: ='Wegingsfactor AD'!$D170*Rekenvolumes!K117 -> 3561.701644 | L161: ='Wegingsfactor AD'!$D170*Rekenvolumes!L117 -> 1667.719204 | M161: ='Wegingsfactor AD'!$D170*Rekenvolumes!M117 -> 1618.955293 | N161: ='Wegingsfactor AD'!$D170*Rekenvolumes!N117 -> 2266.53741 | O161: ='Wegingsfactor AD'!$D170*Rekenvolumes!O117 -> 5474.239437 | P161: ='Wegingsfactor AD'!$D170*Rekenvolumes!P117 -> 0 | Q161: 31448.10404
B162: HD >2500 m3/h | E162: ='Wegingsfactor AD'!$D171*Rekenvolumes!E118 -> 0 | F162: ='Wegingsfactor AD'!$D171*Rekenvolumes!F118 -> 0 | G162: ='Wegingsfactor AD'!$D171*Rekenvolumes!G118 -> 6731.054272 | H162: ='Wegingsfactor AD'!$D171*Rekenvolumes!H118 -> 390.2882153 | I162: ='Wegingsfactor AD'!$D171*Rekenvolumes!I118 -> 0 | J162: ='Wegingsfactor AD'!$D171*Rekenvolumes!J118 -> 391.8391428 | K162: ='Wegingsfactor AD'!$D171*Rekenvolumes!K118 -> 1567.356571 | L162: ='Wegingsfactor AD'!$D171*Rekenvolumes!L118 -> 0 | M162: ='Wegingsfactor AD'!$D171*Rekenvolumes!M118 -> 587.7587142 | N162: ='Wegingsfactor AD'!$D171*Rekenvolumes!N118 -> 13877.63631 | O162: ='Wegingsfactor AD'!$D171*Rekenvolumes!O118 -> 617.9072488 | P162: ='Wegingsfactor AD'!$D171*Rekenvolumes!P118 -> 0 | Q162: 24163.84047
B164: EHD 0-40 m3/h | E164: ='Wegingsfactor AD'!$D173*Rekenvolumes!E120 -> 0 | F164: ='Wegingsfactor AD'!$D173*Rekenvolumes!F120 -> 0 | G164: ='Wegingsfactor AD'!$D173*Rekenvolumes!G120 -> 0 | H164: ='Wegingsfactor AD'!$D173*Rekenvolumes!H120 -> 0 | I164: ='Wegingsfactor AD'!$D173*Rekenvolumes!I120 -> 0 | J164: ='Wegingsfactor AD'!$D173*Rekenvolumes!J120 -> 0 | K164: ='Wegingsfactor AD'!$D173*Rekenvolumes!K120 -> 0 | L164: ='Wegingsfactor AD'!$D173*Rekenvolumes!L120 -> 0 | M164: ='Wegingsfactor AD'!$D173*Rekenvolumes!M120 -> 0 | N164: ='Wegingsfactor AD'!$D173*Rekenvolumes!N120 -> 0 | O164: ='Wegingsfactor AD'!$D173*Rekenvolumes!O120 -> 0 | P164: ='Wegingsfactor AD'!$D173*Rekenvolumes!P120 -> 0 | Q164: 0
B165: EHD >40 m3/h | E165: ='Wegingsfactor AD'!$D174*Rekenvolumes!E121 -> 0 | F165: ='Wegingsfactor AD'!$D174*Rekenvolumes!F121 -> 261364.5299 | G165: ='Wegingsfactor AD'!$D174*Rekenvolumes!G121 -> 0 | H165: ='Wegingsfactor AD'!$D174*Rekenvolumes!H121 -> 0 | I165: ='Wegingsfactor AD'!$D174*Rekenvolumes!I121 -> 0 | J165: ='Wegingsfactor AD'!$D174*Rekenvolumes!J121 -> 0 | K165: ='Wegingsfactor AD'!$D174*Rekenvolumes!K121 -> 0 | L165: ='Wegingsfactor AD'!$D174*Rekenvolumes!L121 -> 0 | M165: ='Wegingsfactor AD'!$D174*Rekenvolumes!M121 -> 0 | N165: ='Wegingsfactor AD'!$D174*Rekenvolumes!N121 -> 0 | O165: ='Wegingsfactor AD'!$D174*Rekenvolumes!O121 -> 60314.89151 | P165: ='Wegingsfactor AD'!$D174*Rekenvolumes!P121 -> 0 | Q165: 321679.4214
B167: Subtotaal SO 2010 Aansluitdienst | E167: =SUM(E89:E165) -> 3333467.001 | F167: =SUM(F89:F165) -> 4319049.441 | G167: 44797271.44 | H167: 1267200.336 | I167: 3233900.286 | J167: 4328230.143 | K167: 48007998.39 | L167: 4538808.317 | M167: 2313931.96 | N167: 1730394.307 | O167: 43177340.55 | P167: 0 | Q167: =SUM(Q89:Q165) -> 161047592.2
B169: Samengestelde Output 2010 | E169: =E86+E167 -> 18049980.23 | F169: 25059868.4 | G169: 244058404.4 | H169: 7882121.826 | I169: 19879210.35 | J169: 24606360.99 | K169: 273908551.9 | L169: 27563626.55 | M169: 13159797.44 | N169: 16205158.85 | O169: 249176058.5 | P169: 4366605.99 | Q169: 923915745.4

Sheet Wegingsfactor TD
B2: Wegingsfactor Transportdienst | E2: Cogas Infra & Beheer B.V. | F2: DELTA Netwerkbedrijf B.V. | G2: Stedin B.V. | H2: Endinet Haarlemmermeer B.V. | I2: Intergas Energie B.V. | J2: Endinet Regio Eindhoven B.V. | K2: Liander N.V. | L2: Endinet Oost-Brabant N.V. | M2: N.V. RENDO | N2: Westland Energie Infrastructuur B.V. | O2: Enexis B.V. | P2: Zebra Gasnetwerk B.V.
B4: Tarieven 2010
B6: Kleinverbruik
B7: Vastrecht (TOVT) | C7: € | E7: 18 | F7: 18 | G7: 18 | H7: 18 | I7: 18 | J7: 18 | K7: 18 | L7: 18 | M7: 18 | N7: 18 | O7: 18
B8: Capaciteitsafhankelijk tarief (TAVTc) | C8: € | E8: 25.1698 | F8: 25.2 | G8: 23.2 | H8: 20.7358 | I8: 23.78 | J8: 22.2091 | K8: 23.1 | L8: 22.2091 | M8: 28.11 | N8: 16.94 | O8: 21.9908
B10: Profielgrootverbruik
B11: Vastrecht (TOVT) | C11: € | E11: 18 | F11: 18 | G11: 18 | H11: 18 | I11: 18 | J11: 18 | K11: 18 | L11: 18 | M11: 18 | N11: 18 | O11: 18
B12: Capaciteitsafhankelijk tarief (TAVTc) | C12: € | E12: 25.1698 | F12: 25.2 | G12: 23.2 | H12: 20.1611 | I12: 23.78 | J12: 20.4425 | K12: 23.1 | L12: 21.8503 | M12: 28.11 | N12: 16.94 | O12: 21.9908
B14: Telemetriegrootverbruik (< 16 bar)
B15: Vastrecht (TOVT) | C15: € | E15: 237.48 | F15: 492.36 | G15: 719.04 | H15: 1085.88 | I15: 1082.47 | J15: 590.28 | K15: 540 | L15: 1020.26 | M15: 687 | N15: 60 | O15: 972
B16: Capaciteitsafhankelijk tarief (TAVTc) lage druk | C16: € | E16: 27.48 | F16: 21.06 | K16: 25.4052 | M16: 31.099
B17: Capaciteitsafhankelijk tarief (TAVTc) hoge druk | C17: € | E17: 18.36 | F17: 21.06 | K17: 12.9252 | M17: 23.6
B18: Capaciteitsafhankelijk tarief (TAVTc) standaard | C18: € | G18: 23.2 | H18: 25.4912 | I18: 23.78 | J18: 19.2435 | L18: 19.1699 | N18: 25.55 | O18: 21
B19: Capaciteitsafhankelijk tarief (TAVTc) gestandaardiseerd | C19: € | E19: =IF(E18<>"",E18,SUMPRODUCT(E16:E17,Rekenvolumes!E36:E37)/SUM(Rekenvolumes!E36:E37)) -> 21.19789177 | F19: =IF(F18<>"",F18,SUMPRODUCT(F16:F17,Rekenvolumes!F36:F37)/SUM(Rekenvolumes!F36:F37)) -> 21.06 | G19: =IF(G18<>"",G18,SUMPRODUCT(G16:G17,Rekenvolumes!G36:G37)/SUM(Rekenvolumes!G36:G37)) -> 23.2 | H19: =IF(H18<>"",H18,SUMPRODUCT(H16:H17,Rekenvolumes!H36:H37)/SUM(Rekenvolumes!H36:H37)) -> 25.4912 | I19: =IF(I18<>"",I18,SUMPRODUCT(I16:I17,Rekenvolumes!I36:I37)/SUM(Rekenvolumes!I36:I37)) -> 23.78 | J19: =IF(J18<>"",J18,SUMPRODUCT(J16:J17,Rekenvolumes!J36:J37)/SUM(Rekenvolumes!J36:J37)) -> 19.2435 | K19: =IF(K18<>"",K18,SUMPRODUCT(K16:K17,Rekenvolumes!K36:K37)/SUM(Rekenvolumes!K36:K37)) -> 15.53599205 | L19: =IF(L18<>"",L18,SUMPRODUCT(L16:L17,Rekenvolumes!L36:L37)/SUM(Rekenvolumes!L36:L37)) -> 19.1699 | M19: =IF(M18<>"",M18,SUMPRODUCT(M16:M17,Rekenvolumes!M36:M37)/SUM(Rekenvolumes!M36:M37)) -> 24.56479102 | N19: =IF(N18<>"",N18,SUMPRODUCT(N16:N17,Rekenvolumes!N36:N37)/SUM(Rekenvolumes!N36:N37)) -> 25.55 | O19: =IF(O18<>"",O18,SUMPRODUCT(O16:O17,Rekenvolumes!O36:O37)/SUM(Rekenvolumes!O36:O37)) -> 21
B21: Extra Hoge Druk (>= 16 bar)
B22: Vastrecht (TOVT) | C22: € | F22: 492.36 | O22: 972 | P22: 972
B23: Capaciteitsafhankelijk tarief (TAVTc) | C23: € | F23: 21.06 | O23: 11.4 | P23: 18.175
B25: Totale Inkomsten 2010 (op basis van rekenvolumes 2008-2010) | C25: € | E25: =SUMPRODUCT(E7:E18,Rekenvolumes!E7:E18)+SUMPRODUCT(E22:E23,Rekenvolumes!E21:E22) -> 15525816.53 | F25: =SUMPRODUCT(F7:F18,Rekenvolumes!F7:F18)+SUMPRODUCT(F22:F23,Rekenvolumes!F21:F22) -> 20626947 | G25: =SUMPRODUCT(G7:G18,Rekenvolumes!G7:G18)+SUMPRODUCT(G22:G23,Rekenvolumes!G21:G22) -> 195160361.1 | H25: =SUMPRODUCT(H7:H18,Rekenvolumes!H7:H18)+SUMPRODUCT(H22:H23,Rekenvolumes!H21:H22) -> 6299381.717 | I25: =SUMPRODUCT(I7:I18,Rekenvolumes!I7:I18)+SUMPRODUCT(I22:I23,Rekenvolumes!I21:I22) -> 16944003.69 | J25: =SUMPRODUCT(J7:J18,Rekenvolumes!J7:J18)+SUMPRODUCT(J22:J23,Rekenvolumes!J21:J22) -> 19527074.38 | K25: =SUMPRODUCT(K7:K18,Rekenvolumes!K7:K18)+SUMPRODUCT(K22:K23,Rekenvolumes!K21:K22) -> 222791582 | L25: =SUMPRODUCT(L7:L18,Rekenvolumes!L7:L18)+SUMPRODUCT(L22:L23,Rekenvolumes!L21:L22) -> 21795836.55 | M25: =SUMPRODUCT(M7:M18,Rekenvolumes!M7:M18)+SUMPRODUCT(M22:M23,Rekenvolumes!M21:M22) -> 12692977.32 | N25: =SUMPRODUCT(N7:N18,Rekenvolumes!N7:N18)+SUMPRODUCT(N22:N23,Rekenvolumes!N21:N22) -> 14846180.35 | O25: =SUMPRODUCT(O7:O18,Rekenvolumes!O7:O18)+SUMPRODUCT(O22:O23,Rekenvolumes!O21:O22) -> 197119094.1 | P25: =SUMPRODUCT(P7:P18,Rekenvolumes!P7:P18)+SUMPRODUCT(P22:P23,Rekenvolumes!P21:P22) -> 8137473.85
B27: Correctiebedragen voor nacalculaties 2010 (te verwijderen uit TI 2010)
B29: Nacalculatie tweede reguleringsperiode (Naci,2RP) | C29: € | E29: -425462.3297 | F29: -531697.1103 | G29: -5881711.629 | H29: -183537.682 | I29: -467206.8577 | J29: -581622.1735 | K29: -6681866.458 | L29: -680950.6148 | M29: -343117.1961 | N29: -406719.277 | O29: -6624078.922 | P29: 0
B30: Nacalculatie januari 2007 (Naci,jan2007) | C30: € | E30: 16412.64526 | F30: -83671.61588 | G30: 77837.70908 | H30: -1432.053381 | I30: 5909.124234 | J30: 34255.59438 | K30: -14671.8256 | L30: -30041.5293 | M30: -23722.77982 | N30: 90750.79868 | O30: 119051.5393 | P30: 0
B31: Nacalculatie eerste helft 2008 (Naci,S1_2008) | C31: € | E31: -130890.7378 | F31: -414627.1654 | G31: -1804009.91 | H31: -88687.61772 | I31: -159720.7209 | J31: -311365.388 | K31: -2855458.713 | L31: -254970.8788 | M31: -40081.14295 | N31: -280637.6809 | O31: -2975457.89 | P31: -48897.9549
B32: Nacalculatie TI2008 (Naci,TI2008) | C32: € | E32: 89927.38534 | F32: 162580.2308 | G32: 1368783.618 | H32: 47764.9375 | I32: 98490.98787 | J32: 150422.1676 | K32: 1653355.895 | L32: 169971.5615 | M32: 67739.46541 | N32: 101179.5419 | O32: 1564235.301 | P32: 62959.35532
B33: Nacalculatie TI2009 (Naci,TI2009) | C33: € | E33: 168265.4843 | F33: 295670.817 | G33: 2552013.304 | H33: 86775.4932 | I33: 184100.4873 | J33: 271837.8093 | K33: 3022603.555 | L33: 305868.1395 | M33: 130241.4613 | N33: 190574.8181 | O33: 2799943.178 | P33: 113777.3072
B34: Aanpassing van de nacalculatie tweede reguleringsperiode (Naci,2RPWZ) | C34: € | E34: 241692.5459 | F34: 305841.2592 | G34: 3294035.043 | H34: 108128.0318 | I34: 276699.5516 | J34: 340256.1232 | K34: 3823317.576 | L34: 392731.0548 | M34: 197899.844 | N34: 240622.2677 | O34: 3692035.148 | P34: 0
B35: Aanpassing van de nacalculatie eerste helft 2008 (Naci,S1_2008WZ) | C35: € | E35: 53658.17993 | F35: 377244.6926 | G35: 599396.4318 | H35: 23705.17653 | I35: 48970.58916 | J35: 74827.90689 | K35: 822469.936 | L35: 84093.28597 | M35: 33724.74105 | N35: 16523.00837 | O35: 656326.3152 | P35: -172170.6399
B36: Nacalculatie lokale heffingen (Naci,LH) | C36: € | E36: -35971.1002 | F36: 0 | G36: -448372.5775 | H36: 0 | I36: -19698.16496 | J36: 0 | K36: 551118.7494 | L36: 0 | M36: -40643.92582 | N36: 0 | O36: 260705.8217 | P36: 0
B37: Nacalculatie faillisement Go-Energy (Naci,2010, GoEn) | C37: € | E37: 0 | F37: 0 | G37: 0 | H37: 0 | I37: 0 | J37: 0 | K37: 0 | L37: 0 | M37: 0 | N37: 0 | O37: 107652.2775 | P37: 0
B38: Totaalbedrag nacalculatie in tarieven 2010 | C38: € | E38: =SUM(E29:E37) -> -22367.927 | F38: =SUM(F29:F37) -> 111341.108 | G38: -242028.0102 | H38: -7283.714073 | I38: -32455.00335 | J38: -21387.96005 | K38: 320868.7158 | L38: -13298.98097 | M38: -17959.533 | N38: -47706.52319 | O38: -399587.2312 | P38: -44331.9323
B40: Totale Inkomsten 2010 uit vastrecht kleinverbruik en profielgrootverbruik 2010 | C40: € | E40: =E7*Rekenvolumes!E7+'Wegingsfactor TD'!E11*Rekenvolumes!E11 -> 2343798 | F40: =F7*Rekenvolumes!F7+'Wegingsfactor TD'!F11*Rekenvolumes!F11 -> 3243348 | G40: =G7*Rekenvolumes!G7+'Wegingsfactor TD'!G11*Rekenvolumes!G11 -> 31585824 | H40: =H7*Rekenvolumes!H7+'Wegingsfactor TD'!H11*Rekenvolumes!H11 -> 1017396 | I40: =I7*Rekenvolumes!I7+'Wegingsfactor TD'!I11*Rekenvolumes!I11 -> 2561526 | J40: =J7*Rekenvolumes!J7+'Wegingsfactor TD'!J11*Rekenvolumes!J11 -> 3275622 | K40: =K7*Rekenvolumes!K7+'Wegingsfactor TD'!K11*Rekenvolumes!K11 -> 37600650 | L40: =L7*Rekenvolumes!L7+'Wegingsfactor TD'!L11*Rekenvolumes!L11 -> 3464172 | M40: =M7*Rekenvolumes!M7+'Wegingsfactor TD'!M11*Rekenvolumes!M11 -> 1756440 | N40: =N7*Rekenvolumes!N7+'Wegingsfactor TD'!N11*Rekenvolumes!N11 -> 857214 | O40: =O7*Rekenvolumes!O7+'Wegingsfactor TD'!O11*Rekenvolumes!O11 -> 32562504 | P40: =P7*Rekenvolumes!P7+'Wegingsfactor TD'!P11*Rekenvolumes!P11 -> 0
B41: Totale Inkomsten 2010 uit niet-vastrecht kleinverbruik en profielgrootverbruik 2010 | C41: € | E41: =E25-E40 -> 13182018.53 | F41: 17383599 | G41: 163574537.1 | H41: 5281985.717 | I41: 14382477.69 | J41: 16251452.38 | K41: 185190932 | L41: 18331664.55 | M41: 10936537.32 | N41: 13988966.35 | O41: 164556590.1 | P41: 8137473.85
B42: TI2010 uit niet-vastrecht kleinverbruik en profielgrootverbruik zonder nacalculatie-inkomsten | C42: € | E42: =E41-E38 -> 13204386.46 | F42: =F41-F38 -> 17272257.89 | G42: =G41-G38 -> 163816565.1 | H42: =H41-H38 -> 5289269.431 | I42: =I41-I38 -> 14414932.69 | J42: 16272840.34 | K42: 184870063.3 | L42: 18344963.53 | M42: 10954496.86 | N42: 14036672.87 | O42: 164956177.3 | P42: 8181805.782
B44: Tarieven 2010 gecorrigeerd voor nacalculaties
B46: Kleinverbruik
B47: Vastrecht (TOVT) | C47: € | E47: =E7 -> 18 | F47: =F7 -> 18 | G47: 18 | H47: 18 | I47: 18 | J47: 18 | K47: 18 | L47: 18 | M47: 18 | N47: 18 | O47: 18 | P47: 0
B48: Capaciteitsafhankelijk tarief (TAVTc) | C48: € | E48: =E8*(E$42/E$41) -> 25.21250941 | F48: =F8*(F$42/F$41) -> 25.03859522 | G48: 23.23432716 | H48: 20.7643941 | I48: 23.83366113 | J48: 22.23832861 | K48: 23.05997608 | L48: 22.22521192 | M48: 28.15616109 | N48: 16.99777042 | O48: 22.04419952 | P48: 0
B50: Profielgrootverbruik
B51: Vastrecht (TOVT) | C51: € | E51: =E11 -> 18 | F51: =F11 -> 18 | G51: 18 | H51: 18 | I51: 18 | J51: 18 | K51: 18 | L51: 18 | M51: 18 | N51: 18 | O51: 18 | P51: 0
B52: Capaciteitsafhankelijk tarief (TAVTc) | C52: € | E52: =E12*(E$42/E$41) -> 25.21250941 | F52: =F12*(F$42/F$41) -> 25.03859522 | G52: 23.23432716 | H52: 20.18890161 | I52: 23.83366113 | J52: 20.46940365 | K52: 23.05997608 | L52: 21.86615163 | M52: 28.15616109 | N52: 16.99777042 | O52: 22.04419952 | P52: 0
B54: Telemetriegrootverbruik (< 16 bar)
B55: Vastrecht (TOVT) | C55: € | E55: =E15*(E$42/E$41) -> 237.8829683 | F55: =F15*(F$42/F$41) -> 489.2064581 | G55: 720.1039053 | H55: 1087.377399 | I55: 1084.912664 | J55: 591.0568466 | K55: 539.0643759 | L55: 1021.000163 | M55: 688.1281632 | N55: 60.20461779 | O55: 974.3602749 | P55: 0
B56: Capaciteitsafhankelijk tarief (TAVTc) lage druk | C56: € | E56: =E16*(E$42/E$41) -> 27.52662948 | F56: =F16*(F$42/F$41) -> 20.92511172 | G56: 0 | H56: 0 | I56: 0 | J56: 0 | K56: 25.361182 | L56: 0 | M56: 31.1500695 | N56: 0 | O56: 0 | P56: 0
B57: Capaciteitsafhankelijk tarief (TAVTc) hoge druk | C57: € | E57: =E17*(E$42/E$41) -> 18.39115419 | F57: 20.92511172 | G57: 0 | H57: 0 | I57: 0 | J57: 0 | K57: 12.90280532 | L57: 0 | M57: 23.63875495 | N57: 0 | O57: 0 | P57: 0
B58: Capaciteitsafhankelijk tarief (TAVTc) standaard | C58: € | E58: 0 | F58: 0 | G58: 23.23432716 | H58: 25.52635167 | I58: 23.83366113 | J58: 19.26882569 | K58: 0 | L58: 19.18380709 | M58: 0 | N58: 25.63713308 | O58: 21.05099359 | P58: 0
B60: Extra Hoge Druk (>= 16 bar)
B61: Vastrecht (TOVT) | C61: € | E61: =E22*(E$42/E$41) -> 0 | F61: =F22*(F$42/F$41) -> 489.2064581 | G61: =G22*(G$42/G$41) -> 0 | H61: 0 | I61: 0 | J61: 0 | K61: 0 | L61: 0 | M61: 0 | N61: 0 | O61: =O22*(O$42/O$41) -> 974.3602749 | P61: =P22*(P$42/P$41) -> 977.2953335
B62: Capaciteitsafhankelijk tarief (TAVTc) | C62: € | E62: =E23*(E$42/E$41) -> 0 | F62: =F23*(F$42/F$41) -> 20.92511172 | G62: =G23*(G$42/G$41) -> 0 | H62: 0 | I62: 0 | J62: 0 | K62: 0 | L62: 0 | M62: 0 | N62: 0 | O62: =O23*(O$42/O$41) -> 11.42768224 | P62: =P23*(P$42/P$41) -> 18.27401511
B64: Telemetriegrootverbruik (tbv sectortarieven)
B65: Capaciteitsafhankelijk tarief (TAVTc) gestandaardiseerd | C65: € | E65: =E19*(E$42/E$41) -> 21.23386144 | F65: =F19*(F$42/F$41) -> 20.92511172 | G65: 23.23432716 | H65: 25.52635167 | I65: 23.83366113 | J65: 19.26882569 | K65: 15.50907381 | L65: 19.18380709 | M65: 24.60513031 | N65: 25.63713308 | O65: 21.05099359 | P65: 0
B67: Aanpassing wegingsfactor 2010 Enexis en Zebra
B69: 'Prestatie' EHD Enexis + EHD Zebra (PEHD) | D69: =SUMPRODUCT(O61:P62,Rekenvolumes!O41:P42) -> 10360441.31
B71: Kosten EHD (OPEX + CAPEX) 2009 Enexis | C71: € | D71: =1000*('Kosten TD'!O201+'Kosten TD'!O206) -> 110901.6347
B72: Kosten EHD (OPEX + CAPEX) 2009 Zebra | C72: € | D72: =1000*('Kosten TD'!P201+'Kosten TD'!P206) -> 5114228.669
B73: Kosten Transportdienst 2009 excl. ORV, minus EHD Enexis en Zebra | C73: € | D73: =Eindinkomsten!Q12-'Wegingsfactor TD'!D71-'Wegingsfactor TD'!D72 -> 847132246.1
B74: SO Transportdienst 2010 excl. EHD Enexis en Zebra | D74: =SUM(SO!E71:N84)+SUM(SO!O71:P80) -> 758191610.8
B76: 'Gecorrigeerde prestatie' EHD Enexis + EHD Zebra (GPEHD) | D76: =((D71+D72)*D74)/D73 -> 4676542.511
B78: Wegingsfactor 2010 Transportdienst
B80: Kleinverbruik
B81: Vastrecht (TOVT) | D81: =SUMPRODUCT(E47:P47,Rekenvolumes!E27:P27)/SUM(Rekenvolumes!E27:P27) -> 18
B82: Capaciteitsafhankelijk tarief (TAVTc) | D82: =SUMPRODUCT(E48:P48,Rekenvolumes!E28:P28)/SUM(Rekenvolumes!E28:P28) -> 22.9047546
B84: Profielgrootverbruik
B85: Vastrecht (TOVT) | D85: =SUMPRODUCT(E51:P51,Rekenvolumes!E31:P31)/SUM(Rekenvolumes!E31:P31) -> 18
B86: Capaciteitsafhankelijk tarief (TAVTc) | D86: =SUMPRODUCT(E52:P52,Rekenvolumes!E32:P32)/SUM(Rekenvolumes!E32:P32) -> 22.64957157
B88: Telemetriegrootverbruik (< 16 bar)
B89: Vastrecht (TOVT) | D89: =(SUMPRODUCT(E55:P55,Rekenvolumes!E35:P35)+F61*Rekenvolumes!F41)/(SUM(Rekenvolumes!E35:P35)+Rekenvolumes!F41) -> 664.1649349
B90: Capaciteitsafhankelijk tarief (TAVTc) gestandaardiseerd | D90: =(SUMPRODUCT(E65:P65,Rekenvolumes!E38:P38)+F62*Rekenvolumes!F42)/(SUM(Rekenvolumes!E38:P38)+Rekenvolumes!F42) -> 20.8862003
B92: Extra hoge druk (>= 16 bar) Enexis
B93: Vastrecht (TOVT) | D93: =O61*($D$76/$D$69) -> 439.811115
B94: Capaciteitsafhankelijk tarief (TAVTc) | D94: =O62*($D$76/$D$69) -> 5.15827851
B96: Extra hoge druk (>= 16 bar) Zebra
B97: Vastrecht (TOVT) | D97: =P61*($D$76/$D$69) -> 441.135955
B98: Capaciteitsafhankelijk tarief (TAVTc) | D98: =P62*($D$76/$D$69) -> 8.248606977

Sheet Wegingsfactor AD
B2: Wegingsfactor Aansluitdienst | E2: Cogas Infra & Beheer B.V. | F2: DELTA Netwerkbedrijf B.V. | G2: Stedin B.V. | H2: Endinet Haarlemmermeer B.V. | I2: Intergas Energie B.V. | J2: Endinet Regio Eindhoven B.V. | K2: Liander N.V. | L2: Endinet Oost-Brabant N.V. | M2: N.V. RENDO | N2: Westland Energie Infrastructuur B.V. | O2: Enexis B.V. | P2: Zebra Gasnetwerk B.V.
B4: Tarieven 2010 volgens nieuwe tariefstructuur
B6: Eenmalige aansluitvergoeding
B7: LD 0-10 m3/h | C7: € | E7: =IF(Rekenvolumes!E45>0,(1000*'Vergoedingen AD'!E93/Rekenvolumes!E45)*(1+CPIv2009n2010),0) -> 752.7611032 | F7: =IF(Rekenvolumes!F45>0,(1000*'Vergoedingen AD'!F93/Rekenvolumes!F45)*(1+CPIv2009n2010),0) -> 692.68183 | G7: =IF(Rekenvolumes!G45>0,(1000*'Vergoedingen AD'!G93/Rekenvolumes!G45)*(1+CPIv2009n2010),0) -> 625.80179 | H7: =IF(Rekenvolumes!H45>0,(1000*'Vergoedingen AD'!H93/Rekenvolumes!H45)*(1+CPIv2009n2010),0) -> 630.887 | I7: =IF(Rekenvolumes!I45>0,(1000*'Vergoedingen AD'!I93/Rekenvolumes!I45)*(1+CPIv2009n2010),0) -> 674.016 | J7: =IF(Rekenvolumes!J45>0,(1000*'Vergoedingen AD'!J93/Rekenvolumes!J45)*(1+CPIv2009n2010),0) -> 743.5526879 | K7: =IF(Rekenvolumes!K45>0,(1000*'Vergoedingen AD'!K93/Rekenvolumes!K45)*(1+CPIv2009n2010),0) -> 669.0075418 | L7: =IF(Rekenvolumes!L45>0,(1000*'Vergoedingen AD'!L93/Rekenvolumes!L45)*(1+CPIv2009n2010),0) -> 630.887 | M7: =IF(Rekenvolumes!M45>0,(1000*'Vergoedingen AD'!M93/Rekenvolumes!M45)*(1+CPIv2009n2010),0) -> 714.136 | N7: =IF(Rekenvolumes!N45>0,(1000*'Vergoedingen AD'!N93/Rekenvolumes!N45)*(1+CPIv2009n2010),0) -> 814.1453264 | O7: =IF(Rekenvolumes!O45>0,(1000*'Vergoedingen AD'!O93/Rekenvolumes!O45)*(1+CPIv2009n2010),0) -> 633.5475251 | P7: =IF(Rekenvolumes!P45>0,(1000*'Vergoedingen AD'!P93/Rekenvolumes!P45)*(1+CPIv2009n2010),0) -> 0
B8: LD 10-16 m3/h | C8: € | E8: =IF(Rekenvolumes!E46>0,(1000*'Vergoedingen AD'!E94/Rekenvolumes!E46)*(1+CPIv2009n2010),0) -> 0 | F8: =IF(Rekenvolumes!F46>0,(1000*'Vergoedingen AD'!F94/Rekenvolumes!F46)*(1+CPIv2009n2010),0) -> 0 | G8: =IF(Rekenvolumes!G46>0,(1000*'Vergoedingen AD'!G94/Rekenvolumes!G46)*(1+CPIv2009n2010),0) -> 1361.4722 | H8: =IF(Rekenvolumes!H46>0,(1000*'Vergoedingen AD'!H94/Rekenvolumes!H46)*(1+CPIv2009n2010),0) -> 2089.045027 | I8: =IF(Rekenvolumes!I46>0,(1000*'Vergoedingen AD'!I94/Rekenvolumes!I46)*(1+CPIv2009n2010),0) -> 0 | J8: =IF(Rekenvolumes!J46>0,(1000*'Vergoedingen AD'!J94/Rekenvolumes!J46)*(1+CPIv2009n2010),0) -> 0 | K8: =IF(Rekenvolumes!K46>0,(1000*'Vergoedingen AD'!K94/Rekenvolumes!K46)*(1+CPIv2009n2010),0) -> 1538.9284 | L8: =IF(Rekenvolumes!L46>0,(1000*'Vergoedingen AD'!L94/Rekenvolumes!L46)*(1+CPIv2009n2010),0) -> 1408.212 | M8: =IF(Rekenvolumes!M46>0,(1000*'Vergoedingen AD'!M94/Rekenvolumes!M46)*(1+CPIv2009n2010),0) -> 1858.0575 | N8: =IF(Rekenvolumes!N46>0,(1000*'Vergoedingen AD'!N94/Rekenvolumes!N46)*(1+CPIv2009n2010),0) -> 2098.217253 | O8: =IF(Rekenvolumes!O46>0,(1000*'Vergoedingen AD'!O94/Rekenvolumes!O46)*(1+CPIv2009n2010),0) -> 1208.29364 | P8: =IF(Rekenvolumes!P46>0,(1000*'Vergoedingen AD'!P94/Rekenvolumes!P46)*(1+CPIv2009n2010),0) -> 0
B9: LD 16-25 m3/h | C9: € | E9: =IF(Rekenvolumes!E47>0,(1000*'Vergoedingen AD'!E95/Rekenvolumes!E47)*(1+CPIv2009n2010),0) -> 1342.24469 | F9: =IF(Rekenvolumes!F47>0,(1000*'Vergoedingen AD'!F95/Rekenvolumes!F47)*(1+CPIv2009n2010),0) -> 1219.61791 | G9: =IF(Rekenvolumes!G47>0,(1000*'Vergoedingen AD'!G95/Rekenvolumes!G47)*(1+CPIv2009n2010),0) -> 1361.4722 | H9: =IF(Rekenvolumes!H47>0,(1000*'Vergoedingen AD'!H95/Rekenvolumes!H47)*(1+CPIv2009n2010),0) -> 1813.318455 | I9: =IF(Rekenvolumes!I47>0,(1000*'Vergoedingen AD'!I95/Rekenvolumes!I47)*(1+CPIv2009n2010),0) -> 1178.525 | J9: =IF(Rekenvolumes!J47>0,(1000*'Vergoedingen AD'!J95/Rekenvolumes!J47)*(1+CPIv2009n2010),0) -> 2089.67057 | K9: =IF(Rekenvolumes!K47>0,(1000*'Vergoedingen AD'!K95/Rekenvolumes!K47)*(1+CPIv2009n2010),0) -> 1473.885556 | L9: =IF(Rekenvolumes!L47>0,(1000*'Vergoedingen AD'!L95/Rekenvolumes!L47)*(1+CPIv2009n2010),0) -> 1581.127782 | M9: =IF(Rekenvolumes!M47>0,(1000*'Vergoedingen AD'!M95/Rekenvolumes!M47)*(1+CPIv2009n2010),0) -> 1858.0575 | N9: =IF(Rekenvolumes!N47>0,(1000*'Vergoedingen AD'!N95/Rekenvolumes!N47)*(1+CPIv2009n2010),0) -> 2921.42807 | O9: =IF(Rekenvolumes!O47>0,(1000*'Vergoedingen AD'!O95/Rekenvolumes!O47)*(1+CPIv2009n2010),0) -> 1240.185926 | P9: =IF(Rekenvolumes!P47>0,(1000*'Vergoedingen AD'!P95/Rekenvolumes!P47)*(1+CPIv2009n2010),0) -> 0
B10: LD 25-40 m3/h | C10: € | E10: =IF(Rekenvolumes!E48>0,(1000*'Vergoedingen AD'!E96/Rekenvolumes!E48)*(1+CPIv2009n2010),0) -> 1779.2217 | F10: =IF(Rekenvolumes!F48>0,(1000*'Vergoedingen AD'!F96/Rekenvolumes!F48)*(1+CPIv2009n2010),0) -> 1251.80418 | G10: =IF(Rekenvolumes!G48>0,(1000*'Vergoedingen AD'!G96/Rekenvolumes!G48)*(1+CPIv2009n2010),0) -> 2301.21299 | H10: =IF(Rekenvolumes!H48>0,(1000*'Vergoedingen AD'!H96/Rekenvolumes!H48)*(1+CPIv2009n2010),0) -> 3073.717461 | I10: =IF(Rekenvolumes!I48>0,(1000*'Vergoedingen AD'!I96/Rekenvolumes!I48)*(1+CPIv2009n2010),0) -> 1604.8 | J10: =IF(Rekenvolumes!J48>0,(1000*'Vergoedingen AD'!J96/Rekenvolumes!J48)*(1+CPIv2009n2010),0) -> 3064.585389 | K10: =IF(Rekenvolumes!K48>0,(1000*'Vergoedingen AD'!K96/Rekenvolumes!K48)*(1+CPIv2009n2010),0) -> 4157.305581 | L10: =IF(Rekenvolumes!L48>0,(1000*'Vergoedingen AD'!L96/Rekenvolumes!L48)*(1+CPIv2009n2010),0) -> 1707.106 | M10: =IF(Rekenvolumes!M48>0,(1000*'Vergoedingen AD'!M96/Rekenvolumes!M48)*(1+CPIv2009n2010),0) -> 4242.69 | N10: =IF(Rekenvolumes!N48>0,(1000*'Vergoedingen AD'!N96/Rekenvolumes!N48)*(1+CPIv2009n2010),0) -> 3022.017268 | O10: =IF(Rekenvolumes!O48>0,(1000*'Vergoedingen AD'!O96/Rekenvolumes!O48)*(1+CPIv2009n2010),0) -> 1711.509645 | P10: =IF(Rekenvolumes!P48>0,(1000*'Vergoedingen AD'!P96/Rekenvolumes!P48)*(1+CPIv2009n2010),0) -> 0
B11: LD 40-65 m3/h | C11: € | E11: =IF(Rekenvolumes!E49>0,(1000*'Vergoedingen AD'!E97/Rekenvolumes!E49)*(1+CPIv2009n2010),0) -> 1682.98706 | F11: =IF(Rekenvolumes!F49>0,(1000*'Vergoedingen AD'!F97/Rekenvolumes!F49)*(1+CPIv2009n2010),0) -> 6334.872775 | G11: =IF(Rekenvolumes!G49>0,(1000*'Vergoedingen AD'!G97/Rekenvolumes!G49)*(1+CPIv2009n2010),0) -> 1681.381416 | H11: =IF(Rekenvolumes!H49>0,(1000*'Vergoedingen AD'!H97/Rekenvolumes!H49)*(1+CPIv2009n2010),0) -> 2280.710969 | I11: =IF(Rekenvolumes!I49>0,(1000*'Vergoedingen AD'!I97/Rekenvolumes!I49)*(1+CPIv2009n2010),0) -> 1428.7735 | J11: =IF(Rekenvolumes!J49>0,(1000*'Vergoedingen AD'!J97/Rekenvolumes!J49)*(1+CPIv2009n2010),0) -> 5693.702692 | K11: =IF(Rekenvolumes!K49>0,(1000*'Vergoedingen AD'!K97/Rekenvolumes!K49)*(1+CPIv2009n2010),0) -> 0 | L11: =IF(Rekenvolumes!L49>0,(1000*'Vergoedingen AD'!L97/Rekenvolumes!L49)*(1+CPIv2009n2010),0) -> 1402.128805 | M11: =IF(Rekenvolumes!M49>0,(1000*'Vergoedingen AD'!M97/Rekenvolumes!M49)*(1+CPIv2009n2010),0) -> 1544.62 | N11: =IF(Rekenvolumes!N49>0,(1000*'Vergoedingen AD'!N97/Rekenvolumes!N49)*(1+CPIv2009n2010),0) -> 1456.978261 | O11: =IF(Rekenvolumes!O49>0,(1000*'Vergoedingen AD'!O97/Rekenvolumes!O49)*(1+CPIv2009n2010),0) -> 1512.569135 | P11: =IF(Rekenvolumes!P49>0,(1000*'Vergoedingen AD'!P97/Rekenvolumes!P49)*(1+CPIv2009n2010),0) -> 0
B12: LD 65-100 m3/h | C12: € | E12: =IF(Rekenvolumes!E50>0,(1000*'Vergoedingen AD'!E98/Rekenvolumes!E50)*(1+CPIv2009n2010),0) -> 1744.455213 | F12: =IF(Rekenvolumes!F50>0,(1000*'Vergoedingen AD'!F98/Rekenvolumes!F50)*(1+CPIv2009n2010),0) -> 3008.14745 | G12: =IF(Rekenvolumes!G50>0,(1000*'Vergoedingen AD'!G98/Rekenvolumes!G50)*(1+CPIv2009n2010),0) -> 2079.92872 | H12: =IF(Rekenvolumes!H50>0,(1000*'Vergoedingen AD'!H98/Rekenvolumes!H50)*(1+CPIv2009n2010),0) -> 2335.86532 | I12: =IF(Rekenvolumes!I50>0,(1000*'Vergoedingen AD'!I98/Rekenvolumes!I50)*(1+CPIv2009n2010),0) -> 1390.158 | J12: =IF(Rekenvolumes!J50>0,(1000*'Vergoedingen AD'!J98/Rekenvolumes!J50)*(1+CPIv2009n2010),0) -> 1715.547649 | K12: =IF(Rekenvolumes!K50>0,(1000*'Vergoedingen AD'!K98/Rekenvolumes!K50)*(1+CPIv2009n2010),0) -> 1864.417513 | L12: =IF(Rekenvolumes!L50>0,(1000*'Vergoedingen AD'!L98/Rekenvolumes!L50)*(1+CPIv2009n2010),0) -> 3527.91208 | M12: =IF(Rekenvolumes!M50>0,(1000*'Vergoedingen AD'!M98/Rekenvolumes!M50)*(1+CPIv2009n2010),0) -> 1633.43565 | N12: =IF(Rekenvolumes!N50>0,(1000*'Vergoedingen AD'!N98/Rekenvolumes!N50)*(1+CPIv2009n2010),0) -> 0 | O12: =IF(Rekenvolumes!O50>0,(1000*'Vergoedingen AD'!O98/Rekenvolumes!O50)*(1+CPIv2009n2010),0) -> 1655.83264 | P12: =IF(Rekenvolumes!P50>0,(1000*'Vergoedingen AD'!P98/Rekenvolumes!P50)*(1+CPIv2009n2010),0) -> 0
B13: LD 100-160 m3/h | C13: € | E13: =IF(Rekenvolumes!E51>0,(1000*'Vergoedingen AD'!E99/Rekenvolumes!E51)*(1+CPIv2009n2010),0) -> 0 | F13: =IF(Rekenvolumes!F51>0,(1000*'Vergoedingen AD'!F99/Rekenvolumes!F51)*(1+CPIv2009n2010),0) -> 4608.759925 | G13: =IF(Rekenvolumes!G51>0,(1000*'Vergoedingen AD'!G99/Rekenvolumes!G51)*(1+CPIv2009n2010),0) -> 2298.032311 | H13: =IF(Rekenvolumes!H51>0,(1000*'Vergoedingen AD'!H99/Rekenvolumes!H51)*(1+CPIv2009n2010),0) -> 0 | I13: =IF(Rekenvolumes!I51>0,(1000*'Vergoedingen AD'!I99/Rekenvolumes!I51)*(1+CPIv2009n2010),0) -> 1776.313 | J13: =IF(Rekenvolumes!J51>0,(1000*'Vergoedingen AD'!J99/Rekenvolumes!J51)*(1+CPIv2009n2010),0) -> 2320.66798 | K13: =IF(Rekenvolumes!K51>0,(1000*'Vergoedingen AD'!K99/Rekenvolumes!K51)*(1+CPIv2009n2010),0) -> 4204.422061 | L13: =IF(Rekenvolumes!L51>0,(1000*'Vergoedingen AD'!L99/Rekenvolumes!L51)*(1+CPIv2009n2010),0) -> 2635.089974 | M13: =IF(Rekenvolumes!M51>0,(1000*'Vergoedingen AD'!M99/Rekenvolumes!M51)*(1+CPIv2009n2010),0) -> 0 | N13: =IF(Rekenvolumes!N51>0,(1000*'Vergoedingen AD'!N99/Rekenvolumes!N51)*(1+CPIv2009n2010),0) -> 4253.680105 | O13: =IF(Rekenvolumes!O51>0,(1000*'Vergoedingen AD'!O99/Rekenvolumes!O51)*(1+CPIv2009n2010),0) -> 2461.738125 | P13: =IF(Rekenvolumes!P51>0,(1000*'Vergoedingen AD'!P99/Rekenvolumes!P51)*(1+CPIv2009n2010),0) -> 0
B14: LD 160-250 m3/h | C14: € | E14: =IF(Rekenvolumes!E52>0,(1000*'Vergoedingen AD'!E100/Rekenvolumes!E52)*(1+CPIv2009n2010),0) -> 0 | F14: =IF(Rekenvolumes!F52>0,(1000*'Vergoedingen AD'!F100/Rekenvolumes!F52)*(1+CPIv2009n2010),0) -> 0 | G14: =IF(Rekenvolumes!G52>0,(1000*'Vergoedingen AD'!G100/Rekenvolumes!G52)*(1+CPIv2009n2010),0) -> 0 | H14: =IF(Rekenvolumes!H52>0,(1000*'Vergoedingen AD'!H100/Rekenvolumes!H52)*(1+CPIv2009n2010),0) -> 3521.710052 | I14: =IF(Rekenvolumes!I52>0,(1000*'Vergoedingen AD'!I100/Rekenvolumes!I52)*(1+CPIv2009n2010),0) -> 0 | J14: =IF(Rekenvolumes!J52>0,(1000*'Vergoedingen AD'!J100/Rekenvolumes!J52)*(1+CPIv2009n2010),0) -> 0 | K14: =IF(Rekenvolumes!K52>0,(1000*'Vergoedingen AD'!K100/Rekenvolumes!K52)*(1+CPIv2009n2010),0) -> 7992.250035 | L14: =IF(Rekenvolumes!L52>0,(1000*'Vergoedingen AD'!L100/Rekenvolumes!L52)*(1+CPIv2009n2010),0) -> 0 | M14: =IF(Rekenvolumes!M52>0,(1000*'Vergoedingen AD'!M100/Rekenvolumes!M52)*(1+CPIv2009n2010),0) -> 0 | N14: =IF(Rekenvolumes!N52>0,(1000*'Vergoedingen AD'!N100/Rekenvolumes!N52)*(1+CPIv2009n2010),0) -> 0 | O14: =IF(Rekenvolumes!O52>0,(1000*'Vergoedingen AD'!O100/Rekenvolumes!O52)*(1+CPIv2009n2010),0) -> 3217.87979 | P14: =IF(Rekenvolumes!P52>0,(1000*'Vergoedingen AD'!P100/Rekenvolumes!P52)*(1+CPIv2009n2010),0) -> 0
B15: LD 250-400 m3/h | C15: € | E15: =IF(Rekenvolumes!E53>0,(1000*'Vergoedingen AD'!E101/Rekenvolumes!E53)*(1+CPIv2009n2010),0) -> 0 | F15: =IF(Rekenvolumes!F53>0,(1000*'Vergoedingen AD'!F101/Rekenvolumes!F53)*(1+CPIv2009n2010),0) -> 0 | G15: =IF(Rekenvolumes!G53>0,(1000*'Vergoedingen AD'!G101/Rekenvolumes!G53)*(1+CPIv2009n2010),0) -> 0 | H15: =IF(Rekenvolumes!H53>0,(1000*'Vergoedingen AD'!H101/Rekenvolumes!H53)*(1+CPIv2009n2010),0) -> 0 | I15: =IF(Rekenvolumes!I53>0,(1000*'Vergoedingen AD'!I101/Rekenvolumes!I53)*(1+CPIv2009n2010),0) -> 0 | J15: =IF(Rekenvolumes!J53>0,(1000*'Vergoedingen AD'!J101/Rekenvolumes!J53)*(1+CPIv2009n2010),0) -> 12921.20716 | K15: =IF(Rekenvolumes!K53>0,(1000*'Vergoedingen AD'!K101/Rekenvolumes!K53)*(1+CPIv2009n2010),0) -> 9475.47139 | L15: =IF(Rekenvolumes!L53>0,(1000*'Vergoedingen AD'!L101/Rekenvolumes!L53)*(1+CPIv2009n2010),0) -> 10111.86455 | M15: =IF(Rekenvolumes!M53>0,(1000*'Vergoedingen AD'!M101/Rekenvolumes!M53)*(1+CPIv2009n2010),0) -> 0 | N15: =IF(Rekenvolumes!N53>0,(1000*'Vergoedingen AD'!N101/Rekenvolumes!N53)*(1+CPIv2009n2010),0) -> 6641.182506 | O15: =IF(Rekenvolumes!O53>0,(1000*'Vergoedingen AD'!O101/Rekenvolumes!O53)*(1+CPIv2009n2010),0) -> 406.1867906 | P15: =IF(Rekenvolumes!P53>0,(1000*'Vergoedingen AD'!P101/Rekenvolumes!P53)*(1+CPIv2009n2010),0) -> 0
B16: LD 400-650 m3/h | C16: € | E16: =IF(Rekenvolumes!E54>0,(1000*'Vergoedingen AD'!E102/Rekenvolumes!E54)*(1+CPIv2009n2010),0) -> 0 | F16: =IF(Rekenvolumes!F54>0,(1000*'Vergoedingen AD'!F102/Rekenvolumes!F54)*(1+CPIv2009n2010),0) -> 0 | G16: =IF(Rekenvolumes!G54>0,(1000*'Vergoedingen AD'!G102/Rekenvolumes!G54)*(1+CPIv2009n2010),0) -> 0 | H16: =IF(Rekenvolumes!H54>0,(1000*'Vergoedingen AD'!H102/Rekenvolumes!H54)*(1+CPIv2009n2010),0) -> 0 | I16: =IF(Rekenvolumes!I54>0,(1000*'Vergoedingen AD'!I102/Rekenvolumes!I54)*(1+CPIv2009n2010),0) -> 0 | J16: =IF(Rekenvolumes!J54>0,(1000*'Vergoedingen AD'!J102/Rekenvolumes!J54)*(1+CPIv2009n2010),0) -> 0 | K16: =IF(Rekenvolumes!K54>0,(1000*'Vergoedingen AD'!K102/Rekenvolumes!K54)*(1+CPIv2009n2010),0) -> 9979.403665 | L16: =IF(Rekenvolumes!L54>0,(1000*'Vergoedingen AD'!L102/Rekenvolumes!L54)*(1+CPIv2009n2010),0) -> 0 | M16: =IF(Rekenvolumes!M54>0,(1000*'Vergoedingen AD'!M102/Rekenvolumes!M54)*(1+CPIv2009n2010),0) -> 0 | N16: =IF(Rekenvolumes!N54>0,(1000*'Vergoedingen AD'!N102/Rekenvolumes!N54)*(1+CPIv2009n2010),0) -> 0 | O16: =IF(Rekenvolumes!O54>0,(1000*'Vergoedingen AD'!O102/Rekenvolumes!O54)*(1+CPIv2009n2010),0) -> 0 | P16: =IF(Rekenvolumes!P54>0,(1000*'Vergoedingen AD'!P102/Rekenvolumes!P54)*(1+CPIv2009n2010),0) -> 0
B17: LD 650-1000 m3/h | C17: € | E17: =IF(Rekenvolumes!E55>0,(1000*'Vergoedingen AD'!E103/Rekenvolumes!E55)*(1+CPIv2009n2010),0) -> 0 | F17: =IF(Rekenvolumes!F55>0,(1000*'Vergoedingen AD'!F103/Rekenvolumes!F55)*(1+CPIv2009n2010),0) -> 0 | G17: =IF(Rekenvolumes!G55>0,(1000*'Vergoedingen AD'!G103/Rekenvolumes!G55)*(1+CPIv2009n2010),0) -> 0 | H17: =IF(Rekenvolumes!H55>0,(1000*'Vergoedingen AD'!H103/Rekenvolumes!H55)*(1+CPIv2009n2010),0) -> 0 | I17: =IF(Rekenvolumes!I55>0,(1000*'Vergoedingen AD'!I103/Rekenvolumes!I55)*(1+CPIv2009n2010),0) -> 0 | J17: =IF(Rekenvolumes!J55>0,(1000*'Vergoedingen AD'!J103/Rekenvolumes!J55)*(1+CPIv2009n2010),0) -> 0 | K17: =IF(Rekenvolumes!K55>0,(1000*'Vergoedingen AD'!K103/Rekenvolumes!K55)*(1+CPIv2009n2010),0) -> 0 | L17: =IF(Rekenvolumes!L55>0,(1000*'Vergoedingen AD'!L103/Rekenvolumes!L55)*(1+CPIv2009n2010),0) -> 0 | M17: =IF(Rekenvolumes!M55>0,(1000*'Vergoedingen AD'!M103/Rekenvolumes!M55)*(1+CPIv2009n2010),0) -> 0 | N17: =IF(Rekenvolumes!N55>0,(1000*'Vergoedingen AD'!N103/Rekenvolumes!N55)*(1+CPIv2009n2010),0) -> 0 | O17: =IF(Rekenvolumes!O55>0,(1000*'Vergoedingen AD'!O103/Rekenvolumes!O55)*(1+CPIv2009n2010),0) -> 0 | P17: =IF(Rekenvolumes!P55>0,(1000*'Vergoedingen AD'!P103/Rekenvolumes!P55)*(1+CPIv2009n2010),0) -> 0
B18: LD 1000-1600 m3/h | C18: € | E18: =IF(Rekenvolumes!E56>0,(1000*'Vergoedingen AD'!E104/Rekenvolumes!E56)*(1+CPIv2009n2010),0) -> 0 | F18: =IF(Rekenvolumes!F56>0,(1000*'Vergoedingen AD'!F104/Rekenvolumes!F56)*(1+CPIv2009n2010),0) -> 0 | G18: =IF(Rekenvolumes!G56>0,(1000*'Vergoedingen AD'!G104/Rekenvolumes!G56)*(1+CPIv2009n2010),0) -> 0 | H18: =IF(Rekenvolumes!H56>0,(1000*'Vergoedingen AD'!H104/Rekenvolumes!H56)*(1+CPIv2009n2010),0) -> 0 | I18: =IF(Rekenvolumes!I56>0,(1000*'Vergoedingen AD'!I104/Rekenvolumes!I56)*(1+CPIv2009n2010),0) -> 0 | J18: =IF(Rekenvolumes!J56>0,(1000*'Vergoedingen AD'!J104/Rekenvolumes!J56)*(1+CPIv2009n2010),0) -> 0 | K18: =IF(Rekenvolumes!K56>0,(1000*'Vergoedingen AD'!K104/Rekenvolumes!K56)*(1+CPIv2009n2010),0) -> 0 | L18: =IF(Rekenvolumes!L56>0,(1000*'Vergoedingen AD'!L104/Rekenvolumes!L56)*(1+CPIv2009n2010),0) -> 0 | M18: =IF(Rekenvolumes!M56>0,(1000*'Vergoedingen AD'!M104/Rekenvolumes!M56)*(1+CPIv2009n2010),0) -> 0 | N18: =IF(Rekenvolumes!N56>0,(1000*'Vergoedingen AD'!N104/Rekenvolumes!N56)*(1+CPIv2009n2010),0) -> 0 | O18: =IF(Rekenvolumes!O56>0,(1000*'Vergoedingen AD'!O104/Rekenvolumes!O56)*(1+CPIv2009n2010),0) -> 0 | P18: =IF(Rekenvolumes!P56>0,(1000*'Vergoedingen AD'!P104/Rekenvolumes!P56)*(1+CPIv2009n2010),0) -> 0
B19: LD 1600-2500 m3/h | C19: € | E19: =IF(Rekenvolumes!E57>0,(1000*'Vergoedingen AD'!E105/Rekenvolumes!E57)*(1+CPIv2009n2010),0) -> 0 | F19: =IF(Rekenvolumes!F57>0,(1000*'Vergoedingen AD'!F105/Rekenvolumes!F57)*(1+CPIv2009n2010),0) -> 0 | G19: =IF(Rekenvolumes!G57>0,(1000*'Vergoedingen AD'!G105/Rekenvolumes!G57)*(1+CPIv2009n2010),0) -> 0 | H19: =IF(Rekenvolumes!H57>0,(1000*'Vergoedingen AD'!H105/Rekenvolumes!H57)*(1+CPIv2009n2010),0) -> 0 | I19: =IF(Rekenvolumes!I57>0,(1000*'Vergoedingen AD'!I105/Rekenvolumes!I57)*(1+CPIv2009n2010),0) -> 0 | J19: =IF(Rekenvolumes!J57>0,(1000*'Vergoedingen AD'!J105/Rekenvolumes!J57)*(1+CPIv2009n2010),0) -> 0 | K19: =IF(Rekenvolumes!K57>0,(1000*'Vergoedingen AD'!K105/Rekenvolumes!K57)*(1+CPIv2009n2010),0) -> 0 | L19: =IF(Rekenvolumes!L57>0,(1000*'Vergoedingen AD'!L105/Rekenvolumes!L57)*(1+CPIv2009n2010),0) -> 0 | M19: =IF(Rekenvolumes!M57>0,(1000*'Vergoedingen AD'!M105/Rekenvolumes!M57)*(1+CPIv2009n2010),0) -> 0 | N19: =IF(Rekenvolumes!N57>0,(1000*'Vergoedingen AD'!N105/Rekenvolumes!N57)*(1+CPIv2009n2010),0) -> 0 | O19: =IF(Rekenvolumes!O57>0,(1000*'Vergoedingen AD'!O105/Rekenvolumes!O57)*(1+CPIv2009n2010),0) -> 0 | P19: =IF(Rekenvolumes!P57>0,(1000*'Vergoedingen AD'!P105/Rekenvolumes!P57)*(1+CPIv2009n2010),0) -> 0
B20: LD >2500 m3/h | C20: € | E20: =IF(Rekenvolumes!E58>0,(1000*'Vergoedingen AD'!E106/Rekenvolumes!E58)*(1+CPIv2009n2010),0) -> 0 | F20: =IF(Rekenvolumes!F58>0,(1000*'Vergoedingen AD'!F106/Rekenvolumes!F58)*(1+CPIv2009n2010),0) -> 0 | G20: =IF(Rekenvolumes!G58>0,(1000*'Vergoedingen AD'!G106/Rekenvolumes!G58)*(1+CPIv2009n2010),0) -> 0 | H20: =IF(Rekenvolumes!H58>0,(1000*'Vergoedingen AD'!H106/Rekenvolumes!H58)*(1+CPIv2009n2010),0) -> 0 | I20: =IF(Rekenvolumes!I58>0,(1000*'Vergoedingen AD'!I106/Rekenvolumes!I58)*(1+CPIv2009n2010),0) -> 0 | J20: =IF(Rekenvolumes!J58>0,(1000*'Vergoedingen AD'!J106/Rekenvolumes!J58)*(1+CPIv2009n2010),0) -> 0 | K20: =IF(Rekenvolumes!K58>0,(1000*'Vergoedingen AD'!K106/Rekenvolumes!K58)*(1+CPIv2009n2010),0) -> 0 | L20: =IF(Rekenvolumes!L58>0,(1000*'Vergoedingen AD'!L106/Rekenvolumes!L58)*(1+CPIv2009n2010),0) -> 0 | M20: =IF(Rekenvolumes!M58>0,(1000*'Vergoedingen AD'!M106/Rekenvolumes!M58)*(1+CPIv2009n2010),0) -> 0 | N20: =IF(Rekenvolumes!N58>0,(1000*'Vergoedingen AD'!N106/Rekenvolumes!N58)*(1+CPIv2009n2010),0) -> 0 | O20: =IF(Rekenvolumes!O58>0,(1000*'Vergoedingen AD'!O106/Rekenvolumes!O58)*(1+CPIv2009n2010),0) -> 0 | P20: =IF(Rekenvolumes!P58>0,(1000*'Vergoedingen AD'!P106/Rekenvolumes!P58)*(1+CPIv2009n2010),0) -> 0
B22: HD 0-10 m3/h | C22: € | E22: =IF(Rekenvolumes!E60>0,(1000*'Vergoedingen AD'!E108/Rekenvolumes!E60)*(1+CPIv2009n2010),0) -> 0 | F22: =IF(Rekenvolumes!F60>0,(1000*'Vergoedingen AD'!F108/Rekenvolumes!F60)*(1+CPIv2009n2010),0) -> 0 | G22: =IF(Rekenvolumes!G60>0,(1000*'Vergoedingen AD'!G108/Rekenvolumes!G60)*(1+CPIv2009n2010),0) -> 0 | H22: =IF(Rekenvolumes!H60>0,(1000*'Vergoedingen AD'!H108/Rekenvolumes!H60)*(1+CPIv2009n2010),0) -> 0 | I22: =IF(Rekenvolumes!I60>0,(1000*'Vergoedingen AD'!I108/Rekenvolumes!I60)*(1+CPIv2009n2010),0) -> 0 | J22: =IF(Rekenvolumes!J60>0,(1000*'Vergoedingen AD'!J108/Rekenvolumes!J60)*(1+CPIv2009n2010),0) -> 0 | K22: =IF(Rekenvolumes!K60>0,(1000*'Vergoedingen AD'!K108/Rekenvolumes!K60)*(1+CPIv2009n2010),0) -> 0 | L22: =IF(Rekenvolumes!L60>0,(1000*'Vergoedingen AD'!L108/Rekenvolumes!L60)*(1+CPIv2009n2010),0) -> 0 | M22: =IF(Rekenvolumes!M60>0,(1000*'Vergoedingen AD'!M108/Rekenvolumes!M60)*(1+CPIv2009n2010),0) -> 0 | N22: =IF(Rekenvolumes!N60>0,(1000*'Vergoedingen AD'!N108/Rekenvolumes!N60)*(1+CPIv2009n2010),0) -> 0 | O22: =IF(Rekenvolumes!O60>0,(1000*'Vergoedingen AD'!O108/Rekenvolumes!O60)*(1+CPIv2009n2010),0) -> 0 | P22: =IF(Rekenvolumes!P60>0,(1000*'Vergoedingen AD'!P108/Rekenvolumes!P60)*(1+CPIv2009n2010),0) -> 0
B23: HD 10-16 m3/h | C23: € | E23: =IF(Rekenvolumes!E61>0,(1000*'Vergoedingen AD'!E109/Rekenvolumes!E61)*(1+CPIv2009n2010),0) -> 0 | F23: =IF(Rekenvolumes!F61>0,(1000*'Vergoedingen AD'!F109/Rekenvolumes!F61)*(1+CPIv2009n2010),0) -> 0 | G23: =IF(Rekenvolumes!G61>0,(1000*'Vergoedingen AD'!G109/Rekenvolumes!G61)*(1+CPIv2009n2010),0) -> 0 | H23: =IF(Rekenvolumes!H61>0,(1000*'Vergoedingen AD'!H109/Rekenvolumes!H61)*(1+CPIv2009n2010),0) -> 0 | I23: =IF(Rekenvolumes!I61>0,(1000*'Vergoedingen AD'!I109/Rekenvolumes!I61)*(1+CPIv2009n2010),0) -> 0 | J23: =IF(Rekenvolumes!J61>0,(1000*'Vergoedingen AD'!J109/Rekenvolumes!J61)*(1+CPIv2009n2010),0) -> 0 | K23: =IF(Rekenvolumes!K61>0,(1000*'Vergoedingen AD'!K109/Rekenvolumes!K61)*(1+CPIv2009n2010),0) -> 0 | L23: =IF(Rekenvolumes!L61>0,(1000*'Vergoedingen AD'!L109/Rekenvolumes!L61)*(1+CPIv2009n2010),0) -> 0 | M23: =IF(Rekenvolumes!M61>0,(1000*'Vergoedingen AD'!M109/Rekenvolumes!M61)*(1+CPIv2009n2010),0) -> 0 | N23: =IF(Rekenvolumes!N61>0,(1000*'Vergoedingen AD'!N109/Rekenvolumes!N61)*(1+CPIv2009n2010),0) -> 0 | O23: =IF(Rekenvolumes!O61>0,(1000*'Vergoedingen AD'!O109/Rekenvolumes!O61)*(1+CPIv2009n2010),0) -> 0 | P23: =IF(Rekenvolumes!P61>0,(1000*'Vergoedingen AD'!P109/Rekenvolumes!P61)*(1+CPIv2009n2010),0) -> 0
B24: HD 16-25 m3/h | C24: € | E24: =IF(Rekenvolumes!E62>0,(1000*'Vergoedingen AD'!E110/Rekenvolumes!E62)*(1+CPIv2009n2010),0) -> 0 | F24: =IF(Rekenvolumes!F62>0,(1000*'Vergoedingen AD'!F110/Rekenvolumes!F62)*(1+CPIv2009n2010),0) -> 0 | G24: =IF(Rekenvolumes!G62>0,(1000*'Vergoedingen AD'!G110/Rekenvolumes!G62)*(1+CPIv2009n2010),0) -> 0 | H24: =IF(Rekenvolumes!H62>0,(1000*'Vergoedingen AD'!H110/Rekenvolumes!H62)*(1+CPIv2009n2010),0) -> 0 | I24: =IF(Rekenvolumes!I62>0,(1000*'Vergoedingen AD'!I110/Rekenvolumes!I62)*(1+CPIv2009n2010),0) -> 0 | J24: =IF(Rekenvolumes!J62>0,(1000*'Vergoedingen AD'!J110/Rekenvolumes!J62)*(1+CPIv2009n2010),0) -> 0 | K24: =IF(Rekenvolumes!K62>0,(1000*'Vergoedingen AD'!K110/Rekenvolumes!K62)*(1+CPIv2009n2010),0) -> 0 | L24: =IF(Rekenvolumes!L62>0,(1000*'Vergoedingen AD'!L110/Rekenvolumes!L62)*(1+CPIv2009n2010),0) -> 0 | M24: =IF(Rekenvolumes!M62>0,(1000*'Vergoedingen AD'!M110/Rekenvolumes!M62)*(1+CPIv2009n2010),0) -> 0 | N24: =IF(Rekenvolumes!N62>0,(1000*'Vergoedingen AD'!N110/Rekenvolumes!N62)*(1+CPIv2009n2010),0) -> 0 | O24: =IF(Rekenvolumes!O62>0,(1000*'Vergoedingen AD'!O110/Rekenvolumes!O62)*(1+CPIv2009n2010),0) -> 0 | P24: =IF(Rekenvolumes!P62>0,(1000*'Vergoedingen AD'!P110/Rekenvolumes!P62)*(1+CPIv2009n2010),0) -> 0
B25: HD 25-40 m3/h | C25: € | E25: =IF(Rekenvolumes!E63>0,(1000*'Vergoedingen AD'!E111/Rekenvolumes!E63)*(1+CPIv2009n2010),0) -> 0 | F25: =IF(Rekenvolumes!F63>0,(1000*'Vergoedingen AD'!F111/Rekenvolumes!F63)*(1+CPIv2009n2010),0) -> 0 | G25: =IF(Rekenvolumes!G63>0,(1000*'Vergoedingen AD'!G111/Rekenvolumes!G63)*(1+CPIv2009n2010),0) -> 0 | H25: =IF(Rekenvolumes!H63>0,(1000*'Vergoedingen AD'!H111/Rekenvolumes!H63)*(1+CPIv2009n2010),0) -> 0 | I25: =IF(Rekenvolumes!I63>0,(1000*'Vergoedingen AD'!I111/Rekenvolumes!I63)*(1+CPIv2009n2010),0) -> 0 | J25: =IF(Rekenvolumes!J63>0,(1000*'Vergoedingen AD'!J111/Rekenvolumes!J63)*(1+CPIv2009n2010),0) -> 0 | K25: =IF(Rekenvolumes!K63>0,(1000*'Vergoedingen AD'!K111/Rekenvolumes!K63)*(1+CPIv2009n2010),0) -> 0 | L25: =IF(Rekenvolumes!L63>0,(1000*'Vergoedingen AD'!L111/Rekenvolumes!L63)*(1+CPIv2009n2010),0) -> 0 | M25: =IF(Rekenvolumes!M63>0,(1000*'Vergoedingen AD'!M111/Rekenvolumes!M63)*(1+CPIv2009n2010),0) -> 0 | N25: =IF(Rekenvolumes!N63>0,(1000*'Vergoedingen AD'!N111/Rekenvolumes!N63)*(1+CPIv2009n2010),0) -> 0 | O25: =IF(Rekenvolumes!O63>0,(1000*'Vergoedingen AD'!O111/Rekenvolumes!O63)*(1+CPIv2009n2010),0) -> 0 | P25: =IF(Rekenvolumes!P63>0,(1000*'Vergoedingen AD'!P111/Rekenvolumes!P63)*(1+CPIv2009n2010),0) -> 0
B26: HD 40-65 m3/h | C26: € | E26: =IF(Rekenvolumes!E64>0,(1000*'Vergoedingen AD'!E112/Rekenvolumes!E64)*(1+CPIv2009n2010),0) -> 0 | F26: =IF(Rekenvolumes!F64>0,(1000*'Vergoedingen AD'!F112/Rekenvolumes!F64)*(1+CPIv2009n2010),0) -> 0 | G26: =IF(Rekenvolumes!G64>0,(1000*'Vergoedingen AD'!G112/Rekenvolumes!G64)*(1+CPIv2009n2010),0) -> 3320.387679 | H26: =IF(Rekenvolumes!H64>0,(1000*'Vergoedingen AD'!H112/Rekenvolumes!H64)*(1+CPIv2009n2010),0) -> 0 | I26: =IF(Rekenvolumes!I64>0,(1000*'Vergoedingen AD'!I112/Rekenvolumes!I64)*(1+CPIv2009n2010),0) -> 0 | J26: =IF(Rekenvolumes!J64>0,(1000*'Vergoedingen AD'!J112/Rekenvolumes!J64)*(1+CPIv2009n2010),0) -> 0 | K26: =IF(Rekenvolumes!K64>0,(1000*'Vergoedingen AD'!K112/Rekenvolumes!K64)*(1+CPIv2009n2010),0) -> 0 | L26: =IF(Rekenvolumes!L64>0,(1000*'Vergoedingen AD'!L112/Rekenvolumes!L64)*(1+CPIv2009n2010),0) -> 0 | M26: =IF(Rekenvolumes!M64>0,(1000*'Vergoedingen AD'!M112/Rekenvolumes!M64)*(1+CPIv2009n2010),0) -> 0 | N26: =IF(Rekenvolumes!N64>0,(1000*'Vergoedingen AD'!N112/Rekenvolumes!N64)*(1+CPIv2009n2010),0) -> 0 | O26: =IF(Rekenvolumes!O64>0,(1000*'Vergoedingen AD'!O112/Rekenvolumes!O64)*(1+CPIv2009n2010),0) -> 4527.060008 | P26: =IF(Rekenvolumes!P64>0,(1000*'Vergoedingen AD'!P112/Rekenvolumes!P64)*(1+CPIv2009n2010),0) -> 0
B27: HD 65-100 m3/h | C27: € | E27: =IF(Rekenvolumes!E65>0,(1000*'Vergoedingen AD'!E113/Rekenvolumes!E65)*(1+CPIv2009n2010),0) -> 0 | F27: =IF(Rekenvolumes!F65>0,(1000*'Vergoedingen AD'!F113/Rekenvolumes!F65)*(1+CPIv2009n2010),0) -> 0 | G27: =IF(Rekenvolumes!G65>0,(1000*'Vergoedingen AD'!G113/Rekenvolumes!G65)*(1+CPIv2009n2010),0) -> 4928.394152 | H27: =IF(Rekenvolumes!H65>0,(1000*'Vergoedingen AD'!H113/Rekenvolumes!H65)*(1+CPIv2009n2010),0) -> 0 | I27: =IF(Rekenvolumes!I65>0,(1000*'Vergoedingen AD'!I113/Rekenvolumes!I65)*(1+CPIv2009n2010),0) -> 0 | J27: =IF(Rekenvolumes!J65>0,(1000*'Vergoedingen AD'!J113/Rekenvolumes!J65)*(1+CPIv2009n2010),0) -> 0 | K27: =IF(Rekenvolumes!K65>0,(1000*'Vergoedingen AD'!K113/Rekenvolumes!K65)*(1+CPIv2009n2010),0) -> 4971.35947 | L27: =IF(Rekenvolumes!L65>0,(1000*'Vergoedingen AD'!L113/Rekenvolumes!L65)*(1+CPIv2009n2010),0) -> 0 | M27: =IF(Rekenvolumes!M65>0,(1000*'Vergoedingen AD'!M113/Rekenvolumes!M65)*(1+CPIv2009n2010),0) -> 0 | N27: =IF(Rekenvolumes!N65>0,(1000*'Vergoedingen AD'!N113/Rekenvolumes!N65)*(1+CPIv2009n2010),0) -> 0 | O27: =IF(Rekenvolumes!O65>0,(1000*'Vergoedingen AD'!O113/Rekenvolumes!O65)*(1+CPIv2009n2010),0) -> 4570.336486 | P27: =IF(Rekenvolumes!P65>0,(1000*'Vergoedingen AD'!P113/Rekenvolumes!P65)*(1+CPIv2009n2010),0) -> 0
B28: HD 100-160 m3/h | C28: € | E28: =IF(Rekenvolumes!E66>0,(1000*'Vergoedingen AD'!E114/Rekenvolumes!E66)*(1+CPIv2009n2010),0) -> 0 | F28: =IF(Rekenvolumes!F66>0,(1000*'Vergoedingen AD'!F114/Rekenvolumes!F66)*(1+CPIv2009n2010),0) -> 0 | G28: =IF(Rekenvolumes!G66>0,(1000*'Vergoedingen AD'!G114/Rekenvolumes!G66)*(1+CPIv2009n2010),0) -> 6010.03122 | H28: =IF(Rekenvolumes!H66>0,(1000*'Vergoedingen AD'!H114/Rekenvolumes!H66)*(1+CPIv2009n2010),0) -> 0 | I28: =IF(Rekenvolumes!I66>0,(1000*'Vergoedingen AD'!I114/Rekenvolumes!I66)*(1+CPIv2009n2010),0) -> 0 | J28: =IF(Rekenvolumes!J66>0,(1000*'Vergoedingen AD'!J114/Rekenvolumes!J66)*(1+CPIv2009n2010),0) -> 0 | K28: =IF(Rekenvolumes!K66>0,(1000*'Vergoedingen AD'!K114/Rekenvolumes!K66)*(1+CPIv2009n2010),0) -> 0 | L28: =IF(Rekenvolumes!L66>0,(1000*'Vergoedingen AD'!L114/Rekenvolumes!L66)*(1+CPIv2009n2010),0) -> 0 | M28: =IF(Rekenvolumes!M66>0,(1000*'Vergoedingen AD'!M114/Rekenvolumes!M66)*(1+CPIv2009n2010),0) -> 0 | N28: =IF(Rekenvolumes!N66>0,(1000*'Vergoedingen AD'!N114/Rekenvolumes!N66)*(1+CPIv2009n2010),0) -> 0 | O28: =IF(Rekenvolumes!O66>0,(1000*'Vergoedingen AD'!O114/Rekenvolumes!O66)*(1+CPIv2009n2010),0) -> 6537.580843 | P28: =IF(Rekenvolumes!P66>0,(1000*'Vergoedingen AD'!P114/Rekenvolumes!P66)*(1+CPIv2009n2010),0) -> 0
B29: HD 160-250 m3/h | C29: € | E29: =IF(Rekenvolumes!E67>0,(1000*'Vergoedingen AD'!E115/Rekenvolumes!E67)*(1+CPIv2009n2010),0) -> 0 | F29: =IF(Rekenvolumes!F67>0,(1000*'Vergoedingen AD'!F115/Rekenvolumes!F67)*(1+CPIv2009n2010),0) -> 11096.16392 | G29: =IF(Rekenvolumes!G67>0,(1000*'Vergoedingen AD'!G115/Rekenvolumes!G67)*(1+CPIv2009n2010),0) -> 11101.95625 | H29: =IF(Rekenvolumes!H67>0,(1000*'Vergoedingen AD'!H115/Rekenvolumes!H67)*(1+CPIv2009n2010),0) -> 0 | I29: =IF(Rekenvolumes!I67>0,(1000*'Vergoedingen AD'!I115/Rekenvolumes!I67)*(1+CPIv2009n2010),0) -> 0 | J29: =IF(Rekenvolumes!J67>0,(1000*'Vergoedingen AD'!J115/Rekenvolumes!J67)*(1+CPIv2009n2010),0) -> 0 | K29: =IF(Rekenvolumes!K67>0,(1000*'Vergoedingen AD'!K115/Rekenvolumes!K67)*(1+CPIv2009n2010),0) -> 7992.250035 | L29: =IF(Rekenvolumes!L67>0,(1000*'Vergoedingen AD'!L115/Rekenvolumes!L67)*(1+CPIv2009n2010),0) -> 7578.291875 | M29: =IF(Rekenvolumes!M67>0,(1000*'Vergoedingen AD'!M115/Rekenvolumes!M67)*(1+CPIv2009n2010),0) -> 0 | N29: =IF(Rekenvolumes!N67>0,(1000*'Vergoedingen AD'!N115/Rekenvolumes!N67)*(1+CPIv2009n2010),0) -> 0 | O29: =IF(Rekenvolumes!O67>0,(1000*'Vergoedingen AD'!O115/Rekenvolumes!O67)*(1+CPIv2009n2010),0) -> 12705.34904 | P29: =IF(Rekenvolumes!P67>0,(1000*'Vergoedingen AD'!P115/Rekenvolumes!P67)*(1+CPIv2009n2010),0) -> 0
B30: HD 250-400 m3/h | C30: € | E30: =IF(Rekenvolumes!E68>0,(1000*'Vergoedingen AD'!E116/Rekenvolumes!E68)*(1+CPIv2009n2010),0) -> 0 | F30: =IF(Rekenvolumes!F68>0,(1000*'Vergoedingen AD'!F116/Rekenvolumes!F68)*(1+CPIv2009n2010),0) -> 19114.6725 | G30: =IF(Rekenvolumes!G68>0,(1000*'Vergoedingen AD'!G116/Rekenvolumes!G68)*(1+CPIv2009n2010),0) -> 11020.94093 | H30: =IF(Rekenvolumes!H68>0,(1000*'Vergoedingen AD'!H116/Rekenvolumes!H68)*(1+CPIv2009n2010),0) -> 0 | I30: =IF(Rekenvolumes!I68>0,(1000*'Vergoedingen AD'!I116/Rekenvolumes!I68)*(1+CPIv2009n2010),0) -> 0 | J30: =IF(Rekenvolumes!J68>0,(1000*'Vergoedingen AD'!J116/Rekenvolumes!J68)*(1+CPIv2009n2010),0) -> 0 | K30: =IF(Rekenvolumes!K68>0,(1000*'Vergoedingen AD'!K116/Rekenvolumes!K68)*(1+CPIv2009n2010),0) -> 9475.47139 | L30: =IF(Rekenvolumes!L68>0,(1000*'Vergoedingen AD'!L116/Rekenvolumes!L68)*(1+CPIv2009n2010),0) -> 0 | M30: =IF(Rekenvolumes!M68>0,(1000*'Vergoedingen AD'!M116/Rekenvolumes!M68)*(1+CPIv2009n2010),0) -> 0 | N30: =IF(Rekenvolumes!N68>0,(1000*'Vergoedingen AD'!N116/Rekenvolumes!N68)*(1+CPIv2009n2010),0) -> 0 | O30: =IF(Rekenvolumes!O68>0,(1000*'Vergoedingen AD'!O116/Rekenvolumes!O68)*(1+CPIv2009n2010),0) -> 9804.28913 | P30: =IF(Rekenvolumes!P68>0,(1000*'Vergoedingen AD'!P116/Rekenvolumes!P68)*(1+CPIv2009n2010),0) -> 0
B31: HD 400-650 m3/h | C31: € | E31: =IF(Rekenvolumes!E69>0,(1000*'Vergoedingen AD'!E117/Rekenvolumes!E69)*(1+CPIv2009n2010),0) -> 0 | F31: =IF(Rekenvolumes!F69>0,(1000*'Vergoedingen AD'!F117/Rekenvolumes!F69)*(1+CPIv2009n2010),0) -> 0 | G31: =IF(Rekenvolumes!G69>0,(1000*'Vergoedingen AD'!G117/Rekenvolumes!G69)*(1+CPIv2009n2010),0) -> 11198.495 | H31: =IF(Rekenvolumes!H69>0,(1000*'Vergoedingen AD'!H117/Rekenvolumes!H69)*(1+CPIv2009n2010),0) -> 0 | I31: =IF(Rekenvolumes!I69>0,(1000*'Vergoedingen AD'!I117/Rekenvolumes!I69)*(1+CPIv2009n2010),0) -> 0 | J31: =IF(Rekenvolumes!J69>0,(1000*'Vergoedingen AD'!J117/Rekenvolumes!J69)*(1+CPIv2009n2010),0) -> 0 | K31: =IF(Rekenvolumes!K69>0,(1000*'Vergoedingen AD'!K117/Rekenvolumes!K69)*(1+CPIv2009n2010),0) -> 9979.403665 | L31: =IF(Rekenvolumes!L69>0,(1000*'Vergoedingen AD'!L117/Rekenvolumes!L69)*(1+CPIv2009n2010),0) -> 8476.10225 | M31: =IF(Rekenvolumes!M69>0,(1000*'Vergoedingen AD'!M117/Rekenvolumes!M69)*(1+CPIv2009n2010),0) -> 0 | N31: =IF(Rekenvolumes!N69>0,(1000*'Vergoedingen AD'!N117/Rekenvolumes!N69)*(1+CPIv2009n2010),0) -> 6435.253767 | O31: =IF(Rekenvolumes!O69>0,(1000*'Vergoedingen AD'!O117/Rekenvolumes!O69)*(1+CPIv2009n2010),0) -> 5254.79724 | P31: =IF(Rekenvolumes!P69>0,(1000*'Vergoedingen AD'!P117/Rekenvolumes!P69)*(1+CPIv2009n2010),0) -> 0
B32: HD 650-1000 m3/h | C32: € | E32: =IF(Rekenvolumes!E70>0,(1000*'Vergoedingen AD'!E118/Rekenvolumes!E70)*(1+CPIv2009n2010),0) -> 0 | F32: =IF(Rekenvolumes!F70>0,(1000*'Vergoedingen AD'!F118/Rekenvolumes!F70)*(1+CPIv2009n2010),0) -> 83602.5575 | G32: =IF(Rekenvolumes!G70>0,(1000*'Vergoedingen AD'!G118/Rekenvolumes!G70)*(1+CPIv2009n2010),0) -> 4762.578333 | H32: =IF(Rekenvolumes!H70>0,(1000*'Vergoedingen AD'!H118/Rekenvolumes!H70)*(1+CPIv2009n2010),0) -> 0 | I32: =IF(Rekenvolumes!I70>0,(1000*'Vergoedingen AD'!I118/Rekenvolumes!I70)*(1+CPIv2009n2010),0) -> 0 | J32: =IF(Rekenvolumes!J70>0,(1000*'Vergoedingen AD'!J118/Rekenvolumes!J70)*(1+CPIv2009n2010),0) -> 0 | K32: =IF(Rekenvolumes!K70>0,(1000*'Vergoedingen AD'!K118/Rekenvolumes!K70)*(1+CPIv2009n2010),0) -> 0 | L32: =IF(Rekenvolumes!L70>0,(1000*'Vergoedingen AD'!L118/Rekenvolumes!L70)*(1+CPIv2009n2010),0) -> 0 | M32: =IF(Rekenvolumes!M70>0,(1000*'Vergoedingen AD'!M118/Rekenvolumes!M70)*(1+CPIv2009n2010),0) -> 0 | N32: =IF(Rekenvolumes!N70>0,(1000*'Vergoedingen AD'!N118/Rekenvolumes!N70)*(1+CPIv2009n2010),0) -> 12884.89567 | O32: =IF(Rekenvolumes!O70>0,(1000*'Vergoedingen AD'!O118/Rekenvolumes!O70)*(1+CPIv2009n2010),0) -> 0 | P32: =IF(Rekenvolumes!P70>0,(1000*'Vergoedingen AD'!P118/Rekenvolumes!P70)*(1+CPIv2009n2010),0) -> 0
B33: HD 1000-1600 m3/h | C33: € | E33: =IF(Rekenvolumes!E71>0,(1000*'Vergoedingen AD'!E119/Rekenvolumes!E71)*(1+CPIv2009n2010),0) -> 0 | F33: =IF(Rekenvolumes!F71>0,(1000*'Vergoedingen AD'!F119/Rekenvolumes!F71)*(1+CPIv2009n2010),0) -> 0 | G33: =IF(Rekenvolumes!G71>0,(1000*'Vergoedingen AD'!G119/Rekenvolumes!G71)*(1+CPIv2009n2010),0) -> 4855.281277 | H33: =IF(Rekenvolumes!H71>0,(1000*'Vergoedingen AD'!H119/Rekenvolumes!H71)*(1+CPIv2009n2010),0) -> 0 | I33: =IF(Rekenvolumes!I71>0,(1000*'Vergoedingen AD'!I119/Rekenvolumes!I71)*(1+CPIv2009n2010),0) -> 0 | J33: =IF(Rekenvolumes!J71>0,(1000*'Vergoedingen AD'!J119/Rekenvolumes!J71)*(1+CPIv2009n2010),0) -> 0 | K33: =IF(Rekenvolumes!K71>0,(1000*'Vergoedingen AD'!K119/Rekenvolumes!K71)*(1+CPIv2009n2010),0) -> 0 | L33: =IF(Rekenvolumes!L71>0,(1000*'Vergoedingen AD'!L119/Rekenvolumes!L71)*(1+CPIv2009n2010),0) -> 0 | M33: =IF(Rekenvolumes!M71>0,(1000*'Vergoedingen AD'!M119/Rekenvolumes!M71)*(1+CPIv2009n2010),0) -> 0 | N33: =IF(Rekenvolumes!N71>0,(1000*'Vergoedingen AD'!N119/Rekenvolumes!N71)*(1+CPIv2009n2010),0) -> 7078.499182 | O33: =IF(Rekenvolumes!O71>0,(1000*'Vergoedingen AD'!O119/Rekenvolumes!O71)*(1+CPIv2009n2010),0) -> 0 | P33: =IF(Rekenvolumes!P71>0,(1000*'Vergoedingen AD'!P119/Rekenvolumes!P71)*(1+CPIv2009n2010),0) -> 0
B34: HD 1600-2500 m3/h | C34: € | E34: =IF(Rekenvolumes!E72>0,(1000*'Vergoedingen AD'!E120/Rekenvolumes!E72)*(1+CPIv2009n2010),0) -> 0 | F34: =IF(Rekenvolumes!F72>0,(1000*'Vergoedingen AD'!F120/Rekenvolumes!F72)*(1+CPIv2009n2010),0) -> 0 | G34: =IF(Rekenvolumes!G72>0,(1000*'Vergoedingen AD'!G120/Rekenvolumes!G72)*(1+CPIv2009n2010),0) -> 0 | H34: =IF(Rekenvolumes!H72>0,(1000*'Vergoedingen AD'!H120/Rekenvolumes!H72)*(1+CPIv2009n2010),0) -> 0 | I34: =IF(Rekenvolumes!I72>0,(1000*'Vergoedingen AD'!I120/Rekenvolumes!I72)*(1+CPIv2009n2010),0) -> 0 | J34: =IF(Rekenvolumes!J72>0,(1000*'Vergoedingen AD'!J120/Rekenvolumes!J72)*(1+CPIv2009n2010),0) -> 0 | K34: =IF(Rekenvolumes!K72>0,(1000*'Vergoedingen AD'!K120/Rekenvolumes!K72)*(1+CPIv2009n2010),0) -> 0 | L34: =IF(Rekenvolumes!L72>0,(1000*'Vergoedingen AD'!L120/Rekenvolumes!L72)*(1+CPIv2009n2010),0) -> 9149.942725 | M34: =IF(Rekenvolumes!M72>0,(1000*'Vergoedingen AD'!M120/Rekenvolumes!M72)*(1+CPIv2009n2010),0) -> 0 | N34: =IF(Rekenvolumes!N72>0,(1000*'Vergoedingen AD'!N120/Rekenvolumes!N72)*(1+CPIv2009n2010),0) -> 16176.89214 | O34: =IF(Rekenvolumes!O72>0,(1000*'Vergoedingen AD'!O120/Rekenvolumes!O72)*(1+CPIv2009n2010),0) -> 0 | P34: =IF(Rekenvolumes!P72>0,(1000*'Vergoedingen AD'!P120/Rekenvolumes!P72)*(1+CPIv2009n2010),0) -> 0
B35: HD >2500 m3/h | C35: € | E35: =IF(Rekenvolumes!E73>0,(1000*'Vergoedingen AD'!E121/Rekenvolumes!E73)*(1+CPIv2009n2010),0) -> 0 | F35: =IF(Rekenvolumes!F73>0,(1000*'Vergoedingen AD'!F121/Rekenvolumes!F73)*(1+CPIv2009n2010),0) -> 0 | G35: =IF(Rekenvolumes!G73>0,(1000*'Vergoedingen AD'!G121/Rekenvolumes!G73)*(1+CPIv2009n2010),0) -> 74373.453 | H35: =IF(Rekenvolumes!H73>0,(1000*'Vergoedingen AD'!H121/Rekenvolumes!H73)*(1+CPIv2009n2010),0) -> 0 | I35: =IF(Rekenvolumes!I73>0,(1000*'Vergoedingen AD'!I121/Rekenvolumes!I73)*(1+CPIv2009n2010),0) -> 0 | J35: =IF(Rekenvolumes!J73>0,(1000*'Vergoedingen AD'!J121/Rekenvolumes!J73)*(1+CPIv2009n2010),0) -> 0 | K35: =IF(Rekenvolumes!K73>0,(1000*'Vergoedingen AD'!K121/Rekenvolumes!K73)*(1+CPIv2009n2010),0) -> 0 | L35: =IF(Rekenvolumes!L73>0,(1000*'Vergoedingen AD'!L121/Rekenvolumes!L73)*(1+CPIv2009n2010),0) -> 0 | M35: =IF(Rekenvolumes!M73>0,(1000*'Vergoedingen AD'!M121/Rekenvolumes!M73)*(1+CPIv2009n2010),0) -> 0 | N35: =IF(Rekenvolumes!N73>0,(1000*'Vergoedingen AD'!N121/Rekenvolumes!N73)*(1+CPIv2009n2010),0) -> 0 | O35: =IF(Rekenvolumes!O73>0,(1000*'Vergoedingen AD'!O121/Rekenvolumes!O73)*(1+CPIv2009n2010),0) -> 6880.460325 | P35: =IF(Rekenvolumes!P73>0,(1000*'Vergoedingen AD'!P121/Rekenvolumes!P73)*(1+CPIv2009n2010),0) -> 0
B37: EHD 0-40 m3/h | C37: € | E37: =IF(Rekenvolumes!E75>0,(1000*'Vergoedingen AD'!E123/Rekenvolumes!E75)*(1+CPIv2009n2010),0) -> 0 | F37: =IF(Rekenvolumes!F75>0,(1000*'Vergoedingen AD'!F123/Rekenvolumes!F75)*(1+CPIv2009n2010),0) -> 0 | G37: =IF(Rekenvolumes!G75>0,(1000*'Vergoedingen AD'!G123/Rekenvolumes!G75)*(1+CPIv2009n2010),0) -> 0 | H37: =IF(Rekenvolumes!H75>0,(1000*'Vergoedingen AD'!H123/Rekenvolumes!H75)*(1+CPIv2009n2010),0) -> 0 | I37: =IF(Rekenvolumes!I75>0,(1000*'Vergoedingen AD'!I123/Rekenvolumes!I75)*(1+CPIv2009n2010),0) -> 0 | J37: =IF(Rekenvolumes!J75>0,(1000*'Vergoedingen AD'!J123/Rekenvolumes!J75)*(1+CPIv2009n2010),0) -> 0 | K37: =IF(Rekenvolumes!K75>0,(1000*'Vergoedingen AD'!K123/Rekenvolumes!K75)*(1+CPIv2009n2010),0) -> 0 | L37: =IF(Rekenvolumes!L75>0,(1000*'Vergoedingen AD'!L123/Rekenvolumes!L75)*(1+CPIv2009n2010),0) -> 0 | M37: =IF(Rekenvolumes!M75>0,(1000*'Vergoedingen AD'!M123/Rekenvolumes!M75)*(1+CPIv2009n2010),0) -> 0 | N37: =IF(Rekenvolumes!N75>0,(1000*'Vergoedingen AD'!N123/Rekenvolumes!N75)*(1+CPIv2009n2010),0) -> 0 | O37: =IF(Rekenvolumes!O75>0,(1000*'Vergoedingen AD'!O123/Rekenvolumes!O75)*(1+CPIv2009n2010),0) -> 0 | P37: =IF(Rekenvolumes!P75>0,(1000*'Vergoedingen AD'!P123/Rekenvolumes!P75)*(1+CPIv2009n2010),0) -> 0
B38: EHD >40 m3/h | C38: € | E38: =IF(Rekenvolumes!E76>0,(1000*'Vergoedingen AD'!E124/Rekenvolumes!E76)*(1+CPIv2009n2010),0) -> 0 | F38: =IF(Rekenvolumes!F76>0,(1000*'Vergoedingen AD'!F124/Rekenvolumes!F76)*(1+CPIv2009n2010),0) -> 0 | G38: =IF(Rekenvolumes!G76>0,(1000*'Vergoedingen AD'!G124/Rekenvolumes!G76)*(1+CPIv2009n2010),0) -> 0 | H38: =IF(Rekenvolumes!H76>0,(1000*'Vergoedingen AD'!H124/Rekenvolumes!H76)*(1+CPIv2009n2010),0) -> 0 | I38: =IF(Rekenvolumes!I76>0,(1000*'Vergoedingen AD'!I124/Rekenvolumes!I76)*(1+CPIv2009n2010),0) -> 0 | J38: =IF(Rekenvolumes!J76>0,(1000*'Vergoedingen AD'!J124/Rekenvolumes!J76)*(1+CPIv2009n2010),0) -> 0 | K38: =IF(Rekenvolumes!K76>0,(1000*'Vergoedingen AD'!K124/Rekenvolumes!K76)*(1+CPIv2009n2010),0) -> 0 | L38: =IF(Rekenvolumes!L76>0,(1000*'Vergoedingen AD'!L124/Rekenvolumes!L76)*(1+CPIv2009n2010),0) -> 0 | M38: =IF(Rekenvolumes!M76>0,(1000*'Vergoedingen AD'!M124/Rekenvolumes!M76)*(1+CPIv2009n2010),0) -> 0 | N38: =IF(Rekenvolumes!N76>0,(1000*'Vergoedingen AD'!N124/Rekenvolumes!N76)*(1+CPIv2009n2010),0) -> 0 | O38: =IF(Rekenvolumes!O76>0,(1000*'Vergoedingen AD'!O124/Rekenvolumes!O76)*(1+CPIv2009n2010),0) -> 0 | P38: =IF(Rekenvolumes!P76>0,(1000*'Vergoedingen AD'!P124/Rekenvolumes!P76)*(1+CPIv2009n2010),0) -> 0
B40: Meerlengtevergoeding
B41: LD 0-10 m3/h | C41: € | E41: =IF(Rekenvolumes!E79>0,(1000*'Vergoedingen AD'!E127/Rekenvolumes!E79)*(1+CPIv2009n2010),0) -> 19.26763 | F41: =IF(Rekenvolumes!F79>0,(1000*'Vergoedingen AD'!F127/Rekenvolumes!F79)*(1+CPIv2009n2010),0) -> 10.86249 | G41: =IF(Rekenvolumes!G79>0,(1000*'Vergoedingen AD'!G127/Rekenvolumes!G79)*(1+CPIv2009n2010),0) -> 28.25451 | H41: =IF(Rekenvolumes!H79>0,(1000*'Vergoedingen AD'!H127/Rekenvolumes!H79)*(1+CPIv2009n2010),0) -> 21.5645 | I41: =IF(Rekenvolumes!I79>0,(1000*'Vergoedingen AD'!I127/Rekenvolumes!I79)*(1+CPIv2009n2010),0) -> 0 | J41: =IF(Rekenvolumes!J79>0,(1000*'Vergoedingen AD'!J127/Rekenvolumes!J79)*(1+CPIv2009n2010),0) -> 20.75207 | K41: =IF(Rekenvolumes!K79>0,(1000*'Vergoedingen AD'!K127/Rekenvolumes!K79)*(1+CPIv2009n2010),0) -> 25.02485 | L41: =IF(Rekenvolumes!L79>0,(1000*'Vergoedingen AD'!L127/Rekenvolumes!L79)*(1+CPIv2009n2010),0) -> 21.5645 | M41: =IF(Rekenvolumes!M79>0,(1000*'Vergoedingen AD'!M127/Rekenvolumes!M79)*(1+CPIv2009n2010),0) -> 22.21645 | N41: =IF(Rekenvolumes!N79>0,(1000*'Vergoedingen AD'!N127/Rekenvolumes!N79)*(1+CPIv2009n2010),0) -> 49.40174321 | O41: =IF(Rekenvolumes!O79>0,(1000*'Vergoedingen AD'!O127/Rekenvolumes!O79)*(1+CPIv2009n2010),0) -> 22.5675 | P41: =IF(Rekenvolumes!P79>0,(1000*'Vergoedingen AD'!P127/Rekenvolumes!P79)*(1+CPIv2009n2010),0) -> 0
B42: LD 10-16 m3/h | C42: € | E42: =IF(Rekenvolumes!E80>0,(1000*'Vergoedingen AD'!E128/Rekenvolumes!E80)*(1+CPIv2009n2010),0) -> 19.93964 | F42: =IF(Rekenvolumes!F80>0,(1000*'Vergoedingen AD'!F128/Rekenvolumes!F80)*(1+CPIv2009n2010),0) -> 0 | G42: =IF(Rekenvolumes!G80>0,(1000*'Vergoedingen AD'!G128/Rekenvolumes!G80)*(1+CPIv2009n2010),0) -> 29.41799 | H42: =IF(Rekenvolumes!H80>0,(1000*'Vergoedingen AD'!H128/Rekenvolumes!H80)*(1+CPIv2009n2010),0) -> 21.5645 | I42: =IF(Rekenvolumes!I80>0,(1000*'Vergoedingen AD'!I128/Rekenvolumes!I80)*(1+CPIv2009n2010),0) -> 0 | J42: =IF(Rekenvolumes!J80>0,(1000*'Vergoedingen AD'!J128/Rekenvolumes!J80)*(1+CPIv2009n2010),0) -> 0 | K42: =IF(Rekenvolumes!K80>0,(1000*'Vergoedingen AD'!K128/Rekenvolumes!K80)*(1+CPIv2009n2010),0) -> 25.02485 | L42: =IF(Rekenvolumes!L80>0,(1000*'Vergoedingen AD'!L128/Rekenvolumes!L80)*(1+CPIv2009n2010),0) -> 21.5645 | M42: =IF(Rekenvolumes!M80>0,(1000*'Vergoedingen AD'!M128/Rekenvolumes!M80)*(1+CPIv2009n2010),0) -> 0 | N42: =IF(Rekenvolumes!N80>0,(1000*'Vergoedingen AD'!N128/Rekenvolumes!N80)*(1+CPIv2009n2010),0) -> 40.4209 | O42: =IF(Rekenvolumes!O80>0,(1000*'Vergoedingen AD'!O128/Rekenvolumes!O80)*(1+CPIv2009n2010),0) -> 27.4822 | P42: =IF(Rekenvolumes!P80>0,(1000*'Vergoedingen AD'!P128/Rekenvolumes!P80)*(1+CPIv2009n2010),0) -> 0
B43: LD 16-25 m3/h | C43: € | E43: =IF(Rekenvolumes!E81>0,(1000*'Vergoedingen AD'!E129/Rekenvolumes!E81)*(1+CPIv2009n2010),0) -> 27.97367 | F43: =IF(Rekenvolumes!F81>0,(1000*'Vergoedingen AD'!F129/Rekenvolumes!F81)*(1+CPIv2009n2010),0) -> 11.60471 | G43: =IF(Rekenvolumes!G81>0,(1000*'Vergoedingen AD'!G129/Rekenvolumes!G81)*(1+CPIv2009n2010),0) -> 29.41799 | H43: =IF(Rekenvolumes!H81>0,(1000*'Vergoedingen AD'!H129/Rekenvolumes!H81)*(1+CPIv2009n2010),0) -> 21.5645 | I43: =IF(Rekenvolumes!I81>0,(1000*'Vergoedingen AD'!I129/Rekenvolumes!I81)*(1+CPIv2009n2010),0) -> 0 | J43: =IF(Rekenvolumes!J81>0,(1000*'Vergoedingen AD'!J129/Rekenvolumes!J81)*(1+CPIv2009n2010),0) -> 24.63368 | K43: =IF(Rekenvolumes!K81>0,(1000*'Vergoedingen AD'!K129/Rekenvolumes!K81)*(1+CPIv2009n2010),0) -> 25.02485 | L43: =IF(Rekenvolumes!L81>0,(1000*'Vergoedingen AD'!L129/Rekenvolumes!L81)*(1+CPIv2009n2010),0) -> 21.5645 | M43: =IF(Rekenvolumes!M81>0,(1000*'Vergoedingen AD'!M129/Rekenvolumes!M81)*(1+CPIv2009n2010),0) -> 28.084 | N43: =IF(Rekenvolumes!N81>0,(1000*'Vergoedingen AD'!N129/Rekenvolumes!N81)*(1+CPIv2009n2010),0) -> 0 | O43: =IF(Rekenvolumes!O81>0,(1000*'Vergoedingen AD'!O129/Rekenvolumes!O81)*(1+CPIv2009n2010),0) -> 27.4822 | P43: =IF(Rekenvolumes!P81>0,(1000*'Vergoedingen AD'!P129/Rekenvolumes!P81)*(1+CPIv2009n2010),0) -> 0
B44: LD 25-40 m3/h | C44: € | E44: =IF(Rekenvolumes!E82>0,(1000*'Vergoedingen AD'!E130/Rekenvolumes!E82)*(1+CPIv2009n2010),0) -> 31.95558 | F44: =IF(Rekenvolumes!F82>0,(1000*'Vergoedingen AD'!F130/Rekenvolumes!F82)*(1+CPIv2009n2010),0) -> 0 | G44: =IF(Rekenvolumes!G82>0,(1000*'Vergoedingen AD'!G130/Rekenvolumes!G82)*(1+CPIv2009n2010),0) -> 33.30963 | H44: =IF(Rekenvolumes!H82>0,(1000*'Vergoedingen AD'!H130/Rekenvolumes!H82)*(1+CPIv2009n2010),0) -> 21.5645 | I44: =IF(Rekenvolumes!I82>0,(1000*'Vergoedingen AD'!I130/Rekenvolumes!I82)*(1+CPIv2009n2010),0) -> 0 | J44: =IF(Rekenvolumes!J82>0,(1000*'Vergoedingen AD'!J130/Rekenvolumes!J82)*(1+CPIv2009n2010),0) -> 0 | K44: =IF(Rekenvolumes!K82>0,(1000*'Vergoedingen AD'!K130/Rekenvolumes!K82)*(1+CPIv2009n2010),0) -> 25.02485 | L44: =IF(Rekenvolumes!L82>0,(1000*'Vergoedingen AD'!L130/Rekenvolumes!L82)*(1+CPIv2009n2010),0) -> 21.5645 | M44: =IF(Rekenvolumes!M82>0,(1000*'Vergoedingen AD'!M130/Rekenvolumes!M82)*(1+CPIv2009n2010),0) -> 0 | N44: =IF(Rekenvolumes!N82>0,(1000*'Vergoedingen AD'!N130/Rekenvolumes!N82)*(1+CPIv2009n2010),0) -> 40.4209 | O44: =IF(Rekenvolumes!O82>0,(1000*'Vergoedingen AD'!O130/Rekenvolumes!O82)*(1+CPIv2009n2010),0) -> 27.4822 | P44: =IF(Rekenvolumes!P82>0,(1000*'Vergoedingen AD'!P130/Rekenvolumes!P82)*(1+CPIv2009n2010),0) -> 0
B45: HD 0-10 m3/h | C45: € | E45: =IF(Rekenvolumes!E83>0,(1000*'Vergoedingen AD'!E131/Rekenvolumes!E83)*(1+CPIv2009n2010),0) -> 0 | F45: =IF(Rekenvolumes!F83>0,(1000*'Vergoedingen AD'!F131/Rekenvolumes!F83)*(1+CPIv2009n2010),0) -> 0 | G45: =IF(Rekenvolumes!G83>0,(1000*'Vergoedingen AD'!G131/Rekenvolumes!G83)*(1+CPIv2009n2010),0) -> 0 | H45: =IF(Rekenvolumes!H83>0,(1000*'Vergoedingen AD'!H131/Rekenvolumes!H83)*(1+CPIv2009n2010),0) -> 0 | I45: =IF(Rekenvolumes!I83>0,(1000*'Vergoedingen AD'!I131/Rekenvolumes!I83)*(1+CPIv2009n2010),0) -> 0 | J45: =IF(Rekenvolumes!J83>0,(1000*'Vergoedingen AD'!J131/Rekenvolumes!J83)*(1+CPIv2009n2010),0) -> 0 | K45: =IF(Rekenvolumes!K83>0,(1000*'Vergoedingen AD'!K131/Rekenvolumes!K83)*(1+CPIv2009n2010),0) -> 0 | L45: =IF(Rekenvolumes!L83>0,(1000*'Vergoedingen AD'!L131/Rekenvolumes!L83)*(1+CPIv2009n2010),0) -> 0 | M45: =IF(Rekenvolumes!M83>0,(1000*'Vergoedingen AD'!M131/Rekenvolumes!M83)*(1+CPIv2009n2010),0) -> 0 | N45: =IF(Rekenvolumes!N83>0,(1000*'Vergoedingen AD'!N131/Rekenvolumes!N83)*(1+CPIv2009n2010),0) -> 0 | O45: =IF(Rekenvolumes!O83>0,(1000*'Vergoedingen AD'!O131/Rekenvolumes!O83)*(1+CPIv2009n2010),0) -> 0 | P45: =IF(Rekenvolumes!P83>0,(1000*'Vergoedingen AD'!P131/Rekenvolumes!P83)*(1+CPIv2009n2010),0) -> 0
B46: HD 10-16 m3/h | C46: € | E46: =IF(Rekenvolumes!E84>0,(1000*'Vergoedingen AD'!E132/Rekenvolumes!E84)*(1+CPIv2009n2010),0) -> 0 | F46: =IF(Rekenvolumes!F84>0,(1000*'Vergoedingen AD'!F132/Rekenvolumes!F84)*(1+CPIv2009n2010),0) -> 0 | G46: =IF(Rekenvolumes!G84>0,(1000*'Vergoedingen AD'!G132/Rekenvolumes!G84)*(1+CPIv2009n2010),0) -> 0 | H46: =IF(Rekenvolumes!H84>0,(1000*'Vergoedingen AD'!H132/Rekenvolumes!H84)*(1+CPIv2009n2010),0) -> 0 | I46: =IF(Rekenvolumes!I84>0,(1000*'Vergoedingen AD'!I132/Rekenvolumes!I84)*(1+CPIv2009n2010),0) -> 0 | J46: =IF(Rekenvolumes!J84>0,(1000*'Vergoedingen AD'!J132/Rekenvolumes!J84)*(1+CPIv2009n2010),0) -> 0 | K46: =IF(Rekenvolumes!K84>0,(1000*'Vergoedingen AD'!K132/Rekenvolumes!K84)*(1+CPIv2009n2010),0) -> 0 | L46: =IF(Rekenvolumes!L84>0,(1000*'Vergoedingen AD'!L132/Rekenvolumes!L84)*(1+CPIv2009n2010),0) -> 0 | M46: =IF(Rekenvolumes!M84>0,(1000*'Vergoedingen AD'!M132/Rekenvolumes!M84)*(1+CPIv2009n2010),0) -> 0 | N46: =IF(Rekenvolumes!N84>0,(1000*'Vergoedingen AD'!N132/Rekenvolumes!N84)*(1+CPIv2009n2010),0) -> 0 | O46: =IF(Rekenvolumes!O84>0,(1000*'Vergoedingen AD'!O132/Rekenvolumes!O84)*(1+CPIv2009n2010),0) -> 0 | P46: =IF(Rekenvolumes!P84>0,(1000*'Vergoedingen AD'!P132/Rekenvolumes!P84)*(1+CPIv2009n2010),0) -> 0
B47: HD 16-25 m3/h | C47: € | E47: =IF(Rekenvolumes!E85>0,(1000*'Vergoedingen AD'!E133/Rekenvolumes!E85)*(1+CPIv2009n2010),0) -> 0 | F47: =IF(Rekenvolumes!F85>0,(1000*'Vergoedingen AD'!F133/Rekenvolumes!F85)*(1+CPIv2009n2010),0) -> 0 | G47: =IF(Rekenvolumes!G85>0,(1000*'Vergoedingen AD'!G133/Rekenvolumes!G85)*(1+CPIv2009n2010),0) -> 0 | H47: =IF(Rekenvolumes!H85>0,(1000*'Vergoedingen AD'!H133/Rekenvolumes!H85)*(1+CPIv2009n2010),0) -> 0 | I47: =IF(Rekenvolumes!I85>0,(1000*'Vergoedingen AD'!I133/Rekenvolumes!I85)*(1+CPIv2009n2010),0) -> 0 | J47: =IF(Rekenvolumes!J85>0,(1000*'Vergoedingen AD'!J133/Rekenvolumes!J85)*(1+CPIv2009n2010),0) -> 0 | K47: =IF(Rekenvolumes!K85>0,(1000*'Vergoedingen AD'!K133/Rekenvolumes!K85)*(1+CPIv2009n2010),0) -> 0 | L47: =IF(Rekenvolumes!L85>0,(1000*'Vergoedingen AD'!L133/Rekenvolumes!L85)*(1+CPIv2009n2010),0) -> 0 | M47: =IF(Rekenvolumes!M85>0,(1000*'Vergoedingen AD'!M133/Rekenvolumes!M85)*(1+CPIv2009n2010),0) -> 0 | N47: =IF(Rekenvolumes!N85>0,(1000*'Vergoedingen AD'!N133/Rekenvolumes!N85)*(1+CPIv2009n2010),0) -> 0 | O47: =IF(Rekenvolumes!O85>0,(1000*'Vergoedingen AD'!O133/Rekenvolumes!O85)*(1+CPIv2009n2010),0) -> 0 | P47: =IF(Rekenvolumes!P85>0,(1000*'Vergoedingen AD'!P133/Rekenvolumes!P85)*(1+CPIv2009n2010),0) -> 0
B48: HD 25-40 m3/h | C48: € | E48: =IF(Rekenvolumes!E86>0,(1000*'Vergoedingen AD'!E134/Rekenvolumes!E86)*(1+CPIv2009n2010),0) -> 0 | F48: =IF(Rekenvolumes!F86>0,(1000*'Vergoedingen AD'!F134/Rekenvolumes!F86)*(1+CPIv2009n2010),0) -> 0 | G48: =IF(Rekenvolumes!G86>0,(1000*'Vergoedingen AD'!G134/Rekenvolumes!G86)*(1+CPIv2009n2010),0) -> 0 | H48: =IF(Rekenvolumes!H86>0,(1000*'Vergoedingen AD'!H134/Rekenvolumes!H86)*(1+CPIv2009n2010),0) -> 0 | I48: =IF(Rekenvolumes!I86>0,(1000*'Vergoedingen AD'!I134/Rekenvolumes!I86)*(1+CPIv2009n2010),0) -> 0 | J48: =IF(Rekenvolumes!J86>0,(1000*'Vergoedingen AD'!J134/Rekenvolumes!J86)*(1+CPIv2009n2010),0) -> 0 | K48: =IF(Rekenvolumes!K86>0,(1000*'Vergoedingen AD'!K134/Rekenvolumes!K86)*(1+CPIv2009n2010),0) -> 31.02279 | L48: =IF(Rekenvolumes!L86>0,(1000*'Vergoedingen AD'!L134/Rekenvolumes!L86)*(1+CPIv2009n2010),0) -> 0 | M48: =IF(Rekenvolumes!M86>0,(1000*'Vergoedingen AD'!M134/Rekenvolumes!M86)*(1+CPIv2009n2010),0) -> 0 | N48: =IF(Rekenvolumes!N86>0,(1000*'Vergoedingen AD'!N134/Rekenvolumes!N86)*(1+CPIv2009n2010),0) -> 0 | O48: =IF(Rekenvolumes!O86>0,(1000*'Vergoedingen AD'!O134/Rekenvolumes!O86)*(1+CPIv2009n2010),0) -> 0 | P48: =IF(Rekenvolumes!P86>0,(1000*'Vergoedingen AD'!P134/Rekenvolumes!P86)*(1+CPIv2009n2010),0) -> 0
B49: EHD 0-40 m3/h | C49: € | E49: =IF(Rekenvolumes!E87>0,(1000*'Vergoedingen AD'!E135/Rekenvolumes!E87)*(1+CPIv2009n2010),0) -> 0 | F49: =IF(Rekenvolumes!F87>0,(1000*'Vergoedingen AD'!F135/Rekenvolumes!F87)*(1+CPIv2009n2010),0) -> 0 | G49: =IF(Rekenvolumes!G87>0,(1000*'Vergoedingen AD'!G135/Rekenvolumes!G87)*(1+CPIv2009n2010),0) -> 0 | H49: =IF(Rekenvolumes!H87>0,(1000*'Vergoedingen AD'!H135/Rekenvolumes!H87)*(1+CPIv2009n2010),0) -> 0 | I49: =IF(Rekenvolumes!I87>0,(1000*'Vergoedingen AD'!I135/Rekenvolumes!I87)*(1+CPIv2009n2010),0) -> 0 | J49: =IF(Rekenvolumes!J87>0,(1000*'Vergoedingen AD'!J135/Rekenvolumes!J87)*(1+CPIv2009n2010),0) -> 0 | K49: =IF(Rekenvolumes!K87>0,(1000*'Vergoedingen AD'!K135/Rekenvolumes!K87)*(1+CPIv2009n2010),0) -> 0 | L49: =IF(Rekenvolumes!L87>0,(1000*'Vergoedingen AD'!L135/Rekenvolumes!L87)*(1+CPIv2009n2010),0) -> 0 | M49: =IF(Rekenvolumes!M87>0,(1000*'Vergoedingen AD'!M135/Rekenvolumes!M87)*(1+CPIv2009n2010),0) -> 0 | N49: =IF(Rekenvolumes!N87>0,(1000*'Vergoedingen AD'!N135/Rekenvolumes!N87)*(1+CPIv2009n2010),0) -> 0 | O49: =IF(Rekenvolumes!O87>0,(1000*'Vergoedingen AD'!O135/Rekenvolumes!O87)*(1+CPIv2009n2010),0) -> 0 | P49: =IF(Rekenvolumes!P87>0,(1000*'Vergoedingen AD'!P135/Rekenvolumes!P87)*(1+CPIv2009n2010),0) -> 0
B51: Periodieke aansluitvergoeding
B52: LD 0-10 m3/h | C52: € | E52: =IF(Rekenvolumes!E90>0,(1000*'Vergoedingen AD'!E142/Rekenvolumes!E90)*(1+CPIv2009n2010),0) -> 24.6738 | F52: =IF(Rekenvolumes!F90>0,(1000*'Vergoedingen AD'!F142/Rekenvolumes!F90)*(1+CPIv2009n2010),0) -> 23.83128 | G52: =IF(Rekenvolumes!G90>0,(1000*'Vergoedingen AD'!G142/Rekenvolumes!G90)*(1+CPIv2009n2010),0) -> 22.35707787 | H52: =IF(Rekenvolumes!H90>0,(1000*'Vergoedingen AD'!H142/Rekenvolumes!H90)*(1+CPIv2009n2010),0) -> 22.51271088 | I52: =IF(Rekenvolumes!I90>0,(1000*'Vergoedingen AD'!I142/Rekenvolumes!I90)*(1+CPIv2009n2010),0) -> 39.86925 | J52: =IF(Rekenvolumes!J90>0,(1000*'Vergoedingen AD'!J142/Rekenvolumes!J90)*(1+CPIv2009n2010),0) -> 30.81668699 | K52: =IF(Rekenvolumes!K90>0,(1000*'Vergoedingen AD'!K142/Rekenvolumes!K90)*(1+CPIv2009n2010),0) -> 22.74804 | L52: =IF(Rekenvolumes!L90>0,(1000*'Vergoedingen AD'!L142/Rekenvolumes!L90)*(1+CPIv2009n2010),0) -> 22.52016951 | M52: =IF(Rekenvolumes!M90>0,(1000*'Vergoedingen AD'!M142/Rekenvolumes!M90)*(1+CPIv2009n2010),0) -> 27.93355 | N52: =IF(Rekenvolumes!N90>0,(1000*'Vergoedingen AD'!N142/Rekenvolumes!N90)*(1+CPIv2009n2010),0) -> 8.9267 | O52: =IF(Rekenvolumes!O90>0,(1000*'Vergoedingen AD'!O142/Rekenvolumes!O90)*(1+CPIv2009n2010),0) -> 19.2576 | P52: =IF(Rekenvolumes!P90>0,(1000*'Vergoedingen AD'!P142/Rekenvolumes!P90)*(1+CPIv2009n2010),0) -> 0
B53: LD 10-16 m3/h | C53: € | E53: =IF(Rekenvolumes!E91>0,(1000*'Vergoedingen AD'!E143/Rekenvolumes!E91)*(1+CPIv2009n2010),0) -> 57.41172 | F53: =IF(Rekenvolumes!F91>0,(1000*'Vergoedingen AD'!F143/Rekenvolumes!F91)*(1+CPIv2009n2010),0) -> 0 | G53: =IF(Rekenvolumes!G91>0,(1000*'Vergoedingen AD'!G143/Rekenvolumes!G91)*(1+CPIv2009n2010),0) -> 44.71991043 | H53: =IF(Rekenvolumes!H91>0,(1000*'Vergoedingen AD'!H143/Rekenvolumes!H91)*(1+CPIv2009n2010),0) -> 46.21824 | I53: =IF(Rekenvolumes!I91>0,(1000*'Vergoedingen AD'!I143/Rekenvolumes!I91)*(1+CPIv2009n2010),0) -> 51.153 | J53: =IF(Rekenvolumes!J91>0,(1000*'Vergoedingen AD'!J143/Rekenvolumes!J91)*(1+CPIv2009n2010),0) -> 50.19012 | K53: =IF(Rekenvolumes!K91>0,(1000*'Vergoedingen AD'!K143/Rekenvolumes!K91)*(1+CPIv2009n2010),0) -> 37.67268 | L53: =IF(Rekenvolumes!L91>0,(1000*'Vergoedingen AD'!L143/Rekenvolumes!L91)*(1+CPIv2009n2010),0) -> 46.21824 | M53: =IF(Rekenvolumes!M91>0,(1000*'Vergoedingen AD'!M143/Rekenvolumes!M91)*(1+CPIv2009n2010),0) -> 69.55805 | N53: =IF(Rekenvolumes!N91>0,(1000*'Vergoedingen AD'!N143/Rekenvolumes!N91)*(1+CPIv2009n2010),0) -> 8.9267 | O53: =IF(Rekenvolumes!O91>0,(1000*'Vergoedingen AD'!O143/Rekenvolumes!O91)*(1+CPIv2009n2010),0) -> 54.8641 | P53: =IF(Rekenvolumes!P91>0,(1000*'Vergoedingen AD'!P143/Rekenvolumes!P91)*(1+CPIv2009n2010),0) -> 0
B54: LD 16-25 m3/h | C54: € | E54: =IF(Rekenvolumes!E92>0,(1000*'Vergoedingen AD'!E144/Rekenvolumes!E92)*(1+CPIv2009n2010),0) -> 57.41172 | F54: =IF(Rekenvolumes!F92>0,(1000*'Vergoedingen AD'!F144/Rekenvolumes!F92)*(1+CPIv2009n2010),0) -> 51.27336 | G54: =IF(Rekenvolumes!G92>0,(1000*'Vergoedingen AD'!G144/Rekenvolumes!G92)*(1+CPIv2009n2010),0) -> 44.72472925 | H54: =IF(Rekenvolumes!H92>0,(1000*'Vergoedingen AD'!H144/Rekenvolumes!H92)*(1+CPIv2009n2010),0) -> 46.21824 | I54: =IF(Rekenvolumes!I92>0,(1000*'Vergoedingen AD'!I144/Rekenvolumes!I92)*(1+CPIv2009n2010),0) -> 51.153 | J54: =IF(Rekenvolumes!J92>0,(1000*'Vergoedingen AD'!J144/Rekenvolumes!J92)*(1+CPIv2009n2010),0) -> 50.19012 | K54: =IF(Rekenvolumes!K92>0,(1000*'Vergoedingen AD'!K144/Rekenvolumes!K92)*(1+CPIv2009n2010),0) -> 40.3206 | L54: =IF(Rekenvolumes!L92>0,(1000*'Vergoedingen AD'!L144/Rekenvolumes!L92)*(1+CPIv2009n2010),0) -> 46.21824 | M54: =IF(Rekenvolumes!M92>0,(1000*'Vergoedingen AD'!M144/Rekenvolumes!M92)*(1+CPIv2009n2010),0) -> 69.55805 | N54: =IF(Rekenvolumes!N92>0,(1000*'Vergoedingen AD'!N144/Rekenvolumes!N92)*(1+CPIv2009n2010),0) -> 8.9267 | O54: =IF(Rekenvolumes!O92>0,(1000*'Vergoedingen AD'!O144/Rekenvolumes!O92)*(1+CPIv2009n2010),0) -> 54.8641 | P54: =IF(Rekenvolumes!P92>0,(1000*'Vergoedingen AD'!P144/Rekenvolumes!P92)*(1+CPIv2009n2010),0) -> 0
B55: LD 25-40 m3/h | C55: € | E55: =IF(Rekenvolumes!E93>0,(1000*'Vergoedingen AD'!E145/Rekenvolumes!E93)*(1+CPIv2009n2010),0) -> 75.58608 | F55: =IF(Rekenvolumes!F93>0,(1000*'Vergoedingen AD'!F145/Rekenvolumes!F93)*(1+CPIv2009n2010),0) -> 84.73344 | G55: =IF(Rekenvolumes!G93>0,(1000*'Vergoedingen AD'!G145/Rekenvolumes!G93)*(1+CPIv2009n2010),0) -> 70.63256231 | H55: =IF(Rekenvolumes!H93>0,(1000*'Vergoedingen AD'!H145/Rekenvolumes!H93)*(1+CPIv2009n2010),0) -> 70.65132 | I55: =IF(Rekenvolumes!I93>0,(1000*'Vergoedingen AD'!I145/Rekenvolumes!I93)*(1+CPIv2009n2010),0) -> 150.9840205 | J55: =IF(Rekenvolumes!J93>0,(1000*'Vergoedingen AD'!J145/Rekenvolumes!J93)*(1+CPIv2009n2010),0) -> 78.35436 | K55: =IF(Rekenvolumes!K93>0,(1000*'Vergoedingen AD'!K145/Rekenvolumes!K93)*(1+CPIv2009n2010),0) -> 71.73456 | L55: =IF(Rekenvolumes!L93>0,(1000*'Vergoedingen AD'!L145/Rekenvolumes!L93)*(1+CPIv2009n2010),0) -> 70.65132 | M55: =IF(Rekenvolumes!M93>0,(1000*'Vergoedingen AD'!M145/Rekenvolumes!M93)*(1+CPIv2009n2010),0) -> 81.3433 | N55: =IF(Rekenvolumes!N93>0,(1000*'Vergoedingen AD'!N145/Rekenvolumes!N93)*(1+CPIv2009n2010),0) -> 8.9267 | O55: =IF(Rekenvolumes!O93>0,(1000*'Vergoedingen AD'!O145/Rekenvolumes!O93)*(1+CPIv2009n2010),0) -> 67.201 | P55: =IF(Rekenvolumes!P93>0,(1000*'Vergoedingen AD'!P145/Rekenvolumes!P93)*(1+CPIv2009n2010),0) -> 0
B56: LD 40-65 m3/h | C56: € | E56: =IF(Rekenvolumes!E94>0,(1000*'Vergoedingen AD'!E146/Rekenvolumes!E94)*(1+CPIv2009n2010),0) -> 84.1508976 | F56: =IF(Rekenvolumes!F94>0,(1000*'Vergoedingen AD'!F146/Rekenvolumes!F94)*(1+CPIv2009n2010),0) -> 60.8889204 | G56: =IF(Rekenvolumes!G94>0,(1000*'Vergoedingen AD'!G146/Rekenvolumes!G94)*(1+CPIv2009n2010),0) -> 69.93472023 | H56: =IF(Rekenvolumes!H94>0,(1000*'Vergoedingen AD'!H146/Rekenvolumes!H94)*(1+CPIv2009n2010),0) -> 79.23546624 | I56: =IF(Rekenvolumes!I94>0,(1000*'Vergoedingen AD'!I146/Rekenvolumes!I94)*(1+CPIv2009n2010),0) -> 546.02317 | J56: =IF(Rekenvolumes!J94>0,(1000*'Vergoedingen AD'!J146/Rekenvolumes!J94)*(1+CPIv2009n2010),0) -> 73.81508529 | K56: =IF(Rekenvolumes!K94>0,(1000*'Vergoedingen AD'!K146/Rekenvolumes!K94)*(1+CPIv2009n2010),0) -> 67.5616788 | L56: =IF(Rekenvolumes!L94>0,(1000*'Vergoedingen AD'!L146/Rekenvolumes!L94)*(1+CPIv2009n2010),0) -> 79.23546624 | M56: =IF(Rekenvolumes!M94>0,(1000*'Vergoedingen AD'!M146/Rekenvolumes!M94)*(1+CPIv2009n2010),0) -> 63.01710034 | N56: =IF(Rekenvolumes!N94>0,(1000*'Vergoedingen AD'!N146/Rekenvolumes!N94)*(1+CPIv2009n2010),0) -> 85.8577027 | O56: =IF(Rekenvolumes!O94>0,(1000*'Vergoedingen AD'!O146/Rekenvolumes!O94)*(1+CPIv2009n2010),0) -> 75.68638 | P56: =IF(Rekenvolumes!P94>0,(1000*'Vergoedingen AD'!P146/Rekenvolumes!P94)*(1+CPIv2009n2010),0) -> 0
B57: LD 65-100 m3/h | C57: € | E57: =IF(Rekenvolumes!E95>0,(1000*'Vergoedingen AD'!E147/Rekenvolumes!E95)*(1+CPIv2009n2010),0) -> 95.920902 | F57: =IF(Rekenvolumes!F95>0,(1000*'Vergoedingen AD'!F147/Rekenvolumes!F95)*(1+CPIv2009n2010),0) -> 75.3929022 | G57: =IF(Rekenvolumes!G95>0,(1000*'Vergoedingen AD'!G147/Rekenvolumes!G95)*(1+CPIv2009n2010),0) -> 76.41833856 | H57: =IF(Rekenvolumes!H95>0,(1000*'Vergoedingen AD'!H147/Rekenvolumes!H95)*(1+CPIv2009n2010),0) -> 118.626816 | I57: =IF(Rekenvolumes!I95>0,(1000*'Vergoedingen AD'!I147/Rekenvolumes!I95)*(1+CPIv2009n2010),0) -> 167.8713824 | J57: =IF(Rekenvolumes!J95>0,(1000*'Vergoedingen AD'!J147/Rekenvolumes!J95)*(1+CPIv2009n2010),0) -> 103.4277552 | K57: =IF(Rekenvolumes!K95>0,(1000*'Vergoedingen AD'!K147/Rekenvolumes!K95)*(1+CPIv2009n2010),0) -> 112.602798 | L57: =IF(Rekenvolumes!L95>0,(1000*'Vergoedingen AD'!L147/Rekenvolumes!L95)*(1+CPIv2009n2010),0) -> 118.626816 | M57: =IF(Rekenvolumes!M95>0,(1000*'Vergoedingen AD'!M147/Rekenvolumes!M95)*(1+CPIv2009n2010),0) -> 94.78276051 | N57: =IF(Rekenvolumes!N95>0,(1000*'Vergoedingen AD'!N147/Rekenvolumes!N95)*(1+CPIv2009n2010),0) -> 85.8577027 | O57: =IF(Rekenvolumes!O95>0,(1000*'Vergoedingen AD'!O147/Rekenvolumes!O95)*(1+CPIv2009n2010),0) -> 82.63717 | P57: =IF(Rekenvolumes!P95>0,(1000*'Vergoedingen AD'!P147/Rekenvolumes!P95)*(1+CPIv2009n2010),0) -> 0
B58: LD 100-160 m3/h | C58: € | E58: =IF(Rekenvolumes!E96>0,(1000*'Vergoedingen AD'!E148/Rekenvolumes!E96)*(1+CPIv2009n2010),0) -> 134.1965856 | F58: =IF(Rekenvolumes!F96>0,(1000*'Vergoedingen AD'!F148/Rekenvolumes!F96)*(1+CPIv2009n2010),0) -> 115.0587438 | G58: =IF(Rekenvolumes!G96>0,(1000*'Vergoedingen AD'!G148/Rekenvolumes!G96)*(1+CPIv2009n2010),0) -> 118.6691297 | H58: =IF(Rekenvolumes!H96>0,(1000*'Vergoedingen AD'!H148/Rekenvolumes!H96)*(1+CPIv2009n2010),0) -> 168.6584903 | I58: =IF(Rekenvolumes!I96>0,(1000*'Vergoedingen AD'!I148/Rekenvolumes!I96)*(1+CPIv2009n2010),0) -> 267.605415 | J58: =IF(Rekenvolumes!J96>0,(1000*'Vergoedingen AD'!J148/Rekenvolumes!J96)*(1+CPIv2009n2010),0) -> 168.8578584 | K58: =IF(Rekenvolumes!K96>0,(1000*'Vergoedingen AD'!K148/Rekenvolumes!K96)*(1+CPIv2009n2010),0) -> 206.438463 | L58: =IF(Rekenvolumes!L96>0,(1000*'Vergoedingen AD'!L148/Rekenvolumes!L96)*(1+CPIv2009n2010),0) -> 168.6584903 | M58: =IF(Rekenvolumes!M96>0,(1000*'Vergoedingen AD'!M148/Rekenvolumes!M96)*(1+CPIv2009n2010),0) -> 176.8058797 | N58: =IF(Rekenvolumes!N96>0,(1000*'Vergoedingen AD'!N148/Rekenvolumes!N96)*(1+CPIv2009n2010),0) -> 85.8577027 | O58: =IF(Rekenvolumes!O96>0,(1000*'Vergoedingen AD'!O148/Rekenvolumes!O96)*(1+CPIv2009n2010),0) -> 123.183445 | P58: =IF(Rekenvolumes!P96>0,(1000*'Vergoedingen AD'!P148/Rekenvolumes!P96)*(1+CPIv2009n2010),0) -> 0
B59: LD 160-250 m3/h | C59: € | E59: =IF(Rekenvolumes!E97>0,(1000*'Vergoedingen AD'!E149/Rekenvolumes!E97)*(1+CPIv2009n2010),0) -> 134.1965856 | F59: =IF(Rekenvolumes!F97>0,(1000*'Vergoedingen AD'!F149/Rekenvolumes!F97)*(1+CPIv2009n2010),0) -> 174.6038448 | G59: =IF(Rekenvolumes!G97>0,(1000*'Vergoedingen AD'!G149/Rekenvolumes!G97)*(1+CPIv2009n2010),0) -> 224.3655415 | H59: =IF(Rekenvolumes!H97>0,(1000*'Vergoedingen AD'!H149/Rekenvolumes!H97)*(1+CPIv2009n2010),0) -> 200.6374495 | I59: =IF(Rekenvolumes!I97>0,(1000*'Vergoedingen AD'!I149/Rekenvolumes!I97)*(1+CPIv2009n2010),0) -> 413.6190971 | J59: =IF(Rekenvolumes!J97>0,(1000*'Vergoedingen AD'!J149/Rekenvolumes!J97)*(1+CPIv2009n2010),0) -> 251.6649366 | K59: =IF(Rekenvolumes!K97>0,(1000*'Vergoedingen AD'!K149/Rekenvolumes!K97)*(1+CPIv2009n2010),0) -> 289.0138482 | L59: =IF(Rekenvolumes!L97>0,(1000*'Vergoedingen AD'!L149/Rekenvolumes!L97)*(1+CPIv2009n2010),0) -> 200.6374495 | M59: =IF(Rekenvolumes!M97>0,(1000*'Vergoedingen AD'!M149/Rekenvolumes!M97)*(1+CPIv2009n2010),0) -> 393.9252466 | N59: =IF(Rekenvolumes!N97>0,(1000*'Vergoedingen AD'!N149/Rekenvolumes!N97)*(1+CPIv2009n2010),0) -> 85.8577027 | O59: =IF(Rekenvolumes!O97>0,(1000*'Vergoedingen AD'!O149/Rekenvolumes!O97)*(1+CPIv2009n2010),0) -> 164.888185 | P59: =IF(Rekenvolumes!P97>0,(1000*'Vergoedingen AD'!P149/Rekenvolumes!P97)*(1+CPIv2009n2010),0) -> 0
B60: LD 250-400 m3/h | C60: € | E60: =IF(Rekenvolumes!E98>0,(1000*'Vergoedingen AD'!E150/Rekenvolumes!E98)*(1+CPIv2009n2010),0) -> 147.6347796 | F60: =IF(Rekenvolumes!F98>0,(1000*'Vergoedingen AD'!F150/Rekenvolumes!F98)*(1+CPIv2009n2010),0) -> 238.3194198 | G60: =IF(Rekenvolumes!G98>0,(1000*'Vergoedingen AD'!G150/Rekenvolumes!G98)*(1+CPIv2009n2010),0) -> 362.1757835 | H60: =IF(Rekenvolumes!H98>0,(1000*'Vergoedingen AD'!H150/Rekenvolumes!H98)*(1+CPIv2009n2010),0) -> 320.1987917 | I60: =IF(Rekenvolumes!I98>0,(1000*'Vergoedingen AD'!I150/Rekenvolumes!I98)*(1+CPIv2009n2010),0) -> 725.585245 | J60: =IF(Rekenvolumes!J98>0,(1000*'Vergoedingen AD'!J150/Rekenvolumes!J98)*(1+CPIv2009n2010),0) -> 371.7214225 | K60: =IF(Rekenvolumes!K98>0,(1000*'Vergoedingen AD'!K150/Rekenvolumes!K98)*(1+CPIv2009n2010),0) -> 461.6714718 | L60: =IF(Rekenvolumes!L98>0,(1000*'Vergoedingen AD'!L150/Rekenvolumes!L98)*(1+CPIv2009n2010),0) -> 320.1987917 | M60: =IF(Rekenvolumes!M98>0,(1000*'Vergoedingen AD'!M150/Rekenvolumes!M98)*(1+CPIv2009n2010),0) -> 521.6150777 | N60: =IF(Rekenvolumes!N98>0,(1000*'Vergoedingen AD'!N150/Rekenvolumes!N98)*(1+CPIv2009n2010),0) -> 85.8577027 | O60: =IF(Rekenvolumes!O98>0,(1000*'Vergoedingen AD'!O150/Rekenvolumes!O98)*(1+CPIv2009n2010),0) -> 175.31437 | P60: =IF(Rekenvolumes!P98>0,(1000*'Vergoedingen AD'!P150/Rekenvolumes!P98)*(1+CPIv2009n2010),0) -> 0
B61: LD 400-650 m3/h | C61: € | E61: =IF(Rekenvolumes!E99>0,(1000*'Vergoedingen AD'!E151/Rekenvolumes!E99)*(1+CPIv2009n2010),0) -> 162.3704544 | F61: =IF(Rekenvolumes!F99>0,(1000*'Vergoedingen AD'!F151/Rekenvolumes!F99)*(1+CPIv2009n2010),0) -> 0 | G61: =IF(Rekenvolumes!G99>0,(1000*'Vergoedingen AD'!G151/Rekenvolumes!G99)*(1+CPIv2009n2010),0) -> 621.3358968 | H61: =IF(Rekenvolumes!H99>0,(1000*'Vergoedingen AD'!H151/Rekenvolumes!H99)*(1+CPIv2009n2010),0) -> 0 | I61: =IF(Rekenvolumes!I99>0,(1000*'Vergoedingen AD'!I151/Rekenvolumes!I99)*(1+CPIv2009n2010),0) -> 1168.118875 | J61: =IF(Rekenvolumes!J99>0,(1000*'Vergoedingen AD'!J151/Rekenvolumes!J99)*(1+CPIv2009n2010),0) -> 371.7214225 | K61: =IF(Rekenvolumes!K99>0,(1000*'Vergoedingen AD'!K151/Rekenvolumes!K99)*(1+CPIv2009n2010),0) -> 649.3428018 | L61: =IF(Rekenvolumes!L99>0,(1000*'Vergoedingen AD'!L151/Rekenvolumes!L99)*(1+CPIv2009n2010),0) -> 0 | M61: =IF(Rekenvolumes!M99>0,(1000*'Vergoedingen AD'!M151/Rekenvolumes!M99)*(1+CPIv2009n2010),0) -> 478.3070292 | N61: =IF(Rekenvolumes!N99>0,(1000*'Vergoedingen AD'!N151/Rekenvolumes!N99)*(1+CPIv2009n2010),0) -> 85.8577027 | O61: =IF(Rekenvolumes!O99>0,(1000*'Vergoedingen AD'!O151/Rekenvolumes!O99)*(1+CPIv2009n2010),0) -> 242.891495 | P61: =IF(Rekenvolumes!P99>0,(1000*'Vergoedingen AD'!P151/Rekenvolumes!P99)*(1+CPIv2009n2010),0) -> 0
B62: LD 650-1000 m3/h | C62: € | E62: =IF(Rekenvolumes!E100>0,(1000*'Vergoedingen AD'!E152/Rekenvolumes!E100)*(1+CPIv2009n2010),0) -> 0 | F62: =IF(Rekenvolumes!F100>0,(1000*'Vergoedingen AD'!F152/Rekenvolumes!F100)*(1+CPIv2009n2010),0) -> 0 | G62: =IF(Rekenvolumes!G100>0,(1000*'Vergoedingen AD'!G152/Rekenvolumes!G100)*(1+CPIv2009n2010),0) -> 1565.710859 | H62: =IF(Rekenvolumes!H100>0,(1000*'Vergoedingen AD'!H152/Rekenvolumes!H100)*(1+CPIv2009n2010),0) -> 0 | I62: =IF(Rekenvolumes!I100>0,(1000*'Vergoedingen AD'!I152/Rekenvolumes!I100)*(1+CPIv2009n2010),0) -> 2687.252645 | J62: =IF(Rekenvolumes!J100>0,(1000*'Vergoedingen AD'!J152/Rekenvolumes!J100)*(1+CPIv2009n2010),0) -> 371.7214225 | K62: =IF(Rekenvolumes!K100>0,(1000*'Vergoedingen AD'!K152/Rekenvolumes!K100)*(1+CPIv2009n2010),0) -> 934.6032234 | L62: =IF(Rekenvolumes!L100>0,(1000*'Vergoedingen AD'!L152/Rekenvolumes!L100)*(1+CPIv2009n2010),0) -> 0 | M62: =IF(Rekenvolumes!M100>0,(1000*'Vergoedingen AD'!M152/Rekenvolumes!M100)*(1+CPIv2009n2010),0) -> 0 | N62: =IF(Rekenvolumes!N100>0,(1000*'Vergoedingen AD'!N152/Rekenvolumes!N100)*(1+CPIv2009n2010),0) -> 85.8577027 | O62: =IF(Rekenvolumes!O100>0,(1000*'Vergoedingen AD'!O152/Rekenvolumes!O100)*(1+CPIv2009n2010),0) -> 295.02242 | P62: =IF(Rekenvolumes!P100>0,(1000*'Vergoedingen AD'!P152/Rekenvolumes!P100)*(1+CPIv2009n2010),0) -> 0
